Workbook

Sheet Contents
A1: 80 | M1: ESC USE ONLY
D2: ESSENTIAL SERVICES COMMISSION
D3: Water Price Review - 2023
D4: Financial Model Template
B7: Table of Contents | F7: Water Business: | H7: =+N24 -> Yarra Valley Water | I7: =+O24 -> YVW
B8: Section & Sheet Titles | F8: Regulatory Period: | H8: 2023-24 to 2027-28 (Fifth) | N8: [Decision] | O8: [Month] | P8: [Year] | Q8: [Version]
F9: Model Name: | H9: =I7&"_Price Review Template_"&O9&P9&Q9 -> YVW_Price Review Template_Oct2021 - v1 | N9: Draft | O9: Oct | P9: 2021 | Q9: - v1 | R9: << Select
B10: 1 | C10: Model Quality Check | F10: Decision type: | H10: =+N9&" Decision" -> Draft Decision | N10: Draft | O10: Jan | P10: 2016 | Q10: - v1
B11: 2 | C11: =+KeyAssumptionsPriceControl_FO!B1 -> Key Assumptions Price Control | N11: Final | O11: Feb | P11: 2017
B12: 3 | C12: =+Expenditure_Detail!B1 -> Expenditure - Detail | F12: Model Key: | O12: Mar | P12: 2018
B13: 4 | C13: =Opex_FO!B1 -> Operating Expenditure - Forecast | O13: Apr | P13: 2019
B14: 5 | C14: =Opex_Breakdown!B1 -> Operating Expenditure - Breakdown | G14: BLUE | H14: =+I7&" - DATA INPUT CELL" -> YVW - DATA INPUT CELL | O14: May | P14: 2020
B15: 6 | C15: =+'Capex_FO input'!B1 -> Capital Expenditure - Forecast Input | O15: Jun | P15: 2021
B16: 7 | C16: =Capex_FO_AC!B1 -> Capital Expenditure - Asset Category Breakdown | G16: PURPLE | H16: NOTES / INSTRUCTIONS | O16: Jul | P16: 2022
B17: 8 | C17: =ExpSummary_FO!B1 -> Expenditure Summary | O17: Aug | P17: 2023
B18: 9 | C18: =RollForward_FO!B1 -> Rolled forward regulatory asset base (RAB) | G18: GREY | H18: MODEL PARAMETERS / ASSUMPTIONS | O18: Sep
B19: 10 | C19: =PrevPerAdj_FO!B1 -> Previous period adjustments | O19: Oct
B20: 11 | C20: =RevenuePriceCap_FO!C1 -> Revenue forecast (price caps) | G20: WHITE | H20: FORMULA / HARDCODED VALUES | O20: Nov
B21: 12 | C21: Revenue forecast (tariff basket) | O21: Dec
B22: 13 | C22: =NotPres_FO!B1 -> Non Prescribed Services | G22: ORANGE | H22: FORMULA DIFFERENT TO ADJACENT CELL
B23: 14 | C23: ='Finance&Tax_FO'!B1 -> Cash, debt and tax assumptions | N23: [Business]
B24: 15 | C24: ='Rev&RAV_FO'!B1 -> Revenue requirement detail | G24: GREEN | H24: DATA FROM 2018 DECISION OR PERFORMANCE REPORT | N24: Yarra Valley Water | O24: =+VLOOKUP(N24,N25:O42,2,FALSE) -> YVW
B25: 16 | C25: =Indicators_FO!B1 -> Financial indicators | N25: Barwon Water | O25: BW
B26: 17 | C26: =Outcomes!B1 -> Outcomes | G26: RED | H26: ERROR CHECK | N26: Central Highlands Water | O26: CHW
B27: 18 | C27: =GSL!B1 -> Guaranteed Service Levels (GSL) | N27: Greater Western Water | O27: GWW
B28: 19 | C28: Dashboard - Pricing | N28: Coliban Water | O28: CW
B29: 20 | C29: Dashboard - Opex | N29: East Gippsland Water | O29: EGW
B30: 21 | C30: Dashboard - Capex | N30: Gippsland Water | O30: CGW
B31: 22 | C31: Dashboard - Data | N31: Goulburn Valley Water | O31: GVW
B32: 23 | C32: Household Bill | N32: GWM Water | O32: GWMW | P32: diff model
N33: Lower Murray Water - Urban | O33: LMW-U | P33: diff model
N34: Lower Murray Water - Rural | O34: LMW-R
N35: North East Water | O35: NEW
N36: South East Water | O36: SEW
N37: South Gippsland Water | O37: SGW
N38: Southern Rural Water | O38: SRW | P38: diff model
N39: Wannon Water | O39: WNW
N40: Westernport Water | O40: WPW
N41: Yarra Valley Water | O41: YVW

Sheet Adjustments log (hidden)
A3: 1 | B3: Operating expenditure
B4: $m 2022-23
C6: 2023-24 | D6: 2024-25 | E6: 2025-26 | F6: 2026-27 | G6: 2027-28 | H6: Total
B7: Proposed - controllable operating expenditure | H7: =SUM(C7:G7) -> 0
B8: DD adjustments
B9: xx | H9: =SUM(C9:G9) -> 0
B10: xx | H10: =SUM(C10:G10) -> 0
B11: xx | H11: =SUM(C11:G11) -> 0
B12: xx | H12: =SUM(C12:G12) -> 0
B13: xx | H13: =SUM(C13:G13) -> 0
B14: FD adjustments
B15: xx | H15: =SUM(C15:G15) -> 0
B16: xx | H16: =SUM(C16:G16) -> 0
B17: xx | H17: =SUM(C17:G17) -> 0
B18: xx | H18: =SUM(C18:G18) -> 0
B19: xx | H19: 0
B20: Total adjustments | C20: =SUM(C8:C19) -> 0 | D20: 0 | E20: 0 | F20: 0 | G20: 0 | H20: 0
B21: Final decision - controllable operating expenditure | C21: =C7+C20 -> 0 | D21: 0 | E21: 0 | F21: 0 | G21: 0 | H21: 0
B23: Proposed - non-controllable operating expenditure | H23: =SUM(C23:G23) -> 0
B24: DD adjustments
B25: xx | H25: =SUM(C25:G25) -> 0
B26: xx | H26: =SUM(C26:G26) -> 0
B27: xx | H27: =SUM(C27:G27) -> 0
B28: xx | H28: =SUM(C28:G28) -> 0
B29: FD adjustments
B30: xx | H30: =SUM(C30:G30) -> 0
B31: xx | H31: =SUM(C31:G31) -> 0
B32: Total adjustments | C32: =SUM(C24:C31) -> 0 | D32: 0 | E32: 0 | F32: 0 | G32: 0 | H32: 0
B33: Final decision - non-controllable operating expenditure | C33: =C23+C32 -> 0 | D33: 0 | E33: 0 | F33: 0 | G33: 0 | H33: 0
B35: Proposed - total operating expenditure | C35: =C7+C23 -> 0 | D35: 0 | E35: 0 | F35: 0 | G35: 0 | H35: 0
B36: Total adjustments | C36: =C20+C32 -> 0 | D36: 0 | E36: 0 | F36: 0 | G36: 0 | H36: 0
B37: Final decision - total operating expenditure | C37: =SUM(C35:C36) -> 0 | D37: 0 | E37: 0 | F37: 0 | G37: 0 | H37: 0
B39: Check
A42: 2 | B42: Capital expenditure
B43: $m 2022-23
C45: 2023-24 | D45: 2024-25 | E45: 2025-26 | F45: 2026-27 | G45: 2027-28 | H45: Total
B46: Proposed - capital expenditure | H46: =SUM(C46:G46) -> 0
B47: DD adjustments
B48: xx | H48: =SUM(C48:G48) -> 0
B49: xx | H49: =SUM(C49:G49) -> 0
B50: xx | H50: =SUM(C50:G50) -> 0
B51: xx | H51: =SUM(C51:G51) -> 0
B52: FD adjustments
B53: xx | H53: =SUM(C53:G53) -> 0
B54: xx
B55: Total adjustments | C55: =SUM(C47:C54) -> 0 | D55: 0 | E55: 0 | F55: 0 | G55: 0 | H55: 0
B56: Draft decision - capital expenditure | C56: =C46+C55 -> 0 | D56: 0 | E56: 0 | F56: 0 | G56: 0 | H56: 0
B58: Check

Sheet Model Quality Check
A1: 80 | B1: Model Quality Check
B2: =+Contents!H7 -> Yarra Valley Water
B3: Go to Table of Contents
K4: FIRST REG PERIOD | O4: SECOND REG PERIOD | T4: THIRD REG PERIOD | Y4: FOURTH REG PERIOD | AD4: FIFTH REG PERIOD | AI4: SIXTH REG PERIOD
F6: Straight Line | J6: 2006 | K6: 2007 | L6: 2008 | M6: 2009 | N6: 2010 | O6: 2011 | P6: 2012 | Q6: 2013 | R6: 2014 | S6: 2015 | T6: 2016 | U6: 2017 | V6: 2018 | W6: 2019 | X6: 2020 | Y6: 2021 | Z6: 2022 | AA6: 2023 | AB6: 2024 | AC6: 2025 | AD6: 2026 | AE6: 2027 | AF6: 2028 | AG6: 2029 | AH6: 2030 | AI6: 2031 | AJ6: 2032 | AK6: 2033
F7: Declining Balance | J7: =+CONCATENATE(J6-1,"-",RIGHT(J6,2)) -> 2005-06 | K7: 2006-07 | L7: 2007-08 | M7: 2008-09 | N7: 2009-10 | O7: 2010-11 | P7: 2011-12 | Q7: 2012-13 | R7: 2013-14 | S7: 2014-15 | T7: 2015-16 | U7: 2016-17 | V7: 2017-18 | W7: =+CONCATENATE(W6-1,"-",RIGHT(W6,2)) -> 2018-19 | X7: 2019-20 | Y7: 2020-21 | Z7: 2021-22 | AA7: 2022-23 | AB7: 2023-24 | AC7: 2024-25 | AD7: 2025-26 | AE7: 2026-27 | AF7: =+CONCATENATE(AF6-1,"-",RIGHT(AF6,2)) -> 2027-28 | AG7: 2028-29 | AH7: 2029-30 | AI7: 2030-31 | AJ7: 2031-32 | AK7: 2032-33
D9: Model ready for submission: | I9: =SUM(AA15:AK49) -> 1 | R9: (If No, please ensure that the error check is corrected at the source)
D11: All financial indicators satisfied: | I11: =SUM(AB54:AK59) -> 23
E14: 1. | F14: Opex_FO
G15: Reconciliation to 'Opex_Breakdown' tab row 37 | AB15: =Opex_FO!AC100 -> 0 | AC15: =Opex_FO!AD100 -> 0 | AD15: =Opex_FO!AE100 -> 0 | AE15: =Opex_FO!AF100 -> 0 | AF15: =Opex_FO!AG100 -> 0 | AG15: =Opex_FO!AH100 -> 0 | AH15: =Opex_FO!AI100 -> 0 | AI15: =Opex_FO!AJ100 -> 0 | AJ15: =Opex_FO!AK100 -> 0 | AK15: =Opex_FO!AL100 -> 0
E17: 2. | F17: Opex_Breakdown
G18: Reconciliation to 'Opex_FO' tab row 95 | AB18: =Opex_Breakdown!AC42 -> 0 | AC18: =Opex_Breakdown!AD42 -> 0 | AD18: =Opex_Breakdown!AE42 -> 0 | AE18: =Opex_Breakdown!AF42 -> 0 | AF18: =Opex_Breakdown!AG42 -> 0 | AG18: =Opex_Breakdown!AH42 -> 0 | AH18: =Opex_Breakdown!AI42 -> 0 | AI18: =Opex_Breakdown!AJ42 -> 0 | AJ18: =Opex_Breakdown!AK42 -> 0 | AK18: =Opex_Breakdown!AL42 -> 0
G20: Reconciliation of Opex by service and function | AB20: =Opex_Breakdown!AC27 -> 0 | AC20: =Opex_Breakdown!AD27 -> 0 | AD20: =Opex_Breakdown!AE27 -> 0 | AE20: =Opex_Breakdown!AF27 -> 0 | AF20: =Opex_Breakdown!AG27 -> 0 | AG20: =Opex_Breakdown!AH27 -> 0 | AH20: =Opex_Breakdown!AI27 -> 0 | AI20: =Opex_Breakdown!AJ27 -> 0 | AJ20: =Opex_Breakdown!AK27 -> 0 | AK20: =Opex_Breakdown!AL27 -> 0
E22: 3. | F22: Capex_FO input
G23: Reconciliation of total prescribed capex between cost driver and capital type | AB23: ='Capex_FO input'!D26 -> 0 | AC23: ='Capex_FO input'!E26 -> 0 | AD23: ='Capex_FO input'!F26 -> 0 | AE23: ='Capex_FO input'!G26 -> 0 | AF23: ='Capex_FO input'!H26 -> 0 | AG23: ='Capex_FO input'!I26 -> 0 | AH23: ='Capex_FO input'!J26 -> 0 | AI23: ='Capex_FO input'!K26 -> 0 | AJ23: ='Capex_FO input'!L26 -> 0 | AK23: ='Capex_FO input'!M26 -> 0
E25: 4. | F25: Capex_FO_AC
G26: Reconciliation to 'Capex_FO input' tab row 29 | AA26: =Capex_FO_AC!AB30 -> 0 | AB26: =Capex_FO_AC!AC30 -> 0 | AC26: =Capex_FO_AC!AD30 -> 0 | AD26: =Capex_FO_AC!AE30 -> 0 | AE26: =Capex_FO_AC!AF30 -> 0 | AF26: =Capex_FO_AC!AG30 -> 0 | AG26: =Capex_FO_AC!AH30 -> 0 | AH26: =Capex_FO_AC!AI30 -> 0 | AI26: =Capex_FO_AC!AJ30 -> 0 | AJ26: =Capex_FO_AC!AK30 -> 0 | AK26: =Capex_FO_AC!AL30 -> 0
E28: 5. | F28: RollForward_FO
G29: Reconciliation of existing assets book value to RAB | AB29: =IF(ROUND(RollForward_FO!G84,2)=ROUND(RollForward_FO!G82,2),0,1) -> 1
E31: 6. | F31: RevenuePriceCap_FO
G32: Price control - Fifth period | AB32: =IF(KeyAssumptionsPriceControl_FO!I48=1,IF(RevenuePriceCap_FO!AD34="PRICE CONTROL OK",0,1),0) -> 0 | AC32: =IF(KeyAssumptionsPriceControl_FO!I48=1,RevenuePriceCap_FO!AD34,"") -> 
G34: Price control - Sixth period | AB34: =IF(KeyAssumptionsPriceControl_FO!I48=1,IF(RevenuePriceCap_FO!AI34="PRICE CONTROL OK",0,1),0) -> 0 | AC34: =IF(KeyAssumptionsPriceControl_FO!I48=1,RevenuePriceCap_FO!AI34,"") -> 
G36: Tariff revenue reconciliation | AB36: =RevenuePriceCap_FO!AC458 -> 0 | AC36: =RevenuePriceCap_FO!AD458 -> 0 | AD36: =RevenuePriceCap_FO!AE458 -> 0 | AE36: =RevenuePriceCap_FO!AF458 -> 0 | AF36: =RevenuePriceCap_FO!AG458 -> 0 | AG36: =RevenuePriceCap_FO!AH458 -> 0 | AH36: =RevenuePriceCap_FO!AI458 -> 0 | AI36: =RevenuePriceCap_FO!AJ458 -> 0 | AJ36: =RevenuePriceCap_FO!AK458 -> 0 | AK36: =RevenuePriceCap_FO!AL458 -> 0
E38: 7. | F38: RevenueTariffBasket_FO
G39: Price control - Fifth period | AB39: =IF(KeyAssumptionsPriceControl_FO!I48=2,IF(RevenueTariffBasket_FO!AD34="PRICE CONTROL OK",0,1),0) -> 0 | AC39: =IF(KeyAssumptionsPriceControl_FO!I48=2,RevenueTariffBasket_FO!AD34,"") -> PRICE CONTROL OK
G41: Price control - Sixth period | AB41: =IF(KeyAssumptionsPriceControl_FO!I48=2,IF(RevenueTariffBasket_FO!AI34="PRICE CONTROL OK",0,1),0) -> 0 | AC41: =IF(KeyAssumptionsPriceControl_FO!I48=2,RevenueTariffBasket_FO!AI34,"") -> PRICE CONTROL OK
G43: Tariff revenue reconciliation | AB43: =RevenueTariffBasket_FO!AC458 -> 0 | AC43: =RevenueTariffBasket_FO!AD458 -> 0 | AD43: =RevenueTariffBasket_FO!AE458 -> 0 | AE43: =RevenueTariffBasket_FO!AF458 -> 0 | AF43: =RevenueTariffBasket_FO!AG458 -> 0 | AG43: =RevenueTariffBasket_FO!AH458 -> 0 | AH43: =RevenueTariffBasket_FO!AI458 -> 0 | AI43: =RevenueTariffBasket_FO!AJ458 -> 0 | AJ43: =RevenueTariffBasket_FO!AK458 -> 0 | AK43: =RevenueTariffBasket_FO!AL458 -> 0
E45: 8. | F45: Rev&RAV_FO
G46: Rolled forward RAV reconciliation | AB46: ='Rev&RAV_FO'!AC80 -> 0 | AC46: ='Rev&RAV_FO'!AD80 -> 0 | AD46: ='Rev&RAV_FO'!AE80 -> 0 | AE46: ='Rev&RAV_FO'!AF80 -> 0 | AF46: ='Rev&RAV_FO'!AG80 -> 0 | AG46: ='Rev&RAV_FO'!AH80 -> 0 | AH46: ='Rev&RAV_FO'!AI80 -> 0 | AI46: ='Rev&RAV_FO'!AJ80 -> 0 | AJ46: ='Rev&RAV_FO'!AK80 -> 0 | AK46: ='Rev&RAV_FO'!AL80 -> 0
E48: 9. | F48: GSL
G49: Reconciliation to 'Opex_Breakdown' tab row 23 | AB49: =IF(ROUND(GSL!AC50,2)=ROUND(GSL!AC49,2),0,1) -> 0 | AC49: =IF(ROUND(GSL!AD50,2)=ROUND(GSL!AD49,2),0,1) -> 0 | AD49: =IF(ROUND(GSL!AE50,2)=ROUND(GSL!AE49,2),0,1) -> 0 | AE49: =IF(ROUND(GSL!AF50,2)=ROUND(GSL!AF49,2),0,1) -> 0 | AF49: =IF(ROUND(GSL!AG50,2)=ROUND(GSL!AG49,2),0,1) -> 0 | AG49: =IF(ROUND(GSL!AH50,2)=ROUND(GSL!AH49,2),0,1) -> 0 | AH49: =IF(ROUND(GSL!AI50,2)=ROUND(GSL!AI49,2),0,1) -> 0 | AI49: =IF(ROUND(GSL!AJ50,2)=ROUND(GSL!AJ49,2),0,1) -> 0 | AJ49: =IF(ROUND(GSL!AK50,2)=ROUND(GSL!AK49,2),0,1) -> 0 | AK49: =IF(ROUND(GSL!AL50,2)=ROUND(GSL!AL49,2),0,1) -> 0
E53: 1. | F53: Primary Indicator
G54: FFO interest cover | AB54: =Indicators_FO!AC$226 -> 0 | AC54: =Indicators_FO!AD$226 -> 0 | AD54: =Indicators_FO!AE$226 -> 0 | AE54: =Indicators_FO!AF$226 -> 0 | AF54: =Indicators_FO!AG$226 -> 0 | AG54: =Indicators_FO!AH$226 -> 0 | AH54: =Indicators_FO!AI$226 -> 0 | AI54: =Indicators_FO!AJ$226 -> 0 | AJ54: =Indicators_FO!AK$226 -> 0 | AK54: =Indicators_FO!AL$226 -> 0
E56: 2. | F56: Secondary indicators
G57: Net debt / RAV | AB57: =Indicators_FO!AC$235 -> 0 | AC57: =Indicators_FO!AD$235 -> 0 | AD57: =Indicators_FO!AE$235 -> 0 | AE57: =Indicators_FO!AF$235 -> 0 | AF57: =Indicators_FO!AG$235 -> 0 | AG57: =Indicators_FO!AH$235 -> 0 | AH57: =Indicators_FO!AI$235 -> 0 | AI57: =Indicators_FO!AJ$235 -> 1 | AJ57: =Indicators_FO!AK$235 -> 1 | AK57: =Indicators_FO!AL$235 -> 1
G58: FFO / Net debt | AB58: =Indicators_FO!AC$243 -> 1 | AC58: =Indicators_FO!AD$243 -> 1 | AD58: =Indicators_FO!AE$243 -> 1 | AE58: =Indicators_FO!AF$243 -> 1 | AF58: =Indicators_FO!AG$243 -> 1 | AG58: =Indicators_FO!AH$243 -> 1 | AH58: =Indicators_FO!AI$243 -> 1 | AI58: =Indicators_FO!AJ$243 -> 1 | AJ58: =Indicators_FO!AK$243 -> 1 | AK58: =Indicators_FO!AL$243 -> 1
G59: Internal financing ratio | AB59: =Indicators_FO!AC$252 -> 1 | AC59: =Indicators_FO!AD$252 -> 1 | AD59: =Indicators_FO!AE$252 -> 1 | AE59: =Indicators_FO!AF$252 -> 1 | AF59: =Indicators_FO!AG$252 -> 1 | AG59: =Indicators_FO!AH$252 -> 1 | AH59: =Indicators_FO!AI$252 -> 1 | AI59: =Indicators_FO!AJ$252 -> 1 | AJ59: =Indicators_FO!AK$252 -> 1 | AK59: =Indicators_FO!AL$252 -> 1

Sheet KeyAssumptionsPriceControl_FO
A1: 80 | B1: Key Assumptions Price Control
B2: =+Contents!H7 -> Yarra Valley Water
B3: Go to Table of Contents
L4: FIRST REG PERIOD | P4: SECOND REG PERIOD | U4: THIRD REG PERIOD | Z4: FOURTH REG PERIOD | AE4: FIFTH REG PERIOD | AJ4: SIXTH REG PERIOD
F6: Straight Line | K6: 2006 | L6: 2007 | M6: 2008 | N6: 2009 | O6: 2010 | P6: 2011 | Q6: 2012 | R6: 2013 | S6: 2014 | T6: 2015 | U6: 2016 | V6: 2017 | W6: 2018 | X6: 2019 | Y6: 2020 | Z6: 2021 | AA6: 2022 | AB6: 2023 | AC6: 2024 | AD6: 2025 | AE6: 2026 | AF6: 2027 | AG6: 2028 | AH6: 2029 | AI6: 2030 | AJ6: 2031 | AK6: 2032 | AL6: 2033
F7: Declining Balance | I7: 2003-04 | J7: 2004-05 | K7: =+CONCATENATE(K6-1,"-",RIGHT(K6,2)) -> 2005-06 | L7: =+CONCATENATE(L6-1,"-",RIGHT(L6,2)) -> 2006-07 | M7: 2007-08 | N7: 2008-09 | O7: 2009-10 | P7: 2010-11 | Q7: 2011-12 | R7: 2012-13 | S7: 2013-14 | T7: 2014-15 | U7: 2015-16 | V7: 2016-17 | W7: 2017-18 | X7: 2018-19 | Y7: 2019-20 | Z7: 2020-21 | AA7: 2021-22 | AB7: 2022-23 | AC7: 2023-24 | AD7: 2024-25 | AE7: 2025-26 | AF7: 2026-27 | AG7: 2027-28 | AH7: =+CONCATENATE(AH6-1,"-",RIGHT(AH6,2)) -> 2028-29 | AI7: =+CONCATENATE(AI6-1,"-",RIGHT(AI6,2)) -> 2029-30 | AJ7: =+CONCATENATE(AJ6-1,"-",RIGHT(AJ6,2)) -> 2030-31 | AK7: =+CONCATENATE(AK6-1,"-",RIGHT(AK6,2)) -> 2031-32 | AL7: =+CONCATENATE(AL6-1,"-",RIGHT(AL6,2)) -> 2032-33
E11: Inflation assumptions
AB12: Estimate
F13: March quarter annual CPI | I13: 141.3 | J13: 144.1 | K13: 147.5 | L13: 151.9 | M13: 155.6 | N13: 162.2 | O13: 166.2 | P13: 171 | Q13: 176.7 | R13: 99.9 | S13: 102.4 | T13: 105.4 | U13: 106.8 | V13: 108.2 | W13: 110.5 | X13: 112.6 | Y13: 114.1 | Z13: 116.6 | AA13: 117.9 | AB13: 123.9
F14: Inflation | J14: =+J13/I13-1 -> 0.01981599434 | K14: 0.02359472588 | L14: 0.02983050847 | M14: 0.02435813035 | N14: 0.04241645244 | O14: 0.02466091245 | P14: 0.02888086643 | Q14: 0.03333333333 | R14: 0.01584606678 | S14: =+IF(S13=0,$Z$44,S13/R13-1) -> 0.02502502503 | T14: 0.029296875 | U14: 0.01328273245 | V14: 0.01310861423 | W14: 0.02125693161 | X14: 0.01900452489 | Y14: 0.01332149201 | Z14: 0.02191060473 | AA14: 0.01114922813 | AB14: 0.05089058524 | AC14: =+IF(AC13=0,$AC$44,AC13/AB13-1) -> 0.03 | AD14: 0.03 | AE14: 0.03 | AF14: 0.03 | AG14: 0.03 | AH14: 0.03 | AI14: 0.03 | AJ14: 0.03 | AK14: 0.03 | AL14: 0.03
F15: Inflation factor | I15: 0.7871866295 | J15: 0.8027855153 | K15: 0.8217270195 | L15: 0.8462395543 | M15: 0.8668523677 | N15: 0.9036211699 | O15: 0.9259052925 | P15: 0.9526462396 | Q15: 0.9844011142 | R15: =+R13/$AB$13 -> 0.8062953995 | S15: 0.8264729621 | T15: 0.8506860371 | U15: 0.8619854722 | V15: 0.8732849072 | W15: 0.8918482647 | X15: 0.9087974173 | Y15: 0.9209039548 | Z15: 0.9410815174 | AA15: 0.9515738499 | AB15: 1 | AC15: =+AB15*(1+AC14) -> 1.03 | AD15: 1.0609 | AE15: 1.092727 | AF15: 1.12550881 | AG15: 1.159274074 | AH15: 1.194052297 | AI15: 1.229873865 | AJ15: 1.266770081 | AK15: 1.304773184 | AL15: 1.343916379
I16: CPI index re-referenced in 2012-13, shaded values have been hardcoded to lock in RAB value.
E21: Cost of debt - 10 year trailing average (Nominal)
AA22: Estimate | AB22: Estimate | AC22: Estimate | AD22: Estimate | AE22: Estimate | AF22: Estimate | AG22: Estimate | AH22: Estimate | AI22: Estimate | AJ22: Estimate | AK22: Estimate | AL22: Estimate
E23: Cost of debt | L23: 0.06981666667 | M23: 0.07414 | N23: 0.0691525788 | O23: 0.07361870984 | P23: 0.07046784142 | Q23: 0.06308887941 | R23: 0.0526945046 | S23: 0.070525 | T23: 0.05360833333 | U23: 0.05270138413 | V23: 0.04908333333 | W23: 0.045283 | X23: 0.046133 | Y23: 0.03305833333 | Z23: 0.03045 | AA23: 0.037533 | AB23: =AA23 -> 0.037533 | AC23: =AB23 -> 0.037533 | AD23: =AC23 -> 0.037533 | AE23: =AD23 -> 0.037533 | AF23: =AE23 -> 0.037533 | AG23: =AF23 -> 0.037533 | AH23: =AG23 -> 0.037533 | AI23: =AH23 -> 0.037533 | AJ23: =AI23 -> 0.037533 | AK23: =AJ23 -> 0.037533 | AL23: =AK23 -> 0.037533
E24: Re-financing weightings - average 10 yrs | L24: =1/10 -> 0.1 | M24: =1/10 -> 0.1 | N24: =1/10 -> 0.1 | O24: =1/10 -> 0.1 | P24: =1/10 -> 0.1 | Q24: 0.1 | R24: 0.1 | S24: 0.1 | T24: 0.1 | U24: 0.1 | V24: 0.1 | W24: 0.1 | X24: 0.1 | Y24: 0.1 | Z24: 0.1 | AA24: 0.1 | AB24: 0.1 | AC24: 0.1 | AD24: 0.1 | AE24: 0.1 | AF24: 0.1 | AG24: 0.1 | AH24: 0.1 | AI24: 0.1 | AJ24: 0.1 | AK24: 0.1 | AL24: 0.1
E26: Cost of debt - 10 year trailing average | V26: =IF(U23<>"",SUMPRODUCT(L23:U23,L24:U24),"") -> 0.06498138982 | W26: 0.06290805649 | X26: 0.06002235649 | Y26: 0.05772039861 | Z26: 0.05366436096 | AA26: 0.04966257681 | AB26: =IF(AA23<>"",SUMPRODUCT(R23:AA23,R24:AA24),"") -> 0.04710698887 | AC26: =IF(AB23<>"",SUMPRODUCT(S23:AB23,S24:AB24),"") -> 0.04559083841 | AD26: =IF(AC23<>"",SUMPRODUCT(T23:AC23,T24:AC24),"") -> 0.04229163841 | AE26: 0.04068410508 | AF26: 0.03916726667 | AG26: 0.03801223333 | AH26: 0.03723723333 | AI26: 0.03637723333 | AJ26: 0.0368247 | AK26: 0.037533 | AL26: 0.037533
E30: WACC assumptions (retained for historical purposes only) | Z30: Regulatory Rate of Return (RRR) - Nominal
K32: 1st period | M32: 2nd period | O32: 3rd period | Z32: Cost of Debt | AC32: =+AC26 -> 0.04559083841 | AD32: =+AD26 -> 0.04229163841 | AE32: 0.04068410508 | AF32: 0.03916726667 | AG32: 0.03801223333 | AH32: 0.03723723333 | AI32: 0.03637723333 | AJ32: 0.0368247 | AK32: 0.037533 | AL32: 0.037533
E33: Parameters
F34: Risk Free Rate (Real) | K34: =Determination_Lookup!W8 -> 0.0267 | M34: =Determination_Lookup!X8 -> 0.022185 | O34: =Determination_Lookup!Y8 -> 0.005959
F35: Debt Premium | K35: =Determination_Lookup!W9 -> 0.0116 | M35: =Determination_Lookup!X9 -> 0.0225 | O35: =Determination_Lookup!Y9 -> 0.0399
F36: Equity Premium | K36: =Determination_Lookup!W10 -> 0.06 | M36: =Determination_Lookup!X10 -> 0.06 | O36: =Determination_Lookup!Y10 -> 0.06 | Z36: Regulatory Rate of Return (RRR) - Real
F37: Equity Beta | K37: =Determination_Lookup!W11 -> 0.75 | M37: =Determination_Lookup!X11 -> 0.65 | O37: =Determination_Lookup!Y11 -> 0.65
F38: Gearing (Debt/Assets) | K38: =Determination_Lookup!W12 -> 0.6 | M38: =Determination_Lookup!X12 -> 0.6 | O38: =Determination_Lookup!Y12 -> 0.6 | Z38: Cost of Debt | AC38: =(1+AC32)/(1+AC44)-1 -> 0.01513673632 | AD38: =(1+AD32)/(1+AD44)-1 -> 0.01193362953 | AE38: 0.01037291755 | AF38: 0.0089002589 | AG38: 0.007778867314 | AH38: 0.007026440129 | AI38: 0.006191488673 | AJ38: 0.00662592233 | AK38: 0.007313592233 | AL38: 0.007313592233
F39: Forecast Inflation | K39: =Determination_Lookup!W13 -> 0.0255 | M39: =Determination_Lookup!X13 -> 0.025 | O39: =Determination_Lookup!Y13 -> 0.0275
F40: Franking credit value | K40: =Determination_Lookup!W14 -> 0.5 | M40: =Determination_Lookup!X14 -> 0.5 | O40: =Determination_Lookup!Y14 -> 0.5 | Z40: Return on Equity | AC40: =IF(AE64<>0,(AE64/100),IF(AE62<>0,(AE62/100),(AE60/100))) -> 0.045 | AD40: =+$AC$40 -> 0.045 | AE40: 0.045 | AF40: 0.045 | AG40: 0.045 | AH40: 0.045 | AI40: 0.045 | AJ40: 0.045 | AK40: 0.045 | AL40: 0.045
E42: 'Vanilla' After Tax WACC (Real) | K42: =ROUND(((K34+K36*K37)*(1-K38))+((K34+K35)*K38),3) -> 0.052 | M42: =ROUND(((M34+M36*M37)*(1-M38))+((M34+M35)*M38),3) -> 0.051 | O42: =ROUND(((O34+O36*O37)*(1-O38))+((O34+O35)*O38),3) -> 0.045 | Z42: RRR (real) | AC42: =ROUND((AC40*(1-AC43)+AC38*AC43),4) -> 0.0271 | AD42: 0.0252 | AE42: 0.0242 | AF42: 0.0233 | AG42: 0.0227 | AH42: 0.0222 | AI42: 0.0217 | AJ42: 0.022 | AK42: 0.0224 | AL42: 0.0224
Z43: Gearing | AC43: 0.6 | AD43: =+AC43 -> 0.6 | AE43: 0.6 | AF43: 0.6 | AG43: 0.6 | AH43: 0.6 | AI43: 0.6 | AJ43: 0.6 | AK43: 0.6 | AL43: 0.6
Z44: Forecast Inflation | AC44: 0.03 | AD44: =+AC44 -> 0.03 | AE44: 0.03 | AF44: 0.03 | AG44: 0.03 | AH44: 0.03 | AI44: 0.03 | AJ44: 0.03 | AK44: 0.03 | AL44: 0.03
L45: Regulatory Rate of Return (RRR) [retained for historical purposes only]
E46: Form of price control selected
O47: 4th period
E48: Price caps | I48: 2 | L48: Cost of Debt | O48: =Determination_Lookup!W25 -> 0.03619001937 | Z48: PREMO Assessment Matrix (linked to Regulatory Rate of Return calculation above)
L49: Return on Equity | O49: =Determination_Lookup!W26 -> 0.049 | U49: PREMO Graded Scoring System (for reference only)
E50: Revenue cap / Hybrid Tariff Basket | L50: Gearing | O50: =Determination_Lookup!W27 -> 0.6
L51: Forecast Inflation | O51: =Determination_Lookup!W28 -> 0.023 | AB51: Water business self-assessment
L52: RRR (real) | O52: =Determination_Lookup!W29 -> 0.0413
AB53: Leading | AC53: Advanced | AD53: Standard | AE53: Basic
Z54: ESC assessment of submission | AA54: Leading | AB54: 4.9
U55: Risk | AA55: Advanced | AB55: 4.3 | AC55: 4.5
U56: Engagement | V56: [Select] | AA56: Standard | AB56: 3.7 | AC56: 3.9 | AD56: 4.1
U57: Management | V57: [Select] | AA57: Basic | AD57: 3.5 | AE57: 3.7
U58: Outcomes | V58: [Select]
U60: Total Score | Z60: Water business self-assessment (Maximum allowable ROE) | AD60: Advanced | AE60: =+VLOOKUP(AD60,$AD$71:$AE$75,2,FALSE) -> 4.5
Z62: ROE Override (Must be less than Maximum allowable ROE) | AE62: =+IF(AD62<=AE60,AD62,"CHECK") -> 0
U64: Rating | Z64: ESC assessment of submission | AD64: Advanced | AE64: =IFERROR(IF(AD64=AD60,AE60,VLOOKUP(AD60&AD64,AD78:AE82,2,FALSE)),0) -> 4.5
AD66: Difference | AE66: =IFERROR(IF(AE64=0,"",AE64-AE60),"") -> 0
U70: ESC USE ONLY | AD70: Business self assessment
AD71: [Select]
AD72: Leading | AE72: =+AB54 -> 4.9
AD73: Advanced | AE73: =+AC55 -> 4.5
AD74: Standard | AE74: =+AD56 -> 4.1
AD75: Basic | AE75: =+AE57 -> 3.7
AD77: downgrading
AD78: =AD53&AA57 -> StandardBasic | AE78: =+AD57 -> 3.5
AD79: =+AC53&AA56 -> AdvancedStandard | AE79: =+AC56 -> 3.9
AD80: =+AB53&AA55 -> LeadingAdvanced | AE80: =+AB55 -> 4.3
AD81: =+AB53&AA56 -> LeadingStandard | AE81: =+AB56 -> 3.7
AD82: =+AD60&"Basic" -> AdvancedBasic | AE82: CHECK

Sheet Expenditure_Detail
A1: 80 | B1: Expenditure - Detail
B2: =Model_Name -> Yarra Valley Water
B3: Go to Table of Contents
L4: FIRST REG PERIOD | P4: SECOND REG PERIOD | U4: THIRD REG PERIOD | Z4: FOURTH REG PERIOD | AE4: FIFTH REG PERIOD | AJ4: SIXTH REG PERIOD
K5: 2006 | L5: 2007 | M5: 2008 | N5: 2009 | O5: 2010 | P5: 2011 | Q5: 2012 | R5: 2013 | S5: 2014 | T5: 2015 | U5: 2016 | V5: 2017 | W5: 2018 | X5: 2019 | Y5: 2020 | Z5: 2021 | AA5: 2022 | AB5: 2023 | AC5: 2024 | AD5: 2025 | AE5: 2026 | AF5: 2027 | AG5: 2028 | AH5: 2029 | AI5: 2030 | AJ5: 2031 | AK5: 2032 | AL5: 2033
B6: $m, 01/01/23 | K6: =+CONCATENATE(K5-1,"-",RIGHT(K5,2)) -> 2005-06 | L6: =+CONCATENATE(L5-1,"-",RIGHT(L5,2)) -> 2006-07 | M6: 2007-08 | N6: 2008-09 | O6: 2009-10 | P6: 2010-11 | Q6: 2011-12 | R6: 2012-13 | S6: 2013-14 | T6: 2014-15 | U6: 2015-16 | V6: 2016-17 | W6: 2017-18 | X6: 2018-19 | Y6: 2019-20 | Z6: 2020-21 | AA6: 2021-22 | AB6: 2022-23 | AC6: 2023-24 | AD6: 2024-25 | AE6: 2025-26 | AF6: 2026-27 | AG6: 2027-28 | AH6: =+CONCATENATE(AH5-1,"-",RIGHT(AH5,2)) -> 2028-29 | AI6: =+CONCATENATE(AI5-1,"-",RIGHT(AI5,2)) -> 2029-30 | AJ6: =+CONCATENATE(AJ5-1,"-",RIGHT(AJ5,2)) -> 2030-31 | AK6: =+CONCATENATE(AK5-1,"-",RIGHT(AK5,2)) -> 2031-32 | AL6: =+CONCATENATE(AL5-1,"-",RIGHT(AL5,2)) -> 2032-33
B8: This worksheet outlines the key cost drivers of operating expenditure - capitalised costs are excluded. This tab does not link to the Rev&RAV_FO worksheet
C11: Expenditure Summary
D13: Total Labour costs | W13: =W34 -> 68.0391463 | X13: 72.70737783 | Y13: 75.20979006 | Z13: 78.23432579 | AA13: 78.43976463 | AB13: 78.67736573 | AC13: 82.79504316 | AD13: 83.03264426 | AE13: 83.137355 | AF13: 83.137355 | AG13: 83.137355 | AH13: =AH34 -> 83.137355 | AI13: =AI34 -> 83.137355 | AJ13: =AJ34 -> 83.137355 | AK13: =AK34 -> 83.137355 | AL13: =AL34 -> 83.137355
D14: Total Energy costs | W14: =W92 -> 5.328179258 | X14: 5.782103466 | Y14: 5.346798276 | Z14: 5.21194935 | AA14: 5.885358523 | AB14: 5.298043846 | AC14: 5.339992097 | AD14: 5.45736418 | AE14: 5.56158489 | AF14: =AF92 -> 5.80080496 | AG14: 6.253399416 | AH14: =AH92 -> 6.310639699 | AI14: =AI92 -> 6.185575286 | AJ14: =AJ92 -> 6.076566419 | AK14: =AK92 -> 5.930957135 | AL14: =AL92 -> 5.841588344
D15: Total IT costs | W15: =W103 -> 10.2372027 | X15: 10.83911609 | Y15: 11.24355648 | Z15: 13.02277154 | AA15: 13.82200057 | AB15: 13.82200057 | AC15: 14.65413778 | AD15: 15.70151839 | AE15: 17.0249049 | AF15: 18.34829141 | AG15: 19.67167793 | AH15: =AH103 -> 19.67167793 | AI15: =AI103 -> 19.67167793 | AJ15: =AJ103 -> 19.67167793 | AK15: =AK103 -> 19.67167793 | AL15: =AL103 -> 19.67167793
D16: Total Chemical costs | W16: =W114 -> 1.096839892 | X16: 1.125672388 | Y16: 1.020439781 | Z16: 1.121228766 | AA16: 1.172202827 | AB16: 1.404511067 | AC16: 1.782920557 | AD16: 2.161330047 | AE16: 2.539739537 | AF16: 3.086309027 | AG16: 3.716958517 | AH16: =AH114 -> 4.347608006 | AI16: =AI114 -> 4.978257496 | AJ16: =AJ114 -> 5.608906986 | AK16: =AK114 -> 6.239556476 | AL16: =AL114 -> 6.870205966
C21: Labour assumptions
D23: Current FTEs (at 30 June) | W23: 444.1034744 | X23: 458.7778401 | Y23: 473.2832927 | Z23: 475.9583855 | AA23: 465.9117441
D24: Actual and forecast labour costs for current FTEs ($m) | W24: 68.0391463 | X24: 72.70737783 | Y24: 75.20979006 | Z24: 78.23432579 | AA24: 78.43976463 | AB24: 78.67736573 | AC24: 78.91496684 | AD24: 79.15256795 | AE24: 79.25727869 | AF24: 79.25727869 | AG24: 79.25727869 | AH24: 79.25727869 | AI24: 79.25727869 | AJ24: 79.25727869 | AK24: 79.25727869 | AL24: 79.25727869
D25: Cost per FTE ($000) | W25: =+W24/W23*10^3 -> 153.2056159 | X25: =+X24/X23*10^3 -> 158.4805792 | Y25: =+Y24/Y23*10^3 -> 158.9107226 | Z25: =+Z24/Z23*10^3 -> 164.3721976 | AA25: =+AA24/AA23*10^3 -> 168.3575605 | AB25: =+AB24/$AA$23*10^3 -> 168.8675307 | AC25: 169.3775009 | AD25: 169.8874711 | AE25: 170.1122148 | AF25: 170.1122148 | AG25: 170.1122148 | AH25: 170.1122148 | AI25: 170.1122148 | AJ25: 170.1122148 | AK25: 170.1122148 | AL25: 170.1122148
D26: Annual growth in labour costs for current FTEs | X26: =+X25/W25-1 -> 0.03443061369 | Y26: 0.002714171124 | Z26: 0.03436819662 | AA26: 0.02424596687 | AB26: 0.003029090003 | AC26: 0.003019942326 | AD26: 0.003010849733 | AE26: 0.001322897546 | AF26: 0 | AG26: 0 | AH26: =+AH25/AG25-1 -> 0 | AI26: =+AI25/AH25-1 -> 0 | AJ26: =+AJ25/AI25-1 -> 0 | AK26: =+AK25/AJ25-1 -> 0 | AL26: =+AL25/AK25-1 -> 0
D28: Change in FTEs in future periods (net no. annual change) | AB28: 10.04664136 | AC28: 13
D29: Increase or decrease in labour costs ($m) | AB29: 0 | AC29: 3.880076316 | AD29: 3.880076316 | AE29: 3.880076316 | AF29: 3.880076316 | AG29: 3.880076316 | AH29: 3.880076316 | AI29: 3.880076316 | AJ29: 3.880076316 | AK29: 3.880076316 | AL29: 3.880076316
D33: Total FTEs | W33: =+W23 -> 444.1034744 | X33: 458.7778401 | Y33: 473.2832927 | Z33: 475.9583855 | AA33: 465.9117441 | AB33: =+$AA$23+SUM($AB28:AB28) -> 475.9583855 | AC33: =+$AA$23+SUM($AB28:AC28) -> 488.9583855 | AD33: =+$AA$23+SUM($AB28:AD28) -> 488.9583855 | AE33: =+$AA$23+SUM($AB28:AE28) -> 488.9583855 | AF33: =+$AA$23+SUM($AB28:AF28) -> 488.9583855 | AG33: =+$AA$23+SUM($AB28:AG28) -> 488.9583855 | AH33: =+$AA$23+SUM($AB28:AH28) -> 488.9583855 | AI33: =+$AA$23+SUM($AB28:AI28) -> 488.9583855 | AJ33: =+$AA$23+SUM($AB28:AJ28) -> 488.9583855 | AK33: =+$AA$23+SUM($AB28:AK28) -> 488.9583855 | AL33: =+$AA$23+SUM($AB28:AL28) -> 488.9583855
D34: Total labour costs ($m) | W34: 68.0391463 | X34: 72.70737783 | Y34: 75.20979006 | Z34: 78.23432579 | AA34: 78.43976463 | AB34: =+AB29+AB24 -> 78.67736573 | AC34: 82.79504316 | AD34: 83.03264426 | AE34: 83.137355 | AF34: 83.137355 | AG34: 83.137355 | AH34: 83.137355 | AI34: 83.137355 | AJ34: 83.137355 | AK34: 83.137355 | AL34: 83.137355
D35: Cost per FTE | W35: =+W34/W33 -> 0.1532056159 | X35: 0.1584805792 | Y35: 0.1589107226 | Z35: 0.1643721976 | AA35: 0.1683575605 | AB35: 0.1653030352 | AC35: 0.1693294268 | AD35: 0.16981536 | AE35: 0.1700295106 | AF35: 0.1700295106 | AG35: 0.1700295106 | AH35: =+AH34/AH33 -> 0.1700295106 | AI35: =+AI34/AI33 -> 0.1700295106 | AJ35: =+AJ34/AJ33 -> 0.1700295106 | AK35: =+AK34/AK33 -> 0.1700295106 | AL35: =+AL34/AL33 -> 0.1700295106
D36: Annual growth in total labour costs | X36: =+X34/W34-1 -> 0.0686109657 | Y36: 0.03441758329 | Z36: 0.04021465449 | AA36: 0.0026259425 | AB36: 0.003029090003 | AC36: 0.05233623907 | AD36: 0.002869750384 | AE36: 0.001261079168 | AF36: 0 | AG36: 0 | AH36: =+AH34/AG34-1 -> 0 | AI36: 0 | AJ36: 0 | AK36: 0 | AL36: 0
D37: Annual growth in total labour costs per FTE | X37: =+X35/W35-1 -> 0.03443061369 | Y37: 0.002714171124 | Z37: 0.03436819662 | AA37: 0.02424596687 | AB37: -0.01814308355 | AC37: 0.02435763902 | AD37: 0.002869750384 | AE37: 0.001261079168 | AF37: 0 | AG37: 0 | AH37: 0 | AI37: 0 | AJ37: 0 | AK37: 0 | AL37: 0
C42: Energy assumptions
D44: Electricity - traditional sources
D46: BASE LOAD
D48: Large sites
D49: Total kWh | W49: 17266143.88 | X49: 15885505.14 | Y49: 16197988.38 | Z49: 14541797.33 | AA49: 14655222.52 | AB49: 14655222.52 | AC49: 14655222.52 | AD49: 14655222.52 | AE49: 14655222.52 | AF49: 14655222.52 | AG49: 14655222.52 | AH49: 14655222.52 | AI49: 14655222.52 | AJ49: 14655222.52 | AK49: 14655222.52 | AL49: 14655222.52
D50: Total electricity costs ($m) | W50: 3.190041807 | X50: 2.883954785 | Y50: 2.423161295 | Z50: 2.15798242 | AA50: 2.58829387 | AB50: 2.314182876 | AC50: 2.241999466 | AD50: 2.19871317 | AE50: 2.180555997 | AF50: 2.173188764 | AG50: 2.016383195 | AH50: 1.957653587 | AI50: 1.900634551 | AJ50: 1.845276263 | AK50: 1.791530352 | AL50: 1.739349857
D51: Average c/kWh | W51: =+W50/W49*100*10^6 -> 18.47570499 | X51: 18.15463065 | Y51: 14.95964337 | Z51: 14.83986038 | AA51: 17.66123896 | AB51: 15.79084093 | AC51: =+AC50/AC49*100*10^6 -> 15.29829699 | AD51: 15.00293269 | AE51: 14.87903711 | AF51: 14.82876675 | AG51: 13.75880299 | AH51: 13.35806116 | AI51: 12.96899142 | AJ51: 12.5912538 | AK51: 12.22451826 | AL51: 11.86846433
D52: % increase p.a. | X52: =+X51/W51-1 -> -0.01737819153 | Y52: =+Y51/X51-1 -> -0.1759874569 | Z52: =+Z51/Y51-1 -> -0.008007075657 | AA52: =+AA51/Z51-1 -> 0.1901216397 | AB52: =+AB51/AA51-1 -> -0.1059041236 | AC52: =+AC51/AB51-1 -> -0.03119174847 | AD52: -0.01930700566 | AE52: -0.008258090721 | AF52: -0.003378602958 | AG52: -0.07215460137 | AH52: -0.02912621359 | AI52: -0.02912621359 | AJ52: -0.02912621359 | AK52: -0.02912621359 | AL52: -0.02912621359
D54: Medium sites
D55: Total kWh | W55: 7410014.56 | X55: 7917836.57 | Y55: 8005636.723 | Z55: 9474574.098 | AA55: 12193285.6 | AB55: 12193285.6 | AC55: 12193285.6 | AD55: 12193285.6 | AE55: 12193285.6 | AF55: 12193285.6 | AG55: 12193285.6 | AH55: 12193285.6 | AI55: 12193285.6 | AJ55: 12193285.6 | AK55: 12193285.6 | AL55: 12193285.6
D56: Total electricity costs ($m) | W56: 1.341430866 | X56: 1.988940016 | Y56: 1.955249427 | Z56: 2.066133915 | AA56: 2.493989059 | AB56: 2.229865333 | AC56: 2.160311935 | AD56: 2.11860278 | AE56: 2.101107166 | AF56: 2.094008359 | AG56: 1.942916021 | AH56: 1.886326234 | AI56: 1.831384693 | AJ56: 1.778043391 | AK56: 1.726255719 | AL56: 1.675976427
D57: Average c/kWh | W57: =+W56/W55*100*10^6 -> 18.10294508 | X57: 25.11974071 | Y57: 24.42340934 | Z57: 21.80714293 | AA57: 20.45379023 | AB57: 18.2876495 | AC57: =+AC56/AC55*100*10^6 -> 17.71722574 | AD57: 17.37515916 | AE57: 17.23167352 | AF57: 17.17345454 | AG57: 15.93431077 | AH57: 15.47020463 | AI57: 15.01961615 | AJ57: 14.5821516 | AK57: 14.15742874 | AL57: 13.74507644
D58: % increase p.a. | X58: =+X57/W57-1 -> 0.3876051994 | Y58: =+Y57/X57-1 -> -0.027720484 | Z58: =+Z57/Y57-1 -> -0.1071212613 | AA58: =+AA57/Z57-1 -> -0.06206006455 | AB58: =+AB57/AA57-1 -> -0.1059041236 | AC58: =+AC57/AB57-1 -> -0.03119174847 | AD58: -0.01930700566 | AE58: -0.008258090721 | AF58: -0.003378602958 | AG58: -0.07215460137 | AH58: -0.02912621359 | AI58: -0.02912621359 | AJ58: -0.02912621359 | AK58: -0.02912621359 | AL58: -0.02912621359
D60: Small sites
D61: Total kWh | W61: 2959810.559 | X61: 2963939.153 | Y61: 3234612.297 | Z61: 3297242.444 | AA61: 1247556.51 | AB61: 1247556.51 | AC61: 1247556.51 | AD61: 1247556.51 | AE61: 1247556.51 | AF61: 1247556.51 | AG61: 1247556.51 | AH61: 1247556.51 | AI61: 1247556.51 | AJ61: 1247556.51 | AK61: 1247556.51 | AL61: 1247556.51
D62: Total electricity costs ($m) | W62: 0.7744954353 | X62: 0.8710234151 | Y62: 0.8639997536 | Z62: 0.8162992746 | AA62: 0.3892286448 | AB62: 0.3480077263 | AC62: 0.3371527568 | AD62: 0.3306433466 | AE62: 0.3279128639 | AF62: 0.3268049765 | AG62: 0.3032244937 | AH62: 0.2943927123 | AI62: 0.2858181673 | AJ62: 0.2774933663 | AK62: 0.2694110353 | AL62: 0.2615641119
D63: Average c/kWh | W63: =+W62/W61*100*10^6 -> 26.16706103 | X63: 29.38735818 | Y63: 26.71107614 | Z63: 24.7570292 | AA63: 31.19927969 | AB63: 27.89514731 | AC63: =+AC62/AC61*100*10^6 -> 27.0250489 | AD63: 26.50327612 | AE63: 26.28440967 | AF63: 26.19560508 | AG63: 24.30547164 | AH63: 23.59754528 | AI63: 22.91023814 | AJ63: 22.24294965 | AK63: 21.59509674 | AL63: 20.96611334
D64: % increase p.a. | X64: =+X63/W63-1 -> 0.1230668262 | Y64: =+Y63/X63-1 -> -0.09106916047 | Z64: =+Z63/Y63-1 -> -0.07315493133 | AA64: =+AA63/Z63-1 -> 0.2602190445 | AB64: =+AB63/AA63-1 -> -0.1059041236 | AC64: =+AC63/AB63-1 -> -0.03119174847 | AD64: -0.01930700566 | AE64: -0.008258090721 | AF64: -0.003378602958 | AG64: -0.07215460137 | AH64: -0.02912621359 | AI64: -0.02912621359 | AJ64: -0.02912621359 | AK64: -0.02912621359 | AL64: -0.02912621359
D67: NEW PROJECTS
D69: Large sites
D70: Total kWh | W70: 0 | X70: 0 | Y70: 0 | Z70: 0 | AA70: 0 | AB70: -291767.8983 | AC70: -187314.5162 | AD70: 180175.5317 | AE70: 753419.7203 | AF70: 1775851.359 | AG70: 4272085.672 | AH70: 5900931.899 | AI70: 6185801.946 | AJ70: 6577801.548 | AK70: 6656186.905 | AL70: 7175055.026
D71: Total electricity costs ($m) | W71: 0 | X71: 0 | Y71: 0 | Z71: 0 | AA71: 0 | AB71: -0.04607260471 | AC71: -0.02865593101 | AD71: 0.02703161373 | AE71: 0.1121015998 | AF71: 0.2633368558 | AG71: 0.5877878513 | AH71: 0.7882500921 | AI71: 0.8022361235 | AJ71: 0.8282276876 | AK71: 0.8136867833 | AL71: 0.8515688461
D72: Average c/kWh | W72: =+W71/W70*100*10^6 ->  | AB72: 15.79084093 | AC72: =+AC71/AC70*100*10^6 -> 15.29829699 | AD72: 15.00293269 | AE72: 14.87903711 | AF72: 14.82876675 | AG72: 13.75880299 | AH72: 13.35806116 | AI72: 12.96899142 | AJ72: 12.5912538 | AK72: 12.22451826 | AL72: 11.86846433
D73: % increase p.a. | X73: =+X72/W72-1 ->  | Y73: =+Y72/X72-1 ->  | Z73: =+Z72/Y72-1 ->  | AA73: =+AA72/Z72-1 ->  | AB73: =+AB72/AA72-1 ->  | AC73: =+AC72/AB72-1 -> -0.03119174847 | AD73: -0.01930700566 | AE73: -0.008258090721 | AF73: -0.003378602958 | AG73: -0.07215460137 | AH73: -0.02912621359 | AI73: -0.02912621359 | AJ73: -0.02912621359 | AK73: -0.02912621359 | AL73: -0.02912621359
D75: Medium sites
D76: Total kWh | W76: 0 | X76: 0 | Y76: 0 | Z76: 0 | AA76: 0 | AB76: -242753.6879 | AC76: -155847.4728 | AD76: 149907.7693 | AE76: 626852.4285 | AF76: 1477525.351 | AG76: 3554416.225 | AH76: 3554416.225 | AI76: 3554416.225 | AJ76: 3554416.225 | AK76: 3554416.225 | AL76: 3554416.225
D77: Total electricity costs ($m) | W77: 0 | X77: 0 | Y77: 0 | Z77: 0 | AA77: 0 | AB77: -0.04439394359 | AC77: -0.02761184857 | AD77: 0.0260467135 | AE77: 0.1080171639 | AF77: 0.2537421444 | AG77: 0.5663717273 | AH77: 0.5498754634 | AI77: 0.5338596732 | AJ77: 0.5183103624 | AK77: 0.503213944 | AL77: 0.4885572272
D78: Average c/kWh | W78: =+W77/W76*100*10^6 ->  | AB78: 18.2876495 | AC78: =+AC77/AC76*100*10^6 -> 17.71722574 | AD78: 17.37515916 | AE78: 17.23167352 | AF78: 17.17345454 | AG78: 15.93431077 | AH78: 15.47020463 | AI78: 15.01961615 | AJ78: 14.5821516 | AK78: 14.15742874 | AL78: 13.74507644
D79: % increase p.a. | X79: =+X78/W78-1 ->  | Y79: =+Y78/X78-1 ->  | Z79: =+Z78/Y78-1 ->  | AA79: =+AA78/Z78-1 ->  | AB79: =+AB78/AA78-1 ->  | AC79: =+AC78/AB78-1 -> -0.03119174847 | AD79: -0.01930700566 | AE79: -0.008258090721 | AF79: -0.003378602958 | AG79: -0.07215460137 | AH79: -0.02912621359 | AI79: -0.02912621359 | AJ79: -0.02912621359 | AK79: -0.02912621359 | AL79: -0.02912621359
D81: Small sites
D82: Total kWh | W82: 0 | X82: 0 | Y82: 0 | Z82: 0 | AA82: 0 | AB82: -24837.35341 | AC82: -15945.5405 | AD82: 15337.81948 | AE82: 64136.43161 | AF82: 151173.0661 | AG82: 363670.24 | AH82: 363670.24 | AI82: 363670.24 | AJ82: 363670.24 | AK82: 363670.24 | AL82: 363670.24
D83: Total electricity costs ($m) | W83: 0 | X83: 0 | Y83: 0 | Z83: 0 | AA83: 0 | AB83: -0.006928416321 | AC83: -0.004309290116 | AD83: 0.004065024649 | AE83: 0.01685788243 | AF83: 0.0396006994 | AG83: 0.08839176704 | AH83: 0.08581724956 | AI83: 0.08331771802 | AJ83: 0.08089098837 | AK83: 0.07853494016 | AL83: 0.07624751472
D84: Average c/kWh | W84: =+W83/W82*100*10^6 ->  | X84: =+X83/X82*100*10^6 ->  | AB84: 27.89514731 | AC84: 27.0250489 | AD84: 26.50327612 | AE84: 26.28440967 | AF84: 26.19560508 | AG84: 24.30547164 | AH84: =+AH83/AH82*100*10^6 -> 23.59754528 | AI84: =+AI83/AI82*100*10^6 -> 22.91023814 | AJ84: =+AJ83/AJ82*100*10^6 -> 22.24294965 | AK84: =+AK83/AK82*100*10^6 -> 21.59509674 | AL84: =+AL83/AL82*100*10^6 -> 20.96611334
D85: % increase p.a. | X85: =+X84/W84-1 ->  | Y85: =+Y84/X84-1 ->  | Z85: =+Z84/Y84-1 ->  | AA85: =+AA84/Z84-1 ->  | AB85: =+AB84/AA84-1 ->  | AC85: =+AC84/AB84-1 -> -0.03119174847 | AD85: -0.01930700566 | AE85: -0.008258090721 | AF85: -0.003378602958 | AG85: -0.07215460137 | AH85: -0.02912621359 | AI85: -0.02912621359 | AJ85: -0.02912621359 | AK85: -0.02912621359 | AL85: -0.02912621359
D88: Greenhouse Gas Offsets | W88: 0.02221115 | X88: 0.03818525 | Y88: 0.1043878 | Z88: 0.17153374 | AA88: 0.41384695 | AB88: 0.503382875 | AC88: 0.6611050092 | AD88: 0.7522615319 | AE88: 0.7150322175 | AF88: 0.6501231612 | AG88: 0.7483243608 | AH88: 0.7483243608 | AI88: 0.7483243608 | AJ88: 0.7483243608 | AK88: 0.7483243608 | AL88: 0.7483243608
D89: % increase p.a. | X89: =X88/W88-1 -> 0.7191928378 | Y89: 1.733720481 | Z89: 0.6432355122 | AA89: 1.412627102 | AB89: 0.2163503319 | AC89: 0.313324394 | AD89: 0.1378850884 | AE89: -0.04948985532 | AF89: -0.09077780658 | AG89: 0.1510501479 | AH89: =AH88/AG88-1 -> 0 | AI89: =AI88/AH88-1 -> 0 | AJ89: =AJ88/AI88-1 -> 0 | AK89: =AK88/AJ88-1 -> 0 | AL89: =AL88/AK88-1 -> 0
D92: TOTAL ENERGY COSTS | W92: =+SUM(W50,W56,W62,W71,W77,W83,W88) -> 5.328179258 | X92: 5.782103466 | Y92: 5.346798276 | Z92: 5.21194935 | AA92: 5.885358523 | AB92: 5.298043846 | AC92: 5.339992097 | AD92: 5.45736418 | AE92: 5.56158489 | AF92: 5.80080496 | AG92: =+SUM(AG50,AG56,AG62,AG71,AG77,AG83,AG88) -> 6.253399416 | AH92: 6.310639699 | AI92: 6.185575286 | AJ92: 6.076566419 | AK92: 5.930957135 | AL92: 5.841588344
D93: % increase p.a. | W93: =W92/V92-1 ->  | X93: 0.08519311872 | Y93: -0.07528491887 | Z93: -0.02522050008 | AA93: 0.1292048576 | AB93: -0.09979250628 | AC93: 0.007917686635 | AD93: 0.02197982334 | AE93: 0.0190972614 | AF93: 0.04301293151 | AG93: 0.07802269835 | AH93: =AH92/AG92-1 -> 0.009153466714 | AI93: =AI92/AH92-1 -> -0.01981802458 | AJ93: =AJ92/AI92-1 -> -0.01762307658 | AK93: =AK92/AJ92-1 -> -0.0239624278 | AL93: =AL92/AK92-1 -> -0.01506819039
C98: IT cost assumptions
D100: Water related IT costs | W100: 4.913857294 | X100: 5.202775724 | Y100: 5.396907111 | Z100: 6.250930339 | AA100: 6.634560276 | AB100: 6.634560276 | AC100: 7.04213768 | AD100: 7.555140429 | AE100: 8.203329742 | AF100: 8.851519055 | AG100: 9.499708368 | AH100: 9.499708368 | AI100: 9.499708368 | AJ100: 9.499708368 | AK100: 9.499708368 | AL100: 9.499708368
D101: Sewerage and trade waste related IT costs | W101: 4.913857294 | X101: 5.202775724 | Y101: 5.396907111 | Z101: 6.250930339 | AA101: 6.634560276 | AB101: 6.634560276 | AC101: 7.04213768 | AD101: 7.555140429 | AE101: 8.203329742 | AF101: 8.851519055 | AG101: 9.499708368 | AH101: 9.499708368 | AI101: 9.499708368 | AJ101: 9.499708368 | AK101: 9.499708368 | AL101: 9.499708368
D102: Other IT costs | W102: 0.4094881078 | X102: 0.4335646437 | Y102: 0.4497422593 | Z102: 0.5209108616 | AA102: 0.552880023 | AB102: 0.552880023 | AC102: 0.5698624148 | AD102: 0.5912375294 | AE102: 0.6182454174 | AF102: 0.6452533054 | AG102: 0.6722611935 | AH102: 0.6722611935 | AI102: 0.6722611935 | AJ102: 0.6722611935 | AK102: 0.6722611935 | AL102: 0.6722611935
D103: Total IT costs | W103: =SUM(W100:W102) -> 10.2372027 | X103: 10.83911609 | Y103: 11.24355648 | Z103: 13.02277154 | AA103: 13.82200057 | AB103: 13.82200057 | AC103: =SUM(AC100:AC102) -> 14.65413778 | AD103: 15.70151839 | AE103: 17.0249049 | AF103: 18.34829141 | AG103: 19.67167793 | AH103: 19.67167793 | AI103: 19.67167793 | AJ103: 19.67167793 | AK103: 19.67167793 | AL103: 19.67167793
D104: % increase p.a. | X104: =X103/W103-1 -> 0.05879666683 | Y104: 0.03731304159 | Z104: 0.1582430844 | AA104: 0.06137165453 | AB104: 0 | AC104: 0.06020381757 | AD104: 0.07147336996 | AE104: 0.08428398333 | AF104: 0.07773238804 | AG104: 0.07212587178 | AH104: =AH103/AG103-1 -> 0 | AI104: =AI103/AH103-1 -> 0 | AJ104: =AJ103/AI103-1 -> 0 | AK104: =AK103/AJ103-1 -> 0 | AL104: =AL103/AK103-1 -> 0
C109: Chemical cost assumptions
D111: Water related chemical costs | W111: 0.368082005 | X111: 0.360476607 | Y111: 0.255244 | Z111: 0.356032985 | AA111: 0.4402787466 | AB111: 0.4755282365 | AC111: 0.8539377263 | AD111: 1.232347216 | AE111: 1.610756706 | AF111: 2.157326196 | AG111: 2.787975686 | AH111: 3.418625176 | AI111: 4.049274665 | AJ111: 4.679924155 | AK111: 5.310573645 | AL111: 5.941223135
D112: Sewerage and trade waste related chemical costs | W112: 0.7287578865 | X112: 0.7651957808 | Y112: 0.7651957808 | Z112: 0.7651957808 | AA112: 0.7319240808 | AB112: 0.9289828308 | AC112: 0.9289828308 | AD112: 0.9289828308 | AE112: 0.9289828308 | AF112: 0.9289828308 | AG112: 0.9289828308 | AH112: 0.9289828308 | AI112: 0.9289828308 | AJ112: 0.9289828308 | AK112: 0.9289828308 | AL112: 0.9289828308
D113: Other chemical costs
D114: Total chemical costs | W114: =SUM(W111:W113) -> 1.096839892 | X114: 1.125672388 | Y114: 1.020439781 | Z114: 1.121228766 | AA114: 1.172202827 | AB114: 1.404511067 | AC114: =SUM(AC111:AC113) -> 1.782920557 | AD114: 2.161330047 | AE114: 2.539739537 | AF114: 3.086309027 | AG114: 3.716958517 | AH114: 4.347608006 | AI114: 4.978257496 | AJ114: 5.608906986 | AK114: 6.239556476 | AL114: 6.870205966
D115: % increase p.a. | X115: =X114/W114-1 -> 0.02628687792 | Y115: -0.09348422164 | Z115: 0.09877014489 | AA115: 0.04546267734 | AB115: 0.1981809243 | AC115: 0.269424356 | AD115: 0.2122413634 | AE115: 0.1750817699 | AF115: 0.2152069068 | AG115: 0.2043377654 | AH115: =AH114/AG114-1 -> 0.169668154 | AI115: =AI114/AH114-1 -> 0.1450566585 | AJ115: =AJ114/AI114-1 -> 0.1266807694 | AK115: =AK114/AJ114-1 -> 0.1124371453 | AL115: =AL114/AK114-1 -> 0.1010728074

Sheet Opex_FO
A1: 80 | B1: Operating Expenditure - Forecast
B2: =Model_Name -> Yarra Valley Water
B3: Go to Table of Contents
L4: FIRST REG PERIOD | P4: SECOND REG PERIOD | U4: THIRD REG PERIOD | Z4: FOURTH REG PERIOD | AE4: FIFTH REG PERIOD | AJ4: SIXTH REG PERIOD
K5: 2006 | L5: 2007 | M5: 2008 | N5: 2009 | O5: 2010 | P5: 2011 | Q5: 2012 | R5: 2013 | S5: 2014 | T5: 2015 | U5: 2016 | V5: 2017 | W5: 2018 | X5: 2019 | Y5: 2020 | Z5: 2021 | AA5: 2022 | AB5: 2023 | AC5: 2024 | AD5: 2025 | AE5: 2026 | AF5: 2027 | AG5: 2028 | AH5: 2029 | AI5: 2030 | AJ5: 2031 | AK5: 2032 | AL5: 2033
B6: =Expenditure_Detail!$B$6 -> $m, 01/01/23 | K6: =+CONCATENATE(K5-1,"-",RIGHT(K5,2)) -> 2005-06 | L6: =+CONCATENATE(L5-1,"-",RIGHT(L5,2)) -> 2006-07 | M6: 2007-08 | N6: 2008-09 | O6: 2009-10 | P6: 2010-11 | Q6: 2011-12 | R6: 2012-13 | S6: 2013-14 | T6: 2014-15 | U6: 2015-16 | V6: 2016-17 | W6: 2017-18 | X6: 2018-19 | Y6: 2019-20 | Z6: 2020-21 | AA6: 2021-22 | AB6: 2022-23 | AC6: 2023-24 | AD6: 2024-25 | AE6: 2025-26 | AF6: 2026-27 | AG6: 2027-28 | AH6: =+CONCATENATE(AH5-1,"-",RIGHT(AH5,2)) -> 2028-29 | AI6: =+CONCATENATE(AI5-1,"-",RIGHT(AI5,2)) -> 2029-30 | AJ6: =+CONCATENATE(AJ5-1,"-",RIGHT(AJ5,2)) -> 2030-31 | AK6: =+CONCATENATE(AK5-1,"-",RIGHT(AK5,2)) -> 2031-32 | AL6: =+CONCATENATE(AL5-1,"-",RIGHT(AL5,2)) -> 2032-33
C9: Parameters | G9: 4th period | I9: 5th period
D11: Cost efficiency improvement rate (% per annum) | G11: =Determination_Lookup!X33 -> 0.025 | I11: =IFERROR(AVERAGE(AC11:AG11),"-") -> 0.017 | AC11: 0.017 | AD11: 0.017 | AE11: 0.017 | AF11: 0.017 | AG11: 0.017 | AH11: 0.014 | AI11: 0.014 | AJ11: 0.014 | AK11: 0.014 | AL11: 0.014
D13: Opex growth forecast (% per annum) | G13: =Determination_Lookup!X34 -> 0.01738076756 | I13: =IFERROR(AVERAGE(AC13:AG13),"-") -> - | Y13: =IF(Y15="","",Y15/X15-1) -> 0.021639606 | Z13: =IF(Z15="","",Z15/Y15-1) -> 0.01974471005 | AA13: =IF(AA15="","",AA15/Z15-1) -> 0.01355929036 | AB13: =AB15/AA15-1 -> 0.01098305866
F14: Net baseline opex growth | G14: =IFERROR(G13-G11,"-") -> -0.007619232443 | I14: =IFERROR(I13-I11,"-") -> -
D15: Water customers (No.) - Residential & Non-Residential - [BED 1] | W15: =+Determination_Lookup!M20 -> 802130 | X15: =+Determination_Lookup!N20 -> 821734 | Y15: =+Determination_Lookup!O20 -> 839516 | Z15: 856092 | AA15: 867700 | AB15: 877230 | AC15: 890630 | AD15: 903990 | AE15: 917550 | AF15: 930620 | AG15: 943190 | AH15: 955270 | AI15: 966870 | AJ15: 978000 | AK15: 989770 | AL15: 1002240
D16: Water customer change (% per annum) | X16: =X15/W15-1 -> 0.02443992869 | Y16: 0.021639606 | Z16: 0.01974471005 | AA16: =AA15/Z15-1 -> 0.01355929036 | AB16: 0.01098305866 | AC16: 0.01527535538 | AD16: 0.01500061754 | AE16: 0.01500016593 | AF16: 0.01424445534 | AG16: 0.01350712428 | AH16: 0.01280759974 | AI16: 0.01214316371 | AJ16: 0.01151137175 | AK16: 0.01203476483 | AL16: 0.01259888661
D17: Sewer customers (No.) - Residential & Non-Residential - [BED 2] | W17: =+Determination_Lookup!M21 -> 745096 | X17: =+Determination_Lookup!N21 -> 764990 | Y17: =+Determination_Lookup!O21 -> 782501 | Z17: 798701 | AA17: 811023 | AB17: 820290 | AC17: 833750 | AD17: 847230 | AE17: 860900 | AF17: 874150 | AG17: 886960 | AH17: 899330 | AI17: 911280 | AJ17: 922800 | AK17: 934950 | AL17: 947800
D18: Sewer customer Change (% per annum) | X18: 0.02669991518 | Y18: 0.0228904953 | Z18: 0.02070284894 | AA18: =AA17/Z17-1 -> 0.01542755049 | AB18: =AB17/AA17-1 -> 0.01142630973 | AC18: =AC17/AB17-1 -> 0.01640883102 | AD18: =AD17/AC17-1 -> 0.01616791604 | AE18: =AE17/AD17-1 -> 0.01613493384 | AF18: =AF17/AE17-1 -> 0.01539087002 | AG18: =AG17/AF17-1 -> 0.01465423554 | AH18: =AH17/AG17-1 -> 0.01394651394 | AI18: =AI17/AH17-1 -> 0.01328766971 | AJ18: =AJ17/AI17-1 -> 0.01264155913 | AK18: =AK17/AJ17-1 -> 0.01316644993 | AL18: =AL17/AK17-1 -> 0.01374405048
D19: Total metered volume of water delivered to customers (ML) - [BED 10] | W19: =+Determination_Lookup!M22 -> 143156 | X19: =+Determination_Lookup!N22 -> 150068 | Y19: =+Determination_Lookup!O22 -> 143427 | Z19: 143560.4654 | AA19: 144937.3944 | AB19: 145810.2137 | AC19: 147453.926 | AD19: 149078.6345 | AE19: 150683.9968 | AF19: 152304.8618 | AG19: 153853.3304 | AH19: 154885.1952 | AI19: 156072.7842 | AJ19: 156277.3661 | AK19: 157408.168 | AL19: 158553.3107
D20: Residential, Non-Residential & Recycled (Residential & Non-Residential)
D21: Total metered volume change (% per annum) | X21: =X19/W19-1 -> 0.04828299198 | Y21: -0.04425327185 | Z21: 0.0009305456394 | AA21: 0.009591282625 | AB21: 0.006022043516 | AC21: 0.01127295757 | AD21: 0.01101841468 | AE21: 0.01076856017 | AF21: 0.01075671623 | AG21: 0.01016690211 | AH21: 0.006706808396 | AI21: 0.007667543576 | AJ21: 0.001310810868 | AK21: 0.007235864746 | AL21: 0.007274989457
C24: Baseline Forecast
D26: Baseline year - total prescribed operating expenditure in 2021-22: | AA26: =+Opex_Breakdown!AA37 -> 743.1998947
D28: Less non-controllable expenditure items incurred in 2021-22:
E29: External bulk water charges (excl. temporary purchases) | AA29: =+Opex_Breakdown!AA29 -> 534.8919728
E30: External temporary water purchases | AA30: =+Opex_Breakdown!AA30 -> 0 | AC30: Comparison with approved 2021-22 total controllable opex
E31: Licence fees | AA31: =+Opex_Breakdown!AA31 -> 1.155202079 | AC31: per 2018 determination model
E32: Environment Contribution | AA32: =+Opex_Breakdown!AA32 -> 49.84368791
E33: Other non-controllable | AA33: =+Opex_Breakdown!AA33 -> 0
AA34: =SUM(AA29:AA33) -> 585.8908628 | AD34: 2021-22 | AE34: Difference | AF34: %
D36: Baseline year - total controllable operating expenditure in 2021-22: | AA36: =+AA26-AA34 -> 157.3090319 | AD36: =Determination_Lookup!Q18 -> 150.1231337 | AE36: =+AA52-AD36 -> 5.966183117 | AF36: =+AE36/AD36 -> 0.03974193031
D38: Adjustments for non-recurring expenditure items incurred in 2021-22 and any efficiency savings to be realised from 2021-22: | AC38: ($, 2022-23)
D40: 1 | E40: Price submission, Greater Melbourne Urban Water and System Strategy and Central and Gippsland Region Sustainable Water Strategy | AA40: 1.219715107
D41: 2
D42: 3
D43: 4
D44: 5
D45: 6
D46: 7
D47: 8
D48: 9
D49: 10
AA50: =SUM(AA40:AA49) -> 1.219715107
D52: Adjusted baseline controllable operating expenditure (2021-22) | AA52: =+AA36-AA50 -> 156.0893168
D54: Adjusted baseline controllable operating expenditure (Forecast) | AB54: =+AA52*(1+$AB$13-$G$11) -> 153.901422 | AC54: =+AB$54*(1+AC$13-AC$11) -> 151.2850978 | AD54: 148.7132512 | AE54: 146.1851259 | AF54: 143.6999788 | AG54: 141.2570791 | AH54: 139.27948 | AI54: 137.3295673 | AJ54: 135.4069534 | AK54: 133.511256 | AL54: 131.6420984
C58: Operating expenditure - reconciliation
D61: Adjusted baseline controllable operating expenditure (Forecast) | AC61: =+AC54 -> 151.2850978 | AD61: 148.7132512 | AE61: 146.1851259 | AF61: 143.6999788 | AG61: 141.2570791 | AH61: 139.27948 | AI61: 137.3295673 | AJ61: 135.4069534 | AK61: 133.511256 | AL61: 131.6420984
H62: Controllable
D63: Forecast variations to baseline operating expenditure (above or below baseline) | H63: only
D65: 1 | E65: Growth costs | H65: [Service] | AC65: 2.899739236 | AD65: 4.022116319 | AE65: 5.583547668 | AF65: 8.0238948 | AG65: 11.36801278 | AH65: 13.17717691 | AI65: 14.86511111 | AJ65: 16.43725984 | AK65: 18.05688841 | AL65: 19.72960972
D66: 2 | E66: New regulatory obligations | H66: [Service] | AC66: 5.89217064 | AD66: 5.877558006 | AE66: 6.392116073 | AF66: 6.350080449 | AG66: 7.075194953 | AH66: 7.075194953 | AI66: 7.075194953 | AJ66: 7.075194953 | AK66: 7.075194953 | AL66: 7.075194953
D67: 3 | E67: Supported by customers | H67: [Service] | AC67: 0.6526787176 | AD67: 0.6934532723 | AE67: 1.762208997 | AF67: 1.87465429 | AG67: 1.864145384 | AH67: 1.864145384 | AI67: 1.864145384 | AJ67: 1.864145384 | AK67: 1.864145384 | AL67: 1.864145384
D68: 4 | E68: Cloud-based technologies | H68: [Service] | AC68: 0.8491195929 | AD68: 1.068755725 | AE68: 1.350394402 | AF68: 1.350394402 | AG68: 1.350394402 | AH68: 1.350394402 | AI68: 1.350394402 | AJ68: 1.350394402 | AK68: 1.350394402 | AL68: 1.350394402
D69: 5 | H69: [Service]
D70: 6 | H70: [Service]
D71: 7 | H71: [Service]
D72: 8 | H72: [Service]
D73: 9 | H73: [Service]
D74: 10 | H74: [Service]
D75: 11 | H75: [Service]
D76: 12 | H76: [Service]
D77: 13 | H77: [Service]
D78: 14 | H78: [Service]
D79: 15 | H79: [Service]
D81: Total changes required to baseline operating expenditure | AC81: =SUM(AC65:AC80) -> 10.29370819 | AD81: 11.66188332 | AE81: 15.08826714 | AF81: 17.59902394 | AG81: 21.65774752 | AH81: 23.46691165 | AI81: 25.15484585 | AJ81: 26.72699458 | AK81: 28.34662315 | AL81: 30.01934445
D84: Total controllable operating expenditure | AC84: =+AC81+AC61 -> 161.578806 | AD84: 160.3751345 | AE84: 161.273393 | AF84: 161.2990027 | AG84: 162.9148266 | AH84: 162.7463917 | AI84: 162.4844131 | AJ84: 162.1339479 | AK84: 161.8578792 | AL84: 161.6614429
D86: Non-controllable operating expenditure
D87: External bulk water charges (excl. temporary purchases) | AC87: =+Opex_Breakdown!AC29 -> 500.1660495 | AD87: =+Opex_Breakdown!AD29 -> 494.4032883 | AE87: =+Opex_Breakdown!AE29 -> 495.3047547 | AF87: =+Opex_Breakdown!AF29 -> 484.3601427 | AG87: =+Opex_Breakdown!AG29 -> 481.4622441 | AH87: =+Opex_Breakdown!AH29 -> 481.6256174 | AI87: =+Opex_Breakdown!AI29 -> 482.1161683 | AJ87: =+Opex_Breakdown!AJ29 -> 482.2640204 | AK87: =+Opex_Breakdown!AK29 -> 482.7302075 | AL87: =+Opex_Breakdown!AL29 -> 483.2011124
D88: External temporary water purchases | AC88: =+Opex_Breakdown!AC30 -> 0 | AD88: =+Opex_Breakdown!AD30 -> 0 | AE88: =+Opex_Breakdown!AE30 -> 0 | AF88: =+Opex_Breakdown!AF30 -> 0 | AG88: =+Opex_Breakdown!AG30 -> 0 | AH88: =+Opex_Breakdown!AH30 -> 0 | AI88: =+Opex_Breakdown!AI30 -> 0 | AJ88: =+Opex_Breakdown!AJ30 -> 0 | AK88: =+Opex_Breakdown!AK30 -> 0 | AL88: =+Opex_Breakdown!AL30 -> 0
D89: Licence fees | AC89: =+Opex_Breakdown!AC31 -> 1.29 | AD89: =+Opex_Breakdown!AD31 -> 1.29 | AE89: =+Opex_Breakdown!AE31 -> 1.29 | AF89: =+Opex_Breakdown!AF31 -> 1.29 | AG89: =+Opex_Breakdown!AG31 -> 1.59 | AH89: =+Opex_Breakdown!AH31 -> 1.29 | AI89: =+Opex_Breakdown!AI31 -> 1.29 | AJ89: =+Opex_Breakdown!AJ31 -> 1.29 | AK89: =+Opex_Breakdown!AK31 -> 1.29 | AL89: =+Opex_Breakdown!AL31 -> 1.59
D90: Environment Contribution | AC90: =+Opex_Breakdown!AC32 -> 46.04854369 | AD90: =+Opex_Breakdown!AD32 -> 44.70732397 | AE90: =+Opex_Breakdown!AE32 -> 43.4051689 | AF90: =+Opex_Breakdown!AF32 -> 42.14094068 | AG90: =+Opex_Breakdown!AG32 -> 40.91353464 | AH90: =+Opex_Breakdown!AH32 -> 39.72187829 | AI90: =+Opex_Breakdown!AI32 -> 38.56493038 | AJ90: =+Opex_Breakdown!AJ32 -> 37.44167998 | AK90: =+Opex_Breakdown!AK32 -> 36.35114562 | AL90: =+Opex_Breakdown!AL32 -> 35.29237438
D91: Other non-controllable | AC91: =+Opex_Breakdown!AC33 -> 0 | AD91: =+Opex_Breakdown!AD33 -> 0 | AE91: =+Opex_Breakdown!AE33 -> 0 | AF91: =+Opex_Breakdown!AF33 -> 0 | AG91: =+Opex_Breakdown!AG33 -> 0 | AH91: =+Opex_Breakdown!AH33 -> 0 | AI91: =+Opex_Breakdown!AI33 -> 0 | AJ91: =+Opex_Breakdown!AJ33 -> 0 | AK91: =+Opex_Breakdown!AK33 -> 0 | AL91: =+Opex_Breakdown!AL33 -> 0
D92: Total non-controllable operating expenditure | AC92: =SUM(AC87:AC91) -> 547.5045932 | AD92: 540.4006122 | AE92: 539.9999236 | AF92: 527.7910833 | AG92: 523.9657787 | AH92: =SUM(AH87:AH91) -> 522.6374957 | AI92: =SUM(AI87:AI91) -> 521.9710987 | AJ92: =SUM(AJ87:AJ91) -> 520.9957004 | AK92: =SUM(AK87:AK91) -> 520.3713531 | AL92: =SUM(AL87:AL91) -> 520.0834868
D95: Total prescribed operating expenditure | AC95: =+AC92+AC84 -> 709.0833992 | AD95: 700.7757467 | AE95: 701.2733166 | AF95: 689.0900861 | AG95: 686.8806054 | AH95: 685.3838874 | AI95: 684.4555118 | AJ95: 683.1296483 | AK95: 682.2292323 | AL95: 681.7449297
AB98: To reconcile to 'Opex_Breakdown' tab row 37 >> | AC98: =+Opex_Breakdown!AC37 -> 709.0833996 | AD98: =+Opex_Breakdown!AD37 -> 700.7757473 | AE98: =+Opex_Breakdown!AE37 -> 701.2733173 | AF98: =+Opex_Breakdown!AF37 -> 689.0900869 | AG98: =+Opex_Breakdown!AG37 -> 686.8806064 | AH98: =+Opex_Breakdown!AH37 -> 685.3838885 | AI98: =+Opex_Breakdown!AI37 -> 684.4555131 | AJ98: =+Opex_Breakdown!AJ37 -> 683.1296497 | AK98: =+Opex_Breakdown!AK37 -> 682.2292338 | AL98: =+Opex_Breakdown!AL37 -> 681.7449313
AB99: Difference | AC99: =+AC98-AC95 -> 3.858490345e-07 | AD99: 5.505826266e-07 | AE99: 7.125158845e-07 | AF99: 8.71696102e-07 | AG99: 1.028170459e-06 | AH99: 1.154840788e-06 | AI99: 1.279737944e-06 | AJ99: 1.402886596e-06 | AK99: 1.524311187e-06 | AL99: 1.644035592e-06
AB100: Test | AC100: =IF(ROUND(AC98,2)=ROUND(AC95,2),0,1) -> 0 | AD100: =IF(ROUND(AD98,2)=ROUND(AD95,2),0,1) -> 0 | AE100: 0 | AF100: 0 | AG100: 0 | AH100: 0 | AI100: 0 | AJ100: 0 | AK100: 0 | AL100: 0
AC139: =+AC$160 -> 2023-24 | AD139: 2024-25 | AE139: 2025-26 | AF139: 2026-27 | AG139: 2027-28 | AH139: 2028-29 | AI139: 2029-30 | AJ139: 2030-31 | AK139: 2031-32 | AL139: 2032-33
AB140: Total controllable opex | AC140: =+AC84 -> 161.578806 | AD140: 160.3751345 | AE140: 161.273393 | AF140: 161.2990027 | AG140: 162.9148266 | AH140: 162.7463917 | AI140: 162.4844131 | AJ140: 162.1339479 | AK140: 161.8578792 | AL140: 161.6614429
AB141: Change - $ | AD141: =+AD140-AC140 -> -1.203671527 | AE141: 0.8982585469 | AF141: 0.0256096611 | AG141: 1.615823937 | AH141: -0.1684349777 | AI141: -0.2619785141 | AJ141: -0.350465219 | AK141: -0.2760687701 | AL141: -0.1964362817
AB142: Change - % | AC142: =IFERROR(AC141/AB140,"") ->  | AD142: -0.007449439418 | AE142: 0.005600983904 | AF142: 0.0001587965666 | AG142: 0.01001756929 | AH142: -0.001033883663 | AI142: -0.001609734701 | AJ142: -0.00215691593 | AK142: -0.001702720335 | AL142: -0.001213634348
AC144: =+AC$160 -> 2023-24 | AD144: 2024-25 | AE144: 2025-26 | AF144: 2026-27 | AG144: 2027-28 | AH144: 2028-29 | AI144: 2029-30 | AJ144: 2030-31 | AK144: 2031-32 | AL144: 2032-33
AB145: Total non-controllable opex | AC145: =+AC92 -> 547.5045932 | AD145: 540.4006122 | AE145: 539.9999236 | AF145: 527.7910833 | AG145: 523.9657787 | AH145: 522.6374957 | AI145: 521.9710987 | AJ145: 520.9957004 | AK145: 520.3713531 | AL145: 520.0834868
AB146: Change - $ | AD146: =+AD145-AC145 -> -7.103980963 | AE146: -0.4006886453 | AF146: -12.20884024 | AG146: -3.825304636 | AH146: -1.32828301 | AI146: -0.6663970134 | AJ146: -0.9753983273 | AK146: -0.6243472461 | AL146: -0.2878663404
AB147: Change - % | AC147: =IFERROR(AC146/AB145,"") ->  | AD147: -0.01297519884 | AE147: -0.0007414659351 | AF147: -0.02260896661 | AG147: -0.007247762907 | AH147: -0.002535056799 | AI147: -0.00127506545 | AJ147: -0.001868682633 | AK147: -0.001198373126 | AL147: -0.0005531940577
AC149: =+AC$160 -> 2023-24 | AD149: 2024-25 | AE149: 2025-26 | AF149: 2026-27 | AG149: 2027-28 | AH149: 2028-29 | AI149: 2029-30 | AJ149: 2030-31 | AK149: 2031-32 | AL149: 2032-33
AB150: Total prescribed opex | AC150: =+AC140+AC145 -> 709.0833992 | AD150: 700.7757467 | AE150: 701.2733166 | AF150: 689.0900861 | AG150: 686.8806054 | AH150: 685.3838874 | AI150: 684.4555118 | AJ150: 683.1296483 | AK150: 682.2292323 | AL150: 681.7449297
AB151: Change - $ | AD151: =+AD150-AC150 -> -8.30765249 | AE151: 0.4975699017 | AF151: -12.18323058 | AG151: -2.2094807 | AH151: -1.496717987 | AI151: -0.9283755276 | AJ151: -1.325863546 | AK151: -0.9004160163 | AL151: -0.4843026221
AB152: Change - % | AC152: =IFERROR(AC151/AB150,"") ->  | AD152: -0.01171604426 | AE152: 0.0007100272862 | AF152: -0.01737301319 | AG152: -0.003206374238 | AH152: -0.002179007495 | AI152: -0.001354533634 | AJ152: -0.001937106975 | AK152: -0.001318074861 | AL152: -0.0007098825427
AB155: Controllable vs. Non-controllable opex - % | AC155: =+AC$160 -> 2023-24 | AD155: 2024-25 | AE155: 2025-26 | AF155: 2026-27 | AG155: 2027-28 | AH155: 2028-29 | AI155: 2029-30 | AJ155: 2030-31 | AK155: 2031-32 | AL155: 2032-33
AB156: Controllable opex - % | AC156: =+AC84/AC95 -> 0.2278699603 | AD156: 0.2288537171 | AE156: 0.2299722365 | AF156: 0.2340753495 | AG156: 0.2371807056 | AH156: 0.2374529 | AI156: 0.2373922196 | AJ156: 0.2373399374 | AK156: 0.2372485251 | AL156: 0.2371289259
AB157: Non-controllable opex - % | AC157: =+AC92/AC95 -> 0.7721300397 | AD157: 0.7711462829 | AE157: 0.7700277635 | AF157: 0.7659246505 | AG157: 0.7628192944 | AH157: 0.7625471 | AI157: 0.7626077804 | AJ157: 0.7626600626 | AK157: 0.7627514749 | AL157: 0.7628710741
AC158: =SUM(AC156:AC157) -> 1 | AD158: 1 | AE158: 1 | AF158: 1 | AG158: 1 | AH158: 1 | AI158: 1 | AJ158: 1 | AK158: 1 | AL158: 1
AA160: =+AA6 -> 2021-22 | AB160: 2022-23 | AC160: 2023-24 | AD160: 2024-25 | AE160: 2025-26 | AF160: 2026-27 | AG160: 2027-28 | AH160: =+AH6 -> 2028-29 | AI160: =+AI6 -> 2029-30 | AJ160: =+AJ6 -> 2030-31 | AK160: =+AK6 -> 2031-32 | AL160: =+AL6 -> 2032-33
Y161: Fourth reg period opex | Z161: Third Reg period Opex | AA161: =+AA169-SUM(AA162:AA168) -> 743.1998947 | AB161: =+AB169-SUM(AB162:AB168) -> 707.2049901
Z162: Adjusted baseline opex | AC162: =+AC61 -> 151.2850978 | AD162: 148.7132512 | AE162: 146.1851259 | AF162: 143.6999788 | AG162: 141.2570791 | AH162: 139.27948 | AI162: 137.3295673 | AJ162: 135.4069534 | AK162: 133.511256 | AL162: 131.6420984
Z163: Forecast variations to baseline operating expenditure | AC163: =+AC81 -> 10.29370819 | AD163: 11.66188332 | AE163: 15.08826714 | AF163: 17.59902394 | AG163: 21.65774752 | AH163: 23.46691165 | AI163: 25.15484585 | AJ163: 26.72699458 | AK163: 28.34662315 | AL163: 30.01934445
Z164: Licence fees | AA164: =+AA193 -> 0 | AB164: =+AB193 -> 0 | AC164: =+AC89 -> 1.29 | AD164: 1.29 | AE164: 1.29 | AF164: 1.29 | AG164: 1.59 | AH164: =+AH89 -> 1.29 | AI164: 1.29 | AJ164: 1.29 | AK164: 1.29 | AL164: 1.59
Z165: Environment Contribution | AA165: =+AA194 -> 0 | AB165: =+AB194 -> 0 | AC165: =+AC90 -> 46.04854369 | AD165: 44.70732397 | AE165: 43.4051689 | AF165: 42.14094068 | AG165: 40.91353464 | AH165: 39.72187829 | AI165: 38.56493038 | AJ165: 37.44167998 | AK165: 36.35114562 | AL165: 35.29237438
Z166: External bulk water charges | AA166: =+AA191 -> 0 | AB166: =+AB191 -> 0 | AC166: =+AC87 -> 500.1660495 | AD166: 494.4032883 | AE166: 495.3047547 | AF166: 484.3601427 | AG166: 481.4622441 | AH166: =+AH87 -> 481.6256174 | AI166: 482.1161683 | AJ166: 482.2640204 | AK166: 482.7302075 | AL166: 483.2011124
Z167: External temporary water purchases | AA167: =+AA192 -> 0 | AB167: =+AB192 -> 0 | AC167: =+AC88 -> 0 | AD167: 0 | AE167: 0 | AF167: 0 | AG167: 0 | AH167: 0 | AI167: 0 | AJ167: 0 | AK167: 0 | AL167: 0
Z168: Other non-controllable | AA168: =+AA195 -> 0 | AB168: =+AB195 -> 0 | AC168: =+AC91 -> 0 | AD168: 0 | AE168: 0 | AF168: 0 | AG168: 0 | AH168: =+AH91 -> 0 | AI168: =+AI91 -> 0 | AJ168: =+AJ91 -> 0 | AK168: =+AK91 -> 0 | AL168: =+AL91 -> 0
Z169: Total prescribed opex | AA169: =+Opex_Breakdown!AA37 -> 743.1998947 | AB169: =+Opex_Breakdown!AB37 -> 707.2049901 | AC169: =SUM(AC162:AC168) -> 709.0833992 | AD169: 700.7757467 | AE169: 701.2733166 | AF169: 689.0900861 | AG169: 686.8806054 | AH169: =SUM(AH162:AH168) -> 685.3838874 | AI169: =SUM(AI162:AI168) -> 684.4555118 | AJ169: =SUM(AJ162:AJ168) -> 683.1296483 | AK169: =SUM(AK162:AK168) -> 682.2292323 | AL169: =SUM(AL162:AL168) -> 681.7449297
AC171: =+AC$160 -> 2023-24 | AD171: 2024-25 | AE171: 2025-26 | AF171: 2026-27 | AG171: 2027-28 | AH171: 2028-29 | AI171: 2029-30 | AJ171: 2030-31 | AK171: 2031-32 | AL171: 2032-33
AB172: Adjusted baseline opex | AC172: =+AC162/AC$169 -> 0.2133530386 | AD172: 0.2122123259 | AE172: 0.2084567064 | AF172: 0.2085358383 | AG172: 0.2056501203 | AH172: 0.2032138231 | AI172: 0.200640604 | AJ172: 0.1982156003 | AK172: 0.1956985273 | AL172: 0.1930958232
AB173: Forecast variations to baseline operating expenditure | AC173: =+AC163/AC$169 -> 0.0145169217 | AD173: 0.01664139117 | AE173: 0.02151553008 | AF173: 0.02553951116 | AG173: 0.0315305853 | AH173: 0.03423907693 | AI173: 0.03675161558 | AJ173: 0.039124337 | AK173: 0.04154999788 | AL173: 0.04403310263
AB174: Licence fees | AC174: =+AC164/AC$169 -> 0.001819250037 | AD174: 0.001840817132 | AE174: 0.001839511029 | AF174: 0.001872033898 | AG174: 0.002314812775 | AH174: 0.001882156881 | AI174: 0.001884709784 | AJ174: 0.001888367755 | AK174: 0.00189086005 | AL174: 0.002332250569
AB175: Environment Contribution | AC175: =+AC165/AC$169 -> 0.0649409417 | AD175: 0.06379690533 | AE175: 0.06189479604 | AF175: 0.06115447245 | AG175: 0.05956425953 | AH175: 0.05795566401 | AI175: 0.05634395474 | AJ175: 0.05480903966 | AK175: 0.0532828907 | AL175: 0.05176771084
AB176: External bulk water charges (excl. temporary purchases) | AC176: =+AC166/AC$169 -> 0.705369848 | AD176: 0.7055085604 | AE176: 0.7062934564 | AF176: 0.7028981442 | AG176: 0.7009402221 | AH176: 0.7027092791 | AI176: 0.7043791159 | AJ176: 0.7059626552 | AK176: 0.7075777241 | AL176: 0.7087711127
AB177: External temporary water purchases | AC177: =+AC167/AC$169 -> 0 | AD177: 0 | AE177: 0 | AF177: 0 | AG177: 0 | AH177: 0 | AI177: 0 | AJ177: 0 | AK177: 0 | AL177: 0
AB178: Other non-controllable | AC178: =+AC168/AC$169 -> 0 | AD178: 0 | AE178: 0 | AF178: 0 | AG178: 0 | AH178: 0 | AI178: 0 | AJ178: 0 | AK178: 0 | AL178: 0
AB179: Total prescribed opex | AC179: =+AC169/AC$169 -> 1 | AD179: 1 | AE179: 1 | AF179: 1 | AG179: 1 | AH179: 1 | AI179: 1 | AJ179: 1 | AK179: 1 | AL179: 1
AC181: =+AC$160 -> 2023-24 | AD181: 2024-25 | AE181: 2025-26 | AF181: 2026-27 | AG181: 2027-28 | AH181: 2028-29 | AI181: 2029-30 | AJ181: 2030-31 | AK181: 2031-32 | AL181: 2032-33
AB182: Water | AC182: =+SUMIF($H$65:$H$80,$AB182,AC$65:AC$80) -> 0 | AD182: =+SUMIF($H$65:$H$80,$AB182,AD$65:AD$80) -> 0 | AE182: 0 | AF182: 0 | AG182: 0 | AH182: 0 | AI182: 0 | AJ182: 0 | AK182: 0 | AL182: 0
AB183: Sewerage | AC183: 0 | AD183: 0 | AE183: 0 | AF183: 0 | AG183: 0 | AH183: 0 | AI183: 0 | AJ183: 0 | AK183: 0 | AL183: 0
AB184: Recycled Water | AC184: 0 | AD184: 0 | AE184: 0 | AF184: 0 | AG184: 0 | AH184: 0 | AI184: 0 | AJ184: 0 | AK184: 0 | AL184: 0
AB185: Rural water | AC185: 0 | AD185: 0 | AE185: 0 | AF185: 0 | AG185: 0 | AH185: 0 | AI185: 0 | AJ185: 0 | AK185: 0 | AL185: 0
AB186: Bulk Water | AC186: 0 | AD186: 0 | AE186: 0 | AF186: 0 | AG186: 0 | AH186: 0 | AI186: 0 | AJ186: 0 | AK186: 0 | AL186: 0
AB187: Forecast variations to baseline operating expenditure | AC187: =SUM(AC182:AC186) -> 0 | AD187: 0 | AE187: 0 | AF187: 0 | AG187: 0 | AH187: 0 | AI187: 0 | AJ187: 0 | AK187: 0 | AL187: 0
AA190: =+AA6 -> 2021-22 | AB190: 2022-23 | AC190: 2023-24 | AD190: 2024-25 | AE190: 2025-26 | AF190: 2026-27 | AG190: 2027-28 | AH190: =+AH6 -> 2028-29 | AI190: =+AI6 -> 2029-30 | AJ190: =+AJ6 -> 2030-31 | AK190: =+AK6 -> 2031-32 | AL190: =+AL6 -> 2032-33
Z191: External bulk water charges (excl. temporary purchases) | AA191: =+AA87 -> 0 | AB191: 0 | AC191: 500.1660495 | AD191: 494.4032883 | AE191: 495.3047547 | AF191: 484.3601427 | AG191: 481.4622441 | AH191: =+AH87 -> 481.6256174 | AI191: 482.1161683 | AJ191: 482.2640204 | AK191: 482.7302075 | AL191: 483.2011124
Z192: External temporary water purchases | AA192: =+AA88 -> 0 | AB192: 0 | AC192: 0 | AD192: 0 | AE192: 0 | AF192: 0 | AG192: 0 | AH192: 0 | AI192: 0 | AJ192: 0 | AK192: 0 | AL192: 0
Z193: Licence fees | AA193: =+AA89 -> 0 | AB193: 0 | AC193: 1.29 | AD193: 1.29 | AE193: 1.29 | AF193: 1.29 | AG193: 1.59 | AH193: 1.29 | AI193: 1.29 | AJ193: 1.29 | AK193: 1.29 | AL193: 1.59
Z194: Environment Contribution | AA194: =+AA90 -> 0 | AB194: 0 | AC194: 46.04854369 | AD194: 44.70732397 | AE194: 43.4051689 | AF194: 42.14094068 | AG194: 40.91353464 | AH194: 39.72187829 | AI194: 38.56493038 | AJ194: 37.44167998 | AK194: 36.35114562 | AL194: 35.29237438
Z195: Other non-controllable | AA195: =+AA91 -> 0 | AB195: 0 | AC195: 0 | AD195: 0 | AE195: 0 | AF195: 0 | AG195: 0 | AH195: 0 | AI195: 0 | AJ195: 0 | AK195: 0 | AL195: 0
Z196: Total Non-controllable operating expenditure | AA196: =SUM(AA191:AA195) -> 0 | AB196: 0 | AC196: 547.5045932 | AD196: 540.4006122 | AE196: 539.9999236 | AF196: 527.7910833 | AG196: 523.9657787 | AH196: =SUM(AH191:AH195) -> 522.6374957 | AI196: =SUM(AI191:AI195) -> 521.9710987 | AJ196: =SUM(AJ191:AJ195) -> 520.9957004 | AK196: =SUM(AK191:AK195) -> 520.3713531 | AL196: =SUM(AL191:AL195) -> 520.0834868
AB198: Check | AC198: =IF(ROUND(AC169,2)=ROUND(AC95,2),0,1) -> 0 | AD198: =IF(ROUND(AD169,2)=ROUND(AD95,2),0,1) -> 0 | AE198: 0 | AF198: 0 | AG198: 0 | AH198: 0 | AI198: 0 | AJ198: 0 | AK198: 0 | AL198: 0
AC199: =IF(ROUND(AC187,2)=ROUND(AC163,2),0,1) -> 1 | AD199: =IF(ROUND(AD187,2)=ROUND(AD163,2),0,1) -> 1 | AE199: 1 | AF199: 1 | AG199: 1 | AH199: 1 | AI199: 1 | AJ199: 1 | AK199: 1 | AL199: 1
AC200: =IF(ROUND(AC150,2)=ROUND(AC169,2),0,1) -> 0 | AD200: =IF(ROUND(AD150,2)=ROUND(AD169,2),0,1) -> 0 | AE200: 0 | AF200: 0 | AG200: 0 | AH200: 0 | AI200: 0 | AJ200: 0 | AK200: 0 | AL200: 0
AC201: =IF(ROUND(AC196,2)=ROUND(AC145,2),0,1) -> 0 | AD201: =IF(ROUND(AD196,2)=ROUND(AD145,2),0,1) -> 0 | AE201: 0 | AF201: 0 | AG201: 0 | AH201: 0 | AI201: 0 | AJ201: 0 | AK201: 0 | AL201: 0

Sheet Opex_Breakdown
A1: 80 | B1: Operating Expenditure - Breakdown
B2: =+Contents!H7 -> Yarra Valley Water
B3: Go to Table of Contents
L4: FIRST REG PERIOD | P4: SECOND REG PERIOD | U4: THIRD REG PERIOD | Z4: FOURTH REG PERIOD | AE4: FIFTH REG PERIOD | AJ4: SIXTH REG PERIOD
K6: 2006 | L6: 2007 | M6: 2008 | N6: 2009 | O6: 2010 | P6: 2011 | Q6: 2012 | R6: 2013 | S6: 2014 | T6: 2015 | U6: 2016 | V6: 2017 | W6: 2018 | X6: 2019 | Y6: 2020 | Z6: 2021 | AA6: 2022 | AB6: 2023 | AC6: 2024 | AD6: 2025 | AE6: 2026 | AF6: 2027 | AG6: 2028 | AH6: 2029 | AI6: 2030 | AJ6: 2031 | AK6: 2032 | AL6: 2033
B7: =Expenditure_Detail!$B$6 -> $m, 01/01/23 | K7: =+CONCATENATE(K6-1,"-",RIGHT(K6,2)) -> 2005-06 | L7: =+CONCATENATE(L6-1,"-",RIGHT(L6,2)) -> 2006-07 | M7: 2007-08 | N7: 2008-09 | O7: 2009-10 | P7: 2010-11 | Q7: 2011-12 | R7: 2012-13 | S7: 2013-14 | T7: 2014-15 | U7: 2015-16 | V7: 2016-17 | W7: 2017-18 | X7: =+CONCATENATE(X6-1,"-",RIGHT(X6,2)) -> 2018-19 | Y7: 2019-20 | Z7: 2020-21 | AA7: 2021-22 | AB7: 2022-23 | AC7: 2023-24 | AD7: 2024-25 | AE7: 2025-26 | AF7: 2026-27 | AG7: 2027-28 | AH7: =+CONCATENATE(AH6-1,"-",RIGHT(AH6,2)) -> 2028-29 | AI7: =+CONCATENATE(AI6-1,"-",RIGHT(AI6,2)) -> 2029-30 | AJ7: =+CONCATENATE(AJ6-1,"-",RIGHT(AJ6,2)) -> 2030-31 | AK7: =+CONCATENATE(AK6-1,"-",RIGHT(AK6,2)) -> 2031-32 | AL7: =+CONCATENATE(AL6-1,"-",RIGHT(AL6,2)) -> 2032-33
D10: Operating Expenditure Summary
E12: =C48 -> Water | W12: =+W57-W50-W54 -> 91.48163384 | X12: 93.02304419 | Y12: 99.31510907 | Z12: 109.2250104 | AA12: 92.42544267 | AB12: 90.2923804 | AC12: =+AC57-AC50-AC54 -> 94.84452073 | AD12: 93.69384357 | AE12: 94.08659116 | AF12: 93.29370529 | AG12: 92.22373896 | AH12: 90.7937061 | AI12: 90.48333243 | AJ12: 90.47563986 | AK12: 86.82972654 | AL12: 87.06681381
E13: =C59 -> Sewerage | W13: =W68-W61-W65 -> 60.05243844 | X13: 63.71865734 | Y13: 54.32550678 | Z13: 48.05142398 | AA13: 60.09532722 | AB13: 58.8679014 | AC13: =AC68-AC61-AC65 -> 61.92409596 | AD13: 61.8250386 | AE13: 62.20651998 | AF13: 62.69381818 | AG13: 63.01341263 | AH13: 62.74542823 | AI13: 62.7773183 | AJ13: 62.31175987 | AK13: 62.3101417 | AL13: 61.83481897
E14: =C70 -> Recycled Water | W14: =W79-W72-W76 -> 0.4618698694 | X14: 1.346247749 | Y14: 2.28742468 | Z14: 4.583204024 | AA14: 4.788262025 | AB14: 4.741140426 | AC14: =AC79-AC72-AC76 -> 4.810189724 | AD14: 4.856252883 | AE14: 4.980282609 | AF14: 5.311480099 | AG14: 7.677676077 | AH14: 9.20725848 | AI14: 9.223763689 | AJ14: 9.346549606 | AK14: 12.71801244 | AL14: 12.75981174
E15: =C81 -> Rural Water | W15: =W90-W83-W87 -> 0 | X15: 0 | Y15: 0 | Z15: 0 | AA15: 0 | AB15: 0 | AC15: =AC90-AC83-AC87 -> 0 | AD15: 0 | AE15: 0 | AF15: 0 | AG15: 0 | AH15: 0 | AI15: 0 | AJ15: 0 | AK15: 0 | AL15: 0
E16: Bulk Water | W16: =W100-W97 -> 0 | X16: 0 | Y16: 0 | Z16: 0 | AA16: 0 | AB16: 0 | AC16: =AC100-AC97 -> 0 | AD16: 0 | AE16: 0 | AF16: 0 | AG16: 0 | AH16: 0 | AI16: 0 | AJ16: 0 | AK16: 0 | AL16: 0
E17: Total controllable operating expenditure | W17: =SUM(W12:W16) -> 151.9959421 | X17: 158.0879493 | Y17: 155.9280405 | Z17: 161.8596384 | AA17: 157.3090319 | AB17: 153.9014222 | AC17: 161.5788064 | AD17: 160.375135 | AE17: 161.2733938 | AF17: 161.2990036 | AG17: 162.9148277 | AH17: =SUM(AH12:AH16) -> 162.7463928 | AI17: =SUM(AI12:AI16) -> 162.4844144 | AJ17: =SUM(AJ12:AJ16) -> 162.1339493 | AK17: =SUM(AK12:AK16) -> 161.8578807 | AL17: =SUM(AL12:AL16) -> 161.6614445
E20: Operations & Maintenance | W20: =W49+W60+W71+W82+W93 -> 72.74596576 | X20: 74.94933649 | Y20: 71.64349754 | Z20: 76.29778525 | AA20: 73.18710197 | AB20: 71.63580571 | AC20: 75.14397559 | AD20: 74.38438442 | AE20: 74.17833999 | AF20: 74.85387991 | AG20: 76.8709884 | AH20: =AH49+AH60+AH71+AH82+AH93 -> 76.98826623 | AI20: =AI49+AI60+AI71+AI82+AI93 -> 77.38388314 | AJ20: =AJ49+AJ60+AJ71+AJ82+AJ93 -> 77.84539398 | AK20: =AK49+AK60+AK71+AK82+AK93 -> 77.89344013 | AL20: =AL49+AL60+AL71+AL82+AL93 -> 77.94184404
E21: Treatment | W21: =W51+W62+W73+W84+W94 -> 8.228787475 | X21: 8.669458551 | Y21: 7.769573627 | Z21: 7.592319675 | AA21: 8.787731295 | AB21: 8.61257299 | AC21: 8.887935762 | AD21: 8.755737442 | AE21: 8.646804306 | AF21: 8.519062524 | AG21: 8.572143753 | AH21: =AH51+AH62+AH73+AH84+AH94 -> 8.638633499 | AI21: 8.538403891 | AJ21: 8.439577497 | AK21: 8.342134672 | AL21: 8.246056047
E22: Customer Service and billing | W22: =W52+W63+W74+W85+W95 -> 34.12001361 | X22: 34.82562987 | Y22: 35.74758143 | Z22: 35.93529799 | AA22: 35.35950647 | AB22: 34.59595476 | AC22: 34.91663721 | AD22: 34.79921425 | AE22: 34.72126156 | AF22: 34.67409826 | AG22: 34.66663682 | AH22: 34.8295193 | AI22: 34.98972517 | AJ22: 35.19675555 | AK22: 35.46245704 | AL22: 35.79873632
E23: GSL Payments | W23: =W53+W64+W75+W86+W96 -> 0.9935250143 | X23: 1.952462129 | Y23: 1.843290097 | Z23: 1.167820736 | AA23: 1.348466648 | AB23: 1.2637 | AC23: 1.226893204 | AD23: 1.19115845 | AE23: 1.156464515 | AF23: 1.122781082 | AG23: 1.090078721 | AH23: 1.058328855 | AI23: 1.027503743 | AJ23: 0.9975764494 | AK23: 0.9685208247 | AL23: 0.9403114803
E24: Corporate | W24: =W55+W66+W77+W88+W98 -> 35.90765029 | X24: 37.1292171 | Y24: 37.5568491 | Z24: 40.1576077 | AA24: 36.94305255 | AB24: 36.12453843 | AC24: 39.32515484 | AD24: 39.17724051 | AE24: 39.46285889 | AF24: 39.03196272 | AG24: 38.62802874 | AH24: =AH55+AH66+AH77+AH88+AH98 -> 38.15300583 | AI24: 37.68463323 | AJ24: 37.22281786 | AK24: 36.7674679 | AL24: 36.31849284
E25: Other operating expenditure | W25: =W56+W67+W78+W89+W99 -> 0 | X25: 0.5618451376 | Y25: 1.367248738 | Z25: 0.708807035 | AA25: 1.683172988 | AB25: 1.668850333 | AC25: 2.078209796 | AD25: 2.06739997 | AE25: 3.107664496 | AF25: 3.09721908 | AG25: 3.086951235 | AH25: 3.078639114 | AI25: 2.860265245 | AJ25: 2.431827999 | AK25: 2.423860121 | AL25: 2.416003794
E26: Total controllable operating expenditure | W26: =SUM(W20:W25) -> 151.9959421 | X26: 158.0879493 | Y26: 155.9280405 | Z26: 161.8596384 | AA26: 157.3090319 | AB26: 153.9014222 | AC26: 161.5788064 | AD26: 160.375135 | AE26: 161.2733938 | AF26: 161.2990036 | AG26: 162.9148277 | AH26: =SUM(AH20:AH25) -> 162.7463928 | AI26: =SUM(AI20:AI25) -> 162.4844144 | AJ26: =SUM(AJ20:AJ25) -> 162.1339493 | AK26: =SUM(AK20:AK25) -> 161.8578807 | AL26: =SUM(AL20:AL25) -> 161.6614445
AC27: =IF(ROUND(AC26,2)=ROUND(AC17,2),0,1) -> 0 | AD27: =IF(ROUND(AD26,2)=ROUND(AD17,2),0,1) -> 0 | AE27: 0 | AF27: 0 | AG27: 0 | AH27: 0 | AI27: 0 | AJ27: 0 | AK27: 0 | AL27: 0
E29: External bulk water charges (excl. temporary purchases) | W29: =W50+W61+W72+W83 -> 564.3395871 | X29: =X50+X61+X72+X83 -> 574.5173898 | Y29: =Y50+Y61+Y72+Y83 -> 587.8593503 | Z29: 561.4126323 | AA29: 534.8919728 | AB29: 504.2835678 | AC29: 500.1660495 | AD29: 494.4032883 | AE29: 495.3047547 | AF29: 484.3601427 | AG29: 481.4622441 | AH29: =AH50+AH61+AH72+AH83 -> 481.6256174 | AI29: =AI50+AI61+AI72+AI83 -> 482.1161683 | AJ29: =AJ50+AJ61+AJ72+AJ83 -> 482.2640204 | AK29: =AK50+AK61+AK72+AK83 -> 482.7302075 | AL29: =AL50+AL61+AL72+AL83 -> 483.2011124
E30: External temporary water purchases | W30: =+W102 -> 0 | X30: 0 | Y30: 0 | Z30: 0 | AA30: 0 | AB30: 0 | AC30: 0 | AD30: 0 | AE30: 0 | AF30: 0 | AG30: 0 | AH30: =+AH102 -> 0 | AI30: =+AI102 -> 0 | AJ30: =+AJ102 -> 0 | AK30: =+AK102 -> 0 | AL30: =+AL102 -> 0
E31: Licence fees | W31: =+W109 -> 1.289151558 | X31: 0.9790384778 | Y31: 0.8878214777 | Z31: 1.269059989 | AA31: 1.155202079 | AB31: 1.59 | AC31: 1.29 | AD31: 1.29 | AE31: 1.29 | AF31: 1.29 | AG31: 1.59 | AH31: =+AH109 -> 1.29 | AI31: =+AI109 -> 1.29 | AJ31: =+AJ109 -> 1.29 | AK31: =+AK109 -> 1.29 | AL31: =+AL109 -> 1.59
E32: Environment Contribution | W32: =W111 -> 33.50345701 | X32: 47.1557238 | Y32: 46.53579755 | Z32: 50.39940762 | AA32: 49.84368791 | AB32: 47.43 | AC32: 46.04854369 | AD32: 44.70732397 | AE32: 43.4051689 | AF32: 42.14094068 | AG32: 40.91353464 | AH32: =AH111 -> 39.72187829 | AI32: =AI111 -> 38.56493038 | AJ32: =AJ111 -> 37.44167998 | AK32: =AK111 -> 36.35114562 | AL32: =AL111 -> 35.29237438
E33: Other non-controllable | W33: =+W124 -> 0 | X33: 0 | Y33: 0 | Z33: 0 | AA33: 0 | AB33: 0 | AC33: 0 | AD33: 0 | AE33: 0 | AF33: 0 | AG33: =+AG124 -> 0 | AH33: 0 | AI33: 0 | AJ33: 0 | AK33: 0 | AL33: 0
E34: Total non-controllable operating expenditure | W34: =SUM(W29:W33) -> 599.1321957 | X34: 622.6521521 | Y34: 635.2829693 | Z34: 613.0810999 | AA34: 585.8908628 | AB34: 553.3035678 | AC34: 547.5045932 | AD34: 540.4006122 | AE34: 539.9999236 | AF34: 527.7910833 | AG34: 523.9657787 | AH34: =SUM(AH29:AH33) -> 522.6374957 | AI34: =SUM(AI29:AI33) -> 521.9710987 | AJ34: =SUM(AJ29:AJ33) -> 520.9957004 | AK34: =SUM(AK29:AK33) -> 520.3713531 | AL34: =SUM(AL29:AL33) -> 520.0834868
E37: Total prescribed operating expenditure | W37: =+W34+W17 -> 751.1281378 | X37: 780.7401014 | Y37: 791.2110098 | Z37: 774.9407383 | AA37: 743.1998947 | AB37: 707.2049901 | AC37: 709.0833996 | AD37: 700.7757473 | AE37: 701.2733173 | AF37: 689.0900869 | AG37: 686.8806064 | AH37: =+AH34+AH17 -> 685.3838885 | AI37: =+AI34+AI17 -> 684.4555131 | AJ37: =+AJ34+AJ17 -> 683.1296497 | AK37: =+AK34+AK17 -> 682.2292338 | AL37: =+AL34+AL17 -> 681.7449313
AB40: To reconcile to 'Opex_FO' tab row 95>> | AC40: =+Opex_FO!AC95 -> 709.0833992 | AD40: =+Opex_FO!AD95 -> 700.7757467 | AE40: =+Opex_FO!AE95 -> 701.2733166 | AF40: =+Opex_FO!AF95 -> 689.0900861 | AG40: =+Opex_FO!AG95 -> 686.8806054 | AH40: =+Opex_FO!AH95 -> 685.3838874 | AI40: =+Opex_FO!AI95 -> 684.4555118 | AJ40: =+Opex_FO!AJ95 -> 683.1296483 | AK40: =+Opex_FO!AK95 -> 682.2292323 | AL40: =+Opex_FO!AL95 -> 681.7449297
AB41: Difference | AC41: =+AC40-AC37 -> -3.858490345e-07 | AD41: -5.505826266e-07 | AE41: -7.125158845e-07 | AF41: -8.71696102e-07 | AG41: -1.028170459e-06 | AH41: =+AH40-AH37 -> -1.154840788e-06 | AI41: =+AI40-AI37 -> -1.279737944e-06 | AJ41: =+AJ40-AJ37 -> -1.402886596e-06 | AK41: =+AK40-AK37 -> -1.524311187e-06 | AL41: =+AL40-AL37 -> -1.644035592e-06
AB42: Test | AC42: =IF(ROUND(AC40,2)=ROUND(AC37,2),0,1) -> 0 | AD42: 0 | AE42: 0 | AF42: 0 | AG42: 0 | AH42: 0 | AI42: 0 | AJ42: 0 | AK42: 0 | AL42: 0
B46: Total operating expenditure
C48: Water
D49: Operations & Maintenance | W49: 46.33823103 | X49: 47.91618103 | Y49: 47.86179593 | Z49: 47.35463281 | AA49: 46.53372353 | AB49: 45.55886107 | AC49: 48.2314415 | AD49: 47.47204728 | AE49: 46.96854788 | AF49: 46.6615382 | AG49: 46.04010314 | AH49: 44.96812174 | AI49: 45.22068657 | AJ49: 45.95667019 | AK49: 42.59893588 | AL49: 43.0833294
D50: External bulk charges (excl. temporary purchases) | W50: =+W131 -> 384.1021766 | X50: 391.4698047 | Y50: 401.7417706 | Z50: 378.4434987 | AA50: 370.9953496 | AB50: 336.8654092 | AC50: 329.0556972 | AD50: 321.3922364 | AE50: 318.7092122 | AF50: 311.7715568 | AG50: 309.9136016 | AH50: =+AH131 -> 309.97415 | AI50: 310.3528665 | AJ50: 310.4547644 | AK50: 310.8120733 | AL50: 311.1753287 | AM50: see reconciliation below
D51: Treatment | W51: 0 | X51: 0 | Y51: 0 | Z51: 0 | AA51: 0 | AB51: 0 | AC51: 0 | AD51: 0 | AE51: 0 | AF51: 0 | AG51: 0 | AH51: 0 | AI51: 0 | AJ51: 0 | AK51: 0 | AL51: 0
D52: Customer Service and billing | W52: 21.64164217 | X52: 20.05670188 | Y52: 23.40151463 | Z52: 31.51672276 | AA52: 22.59131957 | AB52: 22.06673356 | AC52: 22.10835749 | AD52: 21.93727344 | AE52: 21.78746011 | AF52: 21.65463107 | AG52: 21.54312116 | AH52: 21.53562275 | AI52: 21.52803516 | AJ52: 21.54459681 | AK52: 21.59109567 | AL52: 21.67334938
D53: GSL Payments | W53: 0.8843512116 | X53: 1.802232469 | Y53: 1.784736625 | Z53: 1.149723577 | AA53: 1.326751608 | AB53: 1.24335 | AC53: 1.207135922 | AD53: 1.171976624 | AE53: 1.137841382 | AF53: 1.104700371 | AG53: 1.072524632 | AH53: 1.041286051 | AI53: 1.010957331 | AJ53: 0.9815119715 | AK53: 0.9529242442 | AL53: 0.9251691691
D54: Licence Fees | W54: 0.6547219619 | X54: 0.5065465681 | Y54: 0.4491691103 | Z54: 0.6473274487 | AA54: 0.589250328 | AB54: 0.8110338774 | AC54: 0.6580086175 | AD54: 0.6580086175 | AE54: 0.6580086175 | AF54: 0.6580086175 | AG54: 0.8110338774 | AH54: 0.6580086175 | AI54: 0.6580086175 | AJ54: 0.6580086175 | AK54: 0.6580086175 | AL54: 0.8110338774
D55: Corporate | W55: 22.61740943 | X55: 22.68608368 | Y55: 24.89981315 | Z55: 28.72721422 | AA55: 20.99048368 | AB55: 20.45333399 | AC55: 21.91715706 | AD55: 21.74197621 | AE55: 21.78097234 | AF55: 21.4705926 | AG55: 21.17511143 | AH55: 20.86337776 | AI55: 20.55600836 | AJ55: 20.25294213 | AK55: 19.95411882 | AL55: 19.65947905
D56: Other operating expenditure | W56: 0 | X56: 0.5618451376 | Y56: 1.367248738 | Z56: 0.4767170147 | AA56: 0.9831642746 | AB56: 0.970101768 | AC56: 1.380428758 | AD56: 1.370570011 | AE56: 2.411769448 | AF56: 2.402243049 | AG56: 2.392878599 | AH56: 2.385297801 | AI56: 2.167645018 | AJ56: 1.739918762 | AK56: 1.732651921 | AL56: 1.725486816
C57: =+CONCATENATE("Total ",C48) -> Total Water | K57: =+SUM(K49:K56) -> 0 | L57: =+SUM(L49:L56) -> 0 | M57: 0 | N57: 0 | O57: 0 | P57: 0 | Q57: 0 | R57: 0 | S57: 0 | T57: 0 | U57: 0 | V57: 0 | W57: =+SUM(W49:W56) -> 476.2385324 | X57: 484.9993955 | Y57: 501.5060487 | Z57: 488.3158365 | AA57: 464.0100426 | AB57: 427.9688234 | AC57: 424.5582265 | AD57: 415.7440886 | AE57: 413.453812 | AF57: 405.7232707 | AG57: 402.9483745 | AH57: =+SUM(AH49:AH56) -> 401.4258647 | AI57: =+SUM(AI49:AI56) -> 401.4942076 | AJ57: =+SUM(AJ49:AJ56) -> 401.5884129 | AK57: =+SUM(AK49:AK56) -> 398.2998085 | AL57: =+SUM(AL49:AL56) -> 399.0531764
C59: Sewerage
D60: =+D49 -> Operations & Maintenance | W60: 26.30425817 | X60: 26.48992788 | Y60: 22.58900463 | Z60: 26.76703507 | AA60: 24.89200901 | AB60: 24.33737772 | AC60: 25.17919801 | AD60: 25.13240277 | AE60: 25.31467182 | AF60: 25.96107351 | AG60: 26.22972556 | AH60: 25.88682867 | AI60: 26.01082994 | AJ60: 25.61204262 | AK60: 25.64608441 | AL60: 25.1695095
D61: =+D50 -> External bulk charges (excl. temporary purchases) | W61: =+W132 -> 180.2374105 | X61: 183.0475851 | Y61: 186.1175797 | Z61: 182.9691336 | AA61: 163.8966232 | AB61: 167.4181587 | AC61: 171.1103523 | AD61: 173.0110519 | AE61: 176.5955425 | AF61: 172.5885859 | AG61: 171.5486425 | AH61: =+AH132 -> 171.6514674 | AI61: 171.7633018 | AJ61: 171.809256 | AK61: 171.9181342 | AL61: 172.0257837 | AM61: see reconciliation below
D62: Treatment | W62: 8.228787475 | X62: 8.669458551 | Y62: 7.769533427 | Z62: 7.592319675 | AA62: 8.787731295 | AB62: 8.61257299 | AC62: 8.887935762 | AD62: 8.755737442 | AE62: 8.646804306 | AF62: 8.519062524 | AG62: 8.572143753 | AH62: 8.638633499 | AI62: 8.538403891 | AJ62: 8.439577497 | AK62: 8.342134672 | AL62: 8.246056047
D63: Customer Service and billing | W63: 12.39461803 | X63: 14.48864544 | Y63: 11.87069223 | Z63: 4.103307266 | AA63: 11.88344486 | AB63: 11.65074857 | AC63: 11.9164821 | AD63: 11.96569779 | AE63: 12.03243911 | AF63: 12.11248329 | AG63: 12.21022776 | AH63: 12.37212691 | AI63: 12.53156533 | AJ63: 12.71281462 | AK63: 12.92169549 | AL63: 13.16405786
D64: GSL Payments | W64: 0.1091738028 | X64: 0.1502296598 | Y64: 0.05855347217 | Z64: 0.01809715878 | AA64: 0.02171504019 | AB64: 0.02035 | AC64: 0.01975728155 | AD64: 0.01918182675 | AE64: 0.01862313277 | AF64: 0.01808071143 | AG64: 0.01755408876 | AH64: 0.01704280462 | AI64: 0.01654641226 | AJ64: 0.01606447792 | AK64: 0.0155965805 | AL64: 0.01514231117
D65: Licence Fees | W65: 0.6319051066 | X65: 0.4693626682 | Y65: 0.4359000704 | Z65: 0.6177952972 | AA65: 0.5623677511 | AB65: 0.7740331672 | AC65: 0.6279891734 | AD65: 0.6279891734 | AE65: 0.6279891734 | AF65: 0.6279891734 | AG65: 0.7740331672 | AH65: 0.6279891734 | AI65: 0.6279891734 | AJ65: 0.6279891734 | AK65: 0.6279891734 | AL65: 0.7740331672
D66: Corporate | W66: 13.01560097 | X66: 13.92039581 | Y66: 12.03772303 | Z66: 9.358791166 | AA66: 13.86209465 | AB66: 13.59967014 | AC66: 15.27442408 | AD66: 15.30658828 | AE66: 15.54940459 | AF66: 15.4393801 | AG66: 15.34084812 | AH66: 15.18855062 | AI66: 15.03838528 | AJ66: 14.89032226 | AK66: 14.74433212 | AL66: 14.60038584
D67: Other operating expenditure | W67: 0 | X67: 0 | Y67: 0 | Z67: 0.2118736378 | AA67: 0.6483323597 | AB67: 0.647181978 | AC67: 0.646298728 | AD67: 0.6454304933 | AE67: 0.6445770186 | AF67: 0.6437380529 | AG67: 0.6429133496 | AH67: 0.6422457281 | AI67: 0.6415874532 | AJ67: 0.6409383942 | AK67: 0.6402984221 | AL67: 0.6396674095
C68: =+CONCATENATE("Total ",C59) -> Total Sewerage | W68: =+SUM(W60:W67) -> 240.921754 | X68: 247.2356051 | Y68: 240.8789866 | Z68: 231.6383529 | AA68: 224.5543181 | AB68: 227.0600932 | AC68: 233.6624375 | AD68: 235.4640797 | AE68: 239.4300516 | AF68: 235.9103933 | AG68: 235.3360882 | AH68: =+SUM(AH60:AH67) -> 235.0248848 | AI68: =+SUM(AI60:AI67) -> 235.1686092 | AJ68: =+SUM(AJ60:AJ67) -> 234.749005 | AK68: =+SUM(AK60:AK67) -> 234.8562651 | AL68: =+SUM(AL60:AL67) -> 234.6346358
C70: Recycled Water
D71: =+D60 -> Operations & Maintenance | W71: 0.1034765655 | X71: 0.5432275815 | Y71: 1.192696981 | Z71: 2.17611736 | AA71: 1.761369427 | AB71: 1.739566909 | AC71: 1.733336088 | AD71: 1.779934373 | AE71: 1.895120283 | AF71: 2.231268198 | AG71: 4.601159702 | AH71: 6.133315818 | AI71: 6.152366633 | AJ71: 6.276681169 | AK71: 9.648419831 | AL71: 9.689005145
D72: =+D61 -> External bulk charges (excl. temporary purchases) | W72: =+W133 -> 0 | X72: 0 | Y72: 0 | Z72: 0 | AA72: 0 | AB72: 0 | AC72: 0 | AD72: 0 | AE72: 0 | AF72: 0 | AG72: 0 | AH72: =+AH133 -> 0 | AI72: 0 | AJ72: 0 | AK72: 0 | AL72: 0 | AM72: see reconciliation below
D73: Treatment | W73: 0 | X73: 0 | Y73: 4.01996319e-05 | Z73: 0 | AA73: 0
D74: Customer Service and billing | W74: 0.08375341403 | X74: 0.2802825547 | Y74: 0.4753745753 | Z74: 0.315267966 | AA74: 0.8847420322 | AB74: 0.8784726302 | AC74: 0.8917976301 | AD74: 0.8962430287 | AE74: 0.9013623373 | AF74: 0.9069839013 | AG74: 0.9132879005 | AH74: 0.921769628 | AI74: 0.9301246863 | AJ74: 0.9393441214 | AK74: 0.9496658752 | AL74: 0.9613290769
D75: GSL Payments | W75: 0 | X75: 0 | Y75: 0 | Z75: 0 | AA75: 0 | AB75: 0 | AC75: 0 | AD75: 0 | AE75: 0 | AF75: 0 | AG75: 0 | AH75: 0 | AI75: 0 | AJ75: 0 | AK75: 0 | AL75: 0
D76: Licence Fees | W76: 0.002524489544 | X76: 0.003129241499 | Y76: 0.00275229696 | Z76: 0.003937243024 | AA76: 0.003584000258 | AB76: 0.004932955466 | AC76: 0.004002209151 | AD76: 0.004002209151 | AE76: 0.004002209151 | AF76: 0.004002209151 | AG76: 0.004932955466 | AH76: 0.004002209151 | AI76: 0.004002209151 | AJ76: 0.004002209151 | AK76: 0.004002209151 | AL76: 0.004932955466
D77: Corporate | W77: 0.2746398898 | X77: 0.5227376131 | Y77: 0.619312924 | Z77: 2.071602315 | AA77: 2.090474212 | AB77: 2.071534299 | AC77: 2.133573695 | AD77: 2.128676016 | AE77: 2.13248196 | AF77: 2.121990023 | AG77: 2.112069187 | AH77: 2.10107745 | AI77: 2.090239597 | AJ77: 2.079553474 | AK77: 2.069016956 | AL77: 2.05862795
D78: Other operating expenditure | W78: 0 | X78: 0 | Y78: 0 | Z78: 0.02021638253 | AA78: 0.05167635347 | AB78: 0.05156658731 | AC78: 0.0514823101 | AD78: 0.0513994656 | AE78: 0.05131802945 | AF78: 0.05123797772 | AG78: 0.05115928687 | AH78: 0.05109558432 | AI78: 0.05103277359 | AJ78: 0.05097084222 | AK78: 0.05090977789 | AL78: 0.05084956846
C79: =+CONCATENATE("Total ",C70) -> Total Recycled Water | W79: =+SUM(W71:W78) -> 0.4643943589 | X79: 1.349376991 | Y79: 2.290176977 | Z79: 4.587141267 | AA79: 4.791846025 | AB79: 4.746073381 | AC79: 4.814191933 | AD79: 4.860255092 | AE79: 4.984284819 | AF79: 5.315482308 | AG79: 7.682609032 | AH79: =+SUM(AH71:AH78) -> 9.211260689 | AI79: =+SUM(AI71:AI78) -> 9.227765899 | AJ79: =+SUM(AJ71:AJ78) -> 9.350551816 | AK79: =+SUM(AK71:AK78) -> 12.72201465 | AL79: =+SUM(AL71:AL78) -> 12.7647447
C81: Rural Water
D82: =+D60 -> Operations & Maintenance
D83: =+D61 -> External bulk charges (excl. temporary purchases) | W83: =+W134 -> 0 | X83: 0 | Y83: 0 | Z83: 0 | AA83: 0 | AB83: 0 | AC83: 0 | AD83: 0 | AE83: 0 | AF83: 0 | AG83: 0 | AH83: =+AH134 -> 0 | AI83: 0 | AJ83: 0 | AK83: 0 | AL83: 0 | AM83: see reconciliation below
D84: Treatment
D85: Customer Service and billing
D86: GSL Payments
D87: Licence Fees
D88: Corporate
D89: Other operating expenditure
C90: =+CONCATENATE("Total ",C81) -> Total Rural Water | W90: =+SUM(W82:W89) -> 0 | X90: 0 | Y90: 0 | Z90: 0 | AA90: 0 | AB90: 0 | AC90: 0 | AD90: 0 | AE90: 0 | AF90: 0 | AG90: 0 | AH90: =+SUM(AH82:AH89) -> 0 | AI90: =+SUM(AI82:AI89) -> 0 | AJ90: =+SUM(AJ82:AJ89) -> 0 | AK90: =+SUM(AK82:AK89) -> 0 | AL90: =+SUM(AL82:AL89) -> 0
C92: Bulk Water
D93: Operations & Maintenance
D94: Treatment
D95: Customer Service and billing
D96: GSL Payments
D97: Licence Fees
D98: Corporate
D99: Other operating expenditure
C100: Total Bulk water | W100: =+SUM(W93:W99) -> 0 | X100: 0 | Y100: 0 | Z100: 0 | AA100: 0 | AB100: 0 | AC100: 0 | AD100: 0 | AE100: 0 | AF100: 0 | AG100: 0 | AH100: =+SUM(AH93:AH99) -> 0 | AI100: =+SUM(AI93:AI99) -> 0 | AJ100: =+SUM(AJ93:AJ99) -> 0 | AK100: =+SUM(AK93:AK99) -> 0 | AL100: =+SUM(AL93:AL99) -> 0
C102: External temporary water purchases
C105: Licence fees
D106: Essential Services Commission | W106: 0.8758698434 | X106: 0.5785524805 | Y106: 0.4736020491 | Z106: 0.860390928 | AA106: 0.7885967023 | AB106: 1.18 | AC106: 0.88 | AD106: 0.88 | AE106: 0.88 | AF106: 0.88 | AG106: 1.18 | AH106: 0.88 | AI106: 0.88 | AJ106: 0.88 | AK106: 0.88 | AL106: 1.18
D107: Department of Human Services | W107: 0.3105550697 | X107: 0.3102627655 | Y107: 0.3138383742 | Z107: 0.3071094211 | AA107: 0.3082787532 | AB107: 0.31 | AC107: 0.31 | AD107: 0.31 | AE107: 0.31 | AF107: 0.31 | AG107: 0.31 | AH107: 0.31 | AI107: 0.31 | AJ107: 0.31 | AK107: 0.31 | AL107: 0.31
D108: Environment Protection Authority | W108: 0.1027266449 | X108: 0.09022323176 | Y108: 0.1003810544 | Z108: 0.1015596399 | AA108: 0.05832662384 | AB108: 0.1 | AC108: 0.1 | AD108: 0.1 | AE108: 0.1 | AF108: 0.1 | AG108: 0.1 | AH108: 0.1 | AI108: 0.1 | AJ108: 0.1 | AK108: 0.1 | AL108: 0.1
C109: =+CONCATENATE("Total ",C105) -> Total Licence fees | W109: =+SUM(W106:W108) -> 1.289151558 | X109: 0.9790384778 | Y109: 0.8878214777 | Z109: 1.269059989 | AA109: 1.155202079 | AB109: 1.59 | AC109: 1.29 | AD109: 1.29 | AE109: 1.29 | AF109: 1.29 | AG109: 1.59 | AH109: =+SUM(AH106:AH108) -> 1.29 | AI109: =+SUM(AI106:AI108) -> 1.29 | AJ109: =+SUM(AJ106:AJ108) -> 1.29 | AK109: =+SUM(AK106:AK108) -> 1.29 | AL109: =+SUM(AL106:AL108) -> 1.59
C111: Environment Contribution | W111: 33.50345701 | X111: 47.1557238 | Y111: 46.53579755 | Z111: 50.39940762 | AA111: 49.84368791 | AB111: 47.43 | AC111: 46.04854369 | AD111: 44.70732397 | AE111: 43.4051689 | AF111: 42.14094068 | AG111: 40.91353464 | AH111: 39.72187829 | AI111: 38.56493038 | AJ111: 37.44167998 | AK111: 36.35114562 | AL111: 35.29237438
C113: Other non-controllable
D114: [Non-controllable 1]
D115: [Non-controllable 2]
D116: [Non-controllable 3]
D117: [Non-controllable 4]
D118: [Non-controllable 5]
D119: [Non-controllable 6]
D120: [Non-controllable 7]
D121: [Non-controllable 8]
D122: [Non-controllable 9]
D123: [Non-controllable 10]
W124: =SUM(W114:W123) -> 0 | X124: 0 | Y124: 0 | Z124: 0 | AA124: 0 | AB124: 0 | AC124: 0 | AD124: 0 | AE124: 0 | AF124: 0 | AG124: 0 | AH124: =SUM(AH114:AH123) -> 0 | AI124: =SUM(AI114:AI123) -> 0 | AJ124: =SUM(AJ114:AJ123) -> 0 | AK124: =SUM(AK114:AK123) -> 0 | AL124: =SUM(AL114:AL123) -> 0
C127: External bulk charges (excl. temporary purchases)
C128: Reconciliation
C130: Service | W130: =+W7 -> 2017-18 | X130: =+X7 -> 2018-19 | Y130: 2019-20 | Z130: 2020-21 | AA130: 2021-22 | AB130: 2022-23 | AC130: 2023-24 | AD130: 2024-25 | AE130: 2025-26 | AF130: 2026-27 | AG130: 2027-28 | AH130: =+AH7 -> 2028-29 | AI130: =+AI7 -> 2029-30 | AJ130: =+AJ7 -> 2030-31 | AK130: =+AK7 -> 2031-32 | AL130: =+AL7 -> 2032-33
D131: Water | W131: =+SUMIF($I$138:$I$179,$D$131,W$138:W$179) -> 384.1021766 | X131: 391.4698047 | Y131: 401.7417706 | Z131: 378.4434987 | AA131: 370.9953496 | AB131: 336.8654092 | AC131: 329.0556972 | AD131: 321.3922364 | AE131: 318.7092122 | AF131: 311.7715568 | AG131: 309.9136016 | AH131: 309.97415 | AI131: 310.3528665 | AJ131: 310.4547644 | AK131: 310.8120733 | AL131: 311.1753287
D132: Sewerage | W132: =+SUMIF($I$138:$I$179,$D$132,W$138:W$179) -> 180.2374105 | X132: 183.0475851 | Y132: 186.1175797 | Z132: 182.9691336 | AA132: 163.8966232 | AB132: 167.4181587 | AC132: 171.1103523 | AD132: 173.0110519 | AE132: 176.5955425 | AF132: 172.5885859 | AG132: 171.5486425 | AH132: 171.6514674 | AI132: 171.7633018 | AJ132: 171.809256 | AK132: 171.9181342 | AL132: 172.0257837
D133: Recycled Water | W133: =+SUMIF($I$138:$I$179,$D$133,W$138:W$179) -> 0 | X133: 0 | Y133: 0 | Z133: 0 | AA133: 0 | AB133: 0 | AC133: 0 | AD133: 0 | AE133: 0 | AF133: 0 | AG133: 0 | AH133: 0 | AI133: 0 | AJ133: 0 | AK133: 0 | AL133: 0
D134: Rural Water | W134: =+SUMIF($I$138:$I$179,$D$134,W$138:W$179) -> 0 | X134: 0 | Y134: 0 | Z134: 0 | AA134: 0 | AB134: 0 | AC134: 0 | AD134: 0 | AE134: 0 | AF134: 0 | AG134: 0 | AH134: 0 | AI134: 0 | AJ134: 0 | AK134: 0 | AL134: 0
C135: Total External Bulk Charges | W135: =SUM(W131:W134) -> 564.3395871 | X135: 574.5173898 | Y135: 587.8593503 | Z135: 561.4126323 | AA135: 534.8919728 | AB135: 504.2835678 | AC135: 500.1660495 | AD135: 494.4032883 | AE135: 495.3047547 | AF135: 484.3601427 | AG135: 481.4622441 | AH135: =SUM(AH131:AH134) -> 481.6256174 | AI135: =SUM(AI131:AI134) -> 482.1161683 | AJ135: =SUM(AJ131:AJ134) -> 482.2640204 | AK135: =SUM(AK131:AK134) -> 482.7302075 | AL135: =SUM(AL131:AL134) -> 483.2011124
C137: Description | H137: Source | I137: Service | J137: Price
B138: 1 | C138: Greater Yarra System | H138: Melbourne Water | I138: Water | J138: Fixed | W138: 85.64097318 | X138: 85.8961919 | Y138: 85.33973537 | Z138: 84.6472994 | AA138: 74.17990279 | AB138: 75.5370112 | AC138: 76.18220819 | AD138: 77.06951883 | AE138: 78.79916747 | AF138: 76.94737138 | AG138: 76.42206575 | AH138: 76.42206575 | AI138: 76.42206575 | AJ138: 76.42206575 | AK138: 76.42206575 | AL138: 76.42206575 | AO138: ESC USE ONLY
B139: 2 | C139: Victorian Desalination Plant | H139: Melbourne Water | I139: Water | J139: Fixed | W139: 241.4469114 | X139: 245.7115515 | Y139: 236.6248539 | Z139: 208.489778 | AA139: 212.8623066 | AB139: 200.9721059 | AC139: 195.9259427 | AD139: 186.8994495 | AE139: 181.7512822 | AF139: 177.4831632 | AG139: 176.2682932 | AH139: 176.2682932 | AI139: 176.2682932 | AJ139: 176.2682932 | AK139: 176.2682932 | AL139: 176.2682932
B140: 3 | C140: Victorian Desalination Plant Water Order | H140: Melbourne Water | I140: Water | J140: Fixed | W140: 0 | X140: 1.831500583 | Y140: 24.27161193 | Z140: 29.99375824 | AA140: 30.02496752 | AB140: 5.043979217 | AO140: [Service]
B141: 4 | C141: North South Pipeline | H141: Melbourne Water | I141: Water | J141: Fixed | W141: 14.33119348 | X141: 13.84742053 | Y141: 13.57986345 | Z141: 13.04058126 | AA141: 12.42783206 | AB141: 12.258 | AC141: 12.15915769 | AD141: 11.91434335 | AE141: 11.79941684 | AF141: 11.52221692 | AG141: 11.443406 | AH141: 11.443406 | AI141: 11.443406 | AJ141: 11.443406 | AK141: 11.443406 | AL141: 11.443406 | AO141: Water
B142: 5 | C142: Bulk Water - Water transfer | H142: Melbourne Water | I142: Water | J142: Fixed | W142: 42.68309853 | X142: 44.18314021 | Y142: 41.92570586 | Z142: 42.27208179 | AA142: 41.50034061 | AB142: 43.05431289 | AC142: 44.78838861 | AD142: 45.50892468 | AE142: 46.35934565 | AF142: 45.81880527 | AG142: 45.77983664 | AH142: 45.84038502 | AI142: 46.21910156 | AJ142: 46.32099943 | AK142: 46.67830834 | AL142: 47.04156374 | AO142: Sewerage
B143: 6 | C143: Bulk Sewerage Usage - Treatment - Western | H143: Melbourne Water | I143: Sewerage | J143: Variable | W143: 21.32202468 | X143: 24.60401079 | Y143: 26.90574788 | Z143: 26.40107402 | AA143: 5.541389588 | AB143: 5.645843992 | AC143: 5.709569182 | AD143: 5.774067319 | AE143: 5.839404921 | AF143: 5.769154944 | AG143: 5.7972755 | AH143: 5.846730275 | AI143: 5.900504372 | AJ143: 5.922782975 | AK143: 5.975084282 | AL143: 6.026803761 | AO143: Recycled Water
B144: 7 | C144: Bulk Sewerage Usage - Treatment - Eastern | H144: Melbourne Water | I144: Sewerage | J144: Variable | W144: 5.727297581 | X144: 3.81847244 | Y144: 4.202332682 | Z144: 3.948239226 | AA144: 2.026363448 | AB144: 2.054541279 | AC144: 2.078492426 | AD144: 2.102873614 | AE144: 2.127387944 | AF144: 2.101654321 | AG144: 2.111850551 | AH144: 2.129572574 | AI144: 2.148867546 | AJ144: 2.156530826 | AK144: 2.175390586 | AL144: 2.194025272 | AO144: Rural Water
B145: 8 | C145: Bulk Sewerage Usage - Transfer - Western | H145: Melbourne Water | I145: Sewerage | J145: Variable | W145: 2.916579883 | X145: 3.365319275 | Y145: 3.680556312 | Z145: 3.61148041 | AA145: 3.705070875 | AB145: 3.774244491 | AC145: 3.817802108 | AD145: 3.8604013 | AE145: 3.90414303 | AF145: 3.857492408 | AG145: 3.876420052 | AH145: 3.9094886 | AI145: 3.945445316 | AJ145: 3.960342179 | AK145: 3.995314096 | AL145: 4.029896966
B146: 9 | C146: Bulk Sewerage Usage - Transfer - Eastern | H146: Melbourne Water | I146: Sewerage | J146: Variable | W146: 0.4165446808 | X146: 0.2775519532 | Y146: 0.3052277953 | Z146: 0.2871355599 | AA146: 0.2949330972 | AB146: 0.2986366275 | AC146: 0.3022907117 | AD146: 0.3057934752 | AE146: 0.3092467624 | AF146: 0.3054537086 | AG146: 0.3074004585 | AH146: 0.3099800719 | AI146: 0.3127886435 | AJ146: 0.3139041087 | AK146: 0.3166493308 | AL146: 0.3193617913 | AO146: [Source]
B147: 10 | C147: Trade waste - BOD Eastern | H147: Melbourne Water | I147: Sewerage | J147: Variable | W147: 0.7052654041 | X147: 0.6462319727 | Y147: 0.5748904774 | Z147: 0.5305080725 | AA147: 0.5871827454 | AB147: 0.4430124312 | AC147: 0.4430170471 | AD147: 0.4430116704 | AE147: 0.4430246856 | AF147: 0.4326114356 | AG147: 0.4296603086 | AH147: 0.4296603086 | AI147: 0.4296603086 | AJ147: 0.4296603086 | AK147: 0.4296603086 | AL147: 0.4296603086 | AO147: Melbourne Water
B148: 11 | C148: Trade waste - BOD Western | H148: Melbourne Water | I148: Sewerage | J148: Variable | W148: 1.924304575 | X148: 1.954620613 | Y148: 2.057379838 | Z148: 2.029520173 | AA148: 3.117798252 | AB148: 4.132290635 | AC148: 4.132222764 | AD148: 4.132227651 | AE148: 4.132264934 | AF148: 4.035281592 | AG148: 4.007587207 | AH148: 4.007587207 | AI148: 4.007587207 | AJ148: 4.007587207 | AK148: 4.007587207 | AL148: 4.007587207 | AO148: Goulburn-Murray Water
B149: 12 | C149: Trade waste - SS Eastern | H149: Melbourne Water | I149: Sewerage | J149: Variable | W149: 0.8321011449 | X149: 0.7489043003 | Y149: 0.9151811048 | Z149: 0.5245701834 | AA149: 0.7319669964 | AB149: 0.7319658656 | AC149: 0.7319689243 | AD149: 0.7319617805 | AE149: 0.7319612614 | AF149: 0.7147840289 | AG149: 0.7098904679 | AH149: 0.7098904679 | AI149: 0.7098904679 | AJ149: 0.7098904679 | AK149: 0.7098904679 | AL149: 0.7098904679 | AO149: Other Sources
B150: 13 | C150: Trade waste - SS Western | H150: Melbourne Water | I150: Sewerage | J150: Variable | W150: 0.4269529064 | X150: 0.3548265671 | Y150: 0.4028456648 | Z150: 0.3626063102 | AA150: 2.278129348 | AB150: 2.278154099 | AC150: 2.278150702 | AD150: 2.278139727 | AE150: 2.278139277 | AF150: 2.224642391 | AG150: 2.209426552 | AH150: 2.209426552 | AI150: 2.209426552 | AJ150: 2.209426552 | AK150: 2.209426552 | AL150: 2.209426552
B151: 14 | C151: Trade waste - TN/TKN Eastern | H151: Melbourne Water | I151: Sewerage | J151: Variable | W151: 0.01034952018 | X151: 0.01005744794 | Y151: 0.01059275152 | Z151: 0.008257163395 | AA151: 0.00378979358 | AB151: 0.003789681106 | AC151: 0.003789860747 | AD151: 0.003789891939 | AE151: 0.003789750641 | AF151: 0.003700581814 | AG151: 0.003675297544 | AH151: 0.003675297544 | AI151: 0.003675297544 | AJ151: 0.003675297544 | AK151: 0.003675297544 | AL151: 0.003675297544
B152: 15 | C152: Trade waste - TN/TKN Western | H152: Melbourne Water | I152: Sewerage | J152: Variable | W152: 0.06984416435 | X152: 0.07864397615 | Y152: 0.09797967469 | Z152: 0.08678545253 | AA152: 0.3728191358 | AB152: 0.3728206925 | AC152: 0.3728193067 | AD152: 0.3728197702 | AE152: 0.3728216744 | AF152: 0.3640650015 | AG152: 0.3615735273 | AH152: 0.3615735273 | AI152: 0.3615735273 | AJ152: 0.3615735273 | AK152: 0.3615735273 | AL152: 0.3615735273
B153: 16 | C153: Trade waste - TDS/inorganic TDS Eastern | H153: Melbourne Water | I153: Sewerage | J153: Variable | W153: 0 | X153: 0 | Y153: 0 | Z153: 0 | AA153: 0 | AB153: 0 | AC153: 0 | AD153: 0 | AE153: 0 | AF153: 0 | AG153: 0 | AH153: 0 | AI153: 0 | AJ153: 0 | AK153: 0 | AL153: 0
B154: 17 | C154: Trade waste - TDS/inorganic TDS Western | H154: Melbourne Water | I154: Sewerage | J154: Variable | W154: 0.2476307981 | X154: 0.2449857426 | Y154: 0.2451880935 | Z154: 0.2274497481 | AA154: 0.2856726269 | AB154: 0.2857207955 | AC154: 0.2856947558 | AD154: 0.2857103327 | AE154: 0.285683456 | AF154: 0.2789558431 | AG154: 0.2770856289 | AH154: 0.2770856289 | AI154: 0.2770856289 | AJ154: 0.2770856289 | AK154: 0.2770856289 | AL154: 0.2770856289
B155: 18 | C155: Sewer fixed | H155: Melbourne Water | I155: Sewerage | J155: Fixed | W155: 145.6385151 | X155: 146.94396 | Y155: 146.7196575 | Z155: 144.9515073 | AA155: 144.9515073 | AB155: 147.3971381 | AC155: 150.9545345 | AD155: 152.7202554 | AE155: 156.1676748 | AF155: 152.5007896 | AG155: 151.4567969 | AH155: 151.4567969 | AI155: 151.4567969 | AJ155: 151.4567969 | AK155: 151.4567969 | AL155: 151.4567969
B156: 19 | H156: [Source] | I156: [Service] | J156: [Price]
B157: 20 | H157: [Source] | I157: [Service] | J157: [Price]
B158: 21 | H158: [Source] | I158: [Service] | J158: [Price]
B159: 22 | H159: [Source] | I159: [Service] | J159: [Price]
B160: 23 | H160: [Source] | I160: [Service] | J160: [Price]
B161: 24 | H161: [Source] | I161: [Service] | J161: [Price]
B162: 25 | H162: [Source] | I162: [Service] | J162: [Price]
B163: 26 | H163: [Source] | I163: [Service] | J163: [Price]
B164: 27 | H164: [Source] | I164: [Service] | J164: [Price]
B165: 28 | H165: [Source] | I165: [Service] | J165: [Price]
B166: 29 | H166: [Source] | I166: [Service] | J166: [Price]
B167: 30 | H167: [Source] | I167: [Service] | J167: [Price]
B168: 31 | H168: [Source] | I168: [Service] | J168: [Price]
B169: 32 | H169: [Source] | I169: [Service] | J169: [Price]
B170: 33 | H170: [Source] | I170: [Service] | J170: [Price]
B171: 34 | H171: [Source] | I171: [Service] | J171: [Price]
B172: 35 | H172: [Source] | I172: [Service] | J172: [Price]
B173: 36 | H173: [Source] | I173: [Service] | J173: [Price]
B174: 37 | H174: [Source] | I174: [Service] | J174: [Price]
B175: 38 | H175: [Source] | I175: [Service] | J175: [Price]
B176: 39 | H176: [Source] | I176: [Service] | J176: [Price]
B177: 40 | H177: [Source] | I177: [Service] | J177: [Price]

Sheet Capex_FO input
B1: Capital Expenditure - Forecast Input | Q1: =Q36 -> Gross capital expenditure | AB1: =AB36 -> Government contributions | AM1: =AM36 -> Customer contributions | AX1: =AX36 -> Net capital expenditure | BI1: =BI36 -> Regulatory Depreciation | BT1: =BT36 -> Accumulated capex | CE1: =CE36 -> Gross capital expenditure | CP1: =CP36 -> Tax Depreciation
B2: =+Contents!H7 -> Yarra Valley Water | Q2: =Q37 -> $m, 01/01/23 | AB2: =AB37 -> $m, 01/01/23 | AM2: =AM37 -> $m, 01/01/23 | AX2: =AX37 -> $m, 01/01/23 | BI2: =BI37 -> $m, 01/01/23 | BT2: =BT37 -> $m, 01/01/23 | CE2: =CE37 -> Nominal,$ | CP2: =CP37 -> Nominal,$
B3: Go to Table of Contents | Q3: =Q39 -> 2023-24 | R3: =R39 -> 2024-25 | S3: 2025-26 | T3: 2026-27 | U3: 2027-28 | V3: 2028-29 | W3: 2029-30 | X3: 2030-31 | Y3: =Y39 -> 2031-32 | Z3: =Z39 -> 2032-33 | AB3: 2023-24 | AC3: 2024-25 | AD3: 2025-26 | AE3: 2026-27 | AF3: 2027-28 | AG3: 2028-29 | AH3: 2029-30 | AI3: 2030-31 | AJ3: 2031-32 | AK3: 2032-33 | AM3: 2023-24 | AN3: 2024-25 | AO3: 2025-26 | AP3: 2026-27 | AQ3: 2027-28 | AR3: 2028-29 | AS3: 2029-30 | AT3: 2030-31 | AU3: 2031-32 | AV3: 2032-33 | AX3: 2023-24 | AY3: 2024-25 | AZ3: 2025-26 | BA3: 2026-27 | BB3: 2027-28 | BC3: 2028-29 | BD3: 2029-30 | BE3: 2030-31 | BF3: 2031-32 | BG3: 2032-33 | BI3: 2023-24 | BJ3: 2024-25 | BK3: 2025-26 | BL3: 2026-27 | BM3: 2027-28 | BN3: 2028-29 | BO3: 2029-30 | BP3: 2030-31 | BQ3: 2031-32 | BR3: 2032-33 | BT3: 2023-24 | BU3: 2024-25 | BV3: 2025-26 | BW3: 2026-27 | BX3: 2027-28 | BY3: 2028-29 | BZ3: 2029-30 | CA3: 2030-31 | CB3: =CB39 -> 2031-32 | CC3: =CC39 -> 2032-33 | CE3: 2023-24 | CF3: 2024-25 | CG3: 2025-26 | CH3: 2026-27 | CI3: 2027-28 | CJ3: 2028-29 | CK3: 2029-30 | CL3: 2030-31 | CM3: =CM39 -> 2031-32 | CN3: =CN39 -> 2032-33 | CP3: 2023-24 | CQ3: 2024-25 | CR3: =CR39 -> 2025-26 | CS3: 2026-27 | CT3: 2027-28 | CU3: 2028-29 | CV3: 2029-30 | CW3: 2030-31 | CX3: =CX39 -> 2031-32 | CY3: =CY39 -> 2032-33
C7: Input Summary | F7: FIFTH REG PERIOD | K7: SIXTH REG PERIOD
D9: =+Q39 -> 2023-24 | E9: =+R39 -> 2024-25 | F9: 2025-26 | G9: 2026-27 | H9: 2027-28 | I9: 2028-29 | J9: 2029-30 | K9: 2030-31 | L9: =+Y39 -> 2031-32 | M9: =+Z39 -> 2032-33
C10: By Cost Driver
C11: Net capital expenditure - Renewals | D11: =+SUMIF($F$42:$F$1016,"Renewals",AX$42:AX$1016) -> 172.3095786 | E11: 191.9630466 | F11: 200.2357355 | G11: 196.8738841 | H11: 178.8239886 | I11: 170.3555543 | J11: 182.3125645 | K11: 171.6608336 | L11: =+SUMIF($F$42:$F$1016,"Renewals",BF$42:BF$1016) -> 181.9663578 | M11: =+SUMIF($F$42:$F$1016,"Renewals",BG$42:BG$1016) -> 171.7676042
C12: Net capital expenditure - Growth | D12: =+SUMIF($F$42:$F$1016,"Growth",AX$42:AX$1016) -> 49.32530425 | E12: 94.75099407 | F12: 144.3461708 | G12: 112.2147256 | H12: 62.90295628 | I12: 154.0100094 | J12: 166.4196884 | K12: 154.7398689 | L12: =+SUMIF($F$42:$F$1016,"Growth",BF$42:BF$1016) -> 142.3035297 | M12: =+SUMIF($F$42:$F$1016,"Growth",BG$42:BG$1016) -> 48.06429354
C13: Net capital expenditure - Improvements / Compliance | D13: =+SUMIF($F$42:$F$1016,"Improvements / Compliance",AX$42:AX$1016) -> 62.21916504 | E13: 62.34344511 | F13: 65.24646124 | G13: 67.01167655 | H13: 58.61731743 | I13: 48.15844394 | J13: 50.58485048 | K13: 49.36049989 | L13: =+SUMIF($F$42:$F$1016,"Improvements / Compliance",BF$42:BF$1016) -> 46.39234349 | M13: =+SUMIF($F$42:$F$1016,"Improvements / Compliance",BG$42:BG$1016) -> 47.20310558
C14: Government Contributions | D14: =+AB41 -> 0 | E14: 0 | F14: 0 | G14: 0 | H14: 0 | I14: 0 | J14: 0 | K14: 0 | L14: =+AJ41 -> 0 | M14: =+AK41 -> 0
C15: Customer Contributions | D15: =+AM41 -> 46.02370218 | E15: 45.47361005 | F15: 48.35859174 | G15: 52.33605055 | H15: 50.65494445 | I15: 53.44892516 | J15: 55.20559892 | K15: 57.09218976 | L15: =+AU41 -> 59.07590714 | M15: =+AV41 -> 61.20650455
C16: Total prescribed capex | D16: =SUM(D11:D15) -> 329.8777501 | E16: 394.5310959 | F16: 458.1869594 | G16: 428.4363368 | H16: 350.9992067 | I16: 425.9729328 | J16: 454.5227023 | K16: 432.8533922 | L16: =SUM(L11:L15) -> 429.7381382 | M16: =SUM(M11:M15) -> 328.2415078
C18: By Capital Type
C19: Top 10 Major Projects | D19: =+SUMIF($H$42:$H$1016,$C$19,Q$42:Q$1016) -> 44.79711563 | E19: 86.97702212 | F19: 145.8064724 | G19: 125.5266727 | H19: 51.0823716 | I19: 81.87698728 | J19: 79.01856489 | K19: 0 | L19: =+SUMIF($H$42:$H$1016,$C$19,Y$42:Y$1016) -> 22.13806107 | M19: =+SUMIF($H$42:$H$1016,$C$19,Z$42:Z$1016) -> 0
C20: Significant projects | D20: =+SUMIF($H$42:$H$1016,$C$20,Q$42:Q$1016) -> 0 | E20: 0 | F20: 0 | G20: 0 | H20: 0 | I20: 0 | J20: 0 | K20: 0 | L20: =+SUMIF($H$42:$H$1016,$C$20,Y$42:Y$1016) -> 0 | M20: =+SUMIF($H$42:$H$1016,$C$20,Z$42:Z$1016) -> 0
C21: Capital Programs / Allocation | D21: =+SUMIF($H$42:$H$1016,$C$21,Q$42:Q$1016) -> 285.0806345 | E21: 307.5540737 | F21: 312.3804869 | G21: 302.9096641 | H21: 299.9168351 | I21: 344.0959456 | J21: 375.5041374 | K21: 432.8533922 | L21: =+SUMIF($H$42:$H$1016,$C$21,Y$42:Y$1016) -> 407.6000771 | M21: =+SUMIF($H$42:$H$1016,$C$21,Z$42:Z$1016) -> 328.2415078
C22: Other Capital expenditure | D22: =+SUMIF($H$42:$H$1016,$C$22,Q$42:Q$1016) -> 0 | E22: 0 | F22: 0 | G22: 0 | H22: 0 | I22: 0 | J22: 0 | K22: 0 | L22: =+SUMIF($H$42:$H$1016,$C$22,Y$42:Y$1016) -> 0 | M22: =+SUMIF($H$42:$H$1016,$C$22,Z$42:Z$1016) -> 0
C23: Total prescribed capex | D23: =SUM(D19:D22) -> 329.8777501 | E23: 394.5310959 | F23: 458.1869594 | G23: 428.4363368 | H23: 350.9992067 | I23: 425.9729328 | J23: 454.5227023 | K23: 432.8533922 | L23: =SUM(L19:L22) -> 429.7381382 | M23: =SUM(M19:M22) -> 328.2415078
C25: Difference | D25: =+D23-D16 -> 0 | E25: 0 | F25: 0 | G25: 0 | H25: 0 | I25: 0 | J25: 0 | K25: 0 | L25: =+L23-L16 -> 0 | M25: =+M23-M16 -> 0
C26: Test | D26: =IF(+D23=D16,0,1) -> 0 | E26: 0 | F26: 0 | G26: 0 | H26: 0 | I26: 0 | J26: 0 | K26: 0 | L26: 0 | M26: =IF(+ROUND(M23,3)=ROUND(M16,3),0,1) -> 0
C29: Total prescribed capex | D29: =+D23 -> 329.8777501 | E29: 394.5310959 | F29: 458.1869594 | G29: 428.4363368 | H29: 350.9992067 | I29: 425.9729328 | J29: 454.5227023 | K29: 432.8533922 | L29: =+L23 -> 429.7381382 | M29: =+M23 -> 328.2415078
C32: Regulatory Depreciation | D32: =+BI41 -> 5.628455387 | E32: 16.39958037 | F32: 26.25928361 | G32: 35.59363548 | H32: 39.9302446 | I32: 40.47430824 | J32: 42.95500848 | K32: 46.68482928 | L32: =+BQ41 -> 51.46324716 | M32: =+BR41 -> 55.41092074
B35: =Expenditure_Detail!$B$6 -> $m, 01/01/23
Q36: Gross capital expenditure | AB36: Government contributions | AM36: Customer contributions | AX36: Net capital expenditure | BI36: Regulatory Depreciation | BT36: Accumulated capex | CE36: Gross capital expenditure | CP36: Tax Depreciation
Q37: =Expenditure_Detail!$B$6 -> $m, 01/01/23 | AB37: =Expenditure_Detail!$B$6 -> $m, 01/01/23 | AM37: =Expenditure_Detail!$B$6 -> $m, 01/01/23 | AX37: =Expenditure_Detail!$B$6 -> $m, 01/01/23 | BI37: =Expenditure_Detail!$B$6 -> $m, 01/01/23 | BT37: =Expenditure_Detail!$B$6 -> $m, 01/01/23 | CE37: Nominal,$ | CP37: Nominal,$
Q39: 2023-24 | R39: 2024-25 | S39: 2025-26 | T39: 2026-27 | U39: 2027-28 | V39: 2028-29 | W39: 2029-30 | X39: 2030-31 | Y39: 2031-32 | Z39: 2032-33 | AB39: 2023-24 | AC39: 2024-25 | AD39: 2025-26 | AE39: 2026-27 | AF39: 2027-28 | AG39: 2028-29 | AH39: 2029-30 | AI39: 2030-31 | AJ39: 2031-32 | AK39: 2032-33 | AM39: 2023-24 | AN39: 2024-25 | AO39: 2025-26 | AP39: 2026-27 | AQ39: 2027-28 | AR39: 2028-29 | AS39: 2029-30 | AT39: 2030-31 | AU39: 2031-32 | AV39: 2032-33 | AX39: 2023-24 | AY39: 2024-25 | AZ39: 2025-26 | BA39: 2026-27 | BB39: 2027-28 | BC39: 2028-29 | BD39: 2029-30 | BE39: 2030-31 | BF39: 2031-32 | BG39: 2032-33 | BI39: 2023-24 | BJ39: 2024-25 | BK39: 2025-26 | BL39: 2026-27 | BM39: 2027-28 | BN39: 2028-29 | BO39: 2029-30 | BP39: 2030-31 | BQ39: 2031-32 | BR39: 2032-33 | BT39: 2023-24 | BU39: 2024-25 | BV39: 2025-26 | BW39: 2026-27 | BX39: 2027-28 | BY39: 2028-29 | BZ39: 2029-30 | CA39: 2030-31 | CB39: 2031-32 | CC39: 2032-33 | CE39: 2023-24 | CF39: 2024-25 | CG39: 2025-26 | CH39: 2026-27 | CI39: 2027-28 | CJ39: 2028-29 | CK39: 2029-30 | CL39: 2030-31 | CM39: 2031-32 | CN39: 2032-33 | CP39: 2023-24 | CQ39: 2024-25 | CR39: 2025-26 | CS39: 2026-27 | CT39: 2027-28 | CU39: 2028-29 | CV39: 2029-30 | CW39: 2030-31 | CX39: 2031-32 | CY39: 2032-33
BI40: 1 | BJ40: 2 | BK40: 3 | BL40: 4 | BM40: 5 | BN40: 6 | BO40: 7 | BP40: 8 | BQ40: 9 | BR40: 10 | CP40: 1 | CQ40: 2 | CR40: 3 | CS40: 4 | CT40: 5 | CU40: 6 | CV40: 7 | CW40: 8 | CX40: 9 | CY40: 10
C41: Project/program Name | E41: Service | F41: Major cost driver | G41: Asset category | H41: Capital type | J41: Reg Depreciation Method | K41: Year asset operational | L41: Asset life (Regulatory) | M41: Asset life (Tax) | Q41: =SUM(Q42:Q1016) -> 329.8777501 | R41: 394.5310959 | S41: 458.1869594 | T41: 428.4363368 | U41: 350.9992067 | V41: 425.9729328 | W41: 454.5227023 | X41: 432.8533922 | Y41: =SUM(Y42:Y1016) -> 429.7381382 | Z41: =SUM(Z42:Z1016) -> 328.2415078 | AB41: =SUM(AB42:AB1016) -> 0 | AC41: 0 | AD41: 0 | AE41: 0 | AF41: 0 | AG41: 0 | AH41: 0 | AI41: 0 | AJ41: 0 | AK41: 0 | AM41: =SUM(AM42:AM1016) -> 46.02370218 | AN41: 45.47361005 | AO41: 48.35859174 | AP41: 52.33605055 | AQ41: 50.65494445 | AR41: 53.44892516 | AS41: 55.20559892 | AT41: 57.09218976 | AU41: 59.07590714 | AV41: 61.20650455 | AX41: =SUM(AX42:AX1016) -> 283.8540479 | AY41: 349.0574858 | AZ41: 409.8283676 | BA41: 376.1002862 | BB41: 300.3442623 | BC41: 372.5240077 | BD41: 399.3171034 | BE41: 375.7612024 | BF41: 370.6622311 | BG41: 267.0350033 | BI41: =SUM(BI42:BI1016) -> 5.628455387 | BJ41: 16.39958037 | BK41: 26.25928361 | BL41: 35.59363548 | BM41: 39.9302446 | BN41: 40.47430824 | BO41: 42.95500848 | BP41: 46.68482928 | BQ41: =SUM(BQ42:BQ1016) -> 51.46324716 | BR41: =SUM(BR42:BR1016) -> 55.41092074 | BT41: =SUM(BT42:BT1016) -> 239.0569323 | BU41: 262.0804637 | BV41: 281.2683487 | BW41: 415.5501024 | BX41: 501.1313713 | BY41: 290.6470204 | BZ41: 330.4606505 | CA41: 375.7612024 | CB41: =SUM(CB42:CB1016) -> 541.4929028 | CC41: =SUM(CC42:CC1016) -> 267.0350033 | CE41: =SUM(CE42:CE1016) -> 339.7740826 | CF41: 418.5580396 | CG41: 500.6732615 | CH41: 482.2088716 | CI41: 406.9042805 | CJ41: 508.6339587 | CK41: 559.0055928 | CL41: 548.3257269 | CM41: =SUM(CM42:CM1016) -> 560.7107988 | CN41: =SUM(CN42:CN1016) -> 441.1291387 | CP41: =SUM(CP42:CP1016) -> 87.03250377 | CQ41: 105.5582783 | CR41: 122.5143258 | CS41: 138.3762977 | CT41: 148.0079821 | CU41: 152.8180422 | CV41: 162.2002937 | CW41: 173.3000031 | CX41: =SUM(CX42:CX1016) -> 185.7957169 | CY41: =SUM(CY42:CY1016) -> 196.9348074
C42: Park Orchards Community Sewerage Project | E42: Sewerage | F42: Improvements / Compliance | G42: Pipelines/network | H42: Top 10 Major Projects | J42: Straight line | K42: 2027-28 | L42: 90 | M42: 90 | Q42: 4.203562341 | R42: 6.305343511 | S42: 13.66157761 | T42: 14.71246819 | U42: 4.203562341 | V42: 0 | W42: 0 | X42: 0 | Y42: 0 | Z42: 0 | AX42: =+Q42-AB42-AM42 -> 4.203562341 | AY42: =+R42-AC42-AN42 -> 6.305343511 | AZ42: =+S42-AD42-AO42 -> 13.66157761 | BA42: =+T42-AE42-AP42 -> 14.71246819 | BB42: =+U42-AF42-AQ42 -> 4.203562341 | BC42: =+V42-AG42-AR42 -> 0 | BD42: =+W42-AH42-AS42 -> 0 | BE42: =+X42-AI42-AT42 -> 0 | BF42: =+Y42-AJ42-AU42 -> 0 | BG42: =+Z42-AK42-AV42 -> 0 | BI42: =IF($L42=0,0, IF($L42<=0.5,BT42, IF($J42="straight line", IF((LEFT(BI$39,4)*1)-INT($L42)<LEFT($BI$39,4)*1,0,((OFFSET(BT42,0,-INT($L42+0.5),1,1))/$L42)*(IF($L42-INT($L42)>0.5,$L42-0.5-INT($L42),IF($L42-INT($L42)<=0.5,$L42-0.5-INT($L42)+1,0)))) +BT42/$L42*0.5, IF($J42="Declining Balance",-$BI$38,0)))) -> 0 | BJ42: =IF($L42=0,0, IF($L42<=0.5,BU42, IF(AND($J42="straight line",$L42<1.51),(BT42-((BT42/$L42)*0.5))+BU42/$L42*0.5, IF($J42="straight line", IF((LEFT(BJ$39,4)*1)-INT($L42)<LEFT($BI$39,4)*1,0,((OFFSET(BU42,0,-INT($L42+0.5),1,1))/$L42)*(IF($L42-INT($L42)>0.5,$L42-0.5-INT($L42),IF($L42-INT($L42)<=0.5,$L42-0.5-INT($L42)+1,0)))) +BU42/$L42*0.5 +SUM(OFFSET(BU42,0,MAX(-INT($L42+(0.5-(10^-12))),-BJ$40)+1,1,MIN(INT($L42+(0.5-(10^-12))),BJ$40)-1))*1/$L42, IF($J42="Declining Balance",-$BI$38,0))))) -> 0 | BK42: =IF($L42=0,0, IF($L42<=0.5,BV42, IF(AND($J42="straight line",$L42<1.51),(BU42-((BU42/$L42)*0.5))+BV42/$L42*0.5, IF($J42="straight line", IF((LEFT(BK$39,4)*1)-INT($L42)<LEFT($BI$39,4)*1,0,((OFFSET(BV42,0,-INT($L42+0.5),1,1))/$L42)*(IF($L42-INT($L42)>0.5,$L42-0.5-INT($L42),IF($L42-INT($L42)<=0.5,$L42-0.5-INT($L42)+1,0)))) +BV42/$L42*0.5 +SUM(OFFSET(BV42,0,MAX(-INT($L42+(0.5-(10^-12))),-BK$40)+1,1,MIN(INT($L42+(0.5-(10^-12))),BK$40)-1))*1/$L42, IF($J42="Declining Balance",-$BI$38,0))))) -> 0 | BL42: =IF($L42=0,0, IF($L42<=0.5,BW42, IF(AND($J42="straight line",$L42<1.51),(BV42-((BV42/$L42)*0.5))+BW42/$L42*0.5, IF($J42="straight line", IF((LEFT(BL$39,4)*1)-INT($L42)<LEFT($BI$39,4)*1,0,((OFFSET(BW42,0,-INT($L42+0.5),1,1))/$L42)*(IF($L42-INT($L42)>0.5,$L42-0.5-INT($L42),IF($L42-INT($L42)<=0.5,$L42-0.5-INT($L42)+1,0)))) +BW42/$L42*0.5 +SUM(OFFSET(BW42,0,MAX(-INT($L42+(0.5-(10^-12))),-BL$40)+1,1,MIN(INT($L42+(0.5-(10^-12))),BL$40)-1))*1/$L42, IF($J42="Declining Balance",-$BI$38,0))))) -> 0 | BM42: =IF($L42=0,0, IF($L42<=0.5,BX42, IF(AND($J42="straight line",$L42<1.51),(BW42-((BW42/$L42)*0.5))+BX42/$L42*0.5, IF($J42="straight line", IF((LEFT(BM$39,4)*1)-INT($L42)<LEFT($BI$39,4)*1,0,((OFFSET(BX42,0,-INT($L42+0.5),1,1))/$L42)*(IF($L42-INT($L42)>0.5,$L42-0.5-INT($L42),IF($L42-INT($L42)<=0.5,$L42-0.5-INT($L42)+1,0)))) +BX42/$L42*0.5 +SUM(OFFSET(BX42,0,MAX(-INT($L42+(0.5-(10^-12))),-BM$40)+1,1,MIN(INT($L42+(0.5-(10^-12))),BM$40)-1))*1/$L42, IF($J42="Declining Balance",-$BI$38,0))))) -> 0.2393695222 | BN42: =IF($L42=0,0, IF($L42<=0.5,BY42, IF(AND($J42="straight line",$L42<1.51),(BX42-((BX42/$L42)*0.5))+BY42/$L42*0.5, IF($J42="straight line", IF((LEFT(BN$39,4)*1)-INT($L42)<LEFT($BI$39,4)*1,0,((OFFSET(BY42,0,-INT($L42+0.5),1,1))/$L42)*(IF($L42-INT($L42)>0.5,$L42-0.5-INT($L42),IF($L42-INT($L42)<=0.5,$L42-0.5-INT($L42)+1,0)))) +BY42/$L42*0.5 +SUM(OFFSET(BY42,0,MAX(-INT($L42+(0.5-(10^-12))),-BN$40)+1,1,MIN(INT($L42+(0.5-(10^-12))),BN$40)-1))*1/$L42, IF($J42="Declining Balance",-$BI$38,0))))) -> 0.4787390444 | BO42: =IF($L42=0,0, IF($L42<=0.5,BZ42, IF(AND($J42="straight line",$L42<1.51),(BY42-((BY42/$L42)*0.5))+BZ42/$L42*0.5, IF($J42="straight line", IF((LEFT(BO$39,4)*1)-INT($L42)<LEFT($BI$39,4)*1,0,((OFFSET(BZ42,0,-INT($L42+0.5),1,1))/$L42)*(IF($L42-INT($L42)>0.5,$L42-0.5-INT($L42),IF($L42-INT($L42)<=0.5,$L42-0.5-INT($L42)+1,0)))) +BZ42/$L42*0.5 +SUM(OFFSET(BZ42,0,MAX(-INT($L42+(0.5-(10^-12))),-BO$40)+1,1,MIN(INT($L42+(0.5-(10^-12))),BO$40)-1))*1/$L42, IF($J42="Declining Balance",-$BI$38,0))))) -> 0.4787390444 | BP42: =IF($L42=0,0, IF($L42<=0.5,CA42, IF(AND($J42="straight line",$L42<1.51),(BZ42-((BZ42/$L42)*0.5))+CA42/$L42*0.5, IF($J42="straight line", IF((LEFT(BP$39,4)*1)-INT($L42)<LEFT($BI$39,4)*1,0,((OFFSET(CA42,0,-INT($L42+0.5),1,1))/$L42)*(IF($L42-INT($L42)>0.5,$L42-0.5-INT($L42),IF($L42-INT($L42)<=0.5,$L42-0.5-INT($L42)+1,0)))) +CA42/$L42*0.5 +SUM(OFFSET(CA42,0,MAX(-INT($L42+(0.5-(10^-12))),-BP$40)+1,1,MIN(INT($L42+(0.5-(10^-12))),BP$40)-1))*1/$L42, IF($J42="Declining Balance",-$BI$38,0))))) -> 0.4787390444 | BQ42: =IF($L42=0,0, IF($L42<=0.5,CB42, IF(AND($J42="straight line",$L42<1.51),(CA42-((CA42/$L42)*0.5))+CB42/$L42*0.5, IF($J42="straight line", IF((LEFT(BQ$39,4)*1)-INT($L42)<LEFT($BI$39,4)*1,0,((OFFSET(CB42,0,-INT($L42+0.5),1,1))/$L42)*(IF($L42-INT($L42)>0.5,$L42-0.5-INT($L42),IF($L42-INT($L42)<=0.5,$L42-0.5-INT($L42)+1,0)))) +CB42/$L42*0.5 +SUM(OFFSET(CB42,0,MAX(-INT($L42+(0.5-(10^-12))),-BQ$40)+1,1,MIN(INT($L42+(0.5-(10^-12))),BQ$40)-1))*1/$L42, IF($J42="Declining Balance",-$BI$38,0))))) -> 0.4787390444 | BR42: =IF($L42=0,0, IF($L42<=0.5,CC42, IF(AND($J42="straight line",$L42<1.51),(CB42-((CB42/$L42)*0.5))+CC42/$L42*0.5, IF($J42="straight line", IF((LEFT(BR$39,4)*1)-INT($L42)<LEFT($BI$39,4)*1,0,((OFFSET(CC42,0,-INT($L42+0.5),1,1))/$L42)*(IF($L42-INT($L42)>0.5,$L42-0.5-INT($L42),IF($L42-INT($L42)<=0.5,$L42-0.5-INT($L42)+1,0)))) +CC42/$L42*0.5 +SUM(OFFSET(CC42,0,MAX(-INT($L42+(0.5-(10^-12))),-BR$40)+1,1,MIN(INT($L42+(0.5-(10^-12))),BR$40)-1))*1/$L42, IF($J42="Declining Balance",-$BI$38,0))))) -> 0.4787390444 | BT42: =+IF($K42="Ongoing",AX42,IF(RIGHT($K42,2)=RIGHT(BT$39,2),SUM($AX42:AX42),0)+IF(RIGHT(BT$39,2)>RIGHT($K42,2),AX42,0)) -> 0 | BU42: =+IF($K42="Ongoing",AY42,IF(RIGHT($K42,2)=RIGHT(BU$39,2),SUM($AX42:AY42),0)+IF(RIGHT(BU$39,2)>RIGHT($K42,2),AY42,0)) -> 0 | BV42: =+IF($K42="Ongoing",AZ42,IF(RIGHT($K42,2)=RIGHT(BV$39,2),SUM($AX42:AZ42),0)+IF(RIGHT(BV$39,2)>RIGHT($K42,2),AZ42,0)) -> 0 | BW42: =+IF($K42="Ongoing",BA42,IF(RIGHT($K42,2)=RIGHT(BW$39,2),SUM($AX42:BA42),0)+IF(RIGHT(BW$39,2)>RIGHT($K42,2),BA42,0)) -> 0 | BX42: =+IF($K42="Ongoing",BB42,IF(RIGHT($K42,2)=RIGHT(BX$39,2),SUM($AX42:BB42),0)+IF(RIGHT(BX$39,2)>RIGHT($K42,2),BB42,0)) -> 43.08651399 | BY42: =+IF($K42="Ongoing",BC42,IF(RIGHT($K42,2)=RIGHT(BY$39,2),SUM($AX42:BC42),0)+IF(RIGHT(BY$39,2)>RIGHT($K42,2),BC42,0)) -> 0 | BZ42: =+IF($K42="Ongoing",BD42,IF(RIGHT($K42,2)=RIGHT(BZ$39,2),SUM($AX42:BD42),0)+IF(RIGHT(BZ$39,2)>RIGHT($K42,2),BD42,0)) -> 0 | CA42: =+IF($K42="Ongoing",BE42,IF(RIGHT($K42,2)=RIGHT(CA$39,2),SUM($AX42:BE42),0)+IF(RIGHT(CA$39,2)>RIGHT($K42,2),BE42,0)) -> 0 | CB42: =+IF($K42="Ongoing",BF42,IF(RIGHT($K42,2)=RIGHT(CB$39,2),SUM($AX42:BF42),0)+IF(RIGHT(CB$39,2)>RIGHT($K42,2),BF42,0)) -> 0 | CC42: =+IF($K42="Ongoing",BG42,IF(RIGHT($K42,2)=RIGHT(CC$39,2),SUM($AX42:BG42),0)+IF(RIGHT(CC$39,2)>RIGHT($K42,2),BG42,0)) -> 0 | CE42: =+Q42*KeyAssumptionsPriceControl_FO!AC$15 -> 4.329669211 | CF42: =+R42*KeyAssumptionsPriceControl_FO!AD$15 -> 6.689338931 | CG42: =+S42*KeyAssumptionsPriceControl_FO!AE$15 -> 14.92837472 | CH42: =+T42*KeyAssumptionsPriceControl_FO!AF$15 -> 16.55901257 | CI42: =+U42*KeyAssumptionsPriceControl_FO!AG$15 -> 4.873080842 | CJ42: =+V42*KeyAssumptionsPriceControl_FO!AH$15 -> 0 | CK42: =+W42*KeyAssumptionsPriceControl_FO!AI$15 -> 0 | CL42: =+X42*KeyAssumptionsPriceControl_FO!AJ$15 -> 0 | CM42: =+Y42*KeyAssumptionsPriceControl_FO!AK$15 -> 0 | CN42: =+Z42*KeyAssumptionsPriceControl_FO!AL$15 -> 0 | CP42: =IF($M42=0,0, IF($M42<=0.5,CE42, IF($J42="straight line", IF((LEFT(CP$39,4)*1)-INT($M42)<LEFT($CP$39,4)*1,0,((OFFSET(CE42,0,-INT($M42+0.5),1,1))/$M42)*(IF($M42-INT($M42)>0.5,$M42-0.5-INT($M42),IF($M42-INT($M42)<=0.5,$M42-0.5-INT($M42)+1,0)))) +CE42/$M42*0.5, IF($J42="Declining Balance",-$CP$38,0)))) -> 0.02405371784 | CQ42: =IF($M42=0,0, IF($M42<=0.5,CF42, IF(AND($J42="straight line",$M42<1.51),(CE42-((CE42/$M42)*0.5))+CF42/$M42*0.5, IF($J42="straight line", IF((LEFT(CQ$39,4)*1)-INT($M42)<LEFT($CP$39,4)*1,0,((OFFSET(CF42,0,-INT($M42+0.5),1,1))/$M42)*(IF($M42-INT($M42)>0.5,$M42-0.5-INT($M42),IF($M42-INT($M42)<=0.5,$M42-0.5-INT($M42)+1,0)))) +CF42/$M42*0.5 +SUM(OFFSET(CF42,0,MAX(-INT($M42+(0.5-(10^-12))),-CQ$40)+1,1,MIN(INT($M42+(0.5-(10^-12))),CQ$40)-1))*1/$M42, IF($J42="Declining Balance",-$CP$38,0))))) -> 0.08527042974 | CR42: =IF($M42=0,0, IF($M42<=0.5,CG42, IF(AND($J42="straight line",$M42<1.51),(CF42-((CF42/$M42)*0.5))+CG42/$M42*0.5, IF($J42="straight line", IF((LEFT(CR$39,4)*1)-INT($M42)<LEFT($CP$39,4)*1,0,((OFFSET(CG42,0,-INT($M42+0.5),1,1))/$M42)*(IF($M42-INT($M42)>0.5,$M42-0.5-INT($M42),IF($M42-INT($M42)<=0.5,$M42-0.5-INT($M42)+1,0)))) +CG42/$M42*0.5 +SUM(OFFSET(CG42,0,MAX(-INT($M42+(0.5-(10^-12))),-CR$40)+1,1,MIN(INT($M42+(0.5-(10^-12))),CR$40)-1))*1/$M42, IF($J42="Declining Balance",-$CP$38,0))))) -> 0.2053688389 | CS42: =IF($M42=0,0, IF($M42<=0.5,CH42, IF(AND($J42="straight line",$M42<1.51),(CG42-((CG42/$M42)*0.5))+CH42/$M42*0.5, IF($J42="straight line", IF((LEFT(CS$39,4)*1)-INT($M42)<LEFT($CP$39,4)*1,0,((OFFSET(CH42,0,-INT($M42+0.5),1,1))/$M42)*(IF($M42-INT($M42)>0.5,$M42-0.5-INT($M42),IF($M42-INT($M42)<=0.5,$M42-0.5-INT($M42)+1,0)))) +CH42/$M42*0.5 +SUM(OFFSET(CH42,0,MAX(-INT($M42+(0.5-(10^-12))),-CS$40)+1,1,MIN(INT($M42+(0.5-(10^-12))),CS$40)-1))*1/$M42, IF($J42="Declining Balance",-$CP$38,0))))) -> 0.3802987682 | CT42: =IF($M42=0,0, IF($M42<=0.5,CI42, IF(AND($J42="straight line",$M42<1.51),(CH42-((CH42/$M42)*0.5))+CI42/$M42*0.5, IF($J42="straight line", IF((LEFT(CT$39,4)*1)-INT($M42)<LEFT($CP$39,4)*1,0,((OFFSET(CI42,0,-INT($M42+0.5),1,1))/$M42)*(IF($M42-INT($M42)>0.5,$M42-0.5-INT($M42),IF($M42-INT($M42)<=0.5,$M42-0.5-INT($M42)+1,0)))) +CI42/$M42*0.5 +SUM(OFFSET(CI42,0,MAX(-INT($M42+(0.5-(10^-12))),-CT$40)+1,1,MIN(INT($M42+(0.5-(10^-12))),CT$40)-1))*1/$M42, IF($J42="Declining Balance",-$CP$38,0))))) -> 0.4993659539 | CU42: =IF($M42=0,0, IF($M42<=0.5,CJ42, IF(AND($J42="straight line",$M42<1.51),(CI42-((CI42/$M42)*0.5))+CJ42/$M42*0.5, IF($J42="straight line", IF((LEFT(CU$39,4)*1)-INT($M42)<LEFT($CP$39,4)*1,0,((OFFSET(CJ42,0,-INT($M42+0.5),1,1))/$M42)*(IF($M42-INT($M42)>0.5,$M42-0.5-INT($M42),IF($M42-INT($M42)<=0.5,$M42-0.5-INT($M42)+1,0)))) +CJ42/$M42*0.5 +SUM(OFFSET(CJ42,0,MAX(-INT($M42+(0.5-(10^-12))),-CU$40)+1,1,MIN(INT($M42+(0.5-(10^-12))),CU$40)-1))*1/$M42, IF($J42="Declining Balance",-$CP$38,0))))) -> 0.5264386252 | CV42: =IF($M42=0,0, IF($M42<=0.5,CK42, IF(AND($J42="straight line",$M42<1.51),(CJ42-((CJ42/$M42)*0.5))+CK42/$M42*0.5, IF($J42="straight line", IF((LEFT(CV$39,4)*1)-INT($M42)<LEFT($CP$39,4)*1,0,((OFFSET(CK42,0,-INT($M42+0.5),1,1))/$M42)*(IF($M42-INT($M42)>0.5,$M42-0.5-INT($M42),IF($M42-INT($M42)<=0.5,$M42-0.5-INT($M42)+1,0)))) +CK42/$M42*0.5 +SUM(OFFSET(CK42,0,MAX(-INT($M42+(0.5-(10^-12))),-CV$40)+1,1,MIN(INT($M42+(0.5-(10^-12))),CV$40)-1))*1/$M42, IF($J42="Declining Balance",-$CP$38,0))))) -> 0.5264386252 | CW42: =IF($M42=0,0, IF($M42<=0.5,CL42, IF(AND($J42="straight line",$M42<1.51),(CK42-((CK42/$M42)*0.5))+CL42/$M42*0.5, IF($J42="straight line", IF((LEFT(CW$39,4)*1)-INT($M42)<LEFT($CP$39,4)*1,0,((OFFSET(CL42,0,-INT($M42+0.5),1,1))/$M42)*(IF($M42-INT($M42)>0.5,$M42-0.5-INT($M42),IF($M42-INT($M42)<=0.5,$M42-0.5-INT($M42)+1,0)))) +CL42/$M42*0.5 +SUM(OFFSET(CL42,0,MAX(-INT($M42+(0.5-(10^-12))),-CW$40)+1,1,MIN(INT($M42+(0.5-(10^-12))),CW$40)-1))*1/$M42, IF($J42="Declining Balance",-$CP$38,0))))) -> 0.5264386252 | CX42: =IF($M42=0,0, IF($M42<=0.5,CM42, IF(AND($J42="straight line",$M42<1.51),(CL42-((CL42/$M42)*0.5))+CM42/$M42*0.5, IF($J42="straight line", IF((LEFT(CX$39,4)*1)-INT($M42)<LEFT($CP$39,4)*1,0,((OFFSET(CM42,0,-INT($M42+0.5),1,1))/$M42)*(IF($M42-INT($M42)>0.5,$M42-0.5-INT($M42),IF($M42-INT($M42)<=0.5,$M42-0.5-INT($M42)+1,0)))) +CM42/$M42*0.5 +SUM(OFFSET(CM42,0,MAX(-INT($M42+(0.5-(10^-12))),-CX$40)+1,1,MIN(INT($M42+(0.5-(10^-12))),CX$40)-1))*1/$M42, IF($J42="Declining Balance",-$CP$38,0))))) -> 0.5264386252 | CY42: =IF($M42=0,0, IF($M42<=0.5,CN42, IF(AND($J42="straight line",$M42<1.51),(CM42-((CM42/$M42)*0.5))+CN42/$M42*0.5, IF($J42="straight line", IF((LEFT(CY$39,4)*1)-INT($M42)<LEFT($CP$39,4)*1,0,((OFFSET(CN42,0,-INT($M42+0.5),1,1))/$M42)*(IF($M42-INT($M42)>0.5,$M42-0.5-INT($M42),IF($M42-INT($M42)<=0.5,$M42-0.5-INT($M42)+1,0)))) +CN42/$M42*0.5 +SUM(OFFSET(CN42,0,MAX(-INT($M42+(0.5-(10^-12))),-CY$40)+1,1,MIN(INT($M42+(0.5-(10^-12))),CY$40)-1))*1/$M42, IF($J42="Declining Balance",-$CP$38,0))))) -> 0.5264386252
C43: Aurora Recycled Water Treatment Plant and Transfer System | E43: Recycled Water | F43: Growth | G43: Treatment | H43: Top 10 Major Projects | J43: Straight line | K43: 2027-28 | L43: 1000000 | M43: 50 | Q43: 4.992045547 | R43: 9.122234707 | S43: 29.65500786 | T43: 59.92094046 | U43: 30.59709975 | V43: 0 | W43: 0 | X43: 0 | Y43: 0 | Z43: 0 | AX43: 4.992045547 | AY43: 9.122234707 | AZ43: 29.65500786 | BA43: 59.92094046 | BB43: 30.59709975 | BC43: 0 | BD43: 0 | BE43: 0 | BF43: 0 | BG43: 0 | BI43: =IF($L43=0,0, IF($L43<=0.5,BT43, IF($J43="straight line", IF((LEFT(BI$39,4)*1)-INT($L43)<LEFT($BI$39,4)*1,0,((OFFSET(BT43,0,-INT($L43+0.5),1,1))/$L43)*(IF($L43-INT($L43)>0.5,$L43-0.5-INT($L43),IF($L43-INT($L43)<=0.5,$L43-0.5-INT($L43)+1,0)))) +BT43/$L43*0.5, IF($J43="Declining Balance",-$BI$38,0)))) -> 0 | BJ43: =IF($L43=0,0, IF($L43<=0.5,BU43, IF(AND($J43="straight line",$L43<1.51),(BT43-((BT43/$L43)*0.5))+BU43/$L43*0.5, IF($J43="straight line", IF((LEFT(BJ$39,4)*1)-INT($L43)<LEFT($BI$39,4)*1,0,((OFFSET(BU43,0,-INT($L43+0.5),1,1))/$L43)*(IF($L43-INT($L43)>0.5,$L43-0.5-INT($L43),IF($L43-INT($L43)<=0.5,$L43-0.5-INT($L43)+1,0)))) +BU43/$L43*0.5 +SUM(OFFSET(BU43,0,MAX(-INT($L43+(0.5-(10^-12))),-BJ$40)+1,1,MIN(INT($L43+(0.5-(10^-12))),BJ$40)-1))*1/$L43, IF($J43="Declining Balance",-$BI$38,0))))) -> 0 | BK43: 0 | BL43: 0 | BM43: 6.714366416e-05 | BN43: 0.0001342873283 | BO43: 0.0001342873283 | BP43: 0.0001342873283 | BQ43: 0.0001342873283 | BR43: 0.0001342873283 | BT43: =+IF($K43="Ongoing",AX43,IF(RIGHT($K43,2)=RIGHT(BT$39,2),SUM($AX43:AX43),0)+IF(RIGHT(BT$39,2)>RIGHT($K43,2),AX43,0)) -> 0 | BU43: =+IF($K43="Ongoing",AY43,IF(RIGHT($K43,2)=RIGHT(BU$39,2),SUM($AX43:AY43),0)+IF(RIGHT(BU$39,2)>RIGHT($K43,2),AY43,0)) -> 0 | BV43: =+IF($K43="Ongoing",AZ43,IF(RIGHT($K43,2)=RIGHT(BV$39,2),SUM($AX43:AZ43),0)+IF(RIGHT(BV$39,2)>RIGHT($K43,2),AZ43,0)) -> 0 | BW43: =+IF($K43="Ongoing",BA43,IF(RIGHT($K43,2)=RIGHT(BW$39,2),SUM($AX43:BA43),0)+IF(RIGHT(BW$39,2)>RIGHT($K43,2),BA43,0)) -> 0 | BX43: =+IF($K43="Ongoing",BB43,IF(RIGHT($K43,2)=RIGHT(BX$39,2),SUM($AX43:BB43),0)+IF(RIGHT(BX$39,2)>RIGHT($K43,2),BB43,0)) -> 134.2873283 | BY43: =+IF($K43="Ongoing",BC43,IF(RIGHT($K43,2)=RIGHT(BY$39,2),SUM($AX43:BC43),0)+IF(RIGHT(BY$39,2)>RIGHT($K43,2),BC43,0)) -> 0 | BZ43: =+IF($K43="Ongoing",BD43,IF(RIGHT($K43,2)=RIGHT(BZ$39,2),SUM($AX43:BD43),0)+IF(RIGHT(BZ$39,2)>RIGHT($K43,2),BD43,0)) -> 0 | CA43: =+IF($K43="Ongoing",BE43,IF(RIGHT($K43,2)=RIGHT(CA$39,2),SUM($AX43:BE43),0)+IF(RIGHT(CA$39,2)>RIGHT($K43,2),BE43,0)) -> 0 | CB43: =+IF($K43="Ongoing",BF43,IF(RIGHT($K43,2)=RIGHT(CB$39,2),SUM($AX43:BF43),0)+IF(RIGHT(CB$39,2)>RIGHT($K43,2),BF43,0)) -> 0 | CC43: =+IF($K43="Ongoing",BG43,IF(RIGHT($K43,2)=RIGHT(CC$39,2),SUM($AX43:BG43),0)+IF(RIGHT(CC$39,2)>RIGHT($K43,2),BG43,0)) -> 0 | CE43: =+Q43*KeyAssumptionsPriceControl_FO!AC$15 -> 5.141806913 | CF43: =+R43*KeyAssumptionsPriceControl_FO!AD$15 -> 9.677778801 | CG43: =+S43*KeyAssumptionsPriceControl_FO!AE$15 -> 32.40482778 | CH43: =+T43*KeyAssumptionsPriceControl_FO!AF$15 -> 67.44154639 | CI43: =+U43*KeyAssumptionsPriceControl_FO!AG$15 -> 35.47042448 | CJ43: =+V43*KeyAssumptionsPriceControl_FO!AH$15 -> 0 | CK43: =+W43*KeyAssumptionsPriceControl_FO!AI$15 -> 0 | CL43: =+X43*KeyAssumptionsPriceControl_FO!AJ$15 -> 0 | CM43: =+Y43*KeyAssumptionsPriceControl_FO!AK$15 -> 0 | CN43: =+Z43*KeyAssumptionsPriceControl_FO!AL$15 -> 0 | CP43: 0.05141806913 | CQ43: 0.1996139263 | CR43: 0.6204399921 | CS43: 1.618903734 | CT43: 2.648023442 | CU43: 3.002727687 | CV43: 3.002727687 | CW43: 3.002727687 | CX43: 3.002727687 | CY43: 3.002727687
C44: Doncaster Hill Recycled Water Project | E44: Recycled Water | F44: Growth | G44: Treatment | H44: Top 10 Major Projects | J44: Straight line | K44: 2026-27 | L44: 1000000 | M44: 50 | Q44: 3.642386768 | R44: 17.08853181 | S44: 35.59051145 | T44: 6.226526718 | U44: 0 | V44: 0 | W44: 0 | X44: 0 | Y44: 0 | Z44: 0 | AX44: 3.642386768 | AY44: 17.08853181 | AZ44: 35.59051145 | BA44: 6.226526718 | BB44: 0 | BC44: 0 | BD44: 0 | BE44: 0 | BF44: 0 | BG44: 0 | BI44: 0 | BJ44: 0 | BK44: 0 | BL44: 3.127397837e-05 | BM44: 6.254795674e-05 | BN44: 6.254795674e-05 | BO44: 6.254795674e-05 | BP44: 6.254795674e-05 | BQ44: 6.254795674e-05 | BR44: 6.254795674e-05 | BT44: =+IF($K44="Ongoing",AX44,IF(RIGHT($K44,2)=RIGHT(BT$39,2),SUM($AX44:AX44),0)+IF(RIGHT(BT$39,2)>RIGHT($K44,2),AX44,0)) -> 0 | BU44: =+IF($K44="Ongoing",AY44,IF(RIGHT($K44,2)=RIGHT(BU$39,2),SUM($AX44:AY44),0)+IF(RIGHT(BU$39,2)>RIGHT($K44,2),AY44,0)) -> 0 | BV44: =+IF($K44="Ongoing",AZ44,IF(RIGHT($K44,2)=RIGHT(BV$39,2),SUM($AX44:AZ44),0)+IF(RIGHT(BV$39,2)>RIGHT($K44,2),AZ44,0)) -> 0 | BW44: =+IF($K44="Ongoing",BA44,IF(RIGHT($K44,2)=RIGHT(BW$39,2),SUM($AX44:BA44),0)+IF(RIGHT(BW$39,2)>RIGHT($K44,2),BA44,0)) -> 62.54795674 | BX44: =+IF($K44="Ongoing",BB44,IF(RIGHT($K44,2)=RIGHT(BX$39,2),SUM($AX44:BB44),0)+IF(RIGHT(BX$39,2)>RIGHT($K44,2),BB44,0)) -> 0 | BY44: =+IF($K44="Ongoing",BC44,IF(RIGHT($K44,2)=RIGHT(BY$39,2),SUM($AX44:BC44),0)+IF(RIGHT(BY$39,2)>RIGHT($K44,2),BC44,0)) -> 0 | BZ44: =+IF($K44="Ongoing",BD44,IF(RIGHT($K44,2)=RIGHT(BZ$39,2),SUM($AX44:BD44),0)+IF(RIGHT(BZ$39,2)>RIGHT($K44,2),BD44,0)) -> 0 | CA44: =+IF($K44="Ongoing",BE44,IF(RIGHT($K44,2)=RIGHT(CA$39,2),SUM($AX44:BE44),0)+IF(RIGHT(CA$39,2)>RIGHT($K44,2),BE44,0)) -> 0 | CB44: =+IF($K44="Ongoing",BF44,IF(RIGHT($K44,2)=RIGHT(CB$39,2),SUM($AX44:BF44),0)+IF(RIGHT(CB$39,2)>RIGHT($K44,2),BF44,0)) -> 0 | CC44: =+IF($K44="Ongoing",BG44,IF(RIGHT($K44,2)=RIGHT(CC$39,2),SUM($AX44:BG44),0)+IF(RIGHT(CC$39,2)>RIGHT($K44,2),BG44,0)) -> 0 | CE44: =+Q44*KeyAssumptionsPriceControl_FO!AC$15 -> 3.751658372 | CF44: =+R44*KeyAssumptionsPriceControl_FO!AD$15 -> 18.12922339 | CG44: =+S44*KeyAssumptionsPriceControl_FO!AE$15 -> 38.89071281 | CH44: =+T44*KeyAssumptionsPriceControl_FO!AF$15 -> 7.008010676 | CI44: =+U44*KeyAssumptionsPriceControl_FO!AG$15 -> 0 | CJ44: =+V44*KeyAssumptionsPriceControl_FO!AH$15 -> 0 | CK44: =+W44*KeyAssumptionsPriceControl_FO!AI$15 -> 0 | CL44: =+X44*KeyAssumptionsPriceControl_FO!AJ$15 -> 0 | CM44: =+Y44*KeyAssumptionsPriceControl_FO!AK$15 -> 0 | CN44: =+Z44*KeyAssumptionsPriceControl_FO!AL$15 -> 0 | CP44: 0.03751658372 | CQ44: 0.2563254014 | CR44: 0.8265247634 | CS44: 1.285511998 | CT44: 1.355592105 | CU44: 1.355592105 | CV44: 1.355592105 | CW44: 1.355592105 | CX44: 1.355592105 | CY44: 1.355592105
C45: Craigieburn Storage and Transfer Hub Stage 3 | E45: Sewerage | F45: Growth | G45: Pipelines/network | H45: Top 10 Major Projects | J45: Straight line | K45: 2031-32 | L45: 1000000 | M45: 100 | Q45: 12.57390585 | R45: 3.508923664 | S45: 0 | T45: 0.04729007634 | U45: 3.967111959 | V45: 81.87698728 | W45: 68.85645293 | X45: 0 | Y45: 11.62915522 | Z45: 0 | AX45: 12.57390585 | AY45: 3.508923664 | AZ45: 0 | BA45: 0.04729007634 | BB45: 3.967111959 | BC45: 81.87698728 | BD45: 68.85645293 | BE45: 0 | BF45: 11.62915522 | BG45: 0 | BI45: 0 | BJ45: 0 | BK45: 0 | BL45: 0 | BM45: 0 | BN45: 0 | BO45: 0 | BP45: 0 | BQ45: 9.122991349e-05 | BR45: 0.000182459827 | BT45: =+IF($K45="Ongoing",AX45,IF(RIGHT($K45,2)=RIGHT(BT$39,2),SUM($AX45:AX45),0)+IF(RIGHT(BT$39,2)>RIGHT($K45,2),AX45,0)) -> 0 | BU45: =+IF($K45="Ongoing",AY45,IF(RIGHT($K45,2)=RIGHT(BU$39,2),SUM($AX45:AY45),0)+IF(RIGHT(BU$39,2)>RIGHT($K45,2),AY45,0)) -> 0 | BV45: =+IF($K45="Ongoing",AZ45,IF(RIGHT($K45,2)=RIGHT(BV$39,2),SUM($AX45:AZ45),0)+IF(RIGHT(BV$39,2)>RIGHT($K45,2),AZ45,0)) -> 0 | BW45: =+IF($K45="Ongoing",BA45,IF(RIGHT($K45,2)=RIGHT(BW$39,2),SUM($AX45:BA45),0)+IF(RIGHT(BW$39,2)>RIGHT($K45,2),BA45,0)) -> 0 | BX45: =+IF($K45="Ongoing",BB45,IF(RIGHT($K45,2)=RIGHT(BX$39,2),SUM($AX45:BB45),0)+IF(RIGHT(BX$39,2)>RIGHT($K45,2),BB45,0)) -> 0 | BY45: =+IF($K45="Ongoing",BC45,IF(RIGHT($K45,2)=RIGHT(BY$39,2),SUM($AX45:BC45),0)+IF(RIGHT(BY$39,2)>RIGHT($K45,2),BC45,0)) -> 0 | BZ45: =+IF($K45="Ongoing",BD45,IF(RIGHT($K45,2)=RIGHT(BZ$39,2),SUM($AX45:BD45),0)+IF(RIGHT(BZ$39,2)>RIGHT($K45,2),BD45,0)) -> 0 | CA45: =+IF($K45="Ongoing",BE45,IF(RIGHT($K45,2)=RIGHT(CA$39,2),SUM($AX45:BE45),0)+IF(RIGHT(CA$39,2)>RIGHT($K45,2),BE45,0)) -> 0 | CB45: =+IF($K45="Ongoing",BF45,IF(RIGHT($K45,2)=RIGHT(CB$39,2),SUM($AX45:BF45),0)+IF(RIGHT(CB$39,2)>RIGHT($K45,2),BF45,0)) -> 182.459827 | CC45: =+IF($K45="Ongoing",BG45,IF(RIGHT($K45,2)=RIGHT(CC$39,2),SUM($AX45:BG45),0)+IF(RIGHT(CC$39,2)>RIGHT($K45,2),BG45,0)) -> 0 | CE45: =+Q45*KeyAssumptionsPriceControl_FO!AC$15 -> 12.95112303 | CF45: =+R45*KeyAssumptionsPriceControl_FO!AD$15 -> 3.722617115 | CG45: =+S45*KeyAssumptionsPriceControl_FO!AE$15 -> 0 | CH45: =+T45*KeyAssumptionsPriceControl_FO!AF$15 -> 0.05322539754 | CI45: =+U45*KeyAssumptionsPriceControl_FO!AG$15 -> 4.598970044 | CJ45: =+V45*KeyAssumptionsPriceControl_FO!AH$15 -> 97.76540469 | CK45: =+W45*KeyAssumptionsPriceControl_FO!AI$15 -> 84.68475192 | CL45: =+X45*KeyAssumptionsPriceControl_FO!AJ$15 -> 0 | CM45: =+Y45*KeyAssumptionsPriceControl_FO!AK$15 -> 15.17340988 | CN45: =+Z45*KeyAssumptionsPriceControl_FO!AL$15 -> 0 | CP45: 0.06475561514 | CQ45: 0.1481243159 | CR45: 0.1667374014 | CS45: 0.1670035284 | CT45: 0.1902645056 | CU45: 0.7020863793 | CV45: 1.614337162 | CW45: 2.037760922 | CX45: 2.113627971 | CY45: 2.189495021
C46: Love Branch Sewer - Stage 3 | E46: Sewerage | F46: Growth | G46: Pipelines/network | H46: Top 10 Major Projects | J46: Straight line | K46: 2025-26 | L46: 1000000 | M46: 50 | Q46: 7.054083789 | R46: 8.616033851 | S46: 1.576335878 | T46: 0 | U46: 0 | V46: 0 | W46: 0 | X46: 0 | Y46: 0 | Z46: 0 | AX46: 7.054083789 | AY46: 8.616033851 | AZ46: 1.576335878 | BA46: 0 | BB46: 0 | BC46: 0 | BD46: 0 | BE46: 0 | BF46: 0 | BG46: 0 | BI46: 0 | BJ46: 0 | BK46: 8.623226759e-06 | BL46: 1.724645352e-05 | BM46: 1.724645352e-05 | BN46: 1.724645352e-05 | BO46: 1.724645352e-05 | BP46: 1.724645352e-05 | BQ46: 1.724645352e-05 | BR46: 1.724645352e-05 | BT46: =+IF($K46="Ongoing",AX46,IF(RIGHT($K46,2)=RIGHT(BT$39,2),SUM($AX46:AX46),0)+IF(RIGHT(BT$39,2)>RIGHT($K46,2),AX46,0)) -> 0 | BU46: =+IF($K46="Ongoing",AY46,IF(RIGHT($K46,2)=RIGHT(BU$39,2),SUM($AX46:AY46),0)+IF(RIGHT(BU$39,2)>RIGHT($K46,2),AY46,0)) -> 0 | BV46: =+IF($K46="Ongoing",AZ46,IF(RIGHT($K46,2)=RIGHT(BV$39,2),SUM($AX46:AZ46),0)+IF(RIGHT(BV$39,2)>RIGHT($K46,2),AZ46,0)) -> 17.24645352 | BW46: =+IF($K46="Ongoing",BA46,IF(RIGHT($K46,2)=RIGHT(BW$39,2),SUM($AX46:BA46),0)+IF(RIGHT(BW$39,2)>RIGHT($K46,2),BA46,0)) -> 0 | BX46: =+IF($K46="Ongoing",BB46,IF(RIGHT($K46,2)=RIGHT(BX$39,2),SUM($AX46:BB46),0)+IF(RIGHT(BX$39,2)>RIGHT($K46,2),BB46,0)) -> 0 | BY46: =+IF($K46="Ongoing",BC46,IF(RIGHT($K46,2)=RIGHT(BY$39,2),SUM($AX46:BC46),0)+IF(RIGHT(BY$39,2)>RIGHT($K46,2),BC46,0)) -> 0 | BZ46: =+IF($K46="Ongoing",BD46,IF(RIGHT($K46,2)=RIGHT(BZ$39,2),SUM($AX46:BD46),0)+IF(RIGHT(BZ$39,2)>RIGHT($K46,2),BD46,0)) -> 0 | CA46: =+IF($K46="Ongoing",BE46,IF(RIGHT($K46,2)=RIGHT(CA$39,2),SUM($AX46:BE46),0)+IF(RIGHT(CA$39,2)>RIGHT($K46,2),BE46,0)) -> 0 | CB46: =+IF($K46="Ongoing",BF46,IF(RIGHT($K46,2)=RIGHT(CB$39,2),SUM($AX46:BF46),0)+IF(RIGHT(CB$39,2)>RIGHT($K46,2),BF46,0)) -> 0 | CC46: =+IF($K46="Ongoing",BG46,IF(RIGHT($K46,2)=RIGHT(CC$39,2),SUM($AX46:BG46),0)+IF(RIGHT(CC$39,2)>RIGHT($K46,2),BG46,0)) -> 0 | CE46: =+Q46*KeyAssumptionsPriceControl_FO!AC$15 -> 7.265706302 | CF46: =+R46*KeyAssumptionsPriceControl_FO!AD$15 -> 9.140750312 | CG46: =+S46*KeyAssumptionsPriceControl_FO!AE$15 -> 1.722504775 | CH46: =+T46*KeyAssumptionsPriceControl_FO!AF$15 -> 0 | CI46: =+U46*KeyAssumptionsPriceControl_FO!AG$15 -> 0 | CJ46: =+V46*KeyAssumptionsPriceControl_FO!AH$15 -> 0 | CK46: =+W46*KeyAssumptionsPriceControl_FO!AI$15 -> 0 | CL46: =+X46*KeyAssumptionsPriceControl_FO!AJ$15 -> 0 | CM46: =+Y46*KeyAssumptionsPriceControl_FO!AK$15 -> 0 | CN46: =+Z46*KeyAssumptionsPriceControl_FO!AL$15 -> 0 | CP46: 0.07265706302 | CQ46: 0.2367216292 | CR46: 0.34535418 | CS46: 0.3625792278 | CT46: 0.3625792278 | CU46: 0.3625792278 | CV46: 0.3625792278 | CW46: 0.3625792278 | CX46: 0.3625792278 | CY46: 0.3625792278
C47: Wallan East Branch Sewer Stage 1 | E47: Sewerage | F47: Growth | G47: Pipelines/network | H47: Top 10 Major Projects | J47: Straight line | K47: 2026-27 | L47: 1000000 | M47: 100 | Q47: 1.719209301 | R47: 1.903204885 | S47: 6.70850804 | T47: 7.96098089 | U47: 2.10178117 | V47: 0 | W47: 0 | X47: 0 | Y47: 0 | Z47: 0 | AX47: 1.719209301 | AY47: 1.903204885 | AZ47: 6.70850804 | BA47: 7.96098089 | BB47: 2.10178117 | BC47: 0 | BD47: 0 | BE47: 0 | BF47: 0 | BG47: 0 | BI47: 0 | BJ47: 0 | BK47: 0 | BL47: 9.145951558e-06 | BM47: 1.93427937e-05 | BN47: 2.039368429e-05 | BO47: 2.039368429e-05 | BP47: 2.039368429e-05 | BQ47: 2.039368429e-05 | BR47: 2.039368429e-05 | BT47: =+IF($K47="Ongoing",AX47,IF(RIGHT($K47,2)=RIGHT(BT$39,2),SUM($AX47:AX47),0)+IF(RIGHT(BT$39,2)>RIGHT($K47,2),AX47,0)) -> 0 | BU47: =+IF($K47="Ongoing",AY47,IF(RIGHT($K47,2)=RIGHT(BU$39,2),SUM($AX47:AY47),0)+IF(RIGHT(BU$39,2)>RIGHT($K47,2),AY47,0)) -> 0 | BV47: =+IF($K47="Ongoing",AZ47,IF(RIGHT($K47,2)=RIGHT(BV$39,2),SUM($AX47:AZ47),0)+IF(RIGHT(BV$39,2)>RIGHT($K47,2),AZ47,0)) -> 0 | BW47: =+IF($K47="Ongoing",BA47,IF(RIGHT($K47,2)=RIGHT(BW$39,2),SUM($AX47:BA47),0)+IF(RIGHT(BW$39,2)>RIGHT($K47,2),BA47,0)) -> 18.29190312 | BX47: =+IF($K47="Ongoing",BB47,IF(RIGHT($K47,2)=RIGHT(BX$39,2),SUM($AX47:BB47),0)+IF(RIGHT(BX$39,2)>RIGHT($K47,2),BB47,0)) -> 2.10178117 | BY47: =+IF($K47="Ongoing",BC47,IF(RIGHT($K47,2)=RIGHT(BY$39,2),SUM($AX47:BC47),0)+IF(RIGHT(BY$39,2)>RIGHT($K47,2),BC47,0)) -> 0 | BZ47: =+IF($K47="Ongoing",BD47,IF(RIGHT($K47,2)=RIGHT(BZ$39,2),SUM($AX47:BD47),0)+IF(RIGHT(BZ$39,2)>RIGHT($K47,2),BD47,0)) -> 0 | CA47: =+IF($K47="Ongoing",BE47,IF(RIGHT($K47,2)=RIGHT(CA$39,2),SUM($AX47:BE47),0)+IF(RIGHT(CA$39,2)>RIGHT($K47,2),BE47,0)) -> 0 | CB47: =+IF($K47="Ongoing",BF47,IF(RIGHT($K47,2)=RIGHT(CB$39,2),SUM($AX47:BF47),0)+IF(RIGHT(CB$39,2)>RIGHT($K47,2),BF47,0)) -> 0 | CC47: =+IF($K47="Ongoing",BG47,IF(RIGHT($K47,2)=RIGHT(CC$39,2),SUM($AX47:BG47),0)+IF(RIGHT(CC$39,2)>RIGHT($K47,2),BG47,0)) -> 0 | CE47: =+Q47*KeyAssumptionsPriceControl_FO!AC$15 -> 1.77078558 | CF47: =+R47*KeyAssumptionsPriceControl_FO!AD$15 -> 2.019110063 | CG47: =+S47*KeyAssumptionsPriceControl_FO!AE$15 -> 7.330567865 | CH47: =+T47*KeyAssumptionsPriceControl_FO!AF$15 -> 8.960154128 | CI47: =+U47*KeyAssumptionsPriceControl_FO!AG$15 -> 2.436540421 | CJ47: =+V47*KeyAssumptionsPriceControl_FO!AH$15 -> 0 | CK47: =+W47*KeyAssumptionsPriceControl_FO!AI$15 -> 0 | CL47: =+X47*KeyAssumptionsPriceControl_FO!AJ$15 -> 0 | CM47: =+Y47*KeyAssumptionsPriceControl_FO!AK$15 -> 0 | CN47: =+Z47*KeyAssumptionsPriceControl_FO!AL$15 -> 0 | CP47: 0.0088539279 | CQ47: 0.02780340611 | CR47: 0.07455179576 | CS47: 0.1560054057 | CT47: 0.2129888785 | CU47: 0.2251715806 | CV47: 0.2251715806 | CW47: 0.2251715806 | CX47: 0.2251715806 | CY47: 0.2251715806
C48: Eltham Main Sewer Rehabilitation | E48: Sewerage | F48: Renewals | G48: Pipelines/network | H48: Top 10 Major Projects | J48: Straight line | K48: 2026-27 | L48: 50 | M48: 50 | Q48: 0 | R48: 0 | S48: 1.050890585 | T48: 7.944732824 | U48: 0 | V48: 0 | W48: 10.16211196 | X48: 0 | Y48: 10.50890585 | Z48: 0 | AX48: 0 | AY48: 0 | AZ48: 1.050890585 | BA48: 7.944732824 | BB48: 0 | BC48: 0 | BD48: 10.16211196 | BE48: 0 | BF48: 10.50890585 | BG48: 0 | BI48: 0 | BJ48: 0 | BK48: 0 | BL48: 0.0899562341 | BM48: 0.1799124682 | BN48: 0.1799124682 | BO48: 0.2815335878 | BP48: 0.3831547074 | BQ48: 0.4882437659 | BR48: 0.5933328244 | BT48: =+IF($K48="Ongoing",AX48,IF(RIGHT($K48,2)=RIGHT(BT$39,2),SUM($AX48:AX48),0)+IF(RIGHT(BT$39,2)>RIGHT($K48,2),AX48,0)) -> 0 | BU48: =+IF($K48="Ongoing",AY48,IF(RIGHT($K48,2)=RIGHT(BU$39,2),SUM($AX48:AY48),0)+IF(RIGHT(BU$39,2)>RIGHT($K48,2),AY48,0)) -> 0 | BV48: =+IF($K48="Ongoing",AZ48,IF(RIGHT($K48,2)=RIGHT(BV$39,2),SUM($AX48:AZ48),0)+IF(RIGHT(BV$39,2)>RIGHT($K48,2),AZ48,0)) -> 0 | BW48: =+IF($K48="Ongoing",BA48,IF(RIGHT($K48,2)=RIGHT(BW$39,2),SUM($AX48:BA48),0)+IF(RIGHT(BW$39,2)>RIGHT($K48,2),BA48,0)) -> 8.99562341 | BX48: =+IF($K48="Ongoing",BB48,IF(RIGHT($K48,2)=RIGHT(BX$39,2),SUM($AX48:BB48),0)+IF(RIGHT(BX$39,2)>RIGHT($K48,2),BB48,0)) -> 0 | BY48: =+IF($K48="Ongoing",BC48,IF(RIGHT($K48,2)=RIGHT(BY$39,2),SUM($AX48:BC48),0)+IF(RIGHT(BY$39,2)>RIGHT($K48,2),BC48,0)) -> 0 | BZ48: =+IF($K48="Ongoing",BD48,IF(RIGHT($K48,2)=RIGHT(BZ$39,2),SUM($AX48:BD48),0)+IF(RIGHT(BZ$39,2)>RIGHT($K48,2),BD48,0)) -> 10.16211196 | CA48: =+IF($K48="Ongoing",BE48,IF(RIGHT($K48,2)=RIGHT(CA$39,2),SUM($AX48:BE48),0)+IF(RIGHT(CA$39,2)>RIGHT($K48,2),BE48,0)) -> 0 | CB48: =+IF($K48="Ongoing",BF48,IF(RIGHT($K48,2)=RIGHT(CB$39,2),SUM($AX48:BF48),0)+IF(RIGHT(CB$39,2)>RIGHT($K48,2),BF48,0)) -> 10.50890585 | CC48: =+IF($K48="Ongoing",BG48,IF(RIGHT($K48,2)=RIGHT(CC$39,2),SUM($AX48:BG48),0)+IF(RIGHT(CC$39,2)>RIGHT($K48,2),BG48,0)) -> 0 | CE48: =+Q48*KeyAssumptionsPriceControl_FO!AC$15 -> 0 | CF48: =+R48*KeyAssumptionsPriceControl_FO!AD$15 -> 0 | CG48: =+S48*KeyAssumptionsPriceControl_FO!AE$15 -> 1.148336517 | CH48: =+T48*KeyAssumptionsPriceControl_FO!AF$15 -> 8.941866787 | CI48: =+U48*KeyAssumptionsPriceControl_FO!AG$15 -> 0 | CJ48: =+V48*KeyAssumptionsPriceControl_FO!AH$15 -> 0 | CK48: =+W48*KeyAssumptionsPriceControl_FO!AI$15 -> 12.49811592 | CL48: =+X48*KeyAssumptionsPriceControl_FO!AJ$15 -> 0 | CM48: =+Y48*KeyAssumptionsPriceControl_FO!AK$15 -> 13.71173855 | CN48: =+Z48*KeyAssumptionsPriceControl_FO!AL$15 -> 0 | CP48: 0 | CQ48: 0 | CR48: 0.01148336517 | CS48: 0.1123853982 | CT48: 0.2018040661 | CU48: 0.2018040661 | CV48: 0.3267852252 | CW48: 0.4517663844 | CX48: 0.5888837699 | CY48: 0.7260011553
C49: Healesville Sewage Treatment Plant Capacity Upgrade | E49: Sewerage | F49: Improvements / Compliance | G49: Treatment | H49: Top 10 Major Projects | J49: Straight line | K49: 2027-28 | L49: 50 | M49: 50 | Q49: 0.6462977099 | R49: 6.473631334 | S49: 9.236277354 | T49: 9.108068702 | U49: 3.073445115 | V49: 0 | W49: 0 | X49: 0 | Y49: 0 | Z49: 0 | AX49: 0.6462977099 | AY49: 6.473631334 | AZ49: 9.236277354 | BA49: 9.108068702 | BB49: 3.073445115 | BC49: 0 | BD49: 0 | BE49: 0 | BF49: 0 | BG49: 0 | BI49: 0 | BJ49: 0 | BK49: 0 | BL49: 0 | BM49: 0.2853772021 | BN49: 0.5707544043 | BO49: 0.5707544043 | BP49: 0.5707544043 | BQ49: 0.5707544043 | BR49: 0.5707544043 | BT49: =+IF($K49="Ongoing",AX49,IF(RIGHT($K49,2)=RIGHT(BT$39,2),SUM($AX49:AX49),0)+IF(RIGHT(BT$39,2)>RIGHT($K49,2),AX49,0)) -> 0 | BU49: =+IF($K49="Ongoing",AY49,IF(RIGHT($K49,2)=RIGHT(BU$39,2),SUM($AX49:AY49),0)+IF(RIGHT(BU$39,2)>RIGHT($K49,2),AY49,0)) -> 0 | BV49: =+IF($K49="Ongoing",AZ49,IF(RIGHT($K49,2)=RIGHT(BV$39,2),SUM($AX49:AZ49),0)+IF(RIGHT(BV$39,2)>RIGHT($K49,2),AZ49,0)) -> 0 | BW49: =+IF($K49="Ongoing",BA49,IF(RIGHT($K49,2)=RIGHT(BW$39,2),SUM($AX49:BA49),0)+IF(RIGHT(BW$39,2)>RIGHT($K49,2),BA49,0)) -> 0 | BX49: =+IF($K49="Ongoing",BB49,IF(RIGHT($K49,2)=RIGHT(BX$39,2),SUM($AX49:BB49),0)+IF(RIGHT(BX$39,2)>RIGHT($K49,2),BB49,0)) -> 28.53772021 | BY49: =+IF($K49="Ongoing",BC49,IF(RIGHT($K49,2)=RIGHT(BY$39,2),SUM($AX49:BC49),0)+IF(RIGHT(BY$39,2)>RIGHT($K49,2),BC49,0)) -> 0 | BZ49: =+IF($K49="Ongoing",BD49,IF(RIGHT($K49,2)=RIGHT(BZ$39,2),SUM($AX49:BD49),0)+IF(RIGHT(BZ$39,2)>RIGHT($K49,2),BD49,0)) -> 0 | CA49: =+IF($K49="Ongoing",BE49,IF(RIGHT($K49,2)=RIGHT(CA$39,2),SUM($AX49:BE49),0)+IF(RIGHT(CA$39,2)>RIGHT($K49,2),BE49,0)) -> 0 | CB49: =+IF($K49="Ongoing",BF49,IF(RIGHT($K49,2)=RIGHT(CB$39,2),SUM($AX49:BF49),0)+IF(RIGHT(CB$39,2)>RIGHT($K49,2),BF49,0)) -> 0 | CC49: =+IF($K49="Ongoing",BG49,IF(RIGHT($K49,2)=RIGHT(CC$39,2),SUM($AX49:BG49),0)+IF(RIGHT(CC$39,2)>RIGHT($K49,2),BG49,0)) -> 0 | CE49: =+Q49*KeyAssumptionsPriceControl_FO!AC$15 -> 0.6656866412 | CF49: =+R49*KeyAssumptionsPriceControl_FO!AD$15 -> 6.867875482 | CG49: =+S49*KeyAssumptionsPriceControl_FO!AE$15 -> 10.09272964 | CH49: =+T49*KeyAssumptionsPriceControl_FO!AF$15 -> 10.25121157 | CI49: =+U49*KeyAssumptionsPriceControl_FO!AG$15 -> 3.56296524 | CJ49: =+V49*KeyAssumptionsPriceControl_FO!AH$15 -> 0 | CK49: =+W49*KeyAssumptionsPriceControl_FO!AI$15 -> 0 | CL49: =+X49*KeyAssumptionsPriceControl_FO!AJ$15 -> 0 | CM49: =+Y49*KeyAssumptionsPriceControl_FO!AK$15 -> 0 | CN49: =+Z49*KeyAssumptionsPriceControl_FO!AL$15 -> 0 | CP49: 0.006656866412 | CQ49: 0.08199248764 | CR49: 0.2515985389 | CS49: 0.455037951 | CT49: 0.5931797191 | CU49: 0.6288093715 | CV49: 0.6288093715 | CW49: 0.6288093715 | CX49: 0.6288093715 | CY49: 0.6288093715
C50: M4 Distribution Main Project | E50: Water | F50: Renewals | G50: Pipelines/network | H50: Top 10 Major Projects | J50: Straight line | K50: 2027-28 | L50: 1000000 | M50: 100 | Q50: 4.079640272 | R50: 8.159281595 | S50: 12.23892187 | T50: 12.23892187 | U50: 7.139371265 | V50: 0 | W50: 0 | X50: 0 | Y50: 0 | Z50: 0 | AX50: 4.079640272 | AY50: 8.159281595 | AZ50: 12.23892187 | BA50: 12.23892187 | BB50: 7.139371265 | BC50: 0 | BD50: 0 | BE50: 0 | BF50: 0 | BG50: 0 | BI50: 0 | BJ50: 0 | BK50: 0 | BL50: 0 | BM50: 2.192806843e-05 | BN50: 4.385613687e-05 | BO50: 4.385613687e-05 | BP50: 4.385613687e-05 | BQ50: 4.385613687e-05 | BR50: 4.385613687e-05 | BT50: =+IF($K50="Ongoing",AX50,IF(RIGHT($K50,2)=RIGHT(BT$39,2),SUM($AX50:AX50),0)+IF(RIGHT(BT$39,2)>RIGHT($K50,2),AX50,0)) -> 0 | BU50: =+IF($K50="Ongoing",AY50,IF(RIGHT($K50,2)=RIGHT(BU$39,2),SUM($AX50:AY50),0)+IF(RIGHT(BU$39,2)>RIGHT($K50,2),AY50,0)) -> 0 | BV50: =+IF($K50="Ongoing",AZ50,IF(RIGHT($K50,2)=RIGHT(BV$39,2),SUM($AX50:AZ50),0)+IF(RIGHT(BV$39,2)>RIGHT($K50,2),AZ50,0)) -> 0 | BW50: =+IF($K50="Ongoing",BA50,IF(RIGHT($K50,2)=RIGHT(BW$39,2),SUM($AX50:BA50),0)+IF(RIGHT(BW$39,2)>RIGHT($K50,2),BA50,0)) -> 0 | BX50: =+IF($K50="Ongoing",BB50,IF(RIGHT($K50,2)=RIGHT(BX$39,2),SUM($AX50:BB50),0)+IF(RIGHT(BX$39,2)>RIGHT($K50,2),BB50,0)) -> 43.85613687 | BY50: =+IF($K50="Ongoing",BC50,IF(RIGHT($K50,2)=RIGHT(BY$39,2),SUM($AX50:BC50),0)+IF(RIGHT(BY$39,2)>RIGHT($K50,2),BC50,0)) -> 0 | BZ50: =+IF($K50="Ongoing",BD50,IF(RIGHT($K50,2)=RIGHT(BZ$39,2),SUM($AX50:BD50),0)+IF(RIGHT(BZ$39,2)>RIGHT($K50,2),BD50,0)) -> 0 | CA50: =+IF($K50="Ongoing",BE50,IF(RIGHT($K50,2)=RIGHT(CA$39,2),SUM($AX50:BE50),0)+IF(RIGHT(CA$39,2)>RIGHT($K50,2),BE50,0)) -> 0 | CB50: =+IF($K50="Ongoing",BF50,IF(RIGHT($K50,2)=RIGHT(CB$39,2),SUM($AX50:BF50),0)+IF(RIGHT(CB$39,2)>RIGHT($K50,2),BF50,0)) -> 0 | CC50: =+IF($K50="Ongoing",BG50,IF(RIGHT($K50,2)=RIGHT(CC$39,2),SUM($AX50:BG50),0)+IF(RIGHT(CC$39,2)>RIGHT($K50,2),BG50,0)) -> 0 | CE50: =+Q50*KeyAssumptionsPriceControl_FO!AC$15 -> 4.20202948 | CF50: =+R50*KeyAssumptionsPriceControl_FO!AD$15 -> 8.656181845 | CG50: =+S50*KeyAssumptionsPriceControl_FO!AE$15 -> 13.37380038 | CH50: =+T50*KeyAssumptionsPriceControl_FO!AF$15 -> 13.77501439 | CI50: =+U50*KeyAssumptionsPriceControl_FO!AG$15 -> 8.276488014 | CJ50: =+V50*KeyAssumptionsPriceControl_FO!AH$15 -> 0 | CK50: =+W50*KeyAssumptionsPriceControl_FO!AI$15 -> 0 | CL50: =+X50*KeyAssumptionsPriceControl_FO!AJ$15 -> 0 | CM50: =+Y50*KeyAssumptionsPriceControl_FO!AK$15 -> 0 | CN50: =+Z50*KeyAssumptionsPriceControl_FO!AL$15 -> 0 | CP50: 0.0210101474 | CQ50: 0.08530120403 | CR50: 0.1954511151 | CS50: 0.3311951889 | CT50: 0.4414527009 | CU50: 0.482835141 | CV50: 0.482835141 | CW50: 0.482835141 | CX50: 0.482835141 | CY50: 0.482835141
C51: Mt Fraser Drinking Water and Recycled Water Transfer System | E51: Water | F51: Growth | G51: Pipelines/network | H51: Top 10 Major Projects | J51: Straight line | K51: 2026-27 | L51: 100 | M51: 100 | Q51: 5.885984047 | R51: 25.79983677 | S51: 36.0884418 | T51: 7.366743003 | U51: 0 | V51: 0 | W51: 0 | X51: 0 | Y51: 0 | Z51: 0 | AX51: 5.885984047 | AY51: 25.79983677 | AZ51: 36.0884418 | BA51: 7.366743003 | BB51: 0 | BC51: 0 | BD51: 0 | BE51: 0 | BF51: 0 | BG51: 0 | BI51: 0 | BJ51: 0 | BK51: 0 | BL51: 0.3757050281 | BM51: 0.7514100562 | BN51: 0.7514100562 | BO51: 0.7514100562 | BP51: 0.7514100562 | BQ51: 0.7514100562 | BR51: 0.7514100562 | BT51: =+IF($K51="Ongoing",AX51,IF(RIGHT($K51,2)=RIGHT(BT$39,2),SUM($AX51:AX51),0)+IF(RIGHT(BT$39,2)>RIGHT($K51,2),AX51,0)) -> 0 | BU51: =+IF($K51="Ongoing",AY51,IF(RIGHT($K51,2)=RIGHT(BU$39,2),SUM($AX51:AY51),0)+IF(RIGHT(BU$39,2)>RIGHT($K51,2),AY51,0)) -> 0 | BV51: =+IF($K51="Ongoing",AZ51,IF(RIGHT($K51,2)=RIGHT(BV$39,2),SUM($AX51:AZ51),0)+IF(RIGHT(BV$39,2)>RIGHT($K51,2),AZ51,0)) -> 0 | BW51: =+IF($K51="Ongoing",BA51,IF(RIGHT($K51,2)=RIGHT(BW$39,2),SUM($AX51:BA51),0)+IF(RIGHT(BW$39,2)>RIGHT($K51,2),BA51,0)) -> 75.14100562 | BX51: =+IF($K51="Ongoing",BB51,IF(RIGHT($K51,2)=RIGHT(BX$39,2),SUM($AX51:BB51),0)+IF(RIGHT(BX$39,2)>RIGHT($K51,2),BB51,0)) -> 0 | BY51: =+IF($K51="Ongoing",BC51,IF(RIGHT($K51,2)=RIGHT(BY$39,2),SUM($AX51:BC51),0)+IF(RIGHT(BY$39,2)>RIGHT($K51,2),BC51,0)) -> 0 | BZ51: =+IF($K51="Ongoing",BD51,IF(RIGHT($K51,2)=RIGHT(BZ$39,2),SUM($AX51:BD51),0)+IF(RIGHT(BZ$39,2)>RIGHT($K51,2),BD51,0)) -> 0 | CA51: =+IF($K51="Ongoing",BE51,IF(RIGHT($K51,2)=RIGHT(CA$39,2),SUM($AX51:BE51),0)+IF(RIGHT(CA$39,2)>RIGHT($K51,2),BE51,0)) -> 0 | CB51: =+IF($K51="Ongoing",BF51,IF(RIGHT($K51,2)=RIGHT(CB$39,2),SUM($AX51:BF51),0)+IF(RIGHT(CB$39,2)>RIGHT($K51,2),BF51,0)) -> 0 | CC51: =+IF($K51="Ongoing",BG51,IF(RIGHT($K51,2)=RIGHT(CC$39,2),SUM($AX51:BG51),0)+IF(RIGHT(CC$39,2)>RIGHT($K51,2),BG51,0)) -> 0 | CE51: =+Q51*KeyAssumptionsPriceControl_FO!AC$15 -> 6.062563568 | CF51: =+R51*KeyAssumptionsPriceControl_FO!AD$15 -> 27.37104683 | CG51: =+S51*KeyAssumptionsPriceControl_FO!AE$15 -> 39.43481474 | CH51: =+T51*KeyAssumptionsPriceControl_FO!AF$15 -> 8.29133415 | CI51: =+U51*KeyAssumptionsPriceControl_FO!AG$15 -> 0 | CJ51: =+V51*KeyAssumptionsPriceControl_FO!AH$15 -> 0 | CK51: =+W51*KeyAssumptionsPriceControl_FO!AI$15 -> 0 | CL51: =+X51*KeyAssumptionsPriceControl_FO!AJ$15 -> 0 | CM51: =+Y51*KeyAssumptionsPriceControl_FO!AK$15 -> 0 | CN51: =+Z51*KeyAssumptionsPriceControl_FO!AL$15 -> 0 | CP51: 0.03031281784 | CQ51: 0.1974808698 | CR51: 0.5315101777 | CS51: 0.7701409221 | CT51: 0.8115975929 | CU51: 0.8115975929 | CV51: 0.8115975929 | CW51: 0.8115975929 | CX51: 0.8115975929 | CY51: 0.8115975929
C53: Asset renewal and customer service level programs | J53: Straight line | Q53: 0 | R53: 0 | S53: 0 | T53: 0 | U53: 0 | V53: 0 | W53: 0 | X53: 0 | Y53: 0 | Z53: 0 | AX53: =+Q53-AB53-AM53 -> 0 | AY53: =+R53-AC53-AN53 -> 0 | AZ53: =+S53-AD53-AO53 -> 0 | BA53: =+T53-AE53-AP53 -> 0 | BB53: =+U53-AF53-AQ53 -> 0 | BC53: =+V53-AG53-AR53 -> 0 | BD53: =+W53-AH53-AS53 -> 0 | BE53: =+X53-AI53-AT53 -> 0 | BF53: =+Y53-AJ53-AU53 -> 0 | BG53: =+Z53-AK53-AV53 -> 0 | BI53: =IF($L53=0,0, IF($L53<=0.5,BT53, IF($J53="straight line", IF((LEFT(BI$39,4)*1)-INT($L53)<LEFT($BI$39,4)*1,0,((OFFSET(BT53,0,-INT($L53+0.5),1,1))/$L53)*(IF($L53-INT($L53)>0.5,$L53-0.5-INT($L53),IF($L53-INT($L53)<=0.5,$L53-0.5-INT($L53)+1,0)))) +BT53/$L53*0.5, IF($J53="Declining Balance",-$BI$38,0)))) -> 0 | BJ53: =IF($L53=0,0, IF($L53<=0.5,BU53, IF(AND($J53="straight line",$L53<1.51),(BT53-((BT53/$L53)*0.5))+BU53/$L53*0.5, IF($J53="straight line", IF((LEFT(BJ$39,4)*1)-INT($L53)<LEFT($BI$39,4)*1,0,((OFFSET(BU53,0,-INT($L53+0.5),1,1))/$L53)*(IF($L53-INT($L53)>0.5,$L53-0.5-INT($L53),IF($L53-INT($L53)<=0.5,$L53-0.5-INT($L53)+1,0)))) +BU53/$L53*0.5 +SUM(OFFSET(BU53,0,MAX(-INT($L53+(0.5-(10^-12))),-BJ$40)+1,1,MIN(INT($L53+(0.5-(10^-12))),BJ$40)-1))*1/$L53, IF($J53="Declining Balance",-$BI$38,0))))) -> 0 | BK53: =IF($L53=0,0, IF($L53<=0.5,BV53, IF(AND($J53="straight line",$L53<1.51),(BU53-((BU53/$L53)*0.5))+BV53/$L53*0.5, IF($J53="straight line", IF((LEFT(BK$39,4)*1)-INT($L53)<LEFT($BI$39,4)*1,0,((OFFSET(BV53,0,-INT($L53+0.5),1,1))/$L53)*(IF($L53-INT($L53)>0.5,$L53-0.5-INT($L53),IF($L53-INT($L53)<=0.5,$L53-0.5-INT($L53)+1,0)))) +BV53/$L53*0.5 +SUM(OFFSET(BV53,0,MAX(-INT($L53+(0.5-(10^-12))),-BK$40)+1,1,MIN(INT($L53+(0.5-(10^-12))),BK$40)-1))*1/$L53, IF($J53="Declining Balance",-$BI$38,0))))) -> 0 | BL53: =IF($L53=0,0, IF($L53<=0.5,BW53, IF(AND($J53="straight line",$L53<1.51),(BV53-((BV53/$L53)*0.5))+BW53/$L53*0.5, IF($J53="straight line", IF((LEFT(BL$39,4)*1)-INT($L53)<LEFT($BI$39,4)*1,0,((OFFSET(BW53,0,-INT($L53+0.5),1,1))/$L53)*(IF($L53-INT($L53)>0.5,$L53-0.5-INT($L53),IF($L53-INT($L53)<=0.5,$L53-0.5-INT($L53)+1,0)))) +BW53/$L53*0.5 +SUM(OFFSET(BW53,0,MAX(-INT($L53+(0.5-(10^-12))),-BL$40)+1,1,MIN(INT($L53+(0.5-(10^-12))),BL$40)-1))*1/$L53, IF($J53="Declining Balance",-$BI$38,0))))) -> 0 | BM53: =IF($L53=0,0, IF($L53<=0.5,BX53, IF(AND($J53="straight line",$L53<1.51),(BW53-((BW53/$L53)*0.5))+BX53/$L53*0.5, IF($J53="straight line", IF((LEFT(BM$39,4)*1)-INT($L53)<LEFT($BI$39,4)*1,0,((OFFSET(BX53,0,-INT($L53+0.5),1,1))/$L53)*(IF($L53-INT($L53)>0.5,$L53-0.5-INT($L53),IF($L53-INT($L53)<=0.5,$L53-0.5-INT($L53)+1,0)))) +BX53/$L53*0.5 +SUM(OFFSET(BX53,0,MAX(-INT($L53+(0.5-(10^-12))),-BM$40)+1,1,MIN(INT($L53+(0.5-(10^-12))),BM$40)-1))*1/$L53, IF($J53="Declining Balance",-$BI$38,0))))) -> 0 | BN53: =IF($L53=0,0, IF($L53<=0.5,BY53, IF(AND($J53="straight line",$L53<1.51),(BX53-((BX53/$L53)*0.5))+BY53/$L53*0.5, IF($J53="straight line", IF((LEFT(BN$39,4)*1)-INT($L53)<LEFT($BI$39,4)*1,0,((OFFSET(BY53,0,-INT($L53+0.5),1,1))/$L53)*(IF($L53-INT($L53)>0.5,$L53-0.5-INT($L53),IF($L53-INT($L53)<=0.5,$L53-0.5-INT($L53)+1,0)))) +BY53/$L53*0.5 +SUM(OFFSET(BY53,0,MAX(-INT($L53+(0.5-(10^-12))),-BN$40)+1,1,MIN(INT($L53+(0.5-(10^-12))),BN$40)-1))*1/$L53, IF($J53="Declining Balance",-$BI$38,0))))) -> 0 | BO53: =IF($L53=0,0, IF($L53<=0.5,BZ53, IF(AND($J53="straight line",$L53<1.51),(BY53-((BY53/$L53)*0.5))+BZ53/$L53*0.5, IF($J53="straight line", IF((LEFT(BO$39,4)*1)-INT($L53)<LEFT($BI$39,4)*1,0,((OFFSET(BZ53,0,-INT($L53+0.5),1,1))/$L53)*(IF($L53-INT($L53)>0.5,$L53-0.5-INT($L53),IF($L53-INT($L53)<=0.5,$L53-0.5-INT($L53)+1,0)))) +BZ53/$L53*0.5 +SUM(OFFSET(BZ53,0,MAX(-INT($L53+(0.5-(10^-12))),-BO$40)+1,1,MIN(INT($L53+(0.5-(10^-12))),BO$40)-1))*1/$L53, IF($J53="Declining Balance",-$BI$38,0))))) -> 0 | BP53: =IF($L53=0,0, IF($L53<=0.5,CA53, IF(AND($J53="straight line",$L53<1.51),(BZ53-((BZ53/$L53)*0.5))+CA53/$L53*0.5, IF($J53="straight line", IF((LEFT(BP$39,4)*1)-INT($L53)<LEFT($BI$39,4)*1,0,((OFFSET(CA53,0,-INT($L53+0.5),1,1))/$L53)*(IF($L53-INT($L53)>0.5,$L53-0.5-INT($L53),IF($L53-INT($L53)<=0.5,$L53-0.5-INT($L53)+1,0)))) +CA53/$L53*0.5 +SUM(OFFSET(CA53,0,MAX(-INT($L53+(0.5-(10^-12))),-BP$40)+1,1,MIN(INT($L53+(0.5-(10^-12))),BP$40)-1))*1/$L53, IF($J53="Declining Balance",-$BI$38,0))))) -> 0 | BQ53: =IF($L53=0,0, IF($L53<=0.5,CB53, IF(AND($J53="straight line",$L53<1.51),(CA53-((CA53/$L53)*0.5))+CB53/$L53*0.5, IF($J53="straight line", IF((LEFT(BQ$39,4)*1)-INT($L53)<LEFT($BI$39,4)*1,0,((OFFSET(CB53,0,-INT($L53+0.5),1,1))/$L53)*(IF($L53-INT($L53)>0.5,$L53-0.5-INT($L53),IF($L53-INT($L53)<=0.5,$L53-0.5-INT($L53)+1,0)))) +CB53/$L53*0.5 +SUM(OFFSET(CB53,0,MAX(-INT($L53+(0.5-(10^-12))),-BQ$40)+1,1,MIN(INT($L53+(0.5-(10^-12))),BQ$40)-1))*1/$L53, IF($J53="Declining Balance",-$BI$38,0))))) -> 0 | BR53: =IF($L53=0,0, IF($L53<=0.5,CC53, IF(AND($J53="straight line",$L53<1.51),(CB53-((CB53/$L53)*0.5))+CC53/$L53*0.5, IF($J53="straight line", IF((LEFT(BR$39,4)*1)-INT($L53)<LEFT($BI$39,4)*1,0,((OFFSET(CC53,0,-INT($L53+0.5),1,1))/$L53)*(IF($L53-INT($L53)>0.5,$L53-0.5-INT($L53),IF($L53-INT($L53)<=0.5,$L53-0.5-INT($L53)+1,0)))) +CC53/$L53*0.5 +SUM(OFFSET(CC53,0,MAX(-INT($L53+(0.5-(10^-12))),-BR$40)+1,1,MIN(INT($L53+(0.5-(10^-12))),BR$40)-1))*1/$L53, IF($J53="Declining Balance",-$BI$38,0))))) -> 0 | BT53: =+IF($K53="Ongoing",AX53,IF(RIGHT($K53,2)=RIGHT(BT$39,2),SUM($AX53:AX53),0)+IF(RIGHT(BT$39,2)>RIGHT($K53,2),AX53,0)) -> 0 | BU53: =+IF($K53="Ongoing",AY53,IF(RIGHT($K53,2)=RIGHT(BU$39,2),SUM($AX53:AY53),0)+IF(RIGHT(BU$39,2)>RIGHT($K53,2),AY53,0)) -> 0 | BV53: =+IF($K53="Ongoing",AZ53,IF(RIGHT($K53,2)=RIGHT(BV$39,2),SUM($AX53:AZ53),0)+IF(RIGHT(BV$39,2)>RIGHT($K53,2),AZ53,0)) -> 0 | BW53: =+IF($K53="Ongoing",BA53,IF(RIGHT($K53,2)=RIGHT(BW$39,2),SUM($AX53:BA53),0)+IF(RIGHT(BW$39,2)>RIGHT($K53,2),BA53,0)) -> 0 | BX53: =+IF($K53="Ongoing",BB53,IF(RIGHT($K53,2)=RIGHT(BX$39,2),SUM($AX53:BB53),0)+IF(RIGHT(BX$39,2)>RIGHT($K53,2),BB53,0)) -> 0 | BY53: =+IF($K53="Ongoing",BC53,IF(RIGHT($K53,2)=RIGHT(BY$39,2),SUM($AX53:BC53),0)+IF(RIGHT(BY$39,2)>RIGHT($K53,2),BC53,0)) -> 0 | BZ53: =+IF($K53="Ongoing",BD53,IF(RIGHT($K53,2)=RIGHT(BZ$39,2),SUM($AX53:BD53),0)+IF(RIGHT(BZ$39,2)>RIGHT($K53,2),BD53,0)) -> 0 | CA53: =+IF($K53="Ongoing",BE53,IF(RIGHT($K53,2)=RIGHT(CA$39,2),SUM($AX53:BE53),0)+IF(RIGHT(CA$39,2)>RIGHT($K53,2),BE53,0)) -> 0 | CB53: =+IF($K53="Ongoing",BF53,IF(RIGHT($K53,2)=RIGHT(CB$39,2),SUM($AX53:BF53),0)+IF(RIGHT(CB$39,2)>RIGHT($K53,2),BF53,0)) -> 0 | CC53: =+IF($K53="Ongoing",BG53,IF(RIGHT($K53,2)=RIGHT(CC$39,2),SUM($AX53:BG53),0)+IF(RIGHT(CC$39,2)>RIGHT($K53,2),BG53,0)) -> 0 | CE53: =+Q53*KeyAssumptionsPriceControl_FO!AC$15 -> 0 | CF53: =+R53*KeyAssumptionsPriceControl_FO!AD$15 -> 0 | CG53: =+S53*KeyAssumptionsPriceControl_FO!AE$15 -> 0 | CH53: =+T53*KeyAssumptionsPriceControl_FO!AF$15 -> 0 | CI53: =+U53*KeyAssumptionsPriceControl_FO!AG$15 -> 0 | CJ53: =+V53*KeyAssumptionsPriceControl_FO!AH$15 -> 0 | CK53: =+W53*KeyAssumptionsPriceControl_FO!AI$15 -> 0 | CL53: =+X53*KeyAssumptionsPriceControl_FO!AJ$15 -> 0 | CM53: =+Y53*KeyAssumptionsPriceControl_FO!AK$15 -> 0 | CN53: =+Z53*KeyAssumptionsPriceControl_FO!AL$15 -> 0 | CP53: =IF($M53=0,0, IF($M53<=0.5,CE53, IF($J53="straight line", IF((LEFT(CP$39,4)*1)-INT($M53)<LEFT($CP$39,4)*1,0,((OFFSET(CE53,0,-INT($M53+0.5),1,1))/$M53)*(IF($M53-INT($M53)>0.5,$M53-0.5-INT($M53),IF($M53-INT($M53)<=0.5,$M53-0.5-INT($M53)+1,0)))) +CE53/$M53*0.5, IF($J53="Declining Balance",-$CP$38,0)))) -> 0 | CQ53: =IF($M53=0,0, IF($M53<=0.5,CF53, IF(AND($J53="straight line",$M53<1.51),(CE53-((CE53/$M53)*0.5))+CF53/$M53*0.5, IF($J53="straight line", IF((LEFT(CQ$39,4)*1)-INT($M53)<LEFT($CP$39,4)*1,0,((OFFSET(CF53,0,-INT($M53+0.5),1,1))/$M53)*(IF($M53-INT($M53)>0.5,$M53-0.5-INT($M53),IF($M53-INT($M53)<=0.5,$M53-0.5-INT($M53)+1,0)))) +CF53/$M53*0.5 +SUM(OFFSET(CF53,0,MAX(-INT($M53+(0.5-(10^-12))),-CQ$40)+1,1,MIN(INT($M53+(0.5-(10^-12))),CQ$40)-1))*1/$M53, IF($J53="Declining Balance",-$CP$38,0))))) -> 0 | CR53: =IF($M53=0,0, IF($M53<=0.5,CG53, IF(AND($J53="straight line",$M53<1.51),(CF53-((CF53/$M53)*0.5))+CG53/$M53*0.5, IF($J53="straight line", IF((LEFT(CR$39,4)*1)-INT($M53)<LEFT($CP$39,4)*1,0,((OFFSET(CG53,0,-INT($M53+0.5),1,1))/$M53)*(IF($M53-INT($M53)>0.5,$M53-0.5-INT($M53),IF($M53-INT($M53)<=0.5,$M53-0.5-INT($M53)+1,0)))) +CG53/$M53*0.5 +SUM(OFFSET(CG53,0,MAX(-INT($M53+(0.5-(10^-12))),-CR$40)+1,1,MIN(INT($M53+(0.5-(10^-12))),CR$40)-1))*1/$M53, IF($J53="Declining Balance",-$CP$38,0))))) -> 0 | CS53: =IF($M53=0,0, IF($M53<=0.5,CH53, IF(AND($J53="straight line",$M53<1.51),(CG53-((CG53/$M53)*0.5))+CH53/$M53*0.5, IF($J53="straight line", IF((LEFT(CS$39,4)*1)-INT($M53)<LEFT($CP$39,4)*1,0,((OFFSET(CH53,0,-INT($M53+0.5),1,1))/$M53)*(IF($M53-INT($M53)>0.5,$M53-0.5-INT($M53),IF($M53-INT($M53)<=0.5,$M53-0.5-INT($M53)+1,0)))) +CH53/$M53*0.5 +SUM(OFFSET(CH53,0,MAX(-INT($M53+(0.5-(10^-12))),-CS$40)+1,1,MIN(INT($M53+(0.5-(10^-12))),CS$40)-1))*1/$M53, IF($J53="Declining Balance",-$CP$38,0))))) -> 0 | CT53: =IF($M53=0,0, IF($M53<=0.5,CI53, IF(AND($J53="straight line",$M53<1.51),(CH53-((CH53/$M53)*0.5))+CI53/$M53*0.5, IF($J53="straight line", IF((LEFT(CT$39,4)*1)-INT($M53)<LEFT($CP$39,4)*1,0,((OFFSET(CI53,0,-INT($M53+0.5),1,1))/$M53)*(IF($M53-INT($M53)>0.5,$M53-0.5-INT($M53),IF($M53-INT($M53)<=0.5,$M53-0.5-INT($M53)+1,0)))) +CI53/$M53*0.5 +SUM(OFFSET(CI53,0,MAX(-INT($M53+(0.5-(10^-12))),-CT$40)+1,1,MIN(INT($M53+(0.5-(10^-12))),CT$40)-1))*1/$M53, IF($J53="Declining Balance",-$CP$38,0))))) -> 0 | CU53: =IF($M53=0,0, IF($M53<=0.5,CJ53, IF(AND($J53="straight line",$M53<1.51),(CI53-((CI53/$M53)*0.5))+CJ53/$M53*0.5, IF($J53="straight line", IF((LEFT(CU$39,4)*1)-INT($M53)<LEFT($CP$39,4)*1,0,((OFFSET(CJ53,0,-INT($M53+0.5),1,1))/$M53)*(IF($M53-INT($M53)>0.5,$M53-0.5-INT($M53),IF($M53-INT($M53)<=0.5,$M53-0.5-INT($M53)+1,0)))) +CJ53/$M53*0.5 +SUM(OFFSET(CJ53,0,MAX(-INT($M53+(0.5-(10^-12))),-CU$40)+1,1,MIN(INT($M53+(0.5-(10^-12))),CU$40)-1))*1/$M53, IF($J53="Declining Balance",-$CP$38,0))))) -> 0 | CV53: =IF($M53=0,0, IF($M53<=0.5,CK53, IF(AND($J53="straight line",$M53<1.51),(CJ53-((CJ53/$M53)*0.5))+CK53/$M53*0.5, IF($J53="straight line", IF((LEFT(CV$39,4)*1)-INT($M53)<LEFT($CP$39,4)*1,0,((OFFSET(CK53,0,-INT($M53+0.5),1,1))/$M53)*(IF($M53-INT($M53)>0.5,$M53-0.5-INT($M53),IF($M53-INT($M53)<=0.5,$M53-0.5-INT($M53)+1,0)))) +CK53/$M53*0.5 +SUM(OFFSET(CK53,0,MAX(-INT($M53+(0.5-(10^-12))),-CV$40)+1,1,MIN(INT($M53+(0.5-(10^-12))),CV$40)-1))*1/$M53, IF($J53="Declining Balance",-$CP$38,0))))) -> 0 | CW53: =IF($M53=0,0, IF($M53<=0.5,CL53, IF(AND($J53="straight line",$M53<1.51),(CK53-((CK53/$M53)*0.5))+CL53/$M53*0.5, IF($J53="straight line", IF((LEFT(CW$39,4)*1)-INT($M53)<LEFT($CP$39,4)*1,0,((OFFSET(CL53,0,-INT($M53+0.5),1,1))/$M53)*(IF($M53-INT($M53)>0.5,$M53-0.5-INT($M53),IF($M53-INT($M53)<=0.5,$M53-0.5-INT($M53)+1,0)))) +CL53/$M53*0.5 +SUM(OFFSET(CL53,0,MAX(-INT($M53+(0.5-(10^-12))),-CW$40)+1,1,MIN(INT($M53+(0.5-(10^-12))),CW$40)-1))*1/$M53, IF($J53="Declining Balance",-$CP$38,0))))) -> 0 | CX53: =IF($M53=0,0, IF($M53<=0.5,CM53, IF(AND($J53="straight line",$M53<1.51),(CL53-((CL53/$M53)*0.5))+CM53/$M53*0.5, IF($J53="straight line", IF((LEFT(CX$39,4)*1)-INT($M53)<LEFT($CP$39,4)*1,0,((OFFSET(CM53,0,-INT($M53+0.5),1,1))/$M53)*(IF($M53-INT($M53)>0.5,$M53-0.5-INT($M53),IF($M53-INT($M53)<=0.5,$M53-0.5-INT($M53)+1,0)))) +CM53/$M53*0.5 +SUM(OFFSET(CM53,0,MAX(-INT($M53+(0.5-(10^-12))),-CX$40)+1,1,MIN(INT($M53+(0.5-(10^-12))),CX$40)-1))*1/$M53, IF($J53="Declining Balance",-$CP$38,0))))) -> 0 | CY53: =IF($M53=0,0, IF($M53<=0.5,CN53, IF(AND($J53="straight line",$M53<1.51),(CM53-((CM53/$M53)*0.5))+CN53/$M53*0.5, IF($J53="straight line", IF((LEFT(CY$39,4)*1)-INT($M53)<LEFT($CP$39,4)*1,0,((OFFSET(CN53,0,-INT($M53+0.5),1,1))/$M53)*(IF($M53-INT($M53)>0.5,$M53-0.5-INT($M53),IF($M53-INT($M53)<=0.5,$M53-0.5-INT($M53)+1,0)))) +CN53/$M53*0.5 +SUM(OFFSET(CN53,0,MAX(-INT($M53+(0.5-(10^-12))),-CY$40)+1,1,MIN(INT($M53+(0.5-(10^-12))),CY$40)-1))*1/$M53, IF($J53="Declining Balance",-$CP$38,0))))) -> 0
C54: Water Reliability - Reticulation Main Renewals | E54: Water | F54: Renewals | G54: Pipelines/network | H54: Capital Programs / Allocation | J54: Straight line | K54: Ongoing | L54: 100 | M54: 0.5 | Q54: 36.9883258 | R54: 40.04 | S54: 41.05722473 | T54: 41.05722473 | U54: 41.05722473 | V54: 40.04 | W54: 40.04 | X54: 40.04 | Y54: 40.04 | Z54: 40.04 | AX54: 36.9883258 | AY54: 40.04 | AZ54: 41.05722473 | BA54: 41.05722473 | BB54: 41.05722473 | BC54: 40.04 | BD54: 40.04 | BE54: 40.04 | BF54: 40.04 | BG54: 40.04 | BI54: 0.184941629 | BJ54: 0.570083258 | BK54: 0.9755693816 | BL54: 1.386141629 | BM54: 1.796713876 | BN54: 2.2022 | BO54: 2.6026 | BP54: 3.003 | BQ54: 3.4034 | BR54: 3.8038 | BT54: =+IF($K54="Ongoing",AX54,IF(RIGHT($K54,2)=RIGHT(BT$39,2),SUM($AX54:AX54),0)+IF(RIGHT(BT$39,2)>RIGHT($K54,2),AX54,0)) -> 36.9883258 | BU54: =+IF($K54="Ongoing",AY54,IF(RIGHT($K54,2)=RIGHT(BU$39,2),SUM($AX54:AY54),0)+IF(RIGHT(BU$39,2)>RIGHT($K54,2),AY54,0)) -> 40.04 | BV54: =+IF($K54="Ongoing",AZ54,IF(RIGHT($K54,2)=RIGHT(BV$39,2),SUM($AX54:AZ54),0)+IF(RIGHT(BV$39,2)>RIGHT($K54,2),AZ54,0)) -> 41.05722473 | BW54: =+IF($K54="Ongoing",BA54,IF(RIGHT($K54,2)=RIGHT(BW$39,2),SUM($AX54:BA54),0)+IF(RIGHT(BW$39,2)>RIGHT($K54,2),BA54,0)) -> 41.05722473 | BX54: =+IF($K54="Ongoing",BB54,IF(RIGHT($K54,2)=RIGHT(BX$39,2),SUM($AX54:BB54),0)+IF(RIGHT(BX$39,2)>RIGHT($K54,2),BB54,0)) -> 41.05722473 | BY54: =+IF($K54="Ongoing",BC54,IF(RIGHT($K54,2)=RIGHT(BY$39,2),SUM($AX54:BC54),0)+IF(RIGHT(BY$39,2)>RIGHT($K54,2),BC54,0)) -> 40.04 | BZ54: =+IF($K54="Ongoing",BD54,IF(RIGHT($K54,2)=RIGHT(BZ$39,2),SUM($AX54:BD54),0)+IF(RIGHT(BZ$39,2)>RIGHT($K54,2),BD54,0)) -> 40.04 | CA54: =+IF($K54="Ongoing",BE54,IF(RIGHT($K54,2)=RIGHT(CA$39,2),SUM($AX54:BE54),0)+IF(RIGHT(CA$39,2)>RIGHT($K54,2),BE54,0)) -> 40.04 | CB54: =+IF($K54="Ongoing",BF54,IF(RIGHT($K54,2)=RIGHT(CB$39,2),SUM($AX54:BF54),0)+IF(RIGHT(CB$39,2)>RIGHT($K54,2),BF54,0)) -> 40.04 | CC54: =+IF($K54="Ongoing",BG54,IF(RIGHT($K54,2)=RIGHT(CC$39,2),SUM($AX54:BG54),0)+IF(RIGHT(CC$39,2)>RIGHT($K54,2),BG54,0)) -> 40.04 | CE54: =+Q54*KeyAssumptionsPriceControl_FO!AC$15 -> 38.09797557 | CF54: =+R54*KeyAssumptionsPriceControl_FO!AD$15 -> 42.478436 | CG54: =+S54*KeyAssumptionsPriceControl_FO!AE$15 -> 44.86433801 | CH54: =+T54*KeyAssumptionsPriceControl_FO!AF$15 -> 46.21026815 | CI54: =+U54*KeyAssumptionsPriceControl_FO!AG$15 -> 47.5965762 | CJ54: =+V54*KeyAssumptionsPriceControl_FO!AH$15 -> 47.80985395 | CK54: =+W54*KeyAssumptionsPriceControl_FO!AI$15 -> 49.24414957 | CL54: =+X54*KeyAssumptionsPriceControl_FO!AJ$15 -> 50.72147406 | CM54: =+Y54*KeyAssumptionsPriceControl_FO!AK$15 -> 52.24311828 | CN54: =+Z54*KeyAssumptionsPriceControl_FO!AL$15 -> 53.81041183 | CP54: 38.09797557 | CQ54: 42.478436 | CR54: 44.86433801 | CS54: 46.21026815 | CT54: 47.5965762 | CU54: 47.80985395 | CV54: 49.24414957 | CW54: 50.72147406 | CX54: 52.24311828 | CY54: 53.81041183
C55: Customer Meter Replacements | E55: Water | F55: Renewals | G55: Pipelines/network | H55: Capital Programs / Allocation | J55: Straight line | K55: Ongoing | L55: 18 | M55: 18 | Q55: 5.422595444 | R55: 11.83302804 | S55: 21.15442758 | T55: 20.80763368 | U55: 20.45033088 | V55: 9.069185792 | W55: 8.690865179 | X55: 8.554249403 | Y55: 8.564758309 | Z55: 8.58577612 | AX55: 5.422595444 | AY55: 11.83302804 | AZ55: 21.15442758 | BA55: 20.80763368 | BB55: 20.45033088 | BC55: 9.069185792 | BD55: 8.690865179 | BE55: 8.554249403 | BF55: 8.564758309 | BG55: 8.58577612 | BI55: 0.1506276512 | BJ55: 0.6299505259 | BK55: 1.546268738 | BL55: 2.71188155 | BM55: 3.857936122 | BN55: 4.677922696 | BO55: 5.171257445 | BP55: 5.650288406 | BQ55: 6.125816398 | BR55: 6.602220132 | BT55: =+IF($K55="Ongoing",AX55,IF(RIGHT($K55,2)=RIGHT(BT$39,2),SUM($AX55:AX55),0)+IF(RIGHT(BT$39,2)>RIGHT($K55,2),AX55,0)) -> 5.422595444 | BU55: =+IF($K55="Ongoing",AY55,IF(RIGHT($K55,2)=RIGHT(BU$39,2),SUM($AX55:AY55),0)+IF(RIGHT(BU$39,2)>RIGHT($K55,2),AY55,0)) -> 11.83302804 | BV55: =+IF($K55="Ongoing",AZ55,IF(RIGHT($K55,2)=RIGHT(BV$39,2),SUM($AX55:AZ55),0)+IF(RIGHT(BV$39,2)>RIGHT($K55,2),AZ55,0)) -> 21.15442758 | BW55: =+IF($K55="Ongoing",BA55,IF(RIGHT($K55,2)=RIGHT(BW$39,2),SUM($AX55:BA55),0)+IF(RIGHT(BW$39,2)>RIGHT($K55,2),BA55,0)) -> 20.80763368 | BX55: =+IF($K55="Ongoing",BB55,IF(RIGHT($K55,2)=RIGHT(BX$39,2),SUM($AX55:BB55),0)+IF(RIGHT(BX$39,2)>RIGHT($K55,2),BB55,0)) -> 20.45033088 | BY55: =+IF($K55="Ongoing",BC55,IF(RIGHT($K55,2)=RIGHT(BY$39,2),SUM($AX55:BC55),0)+IF(RIGHT(BY$39,2)>RIGHT($K55,2),BC55,0)) -> 9.069185792 | BZ55: =+IF($K55="Ongoing",BD55,IF(RIGHT($K55,2)=RIGHT(BZ$39,2),SUM($AX55:BD55),0)+IF(RIGHT(BZ$39,2)>RIGHT($K55,2),BD55,0)) -> 8.690865179 | CA55: =+IF($K55="Ongoing",BE55,IF(RIGHT($K55,2)=RIGHT(CA$39,2),SUM($AX55:BE55),0)+IF(RIGHT(CA$39,2)>RIGHT($K55,2),BE55,0)) -> 8.554249403 | CB55: =+IF($K55="Ongoing",BF55,IF(RIGHT($K55,2)=RIGHT(CB$39,2),SUM($AX55:BF55),0)+IF(RIGHT(CB$39,2)>RIGHT($K55,2),BF55,0)) -> 8.564758309 | CC55: =+IF($K55="Ongoing",BG55,IF(RIGHT($K55,2)=RIGHT(CC$39,2),SUM($AX55:BG55),0)+IF(RIGHT(CC$39,2)>RIGHT($K55,2),BG55,0)) -> 8.58577612 | CE55: =+Q55*KeyAssumptionsPriceControl_FO!AC$15 -> 5.585273308 | CF55: =+R55*KeyAssumptionsPriceControl_FO!AD$15 -> 12.55365945 | CG55: =+S55*KeyAssumptionsPriceControl_FO!AE$15 -> 23.11601418 | CH55: =+T55*KeyAssumptionsPriceControl_FO!AF$15 -> 23.41917502 | CI55: =+U55*KeyAssumptionsPriceControl_FO!AG$15 -> 23.7075384 | CJ55: =+V55*KeyAssumptionsPriceControl_FO!AH$15 -> 10.82908212 | CK55: =+W55*KeyAssumptionsPriceControl_FO!AI$15 -> 10.68866795 | CL55: =+X55*KeyAssumptionsPriceControl_FO!AJ$15 -> 10.83626721 | CM55: =+Y55*KeyAssumptionsPriceControl_FO!AK$15 -> 11.17506697 | CN55: =+Z55*KeyAssumptionsPriceControl_FO!AL$15 -> 11.53856516 | CP55: 0.1551464808 | CQ55: 0.6590057241 | CR55: 1.649829992 | CS55: 2.942474136 | CT55: 4.251549509 | CU55: 5.210900079 | CV55: 5.808615359 | CW55: 6.406530225 | CX55: 7.017956174 | CY55: 7.6488904
C56: Water Distribution Mains | E56: Water | F56: Renewals | G56: Pipelines/network | H56: Capital Programs / Allocation | J56: Straight line | K56: Ongoing | L56: 100 | M56: 100 | Q56: 2.107543628 | R56: 10.91097357 | S56: 8.96593195 | T56: 8.480000775 | U56: 12.6294132 | V56: 19.22527727 | W56: 20.18223058 | X56: 20.65871634 | Y56: 20.43706419 | Z56: 21.09671161 | AX56: 2.107543628 | AY56: 10.91097357 | AZ56: 8.96593195 | BA56: 8.480000775 | BB56: 12.6294132 | BC56: 19.22527727 | BD56: 20.18223058 | BE56: 20.65871634 | BF56: 20.43706419 | BG56: 21.09671161 | BI56: 0.01053771814 | BJ56: 0.07563030415 | BK56: 0.1750148318 | BL56: 0.2622444954 | BM56: 0.3677915653 | BN56: 0.5270650177 | BO56: 0.724102557 | BP56: 0.9283072916 | BQ56: 1.133786194 | BR56: 1.341455073 | BT56: =+IF($K56="Ongoing",AX56,IF(RIGHT($K56,2)=RIGHT(BT$39,2),SUM($AX56:AX56),0)+IF(RIGHT(BT$39,2)>RIGHT($K56,2),AX56,0)) -> 2.107543628 | BU56: =+IF($K56="Ongoing",AY56,IF(RIGHT($K56,2)=RIGHT(BU$39,2),SUM($AX56:AY56),0)+IF(RIGHT(BU$39,2)>RIGHT($K56,2),AY56,0)) -> 10.91097357 | BV56: =+IF($K56="Ongoing",AZ56,IF(RIGHT($K56,2)=RIGHT(BV$39,2),SUM($AX56:AZ56),0)+IF(RIGHT(BV$39,2)>RIGHT($K56,2),AZ56,0)) -> 8.96593195 | BW56: =+IF($K56="Ongoing",BA56,IF(RIGHT($K56,2)=RIGHT(BW$39,2),SUM($AX56:BA56),0)+IF(RIGHT(BW$39,2)>RIGHT($K56,2),BA56,0)) -> 8.480000775 | BX56: =+IF($K56="Ongoing",BB56,IF(RIGHT($K56,2)=RIGHT(BX$39,2),SUM($AX56:BB56),0)+IF(RIGHT(BX$39,2)>RIGHT($K56,2),BB56,0)) -> 12.6294132 | BY56: =+IF($K56="Ongoing",BC56,IF(RIGHT($K56,2)=RIGHT(BY$39,2),SUM($AX56:BC56),0)+IF(RIGHT(BY$39,2)>RIGHT($K56,2),BC56,0)) -> 19.22527727 | BZ56: =+IF($K56="Ongoing",BD56,IF(RIGHT($K56,2)=RIGHT(BZ$39,2),SUM($AX56:BD56),0)+IF(RIGHT(BZ$39,2)>RIGHT($K56,2),BD56,0)) -> 20.18223058 | CA56: =+IF($K56="Ongoing",BE56,IF(RIGHT($K56,2)=RIGHT(CA$39,2),SUM($AX56:BE56),0)+IF(RIGHT(CA$39,2)>RIGHT($K56,2),BE56,0)) -> 20.65871634 | CB56: =+IF($K56="Ongoing",BF56,IF(RIGHT($K56,2)=RIGHT(CB$39,2),SUM($AX56:BF56),0)+IF(RIGHT(CB$39,2)>RIGHT($K56,2),BF56,0)) -> 20.43706419 | CC56: =+IF($K56="Ongoing",BG56,IF(RIGHT($K56,2)=RIGHT(CC$39,2),SUM($AX56:BG56),0)+IF(RIGHT(CC$39,2)>RIGHT($K56,2),BG56,0)) -> 21.09671161 | CE56: =+Q56*KeyAssumptionsPriceControl_FO!AC$15 -> 2.170769937 | CF56: =+R56*KeyAssumptionsPriceControl_FO!AD$15 -> 11.57545187 | CG56: =+S56*KeyAssumptionsPriceControl_FO!AE$15 -> 9.797315922 | CH56: =+T56*KeyAssumptionsPriceControl_FO!AF$15 -> 9.544315581 | CI56: =+U56*KeyAssumptionsPriceControl_FO!AG$15 -> 14.6409513 | CJ56: =+V56*KeyAssumptionsPriceControl_FO!AH$15 -> 22.95598648 | CK56: =+W56*KeyAssumptionsPriceControl_FO!AI$15 -> 24.82159794 | CL56: =+X56*KeyAssumptionsPriceControl_FO!AJ$15 -> 26.16984378 | CM56: =+Y56*KeyAssumptionsPriceControl_FO!AK$15 -> 26.66573332 | CN56: =+Z56*KeyAssumptionsPriceControl_FO!AL$15 -> 28.35221628 | CP56: 0.01085384968 | CQ56: 0.07958495869 | CR56: 0.1864487976 | CS56: 0.2831569551 | CT56: 0.4040832896 | CU56: 0.5920679785 | CV56: 0.8309559006 | CW56: 1.085913109 | CX56: 1.350090995 | CY56: 1.625180743
C57: Water Reliability (Civil) | E57: Water | F57: Renewals | G57: Pipelines/network | H57: Capital Programs / Allocation | J57: Straight line | K57: Ongoing | L57: 100 | M57: 100 | Q57: 9.421859872 | R57: 11.52148254 | S57: 13.16861359 | T57: 12.74822151 | U57: 12.6398225 | V57: 12.8 | W57: 12.8 | X57: 12.8 | Y57: 12.8 | Z57: 12.8 | AX57: 9.421859872 | AY57: 11.52148254 | AZ57: 13.16861359 | BA57: 12.74822151 | BB57: 12.6398225 | BC57: 12.8 | BD57: 12.8 | BE57: 12.8 | BF57: 12.8 | BG57: 12.8 | BI57: 0.04710929936 | BJ57: 0.1518260114 | BK57: 0.275276492 | BL57: 0.4048606675 | BM57: 0.5318008875 | BN57: 0.659 | BO57: 0.787 | BP57: 0.915 | BQ57: 1.043 | BR57: 1.171 | BT57: =+IF($K57="Ongoing",AX57,IF(RIGHT($K57,2)=RIGHT(BT$39,2),SUM($AX57:AX57),0)+IF(RIGHT(BT$39,2)>RIGHT($K57,2),AX57,0)) -> 9.421859872 | BU57: =+IF($K57="Ongoing",AY57,IF(RIGHT($K57,2)=RIGHT(BU$39,2),SUM($AX57:AY57),0)+IF(RIGHT(BU$39,2)>RIGHT($K57,2),AY57,0)) -> 11.52148254 | BV57: =+IF($K57="Ongoing",AZ57,IF(RIGHT($K57,2)=RIGHT(BV$39,2),SUM($AX57:AZ57),0)+IF(RIGHT(BV$39,2)>RIGHT($K57,2),AZ57,0)) -> 13.16861359 | BW57: =+IF($K57="Ongoing",BA57,IF(RIGHT($K57,2)=RIGHT(BW$39,2),SUM($AX57:BA57),0)+IF(RIGHT(BW$39,2)>RIGHT($K57,2),BA57,0)) -> 12.74822151 | BX57: =+IF($K57="Ongoing",BB57,IF(RIGHT($K57,2)=RIGHT(BX$39,2),SUM($AX57:BB57),0)+IF(RIGHT(BX$39,2)>RIGHT($K57,2),BB57,0)) -> 12.6398225 | BY57: =+IF($K57="Ongoing",BC57,IF(RIGHT($K57,2)=RIGHT(BY$39,2),SUM($AX57:BC57),0)+IF(RIGHT(BY$39,2)>RIGHT($K57,2),BC57,0)) -> 12.8 | BZ57: =+IF($K57="Ongoing",BD57,IF(RIGHT($K57,2)=RIGHT(BZ$39,2),SUM($AX57:BD57),0)+IF(RIGHT(BZ$39,2)>RIGHT($K57,2),BD57,0)) -> 12.8 | CA57: =+IF($K57="Ongoing",BE57,IF(RIGHT($K57,2)=RIGHT(CA$39,2),SUM($AX57:BE57),0)+IF(RIGHT(CA$39,2)>RIGHT($K57,2),BE57,0)) -> 12.8 | CB57: =+IF($K57="Ongoing",BF57,IF(RIGHT($K57,2)=RIGHT(CB$39,2),SUM($AX57:BF57),0)+IF(RIGHT(CB$39,2)>RIGHT($K57,2),BF57,0)) -> 12.8 | CC57: =+IF($K57="Ongoing",BG57,IF(RIGHT($K57,2)=RIGHT(CC$39,2),SUM($AX57:BG57),0)+IF(RIGHT(CC$39,2)>RIGHT($K57,2),BG57,0)) -> 12.8 | CE57: =+Q57*KeyAssumptionsPriceControl_FO!AC$15 -> 9.704515668 | CF57: =+R57*KeyAssumptionsPriceControl_FO!AD$15 -> 12.22314083 | CG57: =+S57*KeyAssumptionsPriceControl_FO!AE$15 -> 14.38969962 | CH57: =+T57*KeyAssumptionsPriceControl_FO!AF$15 -> 14.34823562 | CI57: =+U57*KeyAssumptionsPriceControl_FO!AG$15 -> 14.65301852 | CJ57: =+V57*KeyAssumptionsPriceControl_FO!AH$15 -> 15.2838694 | CK57: =+W57*KeyAssumptionsPriceControl_FO!AI$15 -> 15.74238548 | CL57: =+X57*KeyAssumptionsPriceControl_FO!AJ$15 -> 16.21465704 | CM57: =+Y57*KeyAssumptionsPriceControl_FO!AK$15 -> 16.70109675 | CN57: =+Z57*KeyAssumptionsPriceControl_FO!AL$15 -> 17.20212966 | CP57: 0.04852257834 | CQ57: 0.1581608608 | CR57: 0.291225063 | CS57: 0.4349147392 | CT57: 0.5799210099 | CU57: 0.7296054495 | CV57: 0.8847367239 | CW57: 1.044521936 | CX57: 1.209100705 | CY57: 1.378616837
C58: Water Reliability (Mechanical and Electrical) | E58: Water | F58: Renewals | G58: Pipelines/network | H58: Capital Programs / Allocation | J58: Straight line | K58: Ongoing | L58: 50 | M58: 50 | Q58: 11.84276402 | R58: 12.91793236 | S58: 11.87844803 | T58: 12.54770834 | U58: 12.31314725 | V58: 9.168208159 | W58: 9.318697538 | X58: 9.382465723 | Y58: 9.390227289 | Z58: 9.240401291 | AX58: 11.84276402 | AY58: 12.91793236 | AZ58: 11.87844803 | BA58: 12.54770834 | BB58: 12.31314725 | BC58: 9.168208159 | BD58: 9.318697538 | BE58: 9.382465723 | BF58: 9.390227289 | BG58: 9.240401291 | BI58: 0.1184276402 | BJ58: 0.366034604 | BK58: 0.6139984079 | BL58: 0.8582599717 | BM58: 1.106868528 | BN58: 1.321682082 | BO58: 1.506551139 | BP58: 1.693562771 | BQ58: 1.881289701 | BR58: 2.067595987 | BT58: =+IF($K58="Ongoing",AX58,IF(RIGHT($K58,2)=RIGHT(BT$39,2),SUM($AX58:AX58),0)+IF(RIGHT(BT$39,2)>RIGHT($K58,2),AX58,0)) -> 11.84276402 | BU58: =+IF($K58="Ongoing",AY58,IF(RIGHT($K58,2)=RIGHT(BU$39,2),SUM($AX58:AY58),0)+IF(RIGHT(BU$39,2)>RIGHT($K58,2),AY58,0)) -> 12.91793236 | BV58: =+IF($K58="Ongoing",AZ58,IF(RIGHT($K58,2)=RIGHT(BV$39,2),SUM($AX58:AZ58),0)+IF(RIGHT(BV$39,2)>RIGHT($K58,2),AZ58,0)) -> 11.87844803 | BW58: =+IF($K58="Ongoing",BA58,IF(RIGHT($K58,2)=RIGHT(BW$39,2),SUM($AX58:BA58),0)+IF(RIGHT(BW$39,2)>RIGHT($K58,2),BA58,0)) -> 12.54770834 | BX58: =+IF($K58="Ongoing",BB58,IF(RIGHT($K58,2)=RIGHT(BX$39,2),SUM($AX58:BB58),0)+IF(RIGHT(BX$39,2)>RIGHT($K58,2),BB58,0)) -> 12.31314725 | BY58: =+IF($K58="Ongoing",BC58,IF(RIGHT($K58,2)=RIGHT(BY$39,2),SUM($AX58:BC58),0)+IF(RIGHT(BY$39,2)>RIGHT($K58,2),BC58,0)) -> 9.168208159 | BZ58: =+IF($K58="Ongoing",BD58,IF(RIGHT($K58,2)=RIGHT(BZ$39,2),SUM($AX58:BD58),0)+IF(RIGHT(BZ$39,2)>RIGHT($K58,2),BD58,0)) -> 9.318697538 | CA58: =+IF($K58="Ongoing",BE58,IF(RIGHT($K58,2)=RIGHT(CA$39,2),SUM($AX58:BE58),0)+IF(RIGHT(CA$39,2)>RIGHT($K58,2),BE58,0)) -> 9.382465723 | CB58: =+IF($K58="Ongoing",BF58,IF(RIGHT($K58,2)=RIGHT(CB$39,2),SUM($AX58:BF58),0)+IF(RIGHT(CB$39,2)>RIGHT($K58,2),BF58,0)) -> 9.390227289 | CC58: =+IF($K58="Ongoing",BG58,IF(RIGHT($K58,2)=RIGHT(CC$39,2),SUM($AX58:BG58),0)+IF(RIGHT(CC$39,2)>RIGHT($K58,2),BG58,0)) -> 9.240401291 | CE58: =+Q58*KeyAssumptionsPriceControl_FO!AC$15 -> 12.19804694 | CF58: =+R58*KeyAssumptionsPriceControl_FO!AD$15 -> 13.70463444 | CG58: =+S58*KeyAssumptionsPriceControl_FO!AE$15 -> 12.97990088 | CH58: =+T58*KeyAssumptionsPriceControl_FO!AF$15 -> 14.12255629 | CI58: =+U58*KeyAssumptionsPriceControl_FO!AG$15 -> 14.27431237 | CJ58: =+V58*KeyAssumptionsPriceControl_FO!AH$15 -> 10.94732001 | CK58: =+W58*KeyAssumptionsPriceControl_FO!AI$15 -> 11.46082256 | CL58: =+X58*KeyAssumptionsPriceControl_FO!AJ$15 -> 11.88542687 | CM58: =+Y58*KeyAssumptionsPriceControl_FO!AK$15 -> 12.25211676 | CN58: =+Z58*KeyAssumptionsPriceControl_FO!AL$15 -> 12.41832665 | CP58: 0.1219804694 | CQ58: 0.3810072832 | CR58: 0.6478526364 | CS58: 0.9188772081 | CT58: 1.202845895 | CU58: 1.455062219 | CV58: 1.679143644 | CW58: 1.912606139 | CX58: 2.153981575 | CY58: 2.400686009
C59: Water Conservation | E59: Water | F59: Renewals | G59: Pipelines/network | H59: Capital Programs / Allocation | J59: Straight line | K59: Ongoing | L59: 100 | M59: 100 | Q59: 7.429796471 | R59: 7.324707412 | S59: 7.293180695 | T59: 1.646745555 | U59: 0.6725699776 | V59: 0.5937554678 | W59: 0.5981320438 | X59: 0.5981320438 | Y59: 0.5981320438 | Z59: 0.5981320438 | AX59: 7.429796471 | AY59: 7.324707412 | AZ59: 7.293180695 | BA59: 1.646745555 | BB59: 0.6725699776 | BC59: 0.5937554678 | BD59: 0.5981320438 | BE59: 0.5981320438 | BF59: 0.5981320438 | BG59: 0.5981320438 | BI59: 0.03714898236 | BJ59: 0.1109215018 | BK59: 0.1840109423 | BL59: 0.2287105736 | BM59: 0.2403071512 | BN59: 0.2466387784 | BO59: 0.252598216 | BP59: 0.2585795364 | BQ59: 0.2645608569 | BR59: 0.2705421773 | BT59: =+IF($K59="Ongoing",AX59,IF(RIGHT($K59,2)=RIGHT(BT$39,2),SUM($AX59:AX59),0)+IF(RIGHT(BT$39,2)>RIGHT($K59,2),AX59,0)) -> 7.429796471 | BU59: =+IF($K59="Ongoing",AY59,IF(RIGHT($K59,2)=RIGHT(BU$39,2),SUM($AX59:AY59),0)+IF(RIGHT(BU$39,2)>RIGHT($K59,2),AY59,0)) -> 7.324707412 | BV59: =+IF($K59="Ongoing",AZ59,IF(RIGHT($K59,2)=RIGHT(BV$39,2),SUM($AX59:AZ59),0)+IF(RIGHT(BV$39,2)>RIGHT($K59,2),AZ59,0)) -> 7.293180695 | BW59: =+IF($K59="Ongoing",BA59,IF(RIGHT($K59,2)=RIGHT(BW$39,2),SUM($AX59:BA59),0)+IF(RIGHT(BW$39,2)>RIGHT($K59,2),BA59,0)) -> 1.646745555 | BX59: =+IF($K59="Ongoing",BB59,IF(RIGHT($K59,2)=RIGHT(BX$39,2),SUM($AX59:BB59),0)+IF(RIGHT(BX$39,2)>RIGHT($K59,2),BB59,0)) -> 0.6725699776 | BY59: =+IF($K59="Ongoing",BC59,IF(RIGHT($K59,2)=RIGHT(BY$39,2),SUM($AX59:BC59),0)+IF(RIGHT(BY$39,2)>RIGHT($K59,2),BC59,0)) -> 0.5937554678 | BZ59: =+IF($K59="Ongoing",BD59,IF(RIGHT($K59,2)=RIGHT(BZ$39,2),SUM($AX59:BD59),0)+IF(RIGHT(BZ$39,2)>RIGHT($K59,2),BD59,0)) -> 0.5981320438 | CA59: =+IF($K59="Ongoing",BE59,IF(RIGHT($K59,2)=RIGHT(CA$39,2),SUM($AX59:BE59),0)+IF(RIGHT(CA$39,2)>RIGHT($K59,2),BE59,0)) -> 0.5981320438 | CB59: =+IF($K59="Ongoing",BF59,IF(RIGHT($K59,2)=RIGHT(CB$39,2),SUM($AX59:BF59),0)+IF(RIGHT(CB$39,2)>RIGHT($K59,2),BF59,0)) -> 0.5981320438 | CC59: =+IF($K59="Ongoing",BG59,IF(RIGHT($K59,2)=RIGHT(CC$39,2),SUM($AX59:BG59),0)+IF(RIGHT(CC$39,2)>RIGHT($K59,2),BG59,0)) -> 0.5981320438 | CE59: =+Q59*KeyAssumptionsPriceControl_FO!AC$15 -> 7.652690365 | CF59: =+R59*KeyAssumptionsPriceControl_FO!AD$15 -> 7.770782094 | CG59: =+S59*KeyAssumptionsPriceControl_FO!AE$15 -> 7.969455461 | CH59: =+T59*KeyAssumptionsPriceControl_FO!AF$15 -> 1.853426629 | CI59: =+U59*KeyAssumptionsPriceControl_FO!AG$15 -> 0.7796929382 | CJ59: =+V59*KeyAssumptionsPriceControl_FO!AH$15 -> 0.70897508 | CK59: =+W59*KeyAssumptionsPriceControl_FO!AI$15 -> 0.7356269687 | CL59: =+X59*KeyAssumptionsPriceControl_FO!AJ$15 -> 0.7576957778 | CM59: =+Y59*KeyAssumptionsPriceControl_FO!AK$15 -> 0.7804266511 | CN59: =+Z59*KeyAssumptionsPriceControl_FO!AL$15 -> 0.8038394506 | CP59: 0.03826345183 | CQ59: 0.1153808141 | CR59: 0.1940820019 | CS59: 0.2431964123 | CT59: 0.2563620102 | CU59: 0.2638053503 | CV59: 0.2710283605 | CW59: 0.2784949743 | CX59: 0.2861855864 | CY59: 0.2941069169
C60: Sewer Reliability - Gravity Main Renewals | E60: Sewerage | F60: Renewals | G60: Pipelines/network | H60: Capital Programs / Allocation | J60: Straight line | K60: Ongoing | L60: 100 | M60: 0.5 | Q60: 27.57172 | R60: 27.57172 | S60: 27.57172 | T60: 27.57172004 | U60: 27.57172 | V60: 27.57172 | W60: 27.57172005 | X60: 27.57172 | Y60: 27.57172005 | Z60: 27.57172 | AX60: 27.57172 | AY60: 27.57172 | AZ60: 27.57172 | BA60: 27.57172004 | BB60: 27.57172 | BC60: 27.57172 | BD60: 27.57172005 | BE60: 27.57172 | BF60: 27.57172005 | BG60: 27.57172 | BI60: 0.1378586 | BJ60: 0.4135758 | BK60: 0.689293 | BL60: 0.9650102002 | BM60: 1.2407274 | BN60: 1.5164446 | BO60: 1.792161801 | BP60: 2.067879001 | BQ60: 2.343596201 | BR60: 2.619313401 | BT60: =+IF($K60="Ongoing",AX60,IF(RIGHT($K60,2)=RIGHT(BT$39,2),SUM($AX60:AX60),0)+IF(RIGHT(BT$39,2)>RIGHT($K60,2),AX60,0)) -> 27.57172 | BU60: =+IF($K60="Ongoing",AY60,IF(RIGHT($K60,2)=RIGHT(BU$39,2),SUM($AX60:AY60),0)+IF(RIGHT(BU$39,2)>RIGHT($K60,2),AY60,0)) -> 27.57172 | BV60: =+IF($K60="Ongoing",AZ60,IF(RIGHT($K60,2)=RIGHT(BV$39,2),SUM($AX60:AZ60),0)+IF(RIGHT(BV$39,2)>RIGHT($K60,2),AZ60,0)) -> 27.57172 | BW60: =+IF($K60="Ongoing",BA60,IF(RIGHT($K60,2)=RIGHT(BW$39,2),SUM($AX60:BA60),0)+IF(RIGHT(BW$39,2)>RIGHT($K60,2),BA60,0)) -> 27.57172004 | BX60: =+IF($K60="Ongoing",BB60,IF(RIGHT($K60,2)=RIGHT(BX$39,2),SUM($AX60:BB60),0)+IF(RIGHT(BX$39,2)>RIGHT($K60,2),BB60,0)) -> 27.57172 | BY60: =+IF($K60="Ongoing",BC60,IF(RIGHT($K60,2)=RIGHT(BY$39,2),SUM($AX60:BC60),0)+IF(RIGHT(BY$39,2)>RIGHT($K60,2),BC60,0)) -> 27.57172 | BZ60: =+IF($K60="Ongoing",BD60,IF(RIGHT($K60,2)=RIGHT(BZ$39,2),SUM($AX60:BD60),0)+IF(RIGHT(BZ$39,2)>RIGHT($K60,2),BD60,0)) -> 27.57172005 | CA60: =+IF($K60="Ongoing",BE60,IF(RIGHT($K60,2)=RIGHT(CA$39,2),SUM($AX60:BE60),0)+IF(RIGHT(CA$39,2)>RIGHT($K60,2),BE60,0)) -> 27.57172 | CB60: =+IF($K60="Ongoing",BF60,IF(RIGHT($K60,2)=RIGHT(CB$39,2),SUM($AX60:BF60),0)+IF(RIGHT(CB$39,2)>RIGHT($K60,2),BF60,0)) -> 27.57172005 | CC60: =+IF($K60="Ongoing",BG60,IF(RIGHT($K60,2)=RIGHT(CC$39,2),SUM($AX60:BG60),0)+IF(RIGHT(CC$39,2)>RIGHT($K60,2),BG60,0)) -> 27.57172 | CE60: =+Q60*KeyAssumptionsPriceControl_FO!AC$15 -> 28.3988716 | CF60: =+R60*KeyAssumptionsPriceControl_FO!AD$15 -> 29.25083775 | CG60: =+S60*KeyAssumptionsPriceControl_FO!AE$15 -> 30.12836289 | CH60: =+T60*KeyAssumptionsPriceControl_FO!AF$15 -> 31.03221381 | CI60: =+U60*KeyAssumptionsPriceControl_FO!AG$15 -> 31.96318018 | CJ60: =+V60*KeyAssumptionsPriceControl_FO!AH$15 -> 32.92207559 | CK60: =+W60*KeyAssumptionsPriceControl_FO!AI$15 -> 33.90973791 | CL60: =+X60*KeyAssumptionsPriceControl_FO!AJ$15 -> 34.92702999 | CM60: =+Y60*KeyAssumptionsPriceControl_FO!AK$15 -> 35.97484095 | CN60: =+Z60*KeyAssumptionsPriceControl_FO!AL$15 -> 37.05408611 | CP60: 28.3988716 | CQ60: 29.25083775 | CR60: 30.12836289 | CS60: 31.03221381 | CT60: 31.96318018 | CU60: 32.92207559 | CV60: 33.90973791 | CW60: 34.92702999 | CX60: 35.97484095 | CY60: 37.05408611
C61: Sewer Reliability - Property Connection Branch Renewals | E61: Sewerage | F61: Renewals | G61: Pipelines/network | H61: Capital Programs / Allocation | J61: Straight line | K61: Ongoing | L61: 100 | M61: 0.5 | Q61: 13.7141222 | R61: 13.7141222 | S61: 13.7141222 | T61: 13.7141222 | U61: 13.7141222 | V61: 13.7141222 | W61: 13.7141222 | X61: 13.7141222 | Y61: 13.7141222 | Z61: 13.7141222 | AX61: 13.7141222 | AY61: 13.7141222 | AZ61: 13.7141222 | BA61: 13.7141222 | BB61: 13.7141222 | BC61: 13.7141222 | BD61: 13.7141222 | BE61: 13.7141222 | BF61: 13.7141222 | BG61: 13.7141222 | BI61: 0.068570611 | BJ61: 0.205711833 | BK61: 0.342853055 | BL61: 0.479994277 | BM61: 0.617135499 | BN61: 0.754276721 | BO61: 0.891417943 | BP61: 1.028559165 | BQ61: 1.165700387 | BR61: 1.302841609 | BT61: =+IF($K61="Ongoing",AX61,IF(RIGHT($K61,2)=RIGHT(BT$39,2),SUM($AX61:AX61),0)+IF(RIGHT(BT$39,2)>RIGHT($K61,2),AX61,0)) -> 13.7141222 | BU61: =+IF($K61="Ongoing",AY61,IF(RIGHT($K61,2)=RIGHT(BU$39,2),SUM($AX61:AY61),0)+IF(RIGHT(BU$39,2)>RIGHT($K61,2),AY61,0)) -> 13.7141222 | BV61: =+IF($K61="Ongoing",AZ61,IF(RIGHT($K61,2)=RIGHT(BV$39,2),SUM($AX61:AZ61),0)+IF(RIGHT(BV$39,2)>RIGHT($K61,2),AZ61,0)) -> 13.7141222 | BW61: =+IF($K61="Ongoing",BA61,IF(RIGHT($K61,2)=RIGHT(BW$39,2),SUM($AX61:BA61),0)+IF(RIGHT(BW$39,2)>RIGHT($K61,2),BA61,0)) -> 13.7141222 | BX61: =+IF($K61="Ongoing",BB61,IF(RIGHT($K61,2)=RIGHT(BX$39,2),SUM($AX61:BB61),0)+IF(RIGHT(BX$39,2)>RIGHT($K61,2),BB61,0)) -> 13.7141222 | BY61: =+IF($K61="Ongoing",BC61,IF(RIGHT($K61,2)=RIGHT(BY$39,2),SUM($AX61:BC61),0)+IF(RIGHT(BY$39,2)>RIGHT($K61,2),BC61,0)) -> 13.7141222 | BZ61: =+IF($K61="Ongoing",BD61,IF(RIGHT($K61,2)=RIGHT(BZ$39,2),SUM($AX61:BD61),0)+IF(RIGHT(BZ$39,2)>RIGHT($K61,2),BD61,0)) -> 13.7141222 | CA61: =+IF($K61="Ongoing",BE61,IF(RIGHT($K61,2)=RIGHT(CA$39,2),SUM($AX61:BE61),0)+IF(RIGHT(CA$39,2)>RIGHT($K61,2),BE61,0)) -> 13.7141222 | CB61: =+IF($K61="Ongoing",BF61,IF(RIGHT($K61,2)=RIGHT(CB$39,2),SUM($AX61:BF61),0)+IF(RIGHT(CB$39,2)>RIGHT($K61,2),BF61,0)) -> 13.7141222 | CC61: =+IF($K61="Ongoing",BG61,IF(RIGHT($K61,2)=RIGHT(CC$39,2),SUM($AX61:BG61),0)+IF(RIGHT(CC$39,2)>RIGHT($K61,2),BG61,0)) -> 13.7141222 | CE61: =+Q61*KeyAssumptionsPriceControl_FO!AC$15 -> 14.12554587 | CF61: =+R61*KeyAssumptionsPriceControl_FO!AD$15 -> 14.54931224 | CG61: =+S61*KeyAssumptionsPriceControl_FO!AE$15 -> 14.98579161 | CH61: =+T61*KeyAssumptionsPriceControl_FO!AF$15 -> 15.43536536 | CI61: =+U61*KeyAssumptionsPriceControl_FO!AG$15 -> 15.89842632 | CJ61: =+V61*KeyAssumptionsPriceControl_FO!AH$15 -> 16.37537911 | CK61: =+W61*KeyAssumptionsPriceControl_FO!AI$15 -> 16.86664048 | CL61: =+X61*KeyAssumptionsPriceControl_FO!AJ$15 -> 17.37263969 | CM61: =+Y61*KeyAssumptionsPriceControl_FO!AK$15 -> 17.89381889 | CN61: =+Z61*KeyAssumptionsPriceControl_FO!AL$15 -> 18.43063345 | CP61: 14.12554587 | CQ61: 14.54931224 | CR61: 14.98579161 | CS61: 15.43536536 | CT61: 15.89842632 | CU61: 16.37537911 | CV61: 16.86664048 | CW61: 17.37263969 | CX61: 17.89381889 | CY61: 18.43063345
C62: Sewer Reliability (Civil) | E62: Sewerage | F62: Renewals | G62: Pipelines/network | H62: Capital Programs / Allocation | J62: Straight line | K62: Ongoing | L62: 100 | M62: 100 | Q62: 9.34664718 | R62: 9.134988357 | S62: 9.445811318 | T62: 9.102730219 | U62: 9.233744749 | V62: 8.110458306 | W62: 8.110458306 | X62: 8.110458306 | Y62: 8.110458306 | Z62: 8.110458306 | AX62: 9.34664718 | AY62: 9.134988357 | AZ62: 9.445811318 | BA62: 9.102730219 | BB62: 9.233744749 | BC62: 8.110458306 | BD62: 8.110458306 | BE62: 8.110458306 | BF62: 8.110458306 | BG62: 8.110458306 | BI62: 0.0467332359 | BJ62: 0.1391414136 | BK62: 0.232045412 | BL62: 0.3247881196 | BM62: 0.4164704945 | BN62: 0.5031915098 | BO62: 0.5842960928 | BP62: 0.6654006759 | BQ62: 0.746505259 | BR62: 0.827609842 | BT62: =+IF($K62="Ongoing",AX62,IF(RIGHT($K62,2)=RIGHT(BT$39,2),SUM($AX62:AX62),0)+IF(RIGHT(BT$39,2)>RIGHT($K62,2),AX62,0)) -> 9.34664718 | BU62: =+IF($K62="Ongoing",AY62,IF(RIGHT($K62,2)=RIGHT(BU$39,2),SUM($AX62:AY62),0)+IF(RIGHT(BU$39,2)>RIGHT($K62,2),AY62,0)) -> 9.134988357 | BV62: =+IF($K62="Ongoing",AZ62,IF(RIGHT($K62,2)=RIGHT(BV$39,2),SUM($AX62:AZ62),0)+IF(RIGHT(BV$39,2)>RIGHT($K62,2),AZ62,0)) -> 9.445811318 | BW62: =+IF($K62="Ongoing",BA62,IF(RIGHT($K62,2)=RIGHT(BW$39,2),SUM($AX62:BA62),0)+IF(RIGHT(BW$39,2)>RIGHT($K62,2),BA62,0)) -> 9.102730219 | BX62: =+IF($K62="Ongoing",BB62,IF(RIGHT($K62,2)=RIGHT(BX$39,2),SUM($AX62:BB62),0)+IF(RIGHT(BX$39,2)>RIGHT($K62,2),BB62,0)) -> 9.233744749 | BY62: =+IF($K62="Ongoing",BC62,IF(RIGHT($K62,2)=RIGHT(BY$39,2),SUM($AX62:BC62),0)+IF(RIGHT(BY$39,2)>RIGHT($K62,2),BC62,0)) -> 8.110458306 | BZ62: =+IF($K62="Ongoing",BD62,IF(RIGHT($K62,2)=RIGHT(BZ$39,2),SUM($AX62:BD62),0)+IF(RIGHT(BZ$39,2)>RIGHT($K62,2),BD62,0)) -> 8.110458306 | CA62: =+IF($K62="Ongoing",BE62,IF(RIGHT($K62,2)=RIGHT(CA$39,2),SUM($AX62:BE62),0)+IF(RIGHT(CA$39,2)>RIGHT($K62,2),BE62,0)) -> 8.110458306 | CB62: =+IF($K62="Ongoing",BF62,IF(RIGHT($K62,2)=RIGHT(CB$39,2),SUM($AX62:BF62),0)+IF(RIGHT(CB$39,2)>RIGHT($K62,2),BF62,0)) -> 8.110458306 | CC62: =+IF($K62="Ongoing",BG62,IF(RIGHT($K62,2)=RIGHT(CC$39,2),SUM($AX62:BG62),0)+IF(RIGHT(CC$39,2)>RIGHT($K62,2),BG62,0)) -> 8.110458306 | CE62: =+Q62*KeyAssumptionsPriceControl_FO!AC$15 -> 9.627046595 | CF62: =+R62*KeyAssumptionsPriceControl_FO!AD$15 -> 9.691309148 | CG62: =+S62*KeyAssumptionsPriceControl_FO!AE$15 -> 10.32169306 | CH62: =+T62*KeyAssumptionsPriceControl_FO!AF$15 -> 10.24520306 | CI62: =+U62*KeyAssumptionsPriceControl_FO!AG$15 -> 10.7044409 | CJ62: =+V62*KeyAssumptionsPriceControl_FO!AH$15 -> 9.684311367 | CK62: =+W62*KeyAssumptionsPriceControl_FO!AI$15 -> 9.974840708 | CL62: =+X62*KeyAssumptionsPriceControl_FO!AJ$15 -> 10.27408593 | CM62: =+Y62*KeyAssumptionsPriceControl_FO!AK$15 -> 10.58230851 | CN62: =+Z62*KeyAssumptionsPriceControl_FO!AL$15 -> 10.89977776 | CP62: 0.04813523298 | CQ62: 0.1447270117 | CR62: 0.2447920227 | CS62: 0.3476265034 | CT62: 0.4523747231 | CU62: 0.5543184844 | CV62: 0.6526142448 | CW62: 0.753858878 | CX62: 0.8581408502 | CY62: 0.9655512815
C63: Sewer Reliability (Mechanical and Electrical) | E63: Sewerage | F63: Renewals | G63: Pipelines/network | H63: Capital Programs / Allocation | J63: Straight line | K63: Ongoing | L63: 50 | M63: 50 | Q63: 7.30388927 | R63: 6.659693338 | S63: 5.889274938 | T63: 5.909241859 | U63: 5.930259671 | V63: 3.536246835 | W63: 3.536246835 | X63: 3.536246835 | Y63: 3.536246835 | Z63: 3.536246835 | AX63: 7.30388927 | AY63: 6.659693338 | AZ63: 5.889274938 | BA63: 5.909241859 | BB63: 5.930259671 | BC63: 3.536246835 | BD63: 3.536246835 | BE63: 3.536246835 | BF63: 3.536246835 | BG63: 3.536246835 | BI63: 0.0730388927 | BJ63: 0.2126747188 | BK63: 0.3381644015 | BL63: 0.4561495695 | BM63: 0.5745445848 | BN63: 0.6692096498 | BO63: 0.7399345866 | BP63: 0.8106595233 | BQ63: 0.88138446 | BR63: 0.9521093967 | BT63: =+IF($K63="Ongoing",AX63,IF(RIGHT($K63,2)=RIGHT(BT$39,2),SUM($AX63:AX63),0)+IF(RIGHT(BT$39,2)>RIGHT($K63,2),AX63,0)) -> 7.30388927 | BU63: =+IF($K63="Ongoing",AY63,IF(RIGHT($K63,2)=RIGHT(BU$39,2),SUM($AX63:AY63),0)+IF(RIGHT(BU$39,2)>RIGHT($K63,2),AY63,0)) -> 6.659693338 | BV63: =+IF($K63="Ongoing",AZ63,IF(RIGHT($K63,2)=RIGHT(BV$39,2),SUM($AX63:AZ63),0)+IF(RIGHT(BV$39,2)>RIGHT($K63,2),AZ63,0)) -> 5.889274938 | BW63: =+IF($K63="Ongoing",BA63,IF(RIGHT($K63,2)=RIGHT(BW$39,2),SUM($AX63:BA63),0)+IF(RIGHT(BW$39,2)>RIGHT($K63,2),BA63,0)) -> 5.909241859 | BX63: =+IF($K63="Ongoing",BB63,IF(RIGHT($K63,2)=RIGHT(BX$39,2),SUM($AX63:BB63),0)+IF(RIGHT(BX$39,2)>RIGHT($K63,2),BB63,0)) -> 5.930259671 | BY63: =+IF($K63="Ongoing",BC63,IF(RIGHT($K63,2)=RIGHT(BY$39,2),SUM($AX63:BC63),0)+IF(RIGHT(BY$39,2)>RIGHT($K63,2),BC63,0)) -> 3.536246835 | BZ63: =+IF($K63="Ongoing",BD63,IF(RIGHT($K63,2)=RIGHT(BZ$39,2),SUM($AX63:BD63),0)+IF(RIGHT(BZ$39,2)>RIGHT($K63,2),BD63,0)) -> 3.536246835 | CA63: =+IF($K63="Ongoing",BE63,IF(RIGHT($K63,2)=RIGHT(CA$39,2),SUM($AX63:BE63),0)+IF(RIGHT(CA$39,2)>RIGHT($K63,2),BE63,0)) -> 3.536246835 | CB63: =+IF($K63="Ongoing",BF63,IF(RIGHT($K63,2)=RIGHT(CB$39,2),SUM($AX63:BF63),0)+IF(RIGHT(CB$39,2)>RIGHT($K63,2),BF63,0)) -> 3.536246835 | CC63: =+IF($K63="Ongoing",BG63,IF(RIGHT($K63,2)=RIGHT(CC$39,2),SUM($AX63:BG63),0)+IF(RIGHT(CC$39,2)>RIGHT($K63,2),BG63,0)) -> 3.536246835 | CE63: =+Q63*KeyAssumptionsPriceControl_FO!AC$15 -> 7.523005948 | CF63: =+R63*KeyAssumptionsPriceControl_FO!AD$15 -> 7.065268662 | CG63: =+S63*KeyAssumptionsPriceControl_FO!AE$15 -> 6.435369735 | CH63: =+T63*KeyAssumptionsPriceControl_FO!AF$15 -> 6.650903773 | CI63: =+U63*KeyAssumptionsPriceControl_FO!AG$15 -> 6.87479629 | CJ63: =+V63*KeyAssumptionsPriceControl_FO!AH$15 -> 4.222463655 | CK63: =+W63*KeyAssumptionsPriceControl_FO!AI$15 -> 4.349137564 | CL63: =+X63*KeyAssumptionsPriceControl_FO!AJ$15 -> 4.479611691 | CM63: =+Y63*KeyAssumptionsPriceControl_FO!AK$15 -> 4.614000042 | CN63: =+Z63*KeyAssumptionsPriceControl_FO!AL$15 -> 4.752420043 | CP63: 0.07523005948 | CQ63: 0.2211128056 | CR63: 0.3561191896 | CS63: 0.4869819246 | CT63: 0.6222389252 | CU63: 0.7332115247 | CV63: 0.8189275369 | CW63: 0.9072150294 | CX63: 0.9981511468 | CY63: 1.091815348
C64: Digital enablement | E64: Sewerage | F64: Renewals | G64: Corporate | H64: Capital Programs / Allocation | J64: Straight line | K64: Ongoing | L64: 4 | M64: 4 | Q64: 33.13983476 | R64: 27.79290343 | S64: 22.69818585 | T64: 17.99755224 | U64: 12.14093899 | V64: 22.75388305 | W64: 22.75388305 | X64: 22.75388305 | Y64: 22.75388305 | Z64: 22.75388305 | AX64: 33.13983476 | AY64: 27.79290343 | AZ64: 22.69818585 | BA64: 17.99755224 | BB64: 12.14093899 | BC64: 22.75388305 | BD64: 22.75388305 | BE64: 22.75388305 | BF64: 22.75388305 | BG64: 22.75388305 | BI64: 4.142479344 | BJ64: 11.75907162 | BK64: 18.07045778 | BL64: 23.15742504 | BM64: 22.7822571 | BN64: 19.52751758 | BO64: 18.90460218 | BP64: 19.50610569 | BQ64: 21.42726505 | BR64: 22.75388305 | BT64: =+IF($K64="Ongoing",AX64,IF(RIGHT($K64,2)=RIGHT(BT$39,2),SUM($AX64:AX64),0)+IF(RIGHT(BT$39,2)>RIGHT($K64,2),AX64,0)) -> 33.13983476 | BU64: =+IF($K64="Ongoing",AY64,IF(RIGHT($K64,2)=RIGHT(BU$39,2),SUM($AX64:AY64),0)+IF(RIGHT(BU$39,2)>RIGHT($K64,2),AY64,0)) -> 27.79290343 | BV64: =+IF($K64="Ongoing",AZ64,IF(RIGHT($K64,2)=RIGHT(BV$39,2),SUM($AX64:AZ64),0)+IF(RIGHT(BV$39,2)>RIGHT($K64,2),AZ64,0)) -> 22.69818585 | BW64: =+IF($K64="Ongoing",BA64,IF(RIGHT($K64,2)=RIGHT(BW$39,2),SUM($AX64:BA64),0)+IF(RIGHT(BW$39,2)>RIGHT($K64,2),BA64,0)) -> 17.99755224 | BX64: =+IF($K64="Ongoing",BB64,IF(RIGHT($K64,2)=RIGHT(BX$39,2),SUM($AX64:BB64),0)+IF(RIGHT(BX$39,2)>RIGHT($K64,2),BB64,0)) -> 12.14093899 | BY64: =+IF($K64="Ongoing",BC64,IF(RIGHT($K64,2)=RIGHT(BY$39,2),SUM($AX64:BC64),0)+IF(RIGHT(BY$39,2)>RIGHT($K64,2),BC64,0)) -> 22.75388305 | BZ64: =+IF($K64="Ongoing",BD64,IF(RIGHT($K64,2)=RIGHT(BZ$39,2),SUM($AX64:BD64),0)+IF(RIGHT(BZ$39,2)>RIGHT($K64,2),BD64,0)) -> 22.75388305 | CA64: =+IF($K64="Ongoing",BE64,IF(RIGHT($K64,2)=RIGHT(CA$39,2),SUM($AX64:BE64),0)+IF(RIGHT(CA$39,2)>RIGHT($K64,2),BE64,0)) -> 22.75388305 | CB64: =+IF($K64="Ongoing",BF64,IF(RIGHT($K64,2)=RIGHT(CB$39,2),SUM($AX64:BF64),0)+IF(RIGHT(CB$39,2)>RIGHT($K64,2),BF64,0)) -> 22.75388305 | CC64: =+IF($K64="Ongoing",BG64,IF(RIGHT($K64,2)=RIGHT(CC$39,2),SUM($AX64:BG64),0)+IF(RIGHT(CC$39,2)>RIGHT($K64,2),BG64,0)) -> 22.75388305 | CE64: =+Q64*KeyAssumptionsPriceControl_FO!AC$15 -> 34.1340298 | CF64: =+R64*KeyAssumptionsPriceControl_FO!AD$15 -> 29.48549125 | CG64: =+S64*KeyAssumptionsPriceControl_FO!AE$15 -> 24.80292053 | CH64: =+T64*KeyAssumptionsPriceControl_FO!AF$15 -> 20.25640361 | CI64: =+U64*KeyAssumptionsPriceControl_FO!AG$15 -> 14.0746758 | CJ64: =+V64*KeyAssumptionsPriceControl_FO!AH$15 -> 27.16932632 | CK64: =+W64*KeyAssumptionsPriceControl_FO!AI$15 -> 27.98440611 | CL64: =+X64*KeyAssumptionsPriceControl_FO!AJ$15 -> 28.82393829 | CM64: =+Y64*KeyAssumptionsPriceControl_FO!AK$15 -> 29.68865644 | CN64: =+Z64*KeyAssumptionsPriceControl_FO!AL$15 -> 30.57931613 | CP64: 4.266753725 | CQ64: 12.21919386 | CR64: 19.00524533 | CS64: 24.63766085 | CT64: 24.66229205 | CU64: 21.86535218 | CV64: 21.97351726 | CW64: 23.44214479 | CX64: 26.46483421 | CY64: 28.84283051
C65: Facilities | E65: Water | F65: Renewals | G65: Corporate | H65: Capital Programs / Allocation | J65: Straight line | K65: Ongoing | L65: 30 | M65: 30 | Q65: 1.155979649 | R65: 1.155979649 | S65: 1.155979649 | T65: 1.155979649 | U65: 1.155979649 | V65: 1.155979649 | W65: 1.155979649 | X65: 1.155979649 | Y65: 1.155979649 | Z65: 1.155979649 | AX65: 1.155979649 | AY65: 1.155979649 | AZ65: 1.155979649 | BA65: 1.155979649 | BB65: 1.155979649 | BC65: 1.155979649 | BD65: 1.155979649 | BE65: 1.155979649 | BF65: 1.155979649 | BG65: 1.155979649 | BI65: 0.01926632748 | BJ65: 0.05779898245 | BK65: 0.09633163742 | BL65: 0.1348642924 | BM65: 0.1733969474 | BN65: 0.2119296023 | BO65: 0.2504622573 | BP65: 0.2889949123 | BQ65: 0.3275275672 | BR65: 0.3660602222 | BT65: =+IF($K65="Ongoing",AX65,IF(RIGHT($K65,2)=RIGHT(BT$39,2),SUM($AX65:AX65),0)+IF(RIGHT(BT$39,2)>RIGHT($K65,2),AX65,0)) -> 1.155979649 | BU65: =+IF($K65="Ongoing",AY65,IF(RIGHT($K65,2)=RIGHT(BU$39,2),SUM($AX65:AY65),0)+IF(RIGHT(BU$39,2)>RIGHT($K65,2),AY65,0)) -> 1.155979649 | BV65: =+IF($K65="Ongoing",AZ65,IF(RIGHT($K65,2)=RIGHT(BV$39,2),SUM($AX65:AZ65),0)+IF(RIGHT(BV$39,2)>RIGHT($K65,2),AZ65,0)) -> 1.155979649 | BW65: =+IF($K65="Ongoing",BA65,IF(RIGHT($K65,2)=RIGHT(BW$39,2),SUM($AX65:BA65),0)+IF(RIGHT(BW$39,2)>RIGHT($K65,2),BA65,0)) -> 1.155979649 | BX65: =+IF($K65="Ongoing",BB65,IF(RIGHT($K65,2)=RIGHT(BX$39,2),SUM($AX65:BB65),0)+IF(RIGHT(BX$39,2)>RIGHT($K65,2),BB65,0)) -> 1.155979649 | BY65: =+IF($K65="Ongoing",BC65,IF(RIGHT($K65,2)=RIGHT(BY$39,2),SUM($AX65:BC65),0)+IF(RIGHT(BY$39,2)>RIGHT($K65,2),BC65,0)) -> 1.155979649 | BZ65: =+IF($K65="Ongoing",BD65,IF(RIGHT($K65,2)=RIGHT(BZ$39,2),SUM($AX65:BD65),0)+IF(RIGHT(BZ$39,2)>RIGHT($K65,2),BD65,0)) -> 1.155979649 | CA65: =+IF($K65="Ongoing",BE65,IF(RIGHT($K65,2)=RIGHT(CA$39,2),SUM($AX65:BE65),0)+IF(RIGHT(CA$39,2)>RIGHT($K65,2),BE65,0)) -> 1.155979649 | CB65: =+IF($K65="Ongoing",BF65,IF(RIGHT($K65,2)=RIGHT(CB$39,2),SUM($AX65:BF65),0)+IF(RIGHT(CB$39,2)>RIGHT($K65,2),BF65,0)) -> 1.155979649 | CC65: =+IF($K65="Ongoing",BG65,IF(RIGHT($K65,2)=RIGHT(CC$39,2),SUM($AX65:BG65),0)+IF(RIGHT(CC$39,2)>RIGHT($K65,2),BG65,0)) -> 1.155979649 | CE65: =+Q65*KeyAssumptionsPriceControl_FO!AC$15 -> 1.190659038 | CF65: =+R65*KeyAssumptionsPriceControl_FO!AD$15 -> 1.22637881 | CG65: =+S65*KeyAssumptionsPriceControl_FO!AE$15 -> 1.263170174 | CH65: =+T65*KeyAssumptionsPriceControl_FO!AF$15 -> 1.301065279 | CI65: =+U65*KeyAssumptionsPriceControl_FO!AG$15 -> 1.340097238 | CJ65: =+V65*KeyAssumptionsPriceControl_FO!AH$15 -> 1.380300155 | CK65: =+W65*KeyAssumptionsPriceControl_FO!AI$15 -> 1.421709159 | CL65: =+X65*KeyAssumptionsPriceControl_FO!AJ$15 -> 1.464360434 | CM65: =+Y65*KeyAssumptionsPriceControl_FO!AK$15 -> 1.508291247 | CN65: =+Z65*KeyAssumptionsPriceControl_FO!AL$15 -> 1.553539984 | CP65: 0.01984431731 | CQ65: 0.06012828144 | CR65: 0.1016207645 | CS65: 0.1443580221 | CT65: 0.1883773973 | CU65: 0.2337173539 | CV65: 0.2804175091 | CW65: 0.328518669 | CX65: 0.3780628637 | CY65: 0.4290933842
C66: Motor Vehicles | E66: Sewerage | F66: Renewals | G66: Corporate | H66: Capital Programs / Allocation | J66: Straight line | K66: Ongoing | L66: 8 | M66: 8 | Q66: 2.784860064 | R66: 3.226234111 | S66: 2.953002558 | T66: 3.951348618 | U66: 2.175343521 | V66: 2.616717569 | W66: 3.678117065 | X66: 2.784860064 | Y66: 2.784860064 | Z66: 2.56417304 | AX66: 2.784860064 | AY66: 3.226234111 | AZ66: 2.953002558 | BA66: 3.951348618 | BB66: 2.175343521 | BC66: 2.616717569 | BD66: 3.678117065 | BE66: 2.784860064 | BF66: 2.784860064 | BG66: 2.56417304 | BI66: 0.174053754 | BJ66: 0.5497471399 | BK66: 0.9359494317 | BL66: 1.36747138 | BM66: 1.750389639 | BN66: 2.049893457 | BO66: 2.443320622 | BP66: 2.847256692 | BQ66: 3.021310446 | BR66: 2.979931629 | BT66: =+IF($K66="Ongoing",AX66,IF(RIGHT($K66,2)=RIGHT(BT$39,2),SUM($AX66:AX66),0)+IF(RIGHT(BT$39,2)>RIGHT($K66,2),AX66,0)) -> 2.784860064 | BU66: =+IF($K66="Ongoing",AY66,IF(RIGHT($K66,2)=RIGHT(BU$39,2),SUM($AX66:AY66),0)+IF(RIGHT(BU$39,2)>RIGHT($K66,2),AY66,0)) -> 3.226234111 | BV66: =+IF($K66="Ongoing",AZ66,IF(RIGHT($K66,2)=RIGHT(BV$39,2),SUM($AX66:AZ66),0)+IF(RIGHT(BV$39,2)>RIGHT($K66,2),AZ66,0)) -> 2.953002558 | BW66: =+IF($K66="Ongoing",BA66,IF(RIGHT($K66,2)=RIGHT(BW$39,2),SUM($AX66:BA66),0)+IF(RIGHT(BW$39,2)>RIGHT($K66,2),BA66,0)) -> 3.951348618 | BX66: =+IF($K66="Ongoing",BB66,IF(RIGHT($K66,2)=RIGHT(BX$39,2),SUM($AX66:BB66),0)+IF(RIGHT(BX$39,2)>RIGHT($K66,2),BB66,0)) -> 2.175343521 | BY66: =+IF($K66="Ongoing",BC66,IF(RIGHT($K66,2)=RIGHT(BY$39,2),SUM($AX66:BC66),0)+IF(RIGHT(BY$39,2)>RIGHT($K66,2),BC66,0)) -> 2.616717569 | BZ66: =+IF($K66="Ongoing",BD66,IF(RIGHT($K66,2)=RIGHT(BZ$39,2),SUM($AX66:BD66),0)+IF(RIGHT(BZ$39,2)>RIGHT($K66,2),BD66,0)) -> 3.678117065 | CA66: =+IF($K66="Ongoing",BE66,IF(RIGHT($K66,2)=RIGHT(CA$39,2),SUM($AX66:BE66),0)+IF(RIGHT(CA$39,2)>RIGHT($K66,2),BE66,0)) -> 2.784860064 | CB66: =+IF($K66="Ongoing",BF66,IF(RIGHT($K66,2)=RIGHT(CB$39,2),SUM($AX66:BF66),0)+IF(RIGHT(CB$39,2)>RIGHT($K66,2),BF66,0)) -> 2.784860064 | CC66: =+IF($K66="Ongoing",BG66,IF(RIGHT($K66,2)=RIGHT(CC$39,2),SUM($AX66:BG66),0)+IF(RIGHT(CC$39,2)>RIGHT($K66,2),BG66,0)) -> 2.56417304 | CE66: =+Q66*KeyAssumptionsPriceControl_FO!AC$15 -> 2.868405865 | CF66: =+R66*KeyAssumptionsPriceControl_FO!AD$15 -> 3.422711769 | CG66: =+S66*KeyAssumptionsPriceControl_FO!AE$15 -> 3.226825626 | CH66: =+T66*KeyAssumptionsPriceControl_FO!AF$15 -> 4.447277681 | CI66: =+U66*KeyAssumptionsPriceControl_FO!AG$15 -> 2.521819347 | CJ66: =+V66*KeyAssumptionsPriceControl_FO!AH$15 -> 3.124497623 | CK66: =+W66*KeyAssumptionsPriceControl_FO!AI$15 -> 4.523620052 | CL66: =+X66*KeyAssumptionsPriceControl_FO!AJ$15 -> 3.527777409 | CM66: =+Y66*KeyAssumptionsPriceControl_FO!AK$15 -> 3.633610732 | CN66: =+Z66*KeyAssumptionsPriceControl_FO!AL$15 -> 3.446034147 | CP66: 0.1792753666 | CQ66: 0.5724702187 | CR66: 0.9880663059 | CS66: 1.467697763 | CT66: 1.903266327 | CU66: 2.256161137 | CV66: 2.734168492 | CW66: 3.237380834 | CX66: 3.505692226 | CY66: 3.554975179
J67: Straight line | AX67: 0 | AY67: 0 | AZ67: 0 | BA67: 0 | BB67: 0 | BC67: 0 | BD67: 0 | BE67: 0 | BF67: 0 | BG67: 0 | BI67: 0 | BJ67: 0 | BK67: 0 | BL67: 0 | BM67: 0 | BN67: 0 | BO67: 0 | BP67: 0 | BQ67: 0 | BR67: 0 | BT67: =+IF($K67="Ongoing",AX67,IF(RIGHT($K67,2)=RIGHT(BT$39,2),SUM($AX67:AX67),0)+IF(RIGHT(BT$39,2)>RIGHT($K67,2),AX67,0)) -> 0 | BU67: =+IF($K67="Ongoing",AY67,IF(RIGHT($K67,2)=RIGHT(BU$39,2),SUM($AX67:AY67),0)+IF(RIGHT(BU$39,2)>RIGHT($K67,2),AY67,0)) -> 0 | BV67: =+IF($K67="Ongoing",AZ67,IF(RIGHT($K67,2)=RIGHT(BV$39,2),SUM($AX67:AZ67),0)+IF(RIGHT(BV$39,2)>RIGHT($K67,2),AZ67,0)) -> 0 | BW67: =+IF($K67="Ongoing",BA67,IF(RIGHT($K67,2)=RIGHT(BW$39,2),SUM($AX67:BA67),0)+IF(RIGHT(BW$39,2)>RIGHT($K67,2),BA67,0)) -> 0 | BX67: =+IF($K67="Ongoing",BB67,IF(RIGHT($K67,2)=RIGHT(BX$39,2),SUM($AX67:BB67),0)+IF(RIGHT(BX$39,2)>RIGHT($K67,2),BB67,0)) -> 0 | BY67: =+IF($K67="Ongoing",BC67,IF(RIGHT($K67,2)=RIGHT(BY$39,2),SUM($AX67:BC67),0)+IF(RIGHT(BY$39,2)>RIGHT($K67,2),BC67,0)) -> 0 | BZ67: =+IF($K67="Ongoing",BD67,IF(RIGHT($K67,2)=RIGHT(BZ$39,2),SUM($AX67:BD67),0)+IF(RIGHT(BZ$39,2)>RIGHT($K67,2),BD67,0)) -> 0 | CA67: =+IF($K67="Ongoing",BE67,IF(RIGHT($K67,2)=RIGHT(CA$39,2),SUM($AX67:BE67),0)+IF(RIGHT(CA$39,2)>RIGHT($K67,2),BE67,0)) -> 0 | CB67: =+IF($K67="Ongoing",BF67,IF(RIGHT($K67,2)=RIGHT(CB$39,2),SUM($AX67:BF67),0)+IF(RIGHT(CB$39,2)>RIGHT($K67,2),BF67,0)) -> 0 | CC67: =+IF($K67="Ongoing",BG67,IF(RIGHT($K67,2)=RIGHT(CC$39,2),SUM($AX67:BG67),0)+IF(RIGHT(CC$39,2)>RIGHT($K67,2),BG67,0)) -> 0 | CE67: =+Q67*KeyAssumptionsPriceControl_FO!AC$15 -> 0 | CF67: =+R67*KeyAssumptionsPriceControl_FO!AD$15 -> 0 | CG67: =+S67*KeyAssumptionsPriceControl_FO!AE$15 -> 0 | CH67: =+T67*KeyAssumptionsPriceControl_FO!AF$15 -> 0 | CI67: =+U67*KeyAssumptionsPriceControl_FO!AG$15 -> 0 | CJ67: =+V67*KeyAssumptionsPriceControl_FO!AH$15 -> 0 | CK67: =+W67*KeyAssumptionsPriceControl_FO!AI$15 -> 0 | CL67: =+X67*KeyAssumptionsPriceControl_FO!AJ$15 -> 0 | CM67: =+Y67*KeyAssumptionsPriceControl_FO!AK$15 -> 0 | CN67: =+Z67*KeyAssumptionsPriceControl_FO!AL$15 -> 0 | CP67: 0 | CQ67: 0 | CR67: 0 | CS67: 0 | CT67: 0 | CU67: 0 | CV67: 0 | CW67: 0 | CX67: 0 | CY67: 0
C68: Customer growth programs | J68: Straight line | Q68: 0 | R68: 0 | S68: 0 | T68: 0 | U68: 0 | V68: 0 | W68: 0 | X68: 0 | Y68: 0 | Z68: 0 | AX68: 0 | AY68: 0 | AZ68: 0 | BA68: 0 | BB68: 0 | BC68: 0 | BD68: 0 | BE68: 0 | BF68: 0 | BG68: 0 | BI68: 0 | BJ68: 0 | BK68: 0 | BL68: 0 | BM68: 0 | BN68: 0 | BO68: 0 | BP68: 0 | BQ68: 0 | BR68: 0 | BT68: =+IF($K68="Ongoing",AX68,IF(RIGHT($K68,2)=RIGHT(BT$39,2),SUM($AX68:AX68),0)+IF(RIGHT(BT$39,2)>RIGHT($K68,2),AX68,0)) -> 0 | BU68: =+IF($K68="Ongoing",AY68,IF(RIGHT($K68,2)=RIGHT(BU$39,2),SUM($AX68:AY68),0)+IF(RIGHT(BU$39,2)>RIGHT($K68,2),AY68,0)) -> 0 | BV68: =+IF($K68="Ongoing",AZ68,IF(RIGHT($K68,2)=RIGHT(BV$39,2),SUM($AX68:AZ68),0)+IF(RIGHT(BV$39,2)>RIGHT($K68,2),AZ68,0)) -> 0 | BW68: =+IF($K68="Ongoing",BA68,IF(RIGHT($K68,2)=RIGHT(BW$39,2),SUM($AX68:BA68),0)+IF(RIGHT(BW$39,2)>RIGHT($K68,2),BA68,0)) -> 0 | BX68: =+IF($K68="Ongoing",BB68,IF(RIGHT($K68,2)=RIGHT(BX$39,2),SUM($AX68:BB68),0)+IF(RIGHT(BX$39,2)>RIGHT($K68,2),BB68,0)) -> 0 | BY68: =+IF($K68="Ongoing",BC68,IF(RIGHT($K68,2)=RIGHT(BY$39,2),SUM($AX68:BC68),0)+IF(RIGHT(BY$39,2)>RIGHT($K68,2),BC68,0)) -> 0 | BZ68: =+IF($K68="Ongoing",BD68,IF(RIGHT($K68,2)=RIGHT(BZ$39,2),SUM($AX68:BD68),0)+IF(RIGHT(BZ$39,2)>RIGHT($K68,2),BD68,0)) -> 0 | CA68: =+IF($K68="Ongoing",BE68,IF(RIGHT($K68,2)=RIGHT(CA$39,2),SUM($AX68:BE68),0)+IF(RIGHT(CA$39,2)>RIGHT($K68,2),BE68,0)) -> 0 | CB68: =+IF($K68="Ongoing",BF68,IF(RIGHT($K68,2)=RIGHT(CB$39,2),SUM($AX68:BF68),0)+IF(RIGHT(CB$39,2)>RIGHT($K68,2),BF68,0)) -> 0 | CC68: =+IF($K68="Ongoing",BG68,IF(RIGHT($K68,2)=RIGHT(CC$39,2),SUM($AX68:BG68),0)+IF(RIGHT(CC$39,2)>RIGHT($K68,2),BG68,0)) -> 0 | CE68: =+Q68*KeyAssumptionsPriceControl_FO!AC$15 -> 0 | CF68: =+R68*KeyAssumptionsPriceControl_FO!AD$15 -> 0 | CG68: =+S68*KeyAssumptionsPriceControl_FO!AE$15 -> 0 | CH68: =+T68*KeyAssumptionsPriceControl_FO!AF$15 -> 0 | CI68: =+U68*KeyAssumptionsPriceControl_FO!AG$15 -> 0 | CJ68: =+V68*KeyAssumptionsPriceControl_FO!AH$15 -> 0 | CK68: =+W68*KeyAssumptionsPriceControl_FO!AI$15 -> 0 | CL68: =+X68*KeyAssumptionsPriceControl_FO!AJ$15 -> 0 | CM68: =+Y68*KeyAssumptionsPriceControl_FO!AK$15 -> 0 | CN68: =+Z68*KeyAssumptionsPriceControl_FO!AL$15 -> 0 | CP68: 0 | CQ68: 0 | CR68: 0 | CS68: 0 | CT68: 0 | CU68: 0 | CV68: 0 | CW68: 0 | CX68: 0 | CY68: 0
C69: Drinking Water Infrastructure | E69: Water | F69: Growth | G69: Pipelines/network | H69: Capital Programs / Allocation | J69: Straight line | K69: Ongoing | L69: 1000000 | M69: 90 | Q69: 10.55140547 | R69: 17.1536975 | S69: 19.79180576 | T69: 22.9083679 | U69: 28.1658386 | V69: 42.75925637 | W69: 41.54217945 | X69: 29.99218331 | Y69: 20.57103817 | Z69: 29.15524626 | AM69: 13.81040337 | AN69: 14.4125432 | AO69: 15.0473642 | AP69: 15.7009413 | AQ69: 16.40991574 | AR69: 17.19641466 | AS69: 17.98899051 | AT69: 18.840425 | AU69: 19.73582972 | AV69: 20.6977543 | AX69: -3.258997899 | AY69: 2.741154299 | AZ69: 4.744441559 | BA69: 7.207426602 | BB69: 11.75592286 | BC69: 25.56284171 | BD69: 23.55318894 | BE69: 11.15175831 | BF69: 0.8352084538 | BG69: 8.457491953 | BI69: -1.629498949e-06 | BJ69: -1.888420749e-06 | BK69: 1.85437718e-06 | BL69: 7.83031126e-06 | BM69: 1.731198599e-05 | BN69: 3.597136827e-05 | BO69: 6.052938359e-05 | BP69: 7.788185722e-05 | BQ69: 8.38753406e-05 | BR69: 8.85216908e-05 | BT69: =+IF($K69="Ongoing",AX69,IF(RIGHT($K69,2)=RIGHT(BT$39,2),SUM($AX69:AX69),0)+IF(RIGHT(BT$39,2)>RIGHT($K69,2),AX69,0)) -> -3.258997899 | BU69: =+IF($K69="Ongoing",AY69,IF(RIGHT($K69,2)=RIGHT(BU$39,2),SUM($AX69:AY69),0)+IF(RIGHT(BU$39,2)>RIGHT($K69,2),AY69,0)) -> 2.741154299 | BV69: =+IF($K69="Ongoing",AZ69,IF(RIGHT($K69,2)=RIGHT(BV$39,2),SUM($AX69:AZ69),0)+IF(RIGHT(BV$39,2)>RIGHT($K69,2),AZ69,0)) -> 4.744441559 | BW69: =+IF($K69="Ongoing",BA69,IF(RIGHT($K69,2)=RIGHT(BW$39,2),SUM($AX69:BA69),0)+IF(RIGHT(BW$39,2)>RIGHT($K69,2),BA69,0)) -> 7.207426602 | BX69: =+IF($K69="Ongoing",BB69,IF(RIGHT($K69,2)=RIGHT(BX$39,2),SUM($AX69:BB69),0)+IF(RIGHT(BX$39,2)>RIGHT($K69,2),BB69,0)) -> 11.75592286 | BY69: =+IF($K69="Ongoing",BC69,IF(RIGHT($K69,2)=RIGHT(BY$39,2),SUM($AX69:BC69),0)+IF(RIGHT(BY$39,2)>RIGHT($K69,2),BC69,0)) -> 25.56284171 | BZ69: =+IF($K69="Ongoing",BD69,IF(RIGHT($K69,2)=RIGHT(BZ$39,2),SUM($AX69:BD69),0)+IF(RIGHT(BZ$39,2)>RIGHT($K69,2),BD69,0)) -> 23.55318894 | CA69: =+IF($K69="Ongoing",BE69,IF(RIGHT($K69,2)=RIGHT(CA$39,2),SUM($AX69:BE69),0)+IF(RIGHT(CA$39,2)>RIGHT($K69,2),BE69,0)) -> 11.15175831 | CB69: =+IF($K69="Ongoing",BF69,IF(RIGHT($K69,2)=RIGHT(CB$39,2),SUM($AX69:BF69),0)+IF(RIGHT(CB$39,2)>RIGHT($K69,2),BF69,0)) -> 0.8352084538 | CC69: =+IF($K69="Ongoing",BG69,IF(RIGHT($K69,2)=RIGHT(CC$39,2),SUM($AX69:BG69),0)+IF(RIGHT(CC$39,2)>RIGHT($K69,2),BG69,0)) -> 8.457491953 | CE69: =+Q69*KeyAssumptionsPriceControl_FO!AC$15 -> 10.86794763 | CF69: =+R69*KeyAssumptionsPriceControl_FO!AD$15 -> 18.19835767 | CG69: =+S69*KeyAssumptionsPriceControl_FO!AE$15 -> 21.62704053 | CH69: =+T69*KeyAssumptionsPriceControl_FO!AF$15 -> 25.7835699 | CI69: =+U69*KeyAssumptionsPriceControl_FO!AG$15 -> 32.65192647 | CJ69: =+V69*KeyAssumptionsPriceControl_FO!AH$15 -> 51.05678826 | CK69: =+W69*KeyAssumptionsPriceControl_FO!AI$15 -> 51.09164082 | CL69: =+X69*KeyAssumptionsPriceControl_FO!AJ$15 -> 37.99320049 | CM69: =+Y69*KeyAssumptionsPriceControl_FO!AK$15 -> 26.84053897 | CN69: =+Z69*KeyAssumptionsPriceControl_FO!AL$15 -> 39.18221299 | CP69: 0.06037748685 | CQ69: 0.2218569608 | CR69: 0.443109173 | CS69: 0.7065014532 | CT69: 1.0311431 | CU69: 1.496191515 | CV69: 2.063682788 | CW69: 2.558598573 | CX69: 2.918786014 | CY69: 3.285579081
C70: Recycled Water Infrastructure | E70: Recycled Water | F70: Growth | G70: Pipelines/network | H70: Capital Programs / Allocation | J70: Straight line | K70: Ongoing | L70: 1000000 | M70: 90 | Q70: 11.0625665 | R70: 21.54584575 | S70: 16.23668073 | T70: 14.44931685 | U70: 21.007948 | V70: 35.78968567 | W70: 60.0269341 | X70: 91.31211666 | Y70: 57.80161309 | Z70: 22.27086221 | AM70: 2.765412187 | AN70: 2.903682797 | AO70: 3.048866936 | AP70: 3.198156283 | AQ70: 3.358064097 | AR70: 3.529444587 | AS70: 3.702265667 | AT70: 3.88737895 | AU70: 4.081747898 | AV70: 4.290061955 | AX70: 8.297154308 | AY70: 18.64216295 | AZ70: 13.18781379 | BA70: 11.25116057 | BB70: 17.6498839 | BC70: 32.26024108 | BD70: 56.32466843 | BE70: 87.42473771 | BF70: 53.71986519 | BG70: 17.98080026 | BI70: 4.148577154e-06 | BJ70: 1.761823578e-05 | BK70: 3.353322416e-05 | BL70: 4.575271134e-05 | BM70: 6.020323358e-05 | BN70: 8.515829607e-05 | BO70: 0.0001294507508 | BP70: 0.0002013254539 | BQ70: 0.0002718977554 | BR70: 0.0003077480881 | BT70: =+IF($K70="Ongoing",AX70,IF(RIGHT($K70,2)=RIGHT(BT$39,2),SUM($AX70:AX70),0)+IF(RIGHT(BT$39,2)>RIGHT($K70,2),AX70,0)) -> 8.297154308 | BU70: =+IF($K70="Ongoing",AY70,IF(RIGHT($K70,2)=RIGHT(BU$39,2),SUM($AX70:AY70),0)+IF(RIGHT(BU$39,2)>RIGHT($K70,2),AY70,0)) -> 18.64216295 | BV70: =+IF($K70="Ongoing",AZ70,IF(RIGHT($K70,2)=RIGHT(BV$39,2),SUM($AX70:AZ70),0)+IF(RIGHT(BV$39,2)>RIGHT($K70,2),AZ70,0)) -> 13.18781379 | BW70: =+IF($K70="Ongoing",BA70,IF(RIGHT($K70,2)=RIGHT(BW$39,2),SUM($AX70:BA70),0)+IF(RIGHT(BW$39,2)>RIGHT($K70,2),BA70,0)) -> 11.25116057 | BX70: =+IF($K70="Ongoing",BB70,IF(RIGHT($K70,2)=RIGHT(BX$39,2),SUM($AX70:BB70),0)+IF(RIGHT(BX$39,2)>RIGHT($K70,2),BB70,0)) -> 17.6498839 | BY70: =+IF($K70="Ongoing",BC70,IF(RIGHT($K70,2)=RIGHT(BY$39,2),SUM($AX70:BC70),0)+IF(RIGHT(BY$39,2)>RIGHT($K70,2),BC70,0)) -> 32.26024108 | BZ70: =+IF($K70="Ongoing",BD70,IF(RIGHT($K70,2)=RIGHT(BZ$39,2),SUM($AX70:BD70),0)+IF(RIGHT(BZ$39,2)>RIGHT($K70,2),BD70,0)) -> 56.32466843 | CA70: =+IF($K70="Ongoing",BE70,IF(RIGHT($K70,2)=RIGHT(CA$39,2),SUM($AX70:BE70),0)+IF(RIGHT(CA$39,2)>RIGHT($K70,2),BE70,0)) -> 87.42473771 | CB70: =+IF($K70="Ongoing",BF70,IF(RIGHT($K70,2)=RIGHT(CB$39,2),SUM($AX70:BF70),0)+IF(RIGHT(CB$39,2)>RIGHT($K70,2),BF70,0)) -> 53.71986519 | CC70: =+IF($K70="Ongoing",BG70,IF(RIGHT($K70,2)=RIGHT(CC$39,2),SUM($AX70:BG70),0)+IF(RIGHT(CC$39,2)>RIGHT($K70,2),BG70,0)) -> 17.98080026 | CE70: =+Q70*KeyAssumptionsPriceControl_FO!AC$15 -> 11.39444349 | CF70: =+R70*KeyAssumptionsPriceControl_FO!AD$15 -> 22.85798775 | CG70: =+S70*KeyAssumptionsPriceControl_FO!AE$15 -> 17.74225942 | CH70: =+T70*KeyAssumptionsPriceControl_FO!AF$15 -> 16.26283342 | CI70: =+U70*KeyAssumptionsPriceControl_FO!AG$15 -> 24.35396947 | CJ70: =+V70*KeyAssumptionsPriceControl_FO!AH$15 -> 42.73475637 | CK70: =+W70*KeyAssumptionsPriceControl_FO!AI$15 -> 73.82555747 | CL70: =+X70*KeyAssumptionsPriceControl_FO!AJ$15 -> 115.6714575 | CM70: =+Y70*KeyAssumptionsPriceControl_FO!AK$15 -> 75.41799474 | CN70: =+Z70*KeyAssumptionsPriceControl_FO!AL$15 -> 29.93017651 | CP70: 0.06330246384 | CQ70: 0.2535937485 | CR70: 0.4791506773 | CS70: 0.6680678597 | CT70: 0.8937167647 | CU70: 1.266431908 | CV70: 1.913989207 | CW70: 2.966750401 | CX70: 4.028358469 | CY70: 4.613626087
C71: Sewerage Infrastrucutre | E71: Sewerage | F71: Growth | G71: Pipelines/network | H71: Capital Programs / Allocation | J71: Straight line | K71: Ongoing | L71: 1000000 | M71: 100 | Q71: 22.20914936 | R71: 21.71962847 | S71: 31.8195575 | T71: 27.91055926 | U71: 13.21583111 | V71: 31.47982455 | W71: 35.64654016 | X71: 74.97457799 | Y71: 95.82444965 | Z71: 42.29150889 | AM71: 13.78961683 | AN71: 14.39071733 | AO71: 15.02444704 | AP71: 15.67690199 | AQ71: 16.38467447 | AR71: 17.16988519 | AS71: 17.96116201 | AT71: 18.81120508 | AU71: 19.70514879 | AV71: 20.66550756 | AX71: 8.419532534 | AY71: 7.328911142 | AZ71: 16.79511045 | BA71: 12.23365727 | BB71: -3.168843357 | BC71: 14.30993936 | BD71: 17.68537815 | BE71: 56.16337292 | BF71: 76.11930085 | BG71: 21.62600133 | BI71: 4.209766267e-06 | BJ71: 1.20839881e-05 | BK71: 2.41459989e-05 | BL71: 3.866038276e-05 | BM71: 4.319278972e-05 | BN71: 4.876333772e-05 | BO71: 6.476099648e-05 | BP71: 0.000101685372 | BQ71: 0.0001678267089 | BR71: 0.00021669936 | BT71: =+IF($K71="Ongoing",AX71,IF(RIGHT($K71,2)=RIGHT(BT$39,2),SUM($AX71:AX71),0)+IF(RIGHT(BT$39,2)>RIGHT($K71,2),AX71,0)) -> 8.419532534 | BU71: =+IF($K71="Ongoing",AY71,IF(RIGHT($K71,2)=RIGHT(BU$39,2),SUM($AX71:AY71),0)+IF(RIGHT(BU$39,2)>RIGHT($K71,2),AY71,0)) -> 7.328911142 | BV71: =+IF($K71="Ongoing",AZ71,IF(RIGHT($K71,2)=RIGHT(BV$39,2),SUM($AX71:AZ71),0)+IF(RIGHT(BV$39,2)>RIGHT($K71,2),AZ71,0)) -> 16.79511045 | BW71: =+IF($K71="Ongoing",BA71,IF(RIGHT($K71,2)=RIGHT(BW$39,2),SUM($AX71:BA71),0)+IF(RIGHT(BW$39,2)>RIGHT($K71,2),BA71,0)) -> 12.23365727 | BX71: =+IF($K71="Ongoing",BB71,IF(RIGHT($K71,2)=RIGHT(BX$39,2),SUM($AX71:BB71),0)+IF(RIGHT(BX$39,2)>RIGHT($K71,2),BB71,0)) -> -3.168843357 | BY71: =+IF($K71="Ongoing",BC71,IF(RIGHT($K71,2)=RIGHT(BY$39,2),SUM($AX71:BC71),0)+IF(RIGHT(BY$39,2)>RIGHT($K71,2),BC71,0)) -> 14.30993936 | BZ71: =+IF($K71="Ongoing",BD71,IF(RIGHT($K71,2)=RIGHT(BZ$39,2),SUM($AX71:BD71),0)+IF(RIGHT(BZ$39,2)>RIGHT($K71,2),BD71,0)) -> 17.68537815 | CA71: =+IF($K71="Ongoing",BE71,IF(RIGHT($K71,2)=RIGHT(CA$39,2),SUM($AX71:BE71),0)+IF(RIGHT(CA$39,2)>RIGHT($K71,2),BE71,0)) -> 56.16337292 | CB71: =+IF($K71="Ongoing",BF71,IF(RIGHT($K71,2)=RIGHT(CB$39,2),SUM($AX71:BF71),0)+IF(RIGHT(CB$39,2)>RIGHT($K71,2),BF71,0)) -> 76.11930085 | CC71: =+IF($K71="Ongoing",BG71,IF(RIGHT($K71,2)=RIGHT(CC$39,2),SUM($AX71:BG71),0)+IF(RIGHT(CC$39,2)>RIGHT($K71,2),BG71,0)) -> 21.62600133 | CE71: =+Q71*KeyAssumptionsPriceControl_FO!AC$15 -> 22.87542385 | CF71: =+R71*KeyAssumptionsPriceControl_FO!AD$15 -> 23.04235385 | CG71: =+S71*KeyAssumptionsPriceControl_FO!AE$15 -> 34.77008961 | CH71: =+T71*KeyAssumptionsPriceControl_FO!AF$15 -> 31.41358034 | CI71: =+U71*KeyAssumptionsPriceControl_FO!AG$15 -> 15.32077038 | CJ71: =+V71*KeyAssumptionsPriceControl_FO!AH$15 -> 37.5885568 | CK71: =+W71*KeyAssumptionsPriceControl_FO!AI$15 -> 43.84074813 | CL71: =+X71*KeyAssumptionsPriceControl_FO!AJ$15 -> 94.97555227 | CM71: =+Y71*KeyAssumptionsPriceControl_FO!AK$15 -> 125.0291723 | CN71: =+Z71*KeyAssumptionsPriceControl_FO!AL$15 -> 56.83625151 | CP71: 0.1143771192 | CQ71: 0.3439660077 | CR71: 0.633028225 | CS71: 0.9639465747 | CT71: 1.197618328 | CU71: 1.462164964 | CV71: 1.869311489 | CW71: 2.563392991 | CX71: 3.663416613 | CY71: 4.572743732
C72: New Customer Meters | E72: Water | F72: Growth | G72: Pipelines/network | H72: Capital Programs / Allocation | J72: Straight line | K72: Ongoing | L72: 18 | M72: 18 | Q72: 13.45139955 | R72: 13.45139955 | S72: 13.45139955 | T72: 13.45139955 | U72: 13.45139955 | V72: 15.55318073 | W72: 15.55318073 | X72: 15.55318073 | Y72: 15.55318073 | Z72: 15.55318073 | AM72: 13.45139955 | AN72: 13.45139955 | AO72: 13.45139955 | AP72: 13.45139955 | AQ72: 13.45139955 | AR72: 15.55318073 | AS72: 15.55318073 | AT72: 15.55318073 | AU72: 15.55318073 | AV72: 15.55318073 | AX72: 0 | AY72: 0 | AZ72: 0 | BA72: 0 | BB72: 0 | BC72: 0 | BD72: 0 | BE72: 0 | BF72: 0 | BG72: 0 | BI72: 0 | BJ72: 0 | BK72: 0 | BL72: 0 | BM72: 0 | BN72: 0 | BO72: 0 | BP72: 0 | BQ72: 0 | BR72: 0 | BT72: =+IF($K72="Ongoing",AX72,IF(RIGHT($K72,2)=RIGHT(BT$39,2),SUM($AX72:AX72),0)+IF(RIGHT(BT$39,2)>RIGHT($K72,2),AX72,0)) -> 0 | BU72: =+IF($K72="Ongoing",AY72,IF(RIGHT($K72,2)=RIGHT(BU$39,2),SUM($AX72:AY72),0)+IF(RIGHT(BU$39,2)>RIGHT($K72,2),AY72,0)) -> 0 | BV72: =+IF($K72="Ongoing",AZ72,IF(RIGHT($K72,2)=RIGHT(BV$39,2),SUM($AX72:AZ72),0)+IF(RIGHT(BV$39,2)>RIGHT($K72,2),AZ72,0)) -> 0 | BW72: =+IF($K72="Ongoing",BA72,IF(RIGHT($K72,2)=RIGHT(BW$39,2),SUM($AX72:BA72),0)+IF(RIGHT(BW$39,2)>RIGHT($K72,2),BA72,0)) -> 0 | BX72: =+IF($K72="Ongoing",BB72,IF(RIGHT($K72,2)=RIGHT(BX$39,2),SUM($AX72:BB72),0)+IF(RIGHT(BX$39,2)>RIGHT($K72,2),BB72,0)) -> 0 | BY72: =+IF($K72="Ongoing",BC72,IF(RIGHT($K72,2)=RIGHT(BY$39,2),SUM($AX72:BC72),0)+IF(RIGHT(BY$39,2)>RIGHT($K72,2),BC72,0)) -> 0 | BZ72: =+IF($K72="Ongoing",BD72,IF(RIGHT($K72,2)=RIGHT(BZ$39,2),SUM($AX72:BD72),0)+IF(RIGHT(BZ$39,2)>RIGHT($K72,2),BD72,0)) -> 0 | CA72: =+IF($K72="Ongoing",BE72,IF(RIGHT($K72,2)=RIGHT(CA$39,2),SUM($AX72:BE72),0)+IF(RIGHT(CA$39,2)>RIGHT($K72,2),BE72,0)) -> 0 | CB72: =+IF($K72="Ongoing",BF72,IF(RIGHT($K72,2)=RIGHT(CB$39,2),SUM($AX72:BF72),0)+IF(RIGHT(CB$39,2)>RIGHT($K72,2),BF72,0)) -> 0 | CC72: =+IF($K72="Ongoing",BG72,IF(RIGHT($K72,2)=RIGHT(CC$39,2),SUM($AX72:BG72),0)+IF(RIGHT(CC$39,2)>RIGHT($K72,2),BG72,0)) -> 0 | CE72: =+Q72*KeyAssumptionsPriceControl_FO!AC$15 -> 13.85494154 | CF72: =+R72*KeyAssumptionsPriceControl_FO!AD$15 -> 14.27058978 | CG72: =+S72*KeyAssumptionsPriceControl_FO!AE$15 -> 14.69870748 | CH72: =+T72*KeyAssumptionsPriceControl_FO!AF$15 -> 15.1396687 | CI72: =+U72*KeyAssumptionsPriceControl_FO!AG$15 -> 15.59385876 | CJ72: =+V72*KeyAssumptionsPriceControl_FO!AH$15 -> 18.57131117 | CK72: =+W72*KeyAssumptionsPriceControl_FO!AI$15 -> 19.12845051 | CL72: =+X72*KeyAssumptionsPriceControl_FO!AJ$15 -> 19.70230402 | CM72: =+Y72*KeyAssumptionsPriceControl_FO!AK$15 -> 20.29337314 | CN72: =+Z72*KeyAssumptionsPriceControl_FO!AL$15 -> 20.90217434 | CP72: 0.3848594872 | CQ72: 1.166124246 | CR72: 1.970826948 | CS72: 2.799670731 | CT72: 3.653379827 | CU72: 4.602412325 | CV72: 5.649627927 | CW72: 6.728259998 | CX72: 7.83925103 | CY72: 8.983571793
C73: Temporary Assets (financed by others) | E73: Sewerage | F73: Growth | G73: Pipelines/network | H73: Capital Programs / Allocation | J73: Straight line | K73: Ongoing | L73: 15 | M73: 15 | Q73: 2.206870239 | R73: 0.315267177 | S73: 1.786514003 | T73: 4.308651419 | U73: 1.05089059 | V73: 0 | W73: 0 | X73: 0 | Y73: 0 | Z73: 0 | AM73: 2.206870239 | AN73: 0.315267177 | AO73: 1.786514003 | AP73: 4.308651419 | AQ73: 1.05089059 | AR73: 0 | AS73: 0 | AT73: 0 | AU73: 0 | AV73: 0 | AX73: 0 | AY73: 0 | AZ73: 0 | BA73: 0 | BB73: 0 | BC73: 0 | BD73: 0 | BE73: 0 | BF73: 0 | BG73: 0 | BI73: 0 | BJ73: 0 | BK73: 0 | BL73: 0 | BM73: 0 | BN73: 0 | BO73: 0 | BP73: 0 | BQ73: 0 | BR73: 0 | BT73: =+IF($K73="Ongoing",AX73,IF(RIGHT($K73,2)=RIGHT(BT$39,2),SUM($AX73:AX73),0)+IF(RIGHT(BT$39,2)>RIGHT($K73,2),AX73,0)) -> 0 | BU73: =+IF($K73="Ongoing",AY73,IF(RIGHT($K73,2)=RIGHT(BU$39,2),SUM($AX73:AY73),0)+IF(RIGHT(BU$39,2)>RIGHT($K73,2),AY73,0)) -> 0 | BV73: =+IF($K73="Ongoing",AZ73,IF(RIGHT($K73,2)=RIGHT(BV$39,2),SUM($AX73:AZ73),0)+IF(RIGHT(BV$39,2)>RIGHT($K73,2),AZ73,0)) -> 0 | BW73: =+IF($K73="Ongoing",BA73,IF(RIGHT($K73,2)=RIGHT(BW$39,2),SUM($AX73:BA73),0)+IF(RIGHT(BW$39,2)>RIGHT($K73,2),BA73,0)) -> 0 | BX73: =+IF($K73="Ongoing",BB73,IF(RIGHT($K73,2)=RIGHT(BX$39,2),SUM($AX73:BB73),0)+IF(RIGHT(BX$39,2)>RIGHT($K73,2),BB73,0)) -> 0 | BY73: =+IF($K73="Ongoing",BC73,IF(RIGHT($K73,2)=RIGHT(BY$39,2),SUM($AX73:BC73),0)+IF(RIGHT(BY$39,2)>RIGHT($K73,2),BC73,0)) -> 0 | BZ73: =+IF($K73="Ongoing",BD73,IF(RIGHT($K73,2)=RIGHT(BZ$39,2),SUM($AX73:BD73),0)+IF(RIGHT(BZ$39,2)>RIGHT($K73,2),BD73,0)) -> 0 | CA73: =+IF($K73="Ongoing",BE73,IF(RIGHT($K73,2)=RIGHT(CA$39,2),SUM($AX73:BE73),0)+IF(RIGHT(CA$39,2)>RIGHT($K73,2),BE73,0)) -> 0 | CB73: =+IF($K73="Ongoing",BF73,IF(RIGHT($K73,2)=RIGHT(CB$39,2),SUM($AX73:BF73),0)+IF(RIGHT(CB$39,2)>RIGHT($K73,2),BF73,0)) -> 0 | CC73: =+IF($K73="Ongoing",BG73,IF(RIGHT($K73,2)=RIGHT(CC$39,2),SUM($AX73:BG73),0)+IF(RIGHT(CC$39,2)>RIGHT($K73,2),BG73,0)) -> 0 | CE73: =+Q73*KeyAssumptionsPriceControl_FO!AC$15 -> 2.273076346 | CF73: =+R73*KeyAssumptionsPriceControl_FO!AD$15 -> 0.3344669481 | CG73: =+S73*KeyAssumptionsPriceControl_FO!AE$15 -> 1.952172087 | CH73: =+T73*KeyAssumptionsPriceControl_FO!AF$15 -> 4.849425131 | CI73: =+U73*KeyAssumptionsPriceControl_FO!AG$15 -> 1.218270216 | CJ73: =+V73*KeyAssumptionsPriceControl_FO!AH$15 -> 0 | CK73: =+W73*KeyAssumptionsPriceControl_FO!AI$15 -> 0 | CL73: =+X73*KeyAssumptionsPriceControl_FO!AJ$15 -> 0 | CM73: =+Y73*KeyAssumptionsPriceControl_FO!AK$15 -> 0 | CN73: =+Z73*KeyAssumptionsPriceControl_FO!AL$15 -> 0 | CP73: 0.07576921154 | CQ73: 0.1626873213 | CR73: 0.2389086225 | CS73: 0.4656285298 | CT73: 0.6678850414 | CU73: 0.7084940486 | CV73: 0.7084940486 | CW73: 0.7084940486 | CX73: 0.7084940486 | CY73: 0.7084940486
J74: Straight line | AX74: 0 | AY74: 0 | AZ74: 0 | BA74: 0 | BB74: 0 | BC74: 0 | BD74: 0 | BE74: 0 | BF74: 0 | BG74: 0 | BI74: 0 | BJ74: 0 | BK74: 0 | BL74: 0 | BM74: 0 | BN74: 0 | BO74: 0 | BP74: 0 | BQ74: 0 | BR74: 0 | BT74: =+IF($K74="Ongoing",AX74,IF(RIGHT($K74,2)=RIGHT(BT$39,2),SUM($AX74:AX74),0)+IF(RIGHT(BT$39,2)>RIGHT($K74,2),AX74,0)) -> 0 | BU74: =+IF($K74="Ongoing",AY74,IF(RIGHT($K74,2)=RIGHT(BU$39,2),SUM($AX74:AY74),0)+IF(RIGHT(BU$39,2)>RIGHT($K74,2),AY74,0)) -> 0 | BV74: =+IF($K74="Ongoing",AZ74,IF(RIGHT($K74,2)=RIGHT(BV$39,2),SUM($AX74:AZ74),0)+IF(RIGHT(BV$39,2)>RIGHT($K74,2),AZ74,0)) -> 0 | BW74: =+IF($K74="Ongoing",BA74,IF(RIGHT($K74,2)=RIGHT(BW$39,2),SUM($AX74:BA74),0)+IF(RIGHT(BW$39,2)>RIGHT($K74,2),BA74,0)) -> 0 | BX74: =+IF($K74="Ongoing",BB74,IF(RIGHT($K74,2)=RIGHT(BX$39,2),SUM($AX74:BB74),0)+IF(RIGHT(BX$39,2)>RIGHT($K74,2),BB74,0)) -> 0 | BY74: =+IF($K74="Ongoing",BC74,IF(RIGHT($K74,2)=RIGHT(BY$39,2),SUM($AX74:BC74),0)+IF(RIGHT(BY$39,2)>RIGHT($K74,2),BC74,0)) -> 0 | BZ74: =+IF($K74="Ongoing",BD74,IF(RIGHT($K74,2)=RIGHT(BZ$39,2),SUM($AX74:BD74),0)+IF(RIGHT(BZ$39,2)>RIGHT($K74,2),BD74,0)) -> 0 | CA74: =+IF($K74="Ongoing",BE74,IF(RIGHT($K74,2)=RIGHT(CA$39,2),SUM($AX74:BE74),0)+IF(RIGHT(CA$39,2)>RIGHT($K74,2),BE74,0)) -> 0 | CB74: =+IF($K74="Ongoing",BF74,IF(RIGHT($K74,2)=RIGHT(CB$39,2),SUM($AX74:BF74),0)+IF(RIGHT(CB$39,2)>RIGHT($K74,2),BF74,0)) -> 0 | CC74: =+IF($K74="Ongoing",BG74,IF(RIGHT($K74,2)=RIGHT(CC$39,2),SUM($AX74:BG74),0)+IF(RIGHT(CC$39,2)>RIGHT($K74,2),BG74,0)) -> 0 | CE74: =+Q74*KeyAssumptionsPriceControl_FO!AC$15 -> 0 | CF74: =+R74*KeyAssumptionsPriceControl_FO!AD$15 -> 0 | CG74: =+S74*KeyAssumptionsPriceControl_FO!AE$15 -> 0 | CH74: =+T74*KeyAssumptionsPriceControl_FO!AF$15 -> 0 | CI74: =+U74*KeyAssumptionsPriceControl_FO!AG$15 -> 0 | CJ74: =+V74*KeyAssumptionsPriceControl_FO!AH$15 -> 0 | CK74: =+W74*KeyAssumptionsPriceControl_FO!AI$15 -> 0 | CL74: =+X74*KeyAssumptionsPriceControl_FO!AJ$15 -> 0 | CM74: =+Y74*KeyAssumptionsPriceControl_FO!AK$15 -> 0 | CN74: =+Z74*KeyAssumptionsPriceControl_FO!AL$15 -> 0 | CP74: 0 | CQ74: 0 | CR74: 0 | CS74: 0 | CT74: 0 | CU74: 0 | CV74: 0 | CW74: 0 | CX74: 0 | CY74: 0
C75: Business improvements and regulatory compliance programs | J75: Straight line | AX75: 0 | AY75: 0 | AZ75: 0 | BA75: 0 | BB75: 0 | BC75: 0 | BD75: 0 | BE75: 0 | BF75: 0 | BG75: 0 | BI75: 0 | BJ75: 0 | BK75: 0 | BL75: 0 | BM75: 0 | BN75: 0 | BO75: 0 | BP75: 0 | BQ75: 0 | BR75: 0 | BT75: =+IF($K75="Ongoing",AX75,IF(RIGHT($K75,2)=RIGHT(BT$39,2),SUM($AX75:AX75),0)+IF(RIGHT(BT$39,2)>RIGHT($K75,2),AX75,0)) -> 0 | BU75: =+IF($K75="Ongoing",AY75,IF(RIGHT($K75,2)=RIGHT(BU$39,2),SUM($AX75:AY75),0)+IF(RIGHT(BU$39,2)>RIGHT($K75,2),AY75,0)) -> 0 | BV75: =+IF($K75="Ongoing",AZ75,IF(RIGHT($K75,2)=RIGHT(BV$39,2),SUM($AX75:AZ75),0)+IF(RIGHT(BV$39,2)>RIGHT($K75,2),AZ75,0)) -> 0 | BW75: =+IF($K75="Ongoing",BA75,IF(RIGHT($K75,2)=RIGHT(BW$39,2),SUM($AX75:BA75),0)+IF(RIGHT(BW$39,2)>RIGHT($K75,2),BA75,0)) -> 0 | BX75: =+IF($K75="Ongoing",BB75,IF(RIGHT($K75,2)=RIGHT(BX$39,2),SUM($AX75:BB75),0)+IF(RIGHT(BX$39,2)>RIGHT($K75,2),BB75,0)) -> 0 | BY75: =+IF($K75="Ongoing",BC75,IF(RIGHT($K75,2)=RIGHT(BY$39,2),SUM($AX75:BC75),0)+IF(RIGHT(BY$39,2)>RIGHT($K75,2),BC75,0)) -> 0 | BZ75: =+IF($K75="Ongoing",BD75,IF(RIGHT($K75,2)=RIGHT(BZ$39,2),SUM($AX75:BD75),0)+IF(RIGHT(BZ$39,2)>RIGHT($K75,2),BD75,0)) -> 0 | CA75: =+IF($K75="Ongoing",BE75,IF(RIGHT($K75,2)=RIGHT(CA$39,2),SUM($AX75:BE75),0)+IF(RIGHT(CA$39,2)>RIGHT($K75,2),BE75,0)) -> 0 | CB75: =+IF($K75="Ongoing",BF75,IF(RIGHT($K75,2)=RIGHT(CB$39,2),SUM($AX75:BF75),0)+IF(RIGHT(CB$39,2)>RIGHT($K75,2),BF75,0)) -> 0 | CC75: =+IF($K75="Ongoing",BG75,IF(RIGHT($K75,2)=RIGHT(CC$39,2),SUM($AX75:BG75),0)+IF(RIGHT(CC$39,2)>RIGHT($K75,2),BG75,0)) -> 0 | CE75: =+Q75*KeyAssumptionsPriceControl_FO!AC$15 -> 0 | CF75: =+R75*KeyAssumptionsPriceControl_FO!AD$15 -> 0 | CG75: =+S75*KeyAssumptionsPriceControl_FO!AE$15 -> 0 | CH75: =+T75*KeyAssumptionsPriceControl_FO!AF$15 -> 0 | CI75: =+U75*KeyAssumptionsPriceControl_FO!AG$15 -> 0 | CJ75: =+V75*KeyAssumptionsPriceControl_FO!AH$15 -> 0 | CK75: =+W75*KeyAssumptionsPriceControl_FO!AI$15 -> 0 | CL75: =+X75*KeyAssumptionsPriceControl_FO!AJ$15 -> 0 | CM75: =+Y75*KeyAssumptionsPriceControl_FO!AK$15 -> 0 | CN75: =+Z75*KeyAssumptionsPriceControl_FO!AL$15 -> 0 | CP75: 0 | CQ75: 0 | CR75: 0 | CS75: 0 | CT75: 0 | CU75: 0 | CV75: 0 | CW75: 0 | CX75: 0 | CY75: 0
C76: Safe and Pleasant Water | E76: Water | F76: Improvements / Compliance | G76: Treatment | H76: Capital Programs / Allocation | J76: Straight line | K76: Ongoing | L76: 90 | M76: 90 | Q76: 8.53677754 | R76: 9.168869161 | S76: 9.7904692 | T76: 10.65178825 | U76: 11.10209585 | V76: 11.52 | W76: 11.52 | X76: 11.52 | Y76: 11.52 | Z76: 11.52 | AX76: 8.53677754 | AY76: 9.168869161 | AZ76: 9.7904692 | BA76: 10.65178825 | BB76: 11.10209585 | BC76: 11.52 | BD76: 11.52 | BE76: 11.52 | BF76: 11.52 | BG76: 11.52 | BI76: 0.04742654189 | BJ76: 0.1457912458 | BK76: 0.2511209033 | BL76: 0.3646890003 | BM76: 0.485543912 | BN76: 0.6112222222 | BO76: 0.7392222222 | BP76: 0.8672222222 | BQ76: 0.9952222222 | BR76: 1.123222222 | BT76: =+IF($K76="Ongoing",AX76,IF(RIGHT($K76,2)=RIGHT(BT$39,2),SUM($AX76:AX76),0)+IF(RIGHT(BT$39,2)>RIGHT($K76,2),AX76,0)) -> 8.53677754 | BU76: =+IF($K76="Ongoing",AY76,IF(RIGHT($K76,2)=RIGHT(BU$39,2),SUM($AX76:AY76),0)+IF(RIGHT(BU$39,2)>RIGHT($K76,2),AY76,0)) -> 9.168869161 | BV76: =+IF($K76="Ongoing",AZ76,IF(RIGHT($K76,2)=RIGHT(BV$39,2),SUM($AX76:AZ76),0)+IF(RIGHT(BV$39,2)>RIGHT($K76,2),AZ76,0)) -> 9.7904692 | BW76: =+IF($K76="Ongoing",BA76,IF(RIGHT($K76,2)=RIGHT(BW$39,2),SUM($AX76:BA76),0)+IF(RIGHT(BW$39,2)>RIGHT($K76,2),BA76,0)) -> 10.65178825 | BX76: =+IF($K76="Ongoing",BB76,IF(RIGHT($K76,2)=RIGHT(BX$39,2),SUM($AX76:BB76),0)+IF(RIGHT(BX$39,2)>RIGHT($K76,2),BB76,0)) -> 11.10209585 | BY76: =+IF($K76="Ongoing",BC76,IF(RIGHT($K76,2)=RIGHT(BY$39,2),SUM($AX76:BC76),0)+IF(RIGHT(BY$39,2)>RIGHT($K76,2),BC76,0)) -> 11.52 | BZ76: =+IF($K76="Ongoing",BD76,IF(RIGHT($K76,2)=RIGHT(BZ$39,2),SUM($AX76:BD76),0)+IF(RIGHT(BZ$39,2)>RIGHT($K76,2),BD76,0)) -> 11.52 | CA76: =+IF($K76="Ongoing",BE76,IF(RIGHT($K76,2)=RIGHT(CA$39,2),SUM($AX76:BE76),0)+IF(RIGHT(CA$39,2)>RIGHT($K76,2),BE76,0)) -> 11.52 | CB76: =+IF($K76="Ongoing",BF76,IF(RIGHT($K76,2)=RIGHT(CB$39,2),SUM($AX76:BF76),0)+IF(RIGHT(CB$39,2)>RIGHT($K76,2),BF76,0)) -> 11.52 | CC76: =+IF($K76="Ongoing",BG76,IF(RIGHT($K76,2)=RIGHT(CC$39,2),SUM($AX76:BG76),0)+IF(RIGHT(CC$39,2)>RIGHT($K76,2),BG76,0)) -> 11.52 | CE76: =+Q76*KeyAssumptionsPriceControl_FO!AC$15 -> 8.792880866 | CF76: =+R76*KeyAssumptionsPriceControl_FO!AD$15 -> 9.727253293 | CG76: =+S76*KeyAssumptionsPriceControl_FO!AE$15 -> 10.69831004 | CH76: =+T76*KeyAssumptionsPriceControl_FO!AF$15 -> 11.98868152 | CI76: =+U76*KeyAssumptionsPriceControl_FO!AG$15 -> 12.87037188 | CJ76: =+V76*KeyAssumptionsPriceControl_FO!AH$15 -> 13.75548246 | CK76: =+W76*KeyAssumptionsPriceControl_FO!AI$15 -> 14.16814693 | CL76: =+X76*KeyAssumptionsPriceControl_FO!AJ$15 -> 14.59319134 | CM76: =+Y76*KeyAssumptionsPriceControl_FO!AK$15 -> 15.03098708 | CN76: =+Z76*KeyAssumptionsPriceControl_FO!AL$15 -> 15.48191669 | CP76: 0.04884933814 | CQ76: 0.1517389724 | CR76: 0.2652143242 | CS76: 0.3912531662 | CT76: 0.5293590184 | CU76: 0.6772804314 | CV76: 0.8324117058 | CW76: 0.9921969184 | CX76: 1.156775687 | CY76: 1.326291819
C77: Community Sewerage | E77: Sewerage | F77: Improvements / Compliance | G77: Pipelines/network | H77: Capital Programs / Allocation | J77: Straight line | K77: Ongoing | L77: 100 | M77: 100 | Q77: 19.96692123 | R77: 17.86514006 | S77: 10.50890596 | T77: 9.458015377 | U77: 19.96692123 | V77: 24.17048357 | W77: 24.17048357 | X77: 24.17048357 | Y77: 24.17048357 | Z77: 24.17048357 | AX77: 19.96692123 | AY77: 17.86514006 | AZ77: 10.50890596 | BA77: 9.458015377 | BB77: 19.96692123 | BC77: 24.17048357 | BD77: 24.17048357 | BE77: 24.17048357 | BF77: 24.17048357 | BG77: 24.17048357 | BI77: 0.09983460615 | BJ77: 0.2889949126 | BK77: 0.4308651427 | BL77: 0.5306997494 | BM77: 0.6778244324 | BN77: 0.8985114564 | BO77: 1.140216292 | BP77: 1.381921128 | BQ77: 1.623625964 | BR77: 1.865330799 | BT77: =+IF($K77="Ongoing",AX77,IF(RIGHT($K77,2)=RIGHT(BT$39,2),SUM($AX77:AX77),0)+IF(RIGHT(BT$39,2)>RIGHT($K77,2),AX77,0)) -> 19.96692123 | BU77: =+IF($K77="Ongoing",AY77,IF(RIGHT($K77,2)=RIGHT(BU$39,2),SUM($AX77:AY77),0)+IF(RIGHT(BU$39,2)>RIGHT($K77,2),AY77,0)) -> 17.86514006 | BV77: =+IF($K77="Ongoing",AZ77,IF(RIGHT($K77,2)=RIGHT(BV$39,2),SUM($AX77:AZ77),0)+IF(RIGHT(BV$39,2)>RIGHT($K77,2),AZ77,0)) -> 10.50890596 | BW77: =+IF($K77="Ongoing",BA77,IF(RIGHT($K77,2)=RIGHT(BW$39,2),SUM($AX77:BA77),0)+IF(RIGHT(BW$39,2)>RIGHT($K77,2),BA77,0)) -> 9.458015377 | BX77: =+IF($K77="Ongoing",BB77,IF(RIGHT($K77,2)=RIGHT(BX$39,2),SUM($AX77:BB77),0)+IF(RIGHT(BX$39,2)>RIGHT($K77,2),BB77,0)) -> 19.96692123 | BY77: =+IF($K77="Ongoing",BC77,IF(RIGHT($K77,2)=RIGHT(BY$39,2),SUM($AX77:BC77),0)+IF(RIGHT(BY$39,2)>RIGHT($K77,2),BC77,0)) -> 24.17048357 | BZ77: =+IF($K77="Ongoing",BD77,IF(RIGHT($K77,2)=RIGHT(BZ$39,2),SUM($AX77:BD77),0)+IF(RIGHT(BZ$39,2)>RIGHT($K77,2),BD77,0)) -> 24.17048357 | CA77: =+IF($K77="Ongoing",BE77,IF(RIGHT($K77,2)=RIGHT(CA$39,2),SUM($AX77:BE77),0)+IF(RIGHT(CA$39,2)>RIGHT($K77,2),BE77,0)) -> 24.17048357 | CB77: =+IF($K77="Ongoing",BF77,IF(RIGHT($K77,2)=RIGHT(CB$39,2),SUM($AX77:BF77),0)+IF(RIGHT(CB$39,2)>RIGHT($K77,2),BF77,0)) -> 24.17048357 | CC77: =+IF($K77="Ongoing",BG77,IF(RIGHT($K77,2)=RIGHT(CC$39,2),SUM($AX77:BG77),0)+IF(RIGHT(CC$39,2)>RIGHT($K77,2),BG77,0)) -> 24.17048357 | CE77: =+Q77*KeyAssumptionsPriceControl_FO!AC$15 -> 20.56592887 | CF77: =+R77*KeyAssumptionsPriceControl_FO!AD$15 -> 18.95312709 | CG77: =+S77*KeyAssumptionsPriceControl_FO!AE$15 -> 11.48336528 | CH77: =+T77*KeyAssumptionsPriceControl_FO!AF$15 -> 10.64507963 | CI77: =+U77*KeyAssumptionsPriceControl_FO!AG$15 -> 23.14713412 | CJ77: =+V77*KeyAssumptionsPriceControl_FO!AH$15 -> 28.86082141 | CK77: =+W77*KeyAssumptionsPriceControl_FO!AI$15 -> 29.72664606 | CL77: =+X77*KeyAssumptionsPriceControl_FO!AJ$15 -> 30.61844544 | CM77: =+Y77*KeyAssumptionsPriceControl_FO!AK$15 -> 31.5369988 | CN77: =+Z77*KeyAssumptionsPriceControl_FO!AL$15 -> 32.48310877 | CP77: 0.1028296443 | CQ77: 0.3004249241 | CR77: 0.452607386 | CS77: 0.5632496105 | CT77: 0.7322106793 | CU77: 0.992250457 | CV77: 1.285187794 | CW77: 1.586913252 | CX77: 1.897690473 | CY77: 2.217791011
C78: Sewerage Capacity | E78: Sewerage | F78: Improvements / Compliance | G78: Pipelines/network | H78: Capital Programs / Allocation | J78: Straight line | K78: Ongoing | L78: 100 | M78: 100 | Q78: 2.929588716 | R78: 3.307856783 | S78: 3.425756199 | T78: 5.929030129 | U78: 4.914605442 | V78: 3.537434342 | W78: 4.138995642 | X78: 3.973795641 | Y78: 4.40171829 | Z78: 4.13142923 | AX78: 2.929588716 | AY78: 3.307856783 | AZ78: 3.425756199 | BA78: 5.929030129 | BB78: 4.914605442 | BC78: 3.537434342 | BD78: 4.138995642 | BE78: 3.973795641 | BF78: 4.40171829 | BG78: 4.13142923 | BI78: 0.01464794358 | BJ78: 0.04583517107 | BK78: 0.07950323598 | BL78: 0.1262771676 | BM78: 0.1804953455 | BN78: 0.2227555444 | BO78: 0.2611376943 | BP78: 0.3017016507 | BQ78: 0.3435792204 | BR78: 0.386244958 | BT78: =+IF($K78="Ongoing",AX78,IF(RIGHT($K78,2)=RIGHT(BT$39,2),SUM($AX78:AX78),0)+IF(RIGHT(BT$39,2)>RIGHT($K78,2),AX78,0)) -> 2.929588716 | BU78: =+IF($K78="Ongoing",AY78,IF(RIGHT($K78,2)=RIGHT(BU$39,2),SUM($AX78:AY78),0)+IF(RIGHT(BU$39,2)>RIGHT($K78,2),AY78,0)) -> 3.307856783 | BV78: =+IF($K78="Ongoing",AZ78,IF(RIGHT($K78,2)=RIGHT(BV$39,2),SUM($AX78:AZ78),0)+IF(RIGHT(BV$39,2)>RIGHT($K78,2),AZ78,0)) -> 3.425756199 | BW78: =+IF($K78="Ongoing",BA78,IF(RIGHT($K78,2)=RIGHT(BW$39,2),SUM($AX78:BA78),0)+IF(RIGHT(BW$39,2)>RIGHT($K78,2),BA78,0)) -> 5.929030129 | BX78: =+IF($K78="Ongoing",BB78,IF(RIGHT($K78,2)=RIGHT(BX$39,2),SUM($AX78:BB78),0)+IF(RIGHT(BX$39,2)>RIGHT($K78,2),BB78,0)) -> 4.914605442 | BY78: =+IF($K78="Ongoing",BC78,IF(RIGHT($K78,2)=RIGHT(BY$39,2),SUM($AX78:BC78),0)+IF(RIGHT(BY$39,2)>RIGHT($K78,2),BC78,0)) -> 3.537434342 | BZ78: =+IF($K78="Ongoing",BD78,IF(RIGHT($K78,2)=RIGHT(BZ$39,2),SUM($AX78:BD78),0)+IF(RIGHT(BZ$39,2)>RIGHT($K78,2),BD78,0)) -> 4.138995642 | CA78: =+IF($K78="Ongoing",BE78,IF(RIGHT($K78,2)=RIGHT(CA$39,2),SUM($AX78:BE78),0)+IF(RIGHT(CA$39,2)>RIGHT($K78,2),BE78,0)) -> 3.973795641 | CB78: =+IF($K78="Ongoing",BF78,IF(RIGHT($K78,2)=RIGHT(CB$39,2),SUM($AX78:BF78),0)+IF(RIGHT(CB$39,2)>RIGHT($K78,2),BF78,0)) -> 4.40171829 | CC78: =+IF($K78="Ongoing",BG78,IF(RIGHT($K78,2)=RIGHT(CC$39,2),SUM($AX78:BG78),0)+IF(RIGHT(CC$39,2)>RIGHT($K78,2),BG78,0)) -> 4.13142923 | CE78: =+Q78*KeyAssumptionsPriceControl_FO!AC$15 -> 3.017476377 | CF78: =+R78*KeyAssumptionsPriceControl_FO!AD$15 -> 3.509305262 | CG78: =+S78*KeyAssumptionsPriceControl_FO!AE$15 -> 3.743416294 | CH78: =+T78*KeyAssumptionsPriceControl_FO!AF$15 -> 6.673175645 | CI78: =+U78*KeyAssumptionsPriceControl_FO!AG$15 -> 5.697374674 | CJ78: =+V78*KeyAssumptionsPriceControl_FO!AH$15 -> 4.2238816 | CK78: =+W78*KeyAssumptionsPriceControl_FO!AI$15 -> 5.090442569 | CL78: =+X78*KeyAssumptionsPriceControl_FO!AJ$15 -> 5.033885428 | CM78: =+Y78*KeyAssumptionsPriceControl_FO!AK$15 -> 5.743243987 | CN78: =+Z78*KeyAssumptionsPriceControl_FO!AL$15 -> 5.552295412 | CP78: 0.01508738189 | CQ78: 0.04772129008 | CR78: 0.08398489785 | CS78: 0.1360678575 | CT78: 0.1979206091 | CU78: 0.2475268905 | CV78: 0.2940985114 | CW78: 0.3447201513 | CX78: 0.3986057984 | CY78: 0.4550834954
C79: Sewage Treatment and Recycling | E79: Sewerage | F79: Improvements / Compliance | G79: Treatment | H79: Capital Programs / Allocation | J79: Straight line | K79: Ongoing | L79: 50 | M79: 50 | Q79: 21.61613626 | R79: 16.08565802 | S79: 17.11390106 | T79: 16.54062767 | U79: 13.81475458 | V79: 8.001995889 | W79: 10.75537127 | X79: 9.69622068 | Y79: 6.300141632 | Z79: 7.381192782 | AX79: 21.61613626 | AY79: 16.08565802 | AZ79: 17.11390106 | BA79: 16.54062767 | BB79: 13.81475458 | BC79: 8.001995889 | BD79: 10.75537127 | BE79: 9.69622068 | BF79: 6.300141632 | BG79: 7.381192782 | BI79: 0.2161613626 | BJ79: 0.5931793055 | BK79: 0.9251748964 | BL79: 1.261720184 | BM79: 1.565274006 | BN79: 1.783441511 | BO79: 1.971015182 | BP79: 2.175531102 | BQ79: 2.335494725 | BR79: 2.472308069 | BT79: =+IF($K79="Ongoing",AX79,IF(RIGHT($K79,2)=RIGHT(BT$39,2),SUM($AX79:AX79),0)+IF(RIGHT(BT$39,2)>RIGHT($K79,2),AX79,0)) -> 21.61613626 | BU79: =+IF($K79="Ongoing",AY79,IF(RIGHT($K79,2)=RIGHT(BU$39,2),SUM($AX79:AY79),0)+IF(RIGHT(BU$39,2)>RIGHT($K79,2),AY79,0)) -> 16.08565802 | BV79: =+IF($K79="Ongoing",AZ79,IF(RIGHT($K79,2)=RIGHT(BV$39,2),SUM($AX79:AZ79),0)+IF(RIGHT(BV$39,2)>RIGHT($K79,2),AZ79,0)) -> 17.11390106 | BW79: =+IF($K79="Ongoing",BA79,IF(RIGHT($K79,2)=RIGHT(BW$39,2),SUM($AX79:BA79),0)+IF(RIGHT(BW$39,2)>RIGHT($K79,2),BA79,0)) -> 16.54062767 | BX79: =+IF($K79="Ongoing",BB79,IF(RIGHT($K79,2)=RIGHT(BX$39,2),SUM($AX79:BB79),0)+IF(RIGHT(BX$39,2)>RIGHT($K79,2),BB79,0)) -> 13.81475458 | BY79: =+IF($K79="Ongoing",BC79,IF(RIGHT($K79,2)=RIGHT(BY$39,2),SUM($AX79:BC79),0)+IF(RIGHT(BY$39,2)>RIGHT($K79,2),BC79,0)) -> 8.001995889 | BZ79: =+IF($K79="Ongoing",BD79,IF(RIGHT($K79,2)=RIGHT(BZ$39,2),SUM($AX79:BD79),0)+IF(RIGHT(BZ$39,2)>RIGHT($K79,2),BD79,0)) -> 10.75537127 | CA79: =+IF($K79="Ongoing",BE79,IF(RIGHT($K79,2)=RIGHT(CA$39,2),SUM($AX79:BE79),0)+IF(RIGHT(CA$39,2)>RIGHT($K79,2),BE79,0)) -> 9.69622068 | CB79: =+IF($K79="Ongoing",BF79,IF(RIGHT($K79,2)=RIGHT(CB$39,2),SUM($AX79:BF79),0)+IF(RIGHT(CB$39,2)>RIGHT($K79,2),BF79,0)) -> 6.300141632 | CC79: =+IF($K79="Ongoing",BG79,IF(RIGHT($K79,2)=RIGHT(CC$39,2),SUM($AX79:BG79),0)+IF(RIGHT(CC$39,2)>RIGHT($K79,2),BG79,0)) -> 7.381192782 | CE79: =+Q79*KeyAssumptionsPriceControl_FO!AC$15 -> 22.26462035 | CF79: =+R79*KeyAssumptionsPriceControl_FO!AD$15 -> 17.0652746 | CG79: =+S79*KeyAssumptionsPriceControl_FO!AE$15 -> 18.70082176 | CH79: =+T79*KeyAssumptionsPriceControl_FO!AF$15 -> 18.61662216 | CI79: =+U79*KeyAssumptionsPriceControl_FO!AG$15 -> 16.01508683 | CJ79: =+V79*KeyAssumptionsPriceControl_FO!AH$15 -> 9.554801568 | CK79: =+W79*KeyAssumptionsPriceControl_FO!AI$15 -> 13.22775004 | CL79: =+X79*KeyAssumptionsPriceControl_FO!AJ$15 -> 12.28288226 | CM79: =+Y79*KeyAssumptionsPriceControl_FO!AK$15 -> 8.220255855 | CN79: =+Z79*KeyAssumptionsPriceControl_FO!AL$15 -> 9.919705878 | CP79: 0.2226462035 | CQ79: 0.615945153 | CR79: 0.9736061166 | CS79: 1.346780556 | CT79: 1.693097646 | CU79: 1.94879653 | CV79: 2.176622046 | CW79: 2.431728369 | CX79: 2.63675975 | CY79: 2.818159367
C80: Energy Generation and Emissions | E80: Sewerage | F80: Improvements / Compliance | G80: Corporate | H80: Capital Programs / Allocation | J80: Straight line | K80: Ongoing | L80: 30 | M80: 30 | Q80: 2.375012733 | R80: 0.2648244287 | S80: 0.5590737939 | T80: 0 | U80: 0.105089059 | V80: 0 | W80: 0 | X80: 0 | Y80: 0 | Z80: 0 | AX80: 2.375012733 | AY80: 0.2648244287 | AZ80: 0.5590737939 | BA80: 0 | BB80: 0.105089059 | BC80: 0 | BD80: 0 | BE80: 0 | BF80: 0 | BG80: 0 | BI80: 0.03958354556 | BJ80: 0.08358083159 | BK80: 0.09731246863 | BL80: 0.1066303652 | BM80: 0.1083818495 | BN80: 0.1101333338 | BO80: 0.1101333338 | BP80: 0.1101333338 | BQ80: 0.1101333338 | BR80: 0.1101333338 | BT80: =+IF($K80="Ongoing",AX80,IF(RIGHT($K80,2)=RIGHT(BT$39,2),SUM($AX80:AX80),0)+IF(RIGHT(BT$39,2)>RIGHT($K80,2),AX80,0)) -> 2.375012733 | BU80: =+IF($K80="Ongoing",AY80,IF(RIGHT($K80,2)=RIGHT(BU$39,2),SUM($AX80:AY80),0)+IF(RIGHT(BU$39,2)>RIGHT($K80,2),AY80,0)) -> 0.2648244287 | BV80: =+IF($K80="Ongoing",AZ80,IF(RIGHT($K80,2)=RIGHT(BV$39,2),SUM($AX80:AZ80),0)+IF(RIGHT(BV$39,2)>RIGHT($K80,2),AZ80,0)) -> 0.5590737939 | BW80: =+IF($K80="Ongoing",BA80,IF(RIGHT($K80,2)=RIGHT(BW$39,2),SUM($AX80:BA80),0)+IF(RIGHT(BW$39,2)>RIGHT($K80,2),BA80,0)) -> 0 | BX80: =+IF($K80="Ongoing",BB80,IF(RIGHT($K80,2)=RIGHT(BX$39,2),SUM($AX80:BB80),0)+IF(RIGHT(BX$39,2)>RIGHT($K80,2),BB80,0)) -> 0.105089059 | BY80: =+IF($K80="Ongoing",BC80,IF(RIGHT($K80,2)=RIGHT(BY$39,2),SUM($AX80:BC80),0)+IF(RIGHT(BY$39,2)>RIGHT($K80,2),BC80,0)) -> 0 | BZ80: =+IF($K80="Ongoing",BD80,IF(RIGHT($K80,2)=RIGHT(BZ$39,2),SUM($AX80:BD80),0)+IF(RIGHT(BZ$39,2)>RIGHT($K80,2),BD80,0)) -> 0 | CA80: =+IF($K80="Ongoing",BE80,IF(RIGHT($K80,2)=RIGHT(CA$39,2),SUM($AX80:BE80),0)+IF(RIGHT(CA$39,2)>RIGHT($K80,2),BE80,0)) -> 0 | CB80: =+IF($K80="Ongoing",BF80,IF(RIGHT($K80,2)=RIGHT(CB$39,2),SUM($AX80:BF80),0)+IF(RIGHT(CB$39,2)>RIGHT($K80,2),BF80,0)) -> 0 | CC80: =+IF($K80="Ongoing",BG80,IF(RIGHT($K80,2)=RIGHT(CC$39,2),SUM($AX80:BG80),0)+IF(RIGHT(CC$39,2)>RIGHT($K80,2),BG80,0)) -> 0 | CE80: =+Q80*KeyAssumptionsPriceControl_FO!AC$15 -> 2.446263115 | CF80: =+R80*KeyAssumptionsPriceControl_FO!AD$15 -> 0.2809522364 | CG80: =+S80*KeyAssumptionsPriceControl_FO!AE$15 -> 0.6109150296 | CH80: =+T80*KeyAssumptionsPriceControl_FO!AF$15 -> 0 | CI80: =+U80*KeyAssumptionsPriceControl_FO!AG$15 -> 0.1218270216 | CJ80: =+V80*KeyAssumptionsPriceControl_FO!AH$15 -> 0 | CK80: =+W80*KeyAssumptionsPriceControl_FO!AI$15 -> 0 | CL80: =+X80*KeyAssumptionsPriceControl_FO!AJ$15 -> 0 | CM80: =+Y80*KeyAssumptionsPriceControl_FO!AK$15 -> 0 | CN80: =+Z80*KeyAssumptionsPriceControl_FO!AL$15 -> 0 | CP80: 0.04077105192 | CQ80: 0.08622464112 | CR80: 0.1010890956 | CS80: 0.1112710127 | CT80: 0.1133014631 | CU80: 0.1153319134 | CV80: 0.1153319134 | CW80: 0.1153319134 | CX80: 0.1153319134 | CY80: 0.1153319134
C81: Biodiversity and Regenerative Land Use | E81: Sewerage | F81: Improvements / Compliance | G81: Pipelines/network | H81: Capital Programs / Allocation | J81: Straight line | K81: Ongoing | L81: 1000000 | M81: 1000000 | Q81: 1.944868502 | R81: 2.872121815 | S81: 0.9505000628 | T81: 0.6116782241 | U81: 1.436843821 | V81: 0.9285301442 | W81: 0 | X81: 0 | Y81: 0 | Z81: 0 | AX81: 1.944868502 | AY81: 2.872121815 | AZ81: 0.9505000628 | BA81: 0.6116782241 | BB81: 1.436843821 | BC81: 0.9285301442 | BD81: 0 | BE81: 0 | BF81: 0 | BG81: 0 | BI81: 9.724342512e-07 | BJ81: 3.38092941e-06 | BK81: 5.292240348e-06 | BL81: 6.073329492e-06 | BM81: 7.097590514e-06 | BN81: 8.280277497e-06 | BO81: 8.744542569e-06 | BP81: 8.744542569e-06 | BQ81: 8.744542569e-06 | BR81: 8.744542569e-06 | BT81: =+IF($K81="Ongoing",AX81,IF(RIGHT($K81,2)=RIGHT(BT$39,2),SUM($AX81:AX81),0)+IF(RIGHT(BT$39,2)>RIGHT($K81,2),AX81,0)) -> 1.944868502 | BU81: =+IF($K81="Ongoing",AY81,IF(RIGHT($K81,2)=RIGHT(BU$39,2),SUM($AX81:AY81),0)+IF(RIGHT(BU$39,2)>RIGHT($K81,2),AY81,0)) -> 2.872121815 | BV81: =+IF($K81="Ongoing",AZ81,IF(RIGHT($K81,2)=RIGHT(BV$39,2),SUM($AX81:AZ81),0)+IF(RIGHT(BV$39,2)>RIGHT($K81,2),AZ81,0)) -> 0.9505000628 | BW81: =+IF($K81="Ongoing",BA81,IF(RIGHT($K81,2)=RIGHT(BW$39,2),SUM($AX81:BA81),0)+IF(RIGHT(BW$39,2)>RIGHT($K81,2),BA81,0)) -> 0.6116782241 | BX81: =+IF($K81="Ongoing",BB81,IF(RIGHT($K81,2)=RIGHT(BX$39,2),SUM($AX81:BB81),0)+IF(RIGHT(BX$39,2)>RIGHT($K81,2),BB81,0)) -> 1.436843821 | BY81: =+IF($K81="Ongoing",BC81,IF(RIGHT($K81,2)=RIGHT(BY$39,2),SUM($AX81:BC81),0)+IF(RIGHT(BY$39,2)>RIGHT($K81,2),BC81,0)) -> 0.9285301442 | BZ81: =+IF($K81="Ongoing",BD81,IF(RIGHT($K81,2)=RIGHT(BZ$39,2),SUM($AX81:BD81),0)+IF(RIGHT(BZ$39,2)>RIGHT($K81,2),BD81,0)) -> 0 | CA81: =+IF($K81="Ongoing",BE81,IF(RIGHT($K81,2)=RIGHT(CA$39,2),SUM($AX81:BE81),0)+IF(RIGHT(CA$39,2)>RIGHT($K81,2),BE81,0)) -> 0 | CB81: =+IF($K81="Ongoing",BF81,IF(RIGHT($K81,2)=RIGHT(CB$39,2),SUM($AX81:BF81),0)+IF(RIGHT(CB$39,2)>RIGHT($K81,2),BF81,0)) -> 0 | CC81: =+IF($K81="Ongoing",BG81,IF(RIGHT($K81,2)=RIGHT(CC$39,2),SUM($AX81:BG81),0)+IF(RIGHT(CC$39,2)>RIGHT($K81,2),BG81,0)) -> 0 | CE81: =+Q81*KeyAssumptionsPriceControl_FO!AC$15 -> 2.003214558 | CF81: =+R81*KeyAssumptionsPriceControl_FO!AD$15 -> 3.047034033 | CG81: =+S81*KeyAssumptionsPriceControl_FO!AE$15 -> 1.038637082 | CH81: =+T81*KeyAssumptionsPriceControl_FO!AF$15 -> 0.6884492302 | CI81: =+U81*KeyAssumptionsPriceControl_FO!AG$15 -> 1.66569579 | CJ81: =+V81*KeyAssumptionsPriceControl_FO!AH$15 -> 1.108713551 | CK81: =+W81*KeyAssumptionsPriceControl_FO!AI$15 -> 0 | CL81: =+X81*KeyAssumptionsPriceControl_FO!AJ$15 -> 0 | CM81: =+Y81*KeyAssumptionsPriceControl_FO!AK$15 -> 0 | CN81: =+Z81*KeyAssumptionsPriceControl_FO!AL$15 -> 0 | CP81: 1.001607279e-06 | CQ81: 3.526731574e-06 | CR81: 5.569567132e-06 | CS81: 6.433110288e-06 | CT81: 7.610182798e-06 | CU81: 8.997387469e-06 | CV81: 9.551744244e-06 | CW81: 9.551744244e-06 | CX81: 9.551744244e-06 | CY81: 9.551744244e-06
J82: Straight line | AX82: 0 | AY82: 0 | AZ82: 0 | BA82: 0 | BB82: 0 | BC82: 0 | BD82: 0 | BE82: 0 | BF82: 0 | BG82: 0 | BI82: 0 | BJ82: 0 | BK82: 0 | BL82: 0 | BM82: 0 | BN82: 0 | BO82: 0 | BP82: 0 | BQ82: 0 | BR82: 0 | BT82: =+IF($K82="Ongoing",AX82,IF(RIGHT($K82,2)=RIGHT(BT$39,2),SUM($AX82:AX82),0)+IF(RIGHT(BT$39,2)>RIGHT($K82,2),AX82,0)) -> 0 | BU82: =+IF($K82="Ongoing",AY82,IF(RIGHT($K82,2)=RIGHT(BU$39,2),SUM($AX82:AY82),0)+IF(RIGHT(BU$39,2)>RIGHT($K82,2),AY82,0)) -> 0 | BV82: =+IF($K82="Ongoing",AZ82,IF(RIGHT($K82,2)=RIGHT(BV$39,2),SUM($AX82:AZ82),0)+IF(RIGHT(BV$39,2)>RIGHT($K82,2),AZ82,0)) -> 0 | BW82: =+IF($K82="Ongoing",BA82,IF(RIGHT($K82,2)=RIGHT(BW$39,2),SUM($AX82:BA82),0)+IF(RIGHT(BW$39,2)>RIGHT($K82,2),BA82,0)) -> 0 | BX82: =+IF($K82="Ongoing",BB82,IF(RIGHT($K82,2)=RIGHT(BX$39,2),SUM($AX82:BB82),0)+IF(RIGHT(BX$39,2)>RIGHT($K82,2),BB82,0)) -> 0 | BY82: =+IF($K82="Ongoing",BC82,IF(RIGHT($K82,2)=RIGHT(BY$39,2),SUM($AX82:BC82),0)+IF(RIGHT(BY$39,2)>RIGHT($K82,2),BC82,0)) -> 0 | BZ82: =+IF($K82="Ongoing",BD82,IF(RIGHT($K82,2)=RIGHT(BZ$39,2),SUM($AX82:BD82),0)+IF(RIGHT(BZ$39,2)>RIGHT($K82,2),BD82,0)) -> 0 | CA82: =+IF($K82="Ongoing",BE82,IF(RIGHT($K82,2)=RIGHT(CA$39,2),SUM($AX82:BE82),0)+IF(RIGHT(CA$39,2)>RIGHT($K82,2),BE82,0)) -> 0 | CB82: =+IF($K82="Ongoing",BF82,IF(RIGHT($K82,2)=RIGHT(CB$39,2),SUM($AX82:BF82),0)+IF(RIGHT(CB$39,2)>RIGHT($K82,2),BF82,0)) -> 0 | CC82: =+IF($K82="Ongoing",BG82,IF(RIGHT($K82,2)=RIGHT(CC$39,2),SUM($AX82:BG82),0)+IF(RIGHT(CC$39,2)>RIGHT($K82,2),BG82,0)) -> 0 | CE82: =+Q82*KeyAssumptionsPriceControl_FO!AC$15 -> 0 | CF82: =+R82*KeyAssumptionsPriceControl_FO!AD$15 -> 0 | CG82: =+S82*KeyAssumptionsPriceControl_FO!AE$15 -> 0 | CH82: =+T82*KeyAssumptionsPriceControl_FO!AF$15 -> 0 | CI82: =+U82*KeyAssumptionsPriceControl_FO!AG$15 -> 0 | CJ82: =+V82*KeyAssumptionsPriceControl_FO!AH$15 -> 0 | CK82: =+W82*KeyAssumptionsPriceControl_FO!AI$15 -> 0 | CL82: =+X82*KeyAssumptionsPriceControl_FO!AJ$15 -> 0 | CM82: =+Y82*KeyAssumptionsPriceControl_FO!AK$15 -> 0 | CN82: =+Z82*KeyAssumptionsPriceControl_FO!AL$15 -> 0 | CP82: 0 | CQ82: 0 | CR82: 0 | CS82: 0 | CT82: 0 | CU82: 0 | CV82: 0 | CW82: 0 | CX82: 0 | CY82: 0
J83: Straight line | AX83: 0 | AY83: 0 | AZ83: 0 | BA83: 0 | BB83: 0 | BC83: 0 | BD83: 0 | BE83: 0 | BF83: 0 | BG83: 0 | BI83: 0 | BJ83: 0 | BK83: 0 | BL83: 0 | BM83: 0 | BN83: 0 | BO83: 0 | BP83: 0 | BQ83: 0 | BR83: 0 | BT83: =+IF($K83="Ongoing",AX83,IF(RIGHT($K83,2)=RIGHT(BT$39,2),SUM($AX83:AX83),0)+IF(RIGHT(BT$39,2)>RIGHT($K83,2),AX83,0)) -> 0 | BU83: =+IF($K83="Ongoing",AY83,IF(RIGHT($K83,2)=RIGHT(BU$39,2),SUM($AX83:AY83),0)+IF(RIGHT(BU$39,2)>RIGHT($K83,2),AY83,0)) -> 0 | BV83: =+IF($K83="Ongoing",AZ83,IF(RIGHT($K83,2)=RIGHT(BV$39,2),SUM($AX83:AZ83),0)+IF(RIGHT(BV$39,2)>RIGHT($K83,2),AZ83,0)) -> 0 | BW83: =+IF($K83="Ongoing",BA83,IF(RIGHT($K83,2)=RIGHT(BW$39,2),SUM($AX83:BA83),0)+IF(RIGHT(BW$39,2)>RIGHT($K83,2),BA83,0)) -> 0 | BX83: =+IF($K83="Ongoing",BB83,IF(RIGHT($K83,2)=RIGHT(BX$39,2),SUM($AX83:BB83),0)+IF(RIGHT(BX$39,2)>RIGHT($K83,2),BB83,0)) -> 0 | BY83: =+IF($K83="Ongoing",BC83,IF(RIGHT($K83,2)=RIGHT(BY$39,2),SUM($AX83:BC83),0)+IF(RIGHT(BY$39,2)>RIGHT($K83,2),BC83,0)) -> 0 | BZ83: =+IF($K83="Ongoing",BD83,IF(RIGHT($K83,2)=RIGHT(BZ$39,2),SUM($AX83:BD83),0)+IF(RIGHT(BZ$39,2)>RIGHT($K83,2),BD83,0)) -> 0 | CA83: =+IF($K83="Ongoing",BE83,IF(RIGHT($K83,2)=RIGHT(CA$39,2),SUM($AX83:BE83),0)+IF(RIGHT(CA$39,2)>RIGHT($K83,2),BE83,0)) -> 0 | CB83: =+IF($K83="Ongoing",BF83,IF(RIGHT($K83,2)=RIGHT(CB$39,2),SUM($AX83:BF83),0)+IF(RIGHT(CB$39,2)>RIGHT($K83,2),BF83,0)) -> 0 | CC83: =+IF($K83="Ongoing",BG83,IF(RIGHT($K83,2)=RIGHT(CC$39,2),SUM($AX83:BG83),0)+IF(RIGHT(CC$39,2)>RIGHT($K83,2),BG83,0)) -> 0 | CE83: =+Q83*KeyAssumptionsPriceControl_FO!AC$15 -> 0 | CF83: =+R83*KeyAssumptionsPriceControl_FO!AD$15 -> 0 | CG83: =+S83*KeyAssumptionsPriceControl_FO!AE$15 -> 0 | CH83: =+T83*KeyAssumptionsPriceControl_FO!AF$15 -> 0 | CI83: =+U83*KeyAssumptionsPriceControl_FO!AG$15 -> 0 | CJ83: =+V83*KeyAssumptionsPriceControl_FO!AH$15 -> 0 | CK83: =+W83*KeyAssumptionsPriceControl_FO!AI$15 -> 0 | CL83: =+X83*KeyAssumptionsPriceControl_FO!AJ$15 -> 0 | CM83: =+Y83*KeyAssumptionsPriceControl_FO!AK$15 -> 0 | CN83: =+Z83*KeyAssumptionsPriceControl_FO!AL$15 -> 0 | CP83: 0 | CQ83: 0 | CR83: 0 | CS83: 0 | CT83: 0 | CU83: 0 | CV83: 0 | CW83: 0 | CX83: 0 | CY83: 0
J84: Straight line | AX84: 0 | AY84: 0 | AZ84: 0 | BA84: 0 | BB84: 0 | BC84: 0 | BD84: 0 | BE84: 0 | BF84: 0 | BG84: 0 | BI84: 0 | BJ84: 0 | BK84: 0 | BL84: 0 | BM84: 0 | BN84: 0 | BO84: 0 | BP84: 0 | BQ84: 0 | BR84: 0 | BT84: =+IF($K84="Ongoing",AX84,IF(RIGHT($K84,2)=RIGHT(BT$39,2),SUM($AX84:AX84),0)+IF(RIGHT(BT$39,2)>RIGHT($K84,2),AX84,0)) -> 0 | BU84: =+IF($K84="Ongoing",AY84,IF(RIGHT($K84,2)=RIGHT(BU$39,2),SUM($AX84:AY84),0)+IF(RIGHT(BU$39,2)>RIGHT($K84,2),AY84,0)) -> 0 | BV84: =+IF($K84="Ongoing",AZ84,IF(RIGHT($K84,2)=RIGHT(BV$39,2),SUM($AX84:AZ84),0)+IF(RIGHT(BV$39,2)>RIGHT($K84,2),AZ84,0)) -> 0 | BW84: =+IF($K84="Ongoing",BA84,IF(RIGHT($K84,2)=RIGHT(BW$39,2),SUM($AX84:BA84),0)+IF(RIGHT(BW$39,2)>RIGHT($K84,2),BA84,0)) -> 0 | BX84: =+IF($K84="Ongoing",BB84,IF(RIGHT($K84,2)=RIGHT(BX$39,2),SUM($AX84:BB84),0)+IF(RIGHT(BX$39,2)>RIGHT($K84,2),BB84,0)) -> 0 | BY84: =+IF($K84="Ongoing",BC84,IF(RIGHT($K84,2)=RIGHT(BY$39,2),SUM($AX84:BC84),0)+IF(RIGHT(BY$39,2)>RIGHT($K84,2),BC84,0)) -> 0 | BZ84: =+IF($K84="Ongoing",BD84,IF(RIGHT($K84,2)=RIGHT(BZ$39,2),SUM($AX84:BD84),0)+IF(RIGHT(BZ$39,2)>RIGHT($K84,2),BD84,0)) -> 0 | CA84: =+IF($K84="Ongoing",BE84,IF(RIGHT($K84,2)=RIGHT(CA$39,2),SUM($AX84:BE84),0)+IF(RIGHT(CA$39,2)>RIGHT($K84,2),BE84,0)) -> 0 | CB84: =+IF($K84="Ongoing",BF84,IF(RIGHT($K84,2)=RIGHT(CB$39,2),SUM($AX84:BF84),0)+IF(RIGHT(CB$39,2)>RIGHT($K84,2),BF84,0)) -> 0 | CC84: =+IF($K84="Ongoing",BG84,IF(RIGHT($K84,2)=RIGHT(CC$39,2),SUM($AX84:BG84),0)+IF(RIGHT(CC$39,2)>RIGHT($K84,2),BG84,0)) -> 0 | CE84: =+Q84*KeyAssumptionsPriceControl_FO!AC$15 -> 0 | CF84: =+R84*KeyAssumptionsPriceControl_FO!AD$15 -> 0 | CG84: =+S84*KeyAssumptionsPriceControl_FO!AE$15 -> 0 | CH84: =+T84*KeyAssumptionsPriceControl_FO!AF$15 -> 0 | CI84: =+U84*KeyAssumptionsPriceControl_FO!AG$15 -> 0 | CJ84: =+V84*KeyAssumptionsPriceControl_FO!AH$15 -> 0 | CK84: =+W84*KeyAssumptionsPriceControl_FO!AI$15 -> 0 | CL84: =+X84*KeyAssumptionsPriceControl_FO!AJ$15 -> 0 | CM84: =+Y84*KeyAssumptionsPriceControl_FO!AK$15 -> 0 | CN84: =+Z84*KeyAssumptionsPriceControl_FO!AL$15 -> 0 | CP84: 0 | CQ84: 0 | CR84: 0 | CS84: 0 | CT84: 0 | CU84: 0 | CV84: 0 | CW84: 0 | CX84: 0 | CY84: 0
J85: Straight line | AX85: =+Q85-AB85-AM85 -> 0 | AY85: =+R85-AC85-AN85 -> 0 | AZ85: =+S85-AD85-AO85 -> 0 | BA85: =+T85-AE85-AP85 -> 0 | BB85: =+U85-AF85-AQ85 -> 0 | BC85: =+V85-AG85-AR85 -> 0 | BD85: =+W85-AH85-AS85 -> 0 | BE85: =+X85-AI85-AT85 -> 0 | BF85: 0 | BG85: 0 | BI85: 0 | BJ85: 0 | BK85: 0 | BL85: 0 | BM85: 0 | BN85: 0 | BO85: 0 | BP85: 0 | BQ85: 0 | BR85: 0 | BT85: =+IF($K85="Ongoing",AX85,IF(RIGHT($K85,2)=RIGHT(BT$39,2),SUM($AX85:AX85),0)+IF(RIGHT(BT$39,2)>RIGHT($K85,2),AX85,0)) -> 0 | BU85: =+IF($K85="Ongoing",AY85,IF(RIGHT($K85,2)=RIGHT(BU$39,2),SUM($AX85:AY85),0)+IF(RIGHT(BU$39,2)>RIGHT($K85,2),AY85,0)) -> 0 | BV85: =+IF($K85="Ongoing",AZ85,IF(RIGHT($K85,2)=RIGHT(BV$39,2),SUM($AX85:AZ85),0)+IF(RIGHT(BV$39,2)>RIGHT($K85,2),AZ85,0)) -> 0 | BW85: =+IF($K85="Ongoing",BA85,IF(RIGHT($K85,2)=RIGHT(BW$39,2),SUM($AX85:BA85),0)+IF(RIGHT(BW$39,2)>RIGHT($K85,2),BA85,0)) -> 0 | BX85: =+IF($K85="Ongoing",BB85,IF(RIGHT($K85,2)=RIGHT(BX$39,2),SUM($AX85:BB85),0)+IF(RIGHT(BX$39,2)>RIGHT($K85,2),BB85,0)) -> 0 | BY85: =+IF($K85="Ongoing",BC85,IF(RIGHT($K85,2)=RIGHT(BY$39,2),SUM($AX85:BC85),0)+IF(RIGHT(BY$39,2)>RIGHT($K85,2),BC85,0)) -> 0 | BZ85: =+IF($K85="Ongoing",BD85,IF(RIGHT($K85,2)=RIGHT(BZ$39,2),SUM($AX85:BD85),0)+IF(RIGHT(BZ$39,2)>RIGHT($K85,2),BD85,0)) -> 0 | CA85: =+IF($K85="Ongoing",BE85,IF(RIGHT($K85,2)=RIGHT(CA$39,2),SUM($AX85:BE85),0)+IF(RIGHT(CA$39,2)>RIGHT($K85,2),BE85,0)) -> 0 | CB85: =+IF($K85="Ongoing",BF85,IF(RIGHT($K85,2)=RIGHT(CB$39,2),SUM($AX85:BF85),0)+IF(RIGHT(CB$39,2)>RIGHT($K85,2),BF85,0)) -> 0 | CC85: =+IF($K85="Ongoing",BG85,IF(RIGHT($K85,2)=RIGHT(CC$39,2),SUM($AX85:BG85),0)+IF(RIGHT(CC$39,2)>RIGHT($K85,2),BG85,0)) -> 0 | CE85: =+Q85*KeyAssumptionsPriceControl_FO!AC$15 -> 0 | CF85: =+R85*KeyAssumptionsPriceControl_FO!AD$15 -> 0 | CG85: =+S85*KeyAssumptionsPriceControl_FO!AE$15 -> 0 | CH85: =+T85*KeyAssumptionsPriceControl_FO!AF$15 -> 0 | CI85: =+U85*KeyAssumptionsPriceControl_FO!AG$15 -> 0 | CJ85: =+V85*KeyAssumptionsPriceControl_FO!AH$15 -> 0 | CK85: =+W85*KeyAssumptionsPriceControl_FO!AI$15 -> 0 | CL85: =+X85*KeyAssumptionsPriceControl_FO!AJ$15 -> 0 | CM85: =+Y85*KeyAssumptionsPriceControl_FO!AK$15 -> 0 | CN85: =+Z85*KeyAssumptionsPriceControl_FO!AL$15 -> 0 | CP85: =IF($M85=0,0, IF($M85<=0.5,CE85, IF($J85="straight line", IF((LEFT(CP$39,4)*1)-INT($M85)<LEFT($CP$39,4)*1,0,((OFFSET(CE85,0,-INT($M85+0.5),1,1))/$M85)*(IF($M85-INT($M85)>0.5,$M85-0.5-INT($M85),IF($M85-INT($M85)<=0.5,$M85-0.5-INT($M85)+1,0)))) +CE85/$M85*0.5, IF($J85="Declining Balance",-$CP$38,0)))) -> 0 | CQ85: =IF($M85=0,0, IF($M85<=0.5,CF85, IF(AND($J85="straight line",$M85<1.51),(CE85-((CE85/$M85)*0.5))+CF85/$M85*0.5, IF($J85="straight line", IF((LEFT(CQ$39,4)*1)-INT($M85)<LEFT($CP$39,4)*1,0,((OFFSET(CF85,0,-INT($M85+0.5),1,1))/$M85)*(IF($M85-INT($M85)>0.5,$M85-0.5-INT($M85),IF($M85-INT($M85)<=0.5,$M85-0.5-INT($M85)+1,0)))) +CF85/$M85*0.5 +SUM(OFFSET(CF85,0,MAX(-INT($M85+(0.5-(10^-12))),-CQ$40)+1,1,MIN(INT($M85+(0.5-(10^-12))),CQ$40)-1))*1/$M85, IF($J85="Declining Balance",-$CP$38,0))))) -> 0 | CR85: =IF($M85=0,0, IF($M85<=0.5,CG85, IF(AND($J85="straight line",$M85<1.51),(CF85-((CF85/$M85)*0.5))+CG85/$M85*0.5, IF($J85="straight line", IF((LEFT(CR$39,4)*1)-INT($M85)<LEFT($CP$39,4)*1,0,((OFFSET(CG85,0,-INT($M85+0.5),1,1))/$M85)*(IF($M85-INT($M85)>0.5,$M85-0.5-INT($M85),IF($M85-INT($M85)<=0.5,$M85-0.5-INT($M85)+1,0)))) +CG85/$M85*0.5 +SUM(OFFSET(CG85,0,MAX(-INT($M85+(0.5-(10^-12))),-CR$40)+1,1,MIN(INT($M85+(0.5-(10^-12))),CR$40)-1))*1/$M85, IF($J85="Declining Balance",-$CP$38,0))))) -> 0 | CS85: =IF($M85=0,0, IF($M85<=0.5,CH85, IF(AND($J85="straight line",$M85<1.51),(CG85-((CG85/$M85)*0.5))+CH85/$M85*0.5, IF($J85="straight line", IF((LEFT(CS$39,4)*1)-INT($M85)<LEFT($CP$39,4)*1,0,((OFFSET(CH85,0,-INT($M85+0.5),1,1))/$M85)*(IF($M85-INT($M85)>0.5,$M85-0.5-INT($M85),IF($M85-INT($M85)<=0.5,$M85-0.5-INT($M85)+1,0)))) +CH85/$M85*0.5 +SUM(OFFSET(CH85,0,MAX(-INT($M85+(0.5-(10^-12))),-CS$40)+1,1,MIN(INT($M85+(0.5-(10^-12))),CS$40)-1))*1/$M85, IF($J85="Declining Balance",-$CP$38,0))))) -> 0 | CT85: =IF($M85=0,0, IF($M85<=0.5,CI85, IF(AND($J85="straight line",$M85<1.51),(CH85-((CH85/$M85)*0.5))+CI85/$M85*0.5, IF($J85="straight line", IF((LEFT(CT$39,4)*1)-INT($M85)<LEFT($CP$39,4)*1,0,((OFFSET(CI85,0,-INT($M85+0.5),1,1))/$M85)*(IF($M85-INT($M85)>0.5,$M85-0.5-INT($M85),IF($M85-INT($M85)<=0.5,$M85-0.5-INT($M85)+1,0)))) +CI85/$M85*0.5 +SUM(OFFSET(CI85,0,MAX(-INT($M85+(0.5-(10^-12))),-CT$40)+1,1,MIN(INT($M85+(0.5-(10^-12))),CT$40)-1))*1/$M85, IF($J85="Declining Balance",-$CP$38,0))))) -> 0 | CU85: =IF($M85=0,0, IF($M85<=0.5,CJ85, IF(AND($J85="straight line",$M85<1.51),(CI85-((CI85/$M85)*0.5))+CJ85/$M85*0.5, IF($J85="straight line", IF((LEFT(CU$39,4)*1)-INT($M85)<LEFT($CP$39,4)*1,0,((OFFSET(CJ85,0,-INT($M85+0.5),1,1))/$M85)*(IF($M85-INT($M85)>0.5,$M85-0.5-INT($M85),IF($M85-INT($M85)<=0.5,$M85-0.5-INT($M85)+1,0)))) +CJ85/$M85*0.5 +SUM(OFFSET(CJ85,0,MAX(-INT($M85+(0.5-(10^-12))),-CU$40)+1,1,MIN(INT($M85+(0.5-(10^-12))),CU$40)-1))*1/$M85, IF($J85="Declining Balance",-$CP$38,0))))) -> 0 | CV85: =IF($M85=0,0, IF($M85<=0.5,CK85, IF(AND($J85="straight line",$M85<1.51),(CJ85-((CJ85/$M85)*0.5))+CK85/$M85*0.5, IF($J85="straight line", IF((LEFT(CV$39,4)*1)-INT($M85)<LEFT($CP$39,4)*1,0,((OFFSET(CK85,0,-INT($M85+0.5),1,1))/$M85)*(IF($M85-INT($M85)>0.5,$M85-0.5-INT($M85),IF($M85-INT($M85)<=0.5,$M85-0.5-INT($M85)+1,0)))) +CK85/$M85*0.5 +SUM(OFFSET(CK85,0,MAX(-INT($M85+(0.5-(10^-12))),-CV$40)+1,1,MIN(INT($M85+(0.5-(10^-12))),CV$40)-1))*1/$M85, IF($J85="Declining Balance",-$CP$38,0))))) -> 0 | CW85: =IF($M85=0,0, IF($M85<=0.5,CL85, IF(AND($J85="straight line",$M85<1.51),(CK85-((CK85/$M85)*0.5))+CL85/$M85*0.5, IF($J85="straight line", IF((LEFT(CW$39,4)*1)-INT($M85)<LEFT($CP$39,4)*1,0,((OFFSET(CL85,0,-INT($M85+0.5),1,1))/$M85)*(IF($M85-INT($M85)>0.5,$M85-0.5-INT($M85),IF($M85-INT($M85)<=0.5,$M85-0.5-INT($M85)+1,0)))) +CL85/$M85*0.5 +SUM(OFFSET(CL85,0,MAX(-INT($M85+(0.5-(10^-12))),-CW$40)+1,1,MIN(INT($M85+(0.5-(10^-12))),CW$40)-1))*1/$M85, IF($J85="Declining Balance",-$CP$38,0))))) -> 0 | CX85: =IF($M85=0,0, IF($M85<=0.5,CM85, IF(AND($J85="straight line",$M85<1.51),(CL85-((CL85/$M85)*0.5))+CM85/$M85*0.5, IF($J85="straight line", IF((LEFT(CX$39,4)*1)-INT($M85)<LEFT($CP$39,4)*1,0,((OFFSET(CM85,0,-INT($M85+0.5),1,1))/$M85)*(IF($M85-INT($M85)>0.5,$M85-0.5-INT($M85),IF($M85-INT($M85)<=0.5,$M85-0.5-INT($M85)+1,0)))) +CM85/$M85*0.5 +SUM(OFFSET(CM85,0,MAX(-INT($M85+(0.5-(10^-12))),-CX$40)+1,1,MIN(INT($M85+(0.5-(10^-12))),CX$40)-1))*1/$M85, IF($J85="Declining Balance",-$CP$38,0))))) -> 0 | CY85: =IF($M85=0,0, IF($M85<=0.5,CN85, IF(AND($J85="straight line",$M85<1.51),(CM85-((CM85/$M85)*0.5))+CN85/$M85*0.5, IF($J85="straight line", IF((LEFT(CY$39,4)*1)-INT($M85)<LEFT($CP$39,4)*1,0,((OFFSET(CN85,0,-INT($M85+0.5),1,1))/$M85)*(IF($M85-INT($M85)>0.5,$M85-0.5-INT($M85),IF($M85-INT($M85)<=0.5,$M85-0.5-INT($M85)+1,0)))) +CN85/$M85*0.5 +SUM(OFFSET(CN85,0,MAX(-INT($M85+(0.5-(10^-12))),-CY$40)+1,1,MIN(INT($M85+(0.5-(10^-12))),CY$40)-1))*1/$M85, IF($J85="Declining Balance",-$CP$38,0))))) -> 0
J86: Straight line | AX86: 0 | AY86: 0 | AZ86: 0 | BA86: 0 | BB86: 0 | BC86: 0 | BD86: 0 | BE86: 0 | BF86: 0 | BG86: 0 | BI86: 0 | BJ86: 0 | BK86: 0 | BL86: 0 | BM86: 0 | BN86: 0 | BO86: 0 | BP86: 0 | BQ86: 0 | BR86: 0 | BT86: =+IF($K86="Ongoing",AX86,IF(RIGHT($K86,2)=RIGHT(BT$39,2),SUM($AX86:AX86),0)+IF(RIGHT(BT$39,2)>RIGHT($K86,2),AX86,0)) -> 0 | BU86: =+IF($K86="Ongoing",AY86,IF(RIGHT($K86,2)=RIGHT(BU$39,2),SUM($AX86:AY86),0)+IF(RIGHT(BU$39,2)>RIGHT($K86,2),AY86,0)) -> 0 | BV86: =+IF($K86="Ongoing",AZ86,IF(RIGHT($K86,2)=RIGHT(BV$39,2),SUM($AX86:AZ86),0)+IF(RIGHT(BV$39,2)>RIGHT($K86,2),AZ86,0)) -> 0 | BW86: =+IF($K86="Ongoing",BA86,IF(RIGHT($K86,2)=RIGHT(BW$39,2),SUM($AX86:BA86),0)+IF(RIGHT(BW$39,2)>RIGHT($K86,2),BA86,0)) -> 0 | BX86: =+IF($K86="Ongoing",BB86,IF(RIGHT($K86,2)=RIGHT(BX$39,2),SUM($AX86:BB86),0)+IF(RIGHT(BX$39,2)>RIGHT($K86,2),BB86,0)) -> 0 | BY86: =+IF($K86="Ongoing",BC86,IF(RIGHT($K86,2)=RIGHT(BY$39,2),SUM($AX86:BC86),0)+IF(RIGHT(BY$39,2)>RIGHT($K86,2),BC86,0)) -> 0 | BZ86: =+IF($K86="Ongoing",BD86,IF(RIGHT($K86,2)=RIGHT(BZ$39,2),SUM($AX86:BD86),0)+IF(RIGHT(BZ$39,2)>RIGHT($K86,2),BD86,0)) -> 0 | CA86: =+IF($K86="Ongoing",BE86,IF(RIGHT($K86,2)=RIGHT(CA$39,2),SUM($AX86:BE86),0)+IF(RIGHT(CA$39,2)>RIGHT($K86,2),BE86,0)) -> 0 | CB86: =+IF($K86="Ongoing",BF86,IF(RIGHT($K86,2)=RIGHT(CB$39,2),SUM($AX86:BF86),0)+IF(RIGHT(CB$39,2)>RIGHT($K86,2),BF86,0)) -> 0 | CC86: =+IF($K86="Ongoing",BG86,IF(RIGHT($K86,2)=RIGHT(CC$39,2),SUM($AX86:BG86),0)+IF(RIGHT(CC$39,2)>RIGHT($K86,2),BG86,0)) -> 0 | CE86: =+Q86*KeyAssumptionsPriceControl_FO!AC$15 -> 0 | CF86: =+R86*KeyAssumptionsPriceControl_FO!AD$15 -> 0 | CG86: =+S86*KeyAssumptionsPriceControl_FO!AE$15 -> 0 | CH86: =+T86*KeyAssumptionsPriceControl_FO!AF$15 -> 0 | CI86: =+U86*KeyAssumptionsPriceControl_FO!AG$15 -> 0 | CJ86: =+V86*KeyAssumptionsPriceControl_FO!AH$15 -> 0 | CK86: =+W86*KeyAssumptionsPriceControl_FO!AI$15 -> 0 | CL86: =+X86*KeyAssumptionsPriceControl_FO!AJ$15 -> 0 | CM86: =+Y86*KeyAssumptionsPriceControl_FO!AK$15 -> 0 | CN86: =+Z86*KeyAssumptionsPriceControl_FO!AL$15 -> 0 | CP86: 0 | CQ86: 0 | CR86: 0 | CS86: 0 | CT86: 0 | CU86: 0 | CV86: 0 | CW86: 0 | CX86: 0 | CY86: 0
J87: Straight line | AX87: 0 | AY87: 0 | AZ87: 0 | BA87: 0 | BB87: 0 | BC87: 0 | BD87: 0 | BE87: 0 | BF87: 0 | BG87: 0 | BI87: 0 | BJ87: 0 | BK87: 0 | BL87: 0 | BM87: 0 | BN87: 0 | BO87: 0 | BP87: 0 | BQ87: 0 | BR87: 0 | BT87: =+IF($K87="Ongoing",AX87,IF(RIGHT($K87,2)=RIGHT(BT$39,2),SUM($AX87:AX87),0)+IF(RIGHT(BT$39,2)>RIGHT($K87,2),AX87,0)) -> 0 | BU87: =+IF($K87="Ongoing",AY87,IF(RIGHT($K87,2)=RIGHT(BU$39,2),SUM($AX87:AY87),0)+IF(RIGHT(BU$39,2)>RIGHT($K87,2),AY87,0)) -> 0 | BV87: =+IF($K87="Ongoing",AZ87,IF(RIGHT($K87,2)=RIGHT(BV$39,2),SUM($AX87:AZ87),0)+IF(RIGHT(BV$39,2)>RIGHT($K87,2),AZ87,0)) -> 0 | BW87: =+IF($K87="Ongoing",BA87,IF(RIGHT($K87,2)=RIGHT(BW$39,2),SUM($AX87:BA87),0)+IF(RIGHT(BW$39,2)>RIGHT($K87,2),BA87,0)) -> 0 | BX87: =+IF($K87="Ongoing",BB87,IF(RIGHT($K87,2)=RIGHT(BX$39,2),SUM($AX87:BB87),0)+IF(RIGHT(BX$39,2)>RIGHT($K87,2),BB87,0)) -> 0 | BY87: =+IF($K87="Ongoing",BC87,IF(RIGHT($K87,2)=RIGHT(BY$39,2),SUM($AX87:BC87),0)+IF(RIGHT(BY$39,2)>RIGHT($K87,2),BC87,0)) -> 0 | BZ87: =+IF($K87="Ongoing",BD87,IF(RIGHT($K87,2)=RIGHT(BZ$39,2),SUM($AX87:BD87),0)+IF(RIGHT(BZ$39,2)>RIGHT($K87,2),BD87,0)) -> 0 | CA87: =+IF($K87="Ongoing",BE87,IF(RIGHT($K87,2)=RIGHT(CA$39,2),SUM($AX87:BE87),0)+IF(RIGHT(CA$39,2)>RIGHT($K87,2),BE87,0)) -> 0 | CB87: =+IF($K87="Ongoing",BF87,IF(RIGHT($K87,2)=RIGHT(CB$39,2),SUM($AX87:BF87),0)+IF(RIGHT(CB$39,2)>RIGHT($K87,2),BF87,0)) -> 0 | CC87: =+IF($K87="Ongoing",BG87,IF(RIGHT($K87,2)=RIGHT(CC$39,2),SUM($AX87:BG87),0)+IF(RIGHT(CC$39,2)>RIGHT($K87,2),BG87,0)) -> 0 | CE87: =+Q87*KeyAssumptionsPriceControl_FO!AC$15 -> 0 | CF87: =+R87*KeyAssumptionsPriceControl_FO!AD$15 -> 0 | CG87: =+S87*KeyAssumptionsPriceControl_FO!AE$15 -> 0 | CH87: =+T87*KeyAssumptionsPriceControl_FO!AF$15 -> 0 | CI87: =+U87*KeyAssumptionsPriceControl_FO!AG$15 -> 0 | CJ87: =+V87*KeyAssumptionsPriceControl_FO!AH$15 -> 0 | CK87: =+W87*KeyAssumptionsPriceControl_FO!AI$15 -> 0 | CL87: =+X87*KeyAssumptionsPriceControl_FO!AJ$15 -> 0 | CM87: =+Y87*KeyAssumptionsPriceControl_FO!AK$15 -> 0 | CN87: =+Z87*KeyAssumptionsPriceControl_FO!AL$15 -> 0 | CP87: 0 | CQ87: 0 | CR87: 0 | CS87: 0 | CT87: 0 | CU87: 0 | CV87: 0 | CW87: 0 | CX87: 0 | CY87: 0
J88: Straight line | AX88: 0 | AY88: 0 | AZ88: 0 | BA88: 0 | BB88: 0 | BC88: 0 | BD88: 0 | BE88: 0 | BF88: 0 | BG88: 0 | BI88: 0 | BJ88: 0 | BK88: 0 | BL88: 0 | BM88: 0 | BN88: 0 | BO88: 0 | BP88: 0 | BQ88: 0 | BR88: 0 | BT88: =+IF($K88="Ongoing",AX88,IF(RIGHT($K88,2)=RIGHT(BT$39,2),SUM($AX88:AX88),0)+IF(RIGHT(BT$39,2)>RIGHT($K88,2),AX88,0)) -> 0 | BU88: =+IF($K88="Ongoing",AY88,IF(RIGHT($K88,2)=RIGHT(BU$39,2),SUM($AX88:AY88),0)+IF(RIGHT(BU$39,2)>RIGHT($K88,2),AY88,0)) -> 0 | BV88: =+IF($K88="Ongoing",AZ88,IF(RIGHT($K88,2)=RIGHT(BV$39,2),SUM($AX88:AZ88),0)+IF(RIGHT(BV$39,2)>RIGHT($K88,2),AZ88,0)) -> 0 | BW88: =+IF($K88="Ongoing",BA88,IF(RIGHT($K88,2)=RIGHT(BW$39,2),SUM($AX88:BA88),0)+IF(RIGHT(BW$39,2)>RIGHT($K88,2),BA88,0)) -> 0 | BX88: =+IF($K88="Ongoing",BB88,IF(RIGHT($K88,2)=RIGHT(BX$39,2),SUM($AX88:BB88),0)+IF(RIGHT(BX$39,2)>RIGHT($K88,2),BB88,0)) -> 0 | BY88: =+IF($K88="Ongoing",BC88,IF(RIGHT($K88,2)=RIGHT(BY$39,2),SUM($AX88:BC88),0)+IF(RIGHT(BY$39,2)>RIGHT($K88,2),BC88,0)) -> 0 | BZ88: =+IF($K88="Ongoing",BD88,IF(RIGHT($K88,2)=RIGHT(BZ$39,2),SUM($AX88:BD88),0)+IF(RIGHT(BZ$39,2)>RIGHT($K88,2),BD88,0)) -> 0 | CA88: =+IF($K88="Ongoing",BE88,IF(RIGHT($K88,2)=RIGHT(CA$39,2),SUM($AX88:BE88),0)+IF(RIGHT(CA$39,2)>RIGHT($K88,2),BE88,0)) -> 0 | CB88: =+IF($K88="Ongoing",BF88,IF(RIGHT($K88,2)=RIGHT(CB$39,2),SUM($AX88:BF88),0)+IF(RIGHT(CB$39,2)>RIGHT($K88,2),BF88,0)) -> 0 | CC88: =+IF($K88="Ongoing",BG88,IF(RIGHT($K88,2)=RIGHT(CC$39,2),SUM($AX88:BG88),0)+IF(RIGHT(CC$39,2)>RIGHT($K88,2),BG88,0)) -> 0 | CE88: =+Q88*KeyAssumptionsPriceControl_FO!AC$15 -> 0 | CF88: =+R88*KeyAssumptionsPriceControl_FO!AD$15 -> 0 | CG88: =+S88*KeyAssumptionsPriceControl_FO!AE$15 -> 0 | CH88: =+T88*KeyAssumptionsPriceControl_FO!AF$15 -> 0 | CI88: =+U88*KeyAssumptionsPriceControl_FO!AG$15 -> 0 | CJ88: =+V88*KeyAssumptionsPriceControl_FO!AH$15 -> 0 | CK88: =+W88*KeyAssumptionsPriceControl_FO!AI$15 -> 0 | CL88: =+X88*KeyAssumptionsPriceControl_FO!AJ$15 -> 0 | CM88: =+Y88*KeyAssumptionsPriceControl_FO!AK$15 -> 0 | CN88: =+Z88*KeyAssumptionsPriceControl_FO!AL$15 -> 0 | CP88: 0 | CQ88: 0 | CR88: 0 | CS88: 0 | CT88: 0 | CU88: 0 | CV88: 0 | CW88: 0 | CX88: 0 | CY88: 0
J89: Straight line | AX89: 0 | AY89: 0 | AZ89: 0 | BA89: 0 | BB89: 0 | BC89: 0 | BD89: 0 | BE89: 0 | BF89: 0 | BG89: 0 | BI89: 0 | BJ89: 0 | BK89: 0 | BL89: 0 | BM89: 0 | BN89: 0 | BO89: 0 | BP89: 0 | BQ89: 0 | BR89: 0 | BT89: =+IF($K89="Ongoing",AX89,IF(RIGHT($K89,2)=RIGHT(BT$39,2),SUM($AX89:AX89),0)+IF(RIGHT(BT$39,2)>RIGHT($K89,2),AX89,0)) -> 0 | BU89: =+IF($K89="Ongoing",AY89,IF(RIGHT($K89,2)=RIGHT(BU$39,2),SUM($AX89:AY89),0)+IF(RIGHT(BU$39,2)>RIGHT($K89,2),AY89,0)) -> 0 | BV89: =+IF($K89="Ongoing",AZ89,IF(RIGHT($K89,2)=RIGHT(BV$39,2),SUM($AX89:AZ89),0)+IF(RIGHT(BV$39,2)>RIGHT($K89,2),AZ89,0)) -> 0 | BW89: =+IF($K89="Ongoing",BA89,IF(RIGHT($K89,2)=RIGHT(BW$39,2),SUM($AX89:BA89),0)+IF(RIGHT(BW$39,2)>RIGHT($K89,2),BA89,0)) -> 0 | BX89: =+IF($K89="Ongoing",BB89,IF(RIGHT($K89,2)=RIGHT(BX$39,2),SUM($AX89:BB89),0)+IF(RIGHT(BX$39,2)>RIGHT($K89,2),BB89,0)) -> 0 | BY89: =+IF($K89="Ongoing",BC89,IF(RIGHT($K89,2)=RIGHT(BY$39,2),SUM($AX89:BC89),0)+IF(RIGHT(BY$39,2)>RIGHT($K89,2),BC89,0)) -> 0 | BZ89: =+IF($K89="Ongoing",BD89,IF(RIGHT($K89,2)=RIGHT(BZ$39,2),SUM($AX89:BD89),0)+IF(RIGHT(BZ$39,2)>RIGHT($K89,2),BD89,0)) -> 0 | CA89: =+IF($K89="Ongoing",BE89,IF(RIGHT($K89,2)=RIGHT(CA$39,2),SUM($AX89:BE89),0)+IF(RIGHT(CA$39,2)>RIGHT($K89,2),BE89,0)) -> 0 | CB89: =+IF($K89="Ongoing",BF89,IF(RIGHT($K89,2)=RIGHT(CB$39,2),SUM($AX89:BF89),0)+IF(RIGHT(CB$39,2)>RIGHT($K89,2),BF89,0)) -> 0 | CC89: =+IF($K89="Ongoing",BG89,IF(RIGHT($K89,2)=RIGHT(CC$39,2),SUM($AX89:BG89),0)+IF(RIGHT(CC$39,2)>RIGHT($K89,2),BG89,0)) -> 0 | CE89: =+Q89*KeyAssumptionsPriceControl_FO!AC$15 -> 0 | CF89: =+R89*KeyAssumptionsPriceControl_FO!AD$15 -> 0 | CG89: =+S89*KeyAssumptionsPriceControl_FO!AE$15 -> 0 | CH89: =+T89*KeyAssumptionsPriceControl_FO!AF$15 -> 0 | CI89: =+U89*KeyAssumptionsPriceControl_FO!AG$15 -> 0 | CJ89: =+V89*KeyAssumptionsPriceControl_FO!AH$15 -> 0 | CK89: =+W89*KeyAssumptionsPriceControl_FO!AI$15 -> 0 | CL89: =+X89*KeyAssumptionsPriceControl_FO!AJ$15 -> 0 | CM89: =+Y89*KeyAssumptionsPriceControl_FO!AK$15 -> 0 | CN89: =+Z89*KeyAssumptionsPriceControl_FO!AL$15 -> 0 | CP89: 0 | CQ89: 0 | CR89: 0 | CS89: 0 | CT89: 0 | CU89: 0 | CV89: 0 | CW89: 0 | CX89: 0 | CY89: 0
J90: Straight line | AX90: 0 | AY90: 0 | AZ90: 0 | BA90: 0 | BB90: 0 | BC90: 0 | BD90: 0 | BE90: 0 | BF90: 0 | BG90: 0 | BI90: 0 | BJ90: 0 | BK90: 0 | BL90: 0 | BM90: 0 | BN90: 0 | BO90: 0 | BP90: 0 | BQ90: 0 | BR90: 0 | BT90: =+IF($K90="Ongoing",AX90,IF(RIGHT($K90,2)=RIGHT(BT$39,2),SUM($AX90:AX90),0)+IF(RIGHT(BT$39,2)>RIGHT($K90,2),AX90,0)) -> 0 | BU90: =+IF($K90="Ongoing",AY90,IF(RIGHT($K90,2)=RIGHT(BU$39,2),SUM($AX90:AY90),0)+IF(RIGHT(BU$39,2)>RIGHT($K90,2),AY90,0)) -> 0 | BV90: =+IF($K90="Ongoing",AZ90,IF(RIGHT($K90,2)=RIGHT(BV$39,2),SUM($AX90:AZ90),0)+IF(RIGHT(BV$39,2)>RIGHT($K90,2),AZ90,0)) -> 0 | BW90: =+IF($K90="Ongoing",BA90,IF(RIGHT($K90,2)=RIGHT(BW$39,2),SUM($AX90:BA90),0)+IF(RIGHT(BW$39,2)>RIGHT($K90,2),BA90,0)) -> 0 | BX90: =+IF($K90="Ongoing",BB90,IF(RIGHT($K90,2)=RIGHT(BX$39,2),SUM($AX90:BB90),0)+IF(RIGHT(BX$39,2)>RIGHT($K90,2),BB90,0)) -> 0 | BY90: =+IF($K90="Ongoing",BC90,IF(RIGHT($K90,2)=RIGHT(BY$39,2),SUM($AX90:BC90),0)+IF(RIGHT(BY$39,2)>RIGHT($K90,2),BC90,0)) -> 0 | BZ90: =+IF($K90="Ongoing",BD90,IF(RIGHT($K90,2)=RIGHT(BZ$39,2),SUM($AX90:BD90),0)+IF(RIGHT(BZ$39,2)>RIGHT($K90,2),BD90,0)) -> 0 | CA90: =+IF($K90="Ongoing",BE90,IF(RIGHT($K90,2)=RIGHT(CA$39,2),SUM($AX90:BE90),0)+IF(RIGHT(CA$39,2)>RIGHT($K90,2),BE90,0)) -> 0 | CB90: =+IF($K90="Ongoing",BF90,IF(RIGHT($K90,2)=RIGHT(CB$39,2),SUM($AX90:BF90),0)+IF(RIGHT(CB$39,2)>RIGHT($K90,2),BF90,0)) -> 0 | CC90: =+IF($K90="Ongoing",BG90,IF(RIGHT($K90,2)=RIGHT(CC$39,2),SUM($AX90:BG90),0)+IF(RIGHT(CC$39,2)>RIGHT($K90,2),BG90,0)) -> 0 | CE90: =+Q90*KeyAssumptionsPriceControl_FO!AC$15 -> 0 | CF90: =+R90*KeyAssumptionsPriceControl_FO!AD$15 -> 0 | CG90: =+S90*KeyAssumptionsPriceControl_FO!AE$15 -> 0 | CH90: =+T90*KeyAssumptionsPriceControl_FO!AF$15 -> 0 | CI90: =+U90*KeyAssumptionsPriceControl_FO!AG$15 -> 0 | CJ90: =+V90*KeyAssumptionsPriceControl_FO!AH$15 -> 0 | CK90: =+W90*KeyAssumptionsPriceControl_FO!AI$15 -> 0 | CL90: =+X90*KeyAssumptionsPriceControl_FO!AJ$15 -> 0 | CM90: =+Y90*KeyAssumptionsPriceControl_FO!AK$15 -> 0 | CN90: =+Z90*KeyAssumptionsPriceControl_FO!AL$15 -> 0 | CP90: 0 | CQ90: 0 | CR90: 0 | CS90: 0 | CT90: 0 | CU90: 0 | CV90: 0 | CW90: 0 | CX90: 0 | CY90: 0
J91: Straight line | AX91: 0 | AY91: 0 | AZ91: 0 | BA91: 0 | BB91: 0 | BC91: 0 | BD91: 0 | BE91: 0 | BF91: 0 | BG91: 0 | BI91: 0 | BJ91: 0 | BK91: 0 | BL91: 0 | BM91: 0 | BN91: 0 | BO91: 0 | BP91: 0 | BQ91: 0 | BR91: 0 | BT91: =+IF($K91="Ongoing",AX91,IF(RIGHT($K91,2)=RIGHT(BT$39,2),SUM($AX91:AX91),0)+IF(RIGHT(BT$39,2)>RIGHT($K91,2),AX91,0)) -> 0 | BU91: =+IF($K91="Ongoing",AY91,IF(RIGHT($K91,2)=RIGHT(BU$39,2),SUM($AX91:AY91),0)+IF(RIGHT(BU$39,2)>RIGHT($K91,2),AY91,0)) -> 0 | BV91: =+IF($K91="Ongoing",AZ91,IF(RIGHT($K91,2)=RIGHT(BV$39,2),SUM($AX91:AZ91),0)+IF(RIGHT(BV$39,2)>RIGHT($K91,2),AZ91,0)) -> 0 | BW91: =+IF($K91="Ongoing",BA91,IF(RIGHT($K91,2)=RIGHT(BW$39,2),SUM($AX91:BA91),0)+IF(RIGHT(BW$39,2)>RIGHT($K91,2),BA91,0)) -> 0 | BX91: =+IF($K91="Ongoing",BB91,IF(RIGHT($K91,2)=RIGHT(BX$39,2),SUM($AX91:BB91),0)+IF(RIGHT(BX$39,2)>RIGHT($K91,2),BB91,0)) -> 0 | BY91: =+IF($K91="Ongoing",BC91,IF(RIGHT($K91,2)=RIGHT(BY$39,2),SUM($AX91:BC91),0)+IF(RIGHT(BY$39,2)>RIGHT($K91,2),BC91,0)) -> 0 | BZ91: =+IF($K91="Ongoing",BD91,IF(RIGHT($K91,2)=RIGHT(BZ$39,2),SUM($AX91:BD91),0)+IF(RIGHT(BZ$39,2)>RIGHT($K91,2),BD91,0)) -> 0 | CA91: =+IF($K91="Ongoing",BE91,IF(RIGHT($K91,2)=RIGHT(CA$39,2),SUM($AX91:BE91),0)+IF(RIGHT(CA$39,2)>RIGHT($K91,2),BE91,0)) -> 0 | CB91: =+IF($K91="Ongoing",BF91,IF(RIGHT($K91,2)=RIGHT(CB$39,2),SUM($AX91:BF91),0)+IF(RIGHT(CB$39,2)>RIGHT($K91,2),BF91,0)) -> 0 | CC91: =+IF($K91="Ongoing",BG91,IF(RIGHT($K91,2)=RIGHT(CC$39,2),SUM($AX91:BG91),0)+IF(RIGHT(CC$39,2)>RIGHT($K91,2),BG91,0)) -> 0 | CE91: =+Q91*KeyAssumptionsPriceControl_FO!AC$15 -> 0 | CF91: =+R91*KeyAssumptionsPriceControl_FO!AD$15 -> 0 | CG91: =+S91*KeyAssumptionsPriceControl_FO!AE$15 -> 0 | CH91: =+T91*KeyAssumptionsPriceControl_FO!AF$15 -> 0 | CI91: =+U91*KeyAssumptionsPriceControl_FO!AG$15 -> 0 | CJ91: =+V91*KeyAssumptionsPriceControl_FO!AH$15 -> 0 | CK91: =+W91*KeyAssumptionsPriceControl_FO!AI$15 -> 0 | CL91: =+X91*KeyAssumptionsPriceControl_FO!AJ$15 -> 0 | CM91: =+Y91*KeyAssumptionsPriceControl_FO!AK$15 -> 0 | CN91: =+Z91*KeyAssumptionsPriceControl_FO!AL$15 -> 0 | CP91: 0 | CQ91: 0 | CR91: 0 | CS91: 0 | CT91: 0 | CU91: 0 | CV91: 0 | CW91: 0 | CX91: 0 | CY91: 0
J92: Straight line | AX92: 0 | AY92: 0 | AZ92: 0 | BA92: 0 | BB92: 0 | BC92: 0 | BD92: 0 | BE92: 0 | BF92: 0 | BG92: 0 | BI92: 0 | BJ92: 0 | BK92: 0 | BL92: 0 | BM92: 0 | BN92: 0 | BO92: 0 | BP92: 0 | BQ92: 0 | BR92: 0 | BT92: =+IF($K92="Ongoing",AX92,IF(RIGHT($K92,2)=RIGHT(BT$39,2),SUM($AX92:AX92),0)+IF(RIGHT(BT$39,2)>RIGHT($K92,2),AX92,0)) -> 0 | BU92: =+IF($K92="Ongoing",AY92,IF(RIGHT($K92,2)=RIGHT(BU$39,2),SUM($AX92:AY92),0)+IF(RIGHT(BU$39,2)>RIGHT($K92,2),AY92,0)) -> 0 | BV92: =+IF($K92="Ongoing",AZ92,IF(RIGHT($K92,2)=RIGHT(BV$39,2),SUM($AX92:AZ92),0)+IF(RIGHT(BV$39,2)>RIGHT($K92,2),AZ92,0)) -> 0 | BW92: =+IF($K92="Ongoing",BA92,IF(RIGHT($K92,2)=RIGHT(BW$39,2),SUM($AX92:BA92),0)+IF(RIGHT(BW$39,2)>RIGHT($K92,2),BA92,0)) -> 0 | BX92: =+IF($K92="Ongoing",BB92,IF(RIGHT($K92,2)=RIGHT(BX$39,2),SUM($AX92:BB92),0)+IF(RIGHT(BX$39,2)>RIGHT($K92,2),BB92,0)) -> 0 | BY92: =+IF($K92="Ongoing",BC92,IF(RIGHT($K92,2)=RIGHT(BY$39,2),SUM($AX92:BC92),0)+IF(RIGHT(BY$39,2)>RIGHT($K92,2),BC92,0)) -> 0 | BZ92: =+IF($K92="Ongoing",BD92,IF(RIGHT($K92,2)=RIGHT(BZ$39,2),SUM($AX92:BD92),0)+IF(RIGHT(BZ$39,2)>RIGHT($K92,2),BD92,0)) -> 0 | CA92: =+IF($K92="Ongoing",BE92,IF(RIGHT($K92,2)=RIGHT(CA$39,2),SUM($AX92:BE92),0)+IF(RIGHT(CA$39,2)>RIGHT($K92,2),BE92,0)) -> 0 | CB92: =+IF($K92="Ongoing",BF92,IF(RIGHT($K92,2)=RIGHT(CB$39,2),SUM($AX92:BF92),0)+IF(RIGHT(CB$39,2)>RIGHT($K92,2),BF92,0)) -> 0 | CC92: =+IF($K92="Ongoing",BG92,IF(RIGHT($K92,2)=RIGHT(CC$39,2),SUM($AX92:BG92),0)+IF(RIGHT(CC$39,2)>RIGHT($K92,2),BG92,0)) -> 0 | CE92: =+Q92*KeyAssumptionsPriceControl_FO!AC$15 -> 0 | CF92: =+R92*KeyAssumptionsPriceControl_FO!AD$15 -> 0 | CG92: =+S92*KeyAssumptionsPriceControl_FO!AE$15 -> 0 | CH92: =+T92*KeyAssumptionsPriceControl_FO!AF$15 -> 0 | CI92: =+U92*KeyAssumptionsPriceControl_FO!AG$15 -> 0 | CJ92: =+V92*KeyAssumptionsPriceControl_FO!AH$15 -> 0 | CK92: =+W92*KeyAssumptionsPriceControl_FO!AI$15 -> 0 | CL92: =+X92*KeyAssumptionsPriceControl_FO!AJ$15 -> 0 | CM92: =+Y92*KeyAssumptionsPriceControl_FO!AK$15 -> 0 | CN92: =+Z92*KeyAssumptionsPriceControl_FO!AL$15 -> 0 | CP92: 0 | CQ92: 0 | CR92: 0 | CS92: 0 | CT92: 0 | CU92: 0 | CV92: 0 | CW92: 0 | CX92: 0 | CY92: 0
J93: Straight line | AX93: 0 | AY93: 0 | AZ93: 0 | BA93: 0 | BB93: 0 | BC93: 0 | BD93: 0 | BE93: 0 | BF93: 0 | BG93: 0 | BI93: 0 | BJ93: 0 | BK93: 0 | BL93: 0 | BM93: 0 | BN93: 0 | BO93: 0 | BP93: 0 | BQ93: 0 | BR93: 0 | BT93: =+IF($K93="Ongoing",AX93,IF(RIGHT($K93,2)=RIGHT(BT$39,2),SUM($AX93:AX93),0)+IF(RIGHT(BT$39,2)>RIGHT($K93,2),AX93,0)) -> 0 | BU93: =+IF($K93="Ongoing",AY93,IF(RIGHT($K93,2)=RIGHT(BU$39,2),SUM($AX93:AY93),0)+IF(RIGHT(BU$39,2)>RIGHT($K93,2),AY93,0)) -> 0 | BV93: =+IF($K93="Ongoing",AZ93,IF(RIGHT($K93,2)=RIGHT(BV$39,2),SUM($AX93:AZ93),0)+IF(RIGHT(BV$39,2)>RIGHT($K93,2),AZ93,0)) -> 0 | BW93: =+IF($K93="Ongoing",BA93,IF(RIGHT($K93,2)=RIGHT(BW$39,2),SUM($AX93:BA93),0)+IF(RIGHT(BW$39,2)>RIGHT($K93,2),BA93,0)) -> 0 | BX93: =+IF($K93="Ongoing",BB93,IF(RIGHT($K93,2)=RIGHT(BX$39,2),SUM($AX93:BB93),0)+IF(RIGHT(BX$39,2)>RIGHT($K93,2),BB93,0)) -> 0 | BY93: =+IF($K93="Ongoing",BC93,IF(RIGHT($K93,2)=RIGHT(BY$39,2),SUM($AX93:BC93),0)+IF(RIGHT(BY$39,2)>RIGHT($K93,2),BC93,0)) -> 0 | BZ93: =+IF($K93="Ongoing",BD93,IF(RIGHT($K93,2)=RIGHT(BZ$39,2),SUM($AX93:BD93),0)+IF(RIGHT(BZ$39,2)>RIGHT($K93,2),BD93,0)) -> 0 | CA93: =+IF($K93="Ongoing",BE93,IF(RIGHT($K93,2)=RIGHT(CA$39,2),SUM($AX93:BE93),0)+IF(RIGHT(CA$39,2)>RIGHT($K93,2),BE93,0)) -> 0 | CB93: =+IF($K93="Ongoing",BF93,IF(RIGHT($K93,2)=RIGHT(CB$39,2),SUM($AX93:BF93),0)+IF(RIGHT(CB$39,2)>RIGHT($K93,2),BF93,0)) -> 0 | CC93: =+IF($K93="Ongoing",BG93,IF(RIGHT($K93,2)=RIGHT(CC$39,2),SUM($AX93:BG93),0)+IF(RIGHT(CC$39,2)>RIGHT($K93,2),BG93,0)) -> 0 | CE93: =+Q93*KeyAssumptionsPriceControl_FO!AC$15 -> 0 | CF93: =+R93*KeyAssumptionsPriceControl_FO!AD$15 -> 0 | CG93: =+S93*KeyAssumptionsPriceControl_FO!AE$15 -> 0 | CH93: =+T93*KeyAssumptionsPriceControl_FO!AF$15 -> 0 | CI93: =+U93*KeyAssumptionsPriceControl_FO!AG$15 -> 0 | CJ93: =+V93*KeyAssumptionsPriceControl_FO!AH$15 -> 0 | CK93: =+W93*KeyAssumptionsPriceControl_FO!AI$15 -> 0 | CL93: =+X93*KeyAssumptionsPriceControl_FO!AJ$15 -> 0 | CM93: =+Y93*KeyAssumptionsPriceControl_FO!AK$15 -> 0 | CN93: =+Z93*KeyAssumptionsPriceControl_FO!AL$15 -> 0 | CP93: 0 | CQ93: 0 | CR93: 0 | CS93: 0 | CT93: 0 | CU93: 0 | CV93: 0 | CW93: 0 | CX93: 0 | CY93: 0
J94: Straight line | AX94: 0 | AY94: 0 | AZ94: 0 | BA94: 0 | BB94: 0 | BC94: 0 | BD94: 0 | BE94: 0 | BF94: 0 | BG94: 0 | BI94: 0 | BJ94: 0 | BK94: 0 | BL94: 0 | BM94: 0 | BN94: 0 | BO94: 0 | BP94: 0 | BQ94: 0 | BR94: 0 | BT94: =+IF($K94="Ongoing",AX94,IF(RIGHT($K94,2)=RIGHT(BT$39,2),SUM($AX94:AX94),0)+IF(RIGHT(BT$39,2)>RIGHT($K94,2),AX94,0)) -> 0 | BU94: =+IF($K94="Ongoing",AY94,IF(RIGHT($K94,2)=RIGHT(BU$39,2),SUM($AX94:AY94),0)+IF(RIGHT(BU$39,2)>RIGHT($K94,2),AY94,0)) -> 0 | BV94: =+IF($K94="Ongoing",AZ94,IF(RIGHT($K94,2)=RIGHT(BV$39,2),SUM($AX94:AZ94),0)+IF(RIGHT(BV$39,2)>RIGHT($K94,2),AZ94,0)) -> 0 | BW94: =+IF($K94="Ongoing",BA94,IF(RIGHT($K94,2)=RIGHT(BW$39,2),SUM($AX94:BA94),0)+IF(RIGHT(BW$39,2)>RIGHT($K94,2),BA94,0)) -> 0 | BX94: =+IF($K94="Ongoing",BB94,IF(RIGHT($K94,2)=RIGHT(BX$39,2),SUM($AX94:BB94),0)+IF(RIGHT(BX$39,2)>RIGHT($K94,2),BB94,0)) -> 0 | BY94: =+IF($K94="Ongoing",BC94,IF(RIGHT($K94,2)=RIGHT(BY$39,2),SUM($AX94:BC94),0)+IF(RIGHT(BY$39,2)>RIGHT($K94,2),BC94,0)) -> 0 | BZ94: =+IF($K94="Ongoing",BD94,IF(RIGHT($K94,2)=RIGHT(BZ$39,2),SUM($AX94:BD94),0)+IF(RIGHT(BZ$39,2)>RIGHT($K94,2),BD94,0)) -> 0 | CA94: =+IF($K94="Ongoing",BE94,IF(RIGHT($K94,2)=RIGHT(CA$39,2),SUM($AX94:BE94),0)+IF(RIGHT(CA$39,2)>RIGHT($K94,2),BE94,0)) -> 0 | CB94: =+IF($K94="Ongoing",BF94,IF(RIGHT($K94,2)=RIGHT(CB$39,2),SUM($AX94:BF94),0)+IF(RIGHT(CB$39,2)>RIGHT($K94,2),BF94,0)) -> 0 | CC94: =+IF($K94="Ongoing",BG94,IF(RIGHT($K94,2)=RIGHT(CC$39,2),SUM($AX94:BG94),0)+IF(RIGHT(CC$39,2)>RIGHT($K94,2),BG94,0)) -> 0 | CE94: =+Q94*KeyAssumptionsPriceControl_FO!AC$15 -> 0 | CF94: =+R94*KeyAssumptionsPriceControl_FO!AD$15 -> 0 | CG94: =+S94*KeyAssumptionsPriceControl_FO!AE$15 -> 0 | CH94: =+T94*KeyAssumptionsPriceControl_FO!AF$15 -> 0 | CI94: =+U94*KeyAssumptionsPriceControl_FO!AG$15 -> 0 | CJ94: =+V94*KeyAssumptionsPriceControl_FO!AH$15 -> 0 | CK94: =+W94*KeyAssumptionsPriceControl_FO!AI$15 -> 0 | CL94: =+X94*KeyAssumptionsPriceControl_FO!AJ$15 -> 0 | CM94: =+Y94*KeyAssumptionsPriceControl_FO!AK$15 -> 0 | CN94: =+Z94*KeyAssumptionsPriceControl_FO!AL$15 -> 0 | CP94: 0 | CQ94: 0 | CR94: 0 | CS94: 0 | CT94: 0 | CU94: 0 | CV94: 0 | CW94: 0 | CX94: 0 | CY94: 0
J95: Straight line | AX95: 0 | AY95: 0 | AZ95: 0 | BA95: 0 | BB95: 0 | BC95: 0 | BD95: 0 | BE95: 0 | BF95: 0 | BG95: 0 | BI95: 0 | BJ95: 0 | BK95: 0 | BL95: 0 | BM95: 0 | BN95: 0 | BO95: 0 | BP95: 0 | BQ95: 0 | BR95: 0 | BT95: =+IF($K95="Ongoing",AX95,IF(RIGHT($K95,2)=RIGHT(BT$39,2),SUM($AX95:AX95),0)+IF(RIGHT(BT$39,2)>RIGHT($K95,2),AX95,0)) -> 0 | BU95: =+IF($K95="Ongoing",AY95,IF(RIGHT($K95,2)=RIGHT(BU$39,2),SUM($AX95:AY95),0)+IF(RIGHT(BU$39,2)>RIGHT($K95,2),AY95,0)) -> 0 | BV95: =+IF($K95="Ongoing",AZ95,IF(RIGHT($K95,2)=RIGHT(BV$39,2),SUM($AX95:AZ95),0)+IF(RIGHT(BV$39,2)>RIGHT($K95,2),AZ95,0)) -> 0 | BW95: =+IF($K95="Ongoing",BA95,IF(RIGHT($K95,2)=RIGHT(BW$39,2),SUM($AX95:BA95),0)+IF(RIGHT(BW$39,2)>RIGHT($K95,2),BA95,0)) -> 0 | BX95: =+IF($K95="Ongoing",BB95,IF(RIGHT($K95,2)=RIGHT(BX$39,2),SUM($AX95:BB95),0)+IF(RIGHT(BX$39,2)>RIGHT($K95,2),BB95,0)) -> 0 | BY95: =+IF($K95="Ongoing",BC95,IF(RIGHT($K95,2)=RIGHT(BY$39,2),SUM($AX95:BC95),0)+IF(RIGHT(BY$39,2)>RIGHT($K95,2),BC95,0)) -> 0 | BZ95: =+IF($K95="Ongoing",BD95,IF(RIGHT($K95,2)=RIGHT(BZ$39,2),SUM($AX95:BD95),0)+IF(RIGHT(BZ$39,2)>RIGHT($K95,2),BD95,0)) -> 0 | CA95: =+IF($K95="Ongoing",BE95,IF(RIGHT($K95,2)=RIGHT(CA$39,2),SUM($AX95:BE95),0)+IF(RIGHT(CA$39,2)>RIGHT($K95,2),BE95,0)) -> 0 | CB95: =+IF($K95="Ongoing",BF95,IF(RIGHT($K95,2)=RIGHT(CB$39,2),SUM($AX95:BF95),0)+IF(RIGHT(CB$39,2)>RIGHT($K95,2),BF95,0)) -> 0 | CC95: =+IF($K95="Ongoing",BG95,IF(RIGHT($K95,2)=RIGHT(CC$39,2),SUM($AX95:BG95),0)+IF(RIGHT(CC$39,2)>RIGHT($K95,2),BG95,0)) -> 0 | CE95: =+Q95*KeyAssumptionsPriceControl_FO!AC$15 -> 0 | CF95: =+R95*KeyAssumptionsPriceControl_FO!AD$15 -> 0 | CG95: =+S95*KeyAssumptionsPriceControl_FO!AE$15 -> 0 | CH95: =+T95*KeyAssumptionsPriceControl_FO!AF$15 -> 0 | CI95: =+U95*KeyAssumptionsPriceControl_FO!AG$15 -> 0 | CJ95: =+V95*KeyAssumptionsPriceControl_FO!AH$15 -> 0 | CK95: =+W95*KeyAssumptionsPriceControl_FO!AI$15 -> 0 | CL95: =+X95*KeyAssumptionsPriceControl_FO!AJ$15 -> 0 | CM95: =+Y95*KeyAssumptionsPriceControl_FO!AK$15 -> 0 | CN95: =+Z95*KeyAssumptionsPriceControl_FO!AL$15 -> 0 | CP95: 0 | CQ95: 0 | CR95: 0 | CS95: 0 | CT95: 0 | CU95: 0 | CV95: 0 | CW95: 0 | CX95: 0 | CY95: 0
J96: Straight line | AX96: 0 | AY96: 0 | AZ96: 0 | BA96: 0 | BB96: 0 | BC96: 0 | BD96: 0 | BE96: 0 | BF96: 0 | BG96: 0 | BI96: 0 | BJ96: 0 | BK96: 0 | BL96: 0 | BM96: 0 | BN96: 0 | BO96: 0 | BP96: 0 | BQ96: 0 | BR96: 0 | BT96: =+IF($K96="Ongoing",AX96,IF(RIGHT($K96,2)=RIGHT(BT$39,2),SUM($AX96:AX96),0)+IF(RIGHT(BT$39,2)>RIGHT($K96,2),AX96,0)) -> 0 | BU96: =+IF($K96="Ongoing",AY96,IF(RIGHT($K96,2)=RIGHT(BU$39,2),SUM($AX96:AY96),0)+IF(RIGHT(BU$39,2)>RIGHT($K96,2),AY96,0)) -> 0 | BV96: =+IF($K96="Ongoing",AZ96,IF(RIGHT($K96,2)=RIGHT(BV$39,2),SUM($AX96:AZ96),0)+IF(RIGHT(BV$39,2)>RIGHT($K96,2),AZ96,0)) -> 0 | BW96: =+IF($K96="Ongoing",BA96,IF(RIGHT($K96,2)=RIGHT(BW$39,2),SUM($AX96:BA96),0)+IF(RIGHT(BW$39,2)>RIGHT($K96,2),BA96,0)) -> 0 | BX96: =+IF($K96="Ongoing",BB96,IF(RIGHT($K96,2)=RIGHT(BX$39,2),SUM($AX96:BB96),0)+IF(RIGHT(BX$39,2)>RIGHT($K96,2),BB96,0)) -> 0 | BY96: =+IF($K96="Ongoing",BC96,IF(RIGHT($K96,2)=RIGHT(BY$39,2),SUM($AX96:BC96),0)+IF(RIGHT(BY$39,2)>RIGHT($K96,2),BC96,0)) -> 0 | BZ96: =+IF($K96="Ongoing",BD96,IF(RIGHT($K96,2)=RIGHT(BZ$39,2),SUM($AX96:BD96),0)+IF(RIGHT(BZ$39,2)>RIGHT($K96,2),BD96,0)) -> 0 | CA96: =+IF($K96="Ongoing",BE96,IF(RIGHT($K96,2)=RIGHT(CA$39,2),SUM($AX96:BE96),0)+IF(RIGHT(CA$39,2)>RIGHT($K96,2),BE96,0)) -> 0 | CB96: =+IF($K96="Ongoing",BF96,IF(RIGHT($K96,2)=RIGHT(CB$39,2),SUM($AX96:BF96),0)+IF(RIGHT(CB$39,2)>RIGHT($K96,2),BF96,0)) -> 0 | CC96: =+IF($K96="Ongoing",BG96,IF(RIGHT($K96,2)=RIGHT(CC$39,2),SUM($AX96:BG96),0)+IF(RIGHT(CC$39,2)>RIGHT($K96,2),BG96,0)) -> 0 | CE96: =+Q96*KeyAssumptionsPriceControl_FO!AC$15 -> 0 | CF96: =+R96*KeyAssumptionsPriceControl_FO!AD$15 -> 0 | CG96: =+S96*KeyAssumptionsPriceControl_FO!AE$15 -> 0 | CH96: =+T96*KeyAssumptionsPriceControl_FO!AF$15 -> 0 | CI96: =+U96*KeyAssumptionsPriceControl_FO!AG$15 -> 0 | CJ96: =+V96*KeyAssumptionsPriceControl_FO!AH$15 -> 0 | CK96: =+W96*KeyAssumptionsPriceControl_FO!AI$15 -> 0 | CL96: =+X96*KeyAssumptionsPriceControl_FO!AJ$15 -> 0 | CM96: =+Y96*KeyAssumptionsPriceControl_FO!AK$15 -> 0 | CN96: =+Z96*KeyAssumptionsPriceControl_FO!AL$15 -> 0 | CP96: 0 | CQ96: 0 | CR96: 0 | CS96: 0 | CT96: 0 | CU96: 0 | CV96: 0 | CW96: 0 | CX96: 0 | CY96: 0
J97: Straight line | AX97: 0 | AY97: 0 | AZ97: 0 | BA97: 0 | BB97: 0 | BC97: 0 | BD97: 0 | BE97: 0 | BF97: 0 | BG97: 0 | BI97: 0 | BJ97: 0 | BK97: 0 | BL97: 0 | BM97: 0 | BN97: 0 | BO97: 0 | BP97: 0 | BQ97: 0 | BR97: 0 | BT97: =+IF($K97="Ongoing",AX97,IF(RIGHT($K97,2)=RIGHT(BT$39,2),SUM($AX97:AX97),0)+IF(RIGHT(BT$39,2)>RIGHT($K97,2),AX97,0)) -> 0 | BU97: =+IF($K97="Ongoing",AY97,IF(RIGHT($K97,2)=RIGHT(BU$39,2),SUM($AX97:AY97),0)+IF(RIGHT(BU$39,2)>RIGHT($K97,2),AY97,0)) -> 0 | BV97: =+IF($K97="Ongoing",AZ97,IF(RIGHT($K97,2)=RIGHT(BV$39,2),SUM($AX97:AZ97),0)+IF(RIGHT(BV$39,2)>RIGHT($K97,2),AZ97,0)) -> 0 | BW97: =+IF($K97="Ongoing",BA97,IF(RIGHT($K97,2)=RIGHT(BW$39,2),SUM($AX97:BA97),0)+IF(RIGHT(BW$39,2)>RIGHT($K97,2),BA97,0)) -> 0 | BX97: =+IF($K97="Ongoing",BB97,IF(RIGHT($K97,2)=RIGHT(BX$39,2),SUM($AX97:BB97),0)+IF(RIGHT(BX$39,2)>RIGHT($K97,2),BB97,0)) -> 0 | BY97: =+IF($K97="Ongoing",BC97,IF(RIGHT($K97,2)=RIGHT(BY$39,2),SUM($AX97:BC97),0)+IF(RIGHT(BY$39,2)>RIGHT($K97,2),BC97,0)) -> 0 | BZ97: =+IF($K97="Ongoing",BD97,IF(RIGHT($K97,2)=RIGHT(BZ$39,2),SUM($AX97:BD97),0)+IF(RIGHT(BZ$39,2)>RIGHT($K97,2),BD97,0)) -> 0 | CA97: =+IF($K97="Ongoing",BE97,IF(RIGHT($K97,2)=RIGHT(CA$39,2),SUM($AX97:BE97),0)+IF(RIGHT(CA$39,2)>RIGHT($K97,2),BE97,0)) -> 0 | CB97: =+IF($K97="Ongoing",BF97,IF(RIGHT($K97,2)=RIGHT(CB$39,2),SUM($AX97:BF97),0)+IF(RIGHT(CB$39,2)>RIGHT($K97,2),BF97,0)) -> 0 | CC97: =+IF($K97="Ongoing",BG97,IF(RIGHT($K97,2)=RIGHT(CC$39,2),SUM($AX97:BG97),0)+IF(RIGHT(CC$39,2)>RIGHT($K97,2),BG97,0)) -> 0 | CE97: =+Q97*KeyAssumptionsPriceControl_FO!AC$15 -> 0 | CF97: =+R97*KeyAssumptionsPriceControl_FO!AD$15 -> 0 | CG97: =+S97*KeyAssumptionsPriceControl_FO!AE$15 -> 0 | CH97: =+T97*KeyAssumptionsPriceControl_FO!AF$15 -> 0 | CI97: =+U97*KeyAssumptionsPriceControl_FO!AG$15 -> 0 | CJ97: =+V97*KeyAssumptionsPriceControl_FO!AH$15 -> 0 | CK97: =+W97*KeyAssumptionsPriceControl_FO!AI$15 -> 0 | CL97: =+X97*KeyAssumptionsPriceControl_FO!AJ$15 -> 0 | CM97: =+Y97*KeyAssumptionsPriceControl_FO!AK$15 -> 0 | CN97: =+Z97*KeyAssumptionsPriceControl_FO!AL$15 -> 0 | CP97: 0 | CQ97: 0 | CR97: 0 | CS97: 0 | CT97: 0 | CU97: 0 | CV97: 0 | CW97: 0 | CX97: 0 | CY97: 0
J98: Straight line | AX98: 0 | AY98: 0 | AZ98: 0 | BA98: 0 | BB98: 0 | BC98: 0 | BD98: 0 | BE98: 0 | BF98: 0 | BG98: 0 | BI98: 0 | BJ98: 0 | BK98: 0 | BL98: 0 | BM98: 0 | BN98: 0 | BO98: 0 | BP98: 0 | BQ98: 0 | BR98: 0 | BT98: =+IF($K98="Ongoing",AX98,IF(RIGHT($K98,2)=RIGHT(BT$39,2),SUM($AX98:AX98),0)+IF(RIGHT(BT$39,2)>RIGHT($K98,2),AX98,0)) -> 0 | BU98: =+IF($K98="Ongoing",AY98,IF(RIGHT($K98,2)=RIGHT(BU$39,2),SUM($AX98:AY98),0)+IF(RIGHT(BU$39,2)>RIGHT($K98,2),AY98,0)) -> 0 | BV98: =+IF($K98="Ongoing",AZ98,IF(RIGHT($K98,2)=RIGHT(BV$39,2),SUM($AX98:AZ98),0)+IF(RIGHT(BV$39,2)>RIGHT($K98,2),AZ98,0)) -> 0 | BW98: =+IF($K98="Ongoing",BA98,IF(RIGHT($K98,2)=RIGHT(BW$39,2),SUM($AX98:BA98),0)+IF(RIGHT(BW$39,2)>RIGHT($K98,2),BA98,0)) -> 0 | BX98: =+IF($K98="Ongoing",BB98,IF(RIGHT($K98,2)=RIGHT(BX$39,2),SUM($AX98:BB98),0)+IF(RIGHT(BX$39,2)>RIGHT($K98,2),BB98,0)) -> 0 | BY98: =+IF($K98="Ongoing",BC98,IF(RIGHT($K98,2)=RIGHT(BY$39,2),SUM($AX98:BC98),0)+IF(RIGHT(BY$39,2)>RIGHT($K98,2),BC98,0)) -> 0 | BZ98: =+IF($K98="Ongoing",BD98,IF(RIGHT($K98,2)=RIGHT(BZ$39,2),SUM($AX98:BD98),0)+IF(RIGHT(BZ$39,2)>RIGHT($K98,2),BD98,0)) -> 0 | CA98: =+IF($K98="Ongoing",BE98,IF(RIGHT($K98,2)=RIGHT(CA$39,2),SUM($AX98:BE98),0)+IF(RIGHT(CA$39,2)>RIGHT($K98,2),BE98,0)) -> 0 | CB98: =+IF($K98="Ongoing",BF98,IF(RIGHT($K98,2)=RIGHT(CB$39,2),SUM($AX98:BF98),0)+IF(RIGHT(CB$39,2)>RIGHT($K98,2),BF98,0)) -> 0 | CC98: =+IF($K98="Ongoing",BG98,IF(RIGHT($K98,2)=RIGHT(CC$39,2),SUM($AX98:BG98),0)+IF(RIGHT(CC$39,2)>RIGHT($K98,2),BG98,0)) -> 0 | CE98: =+Q98*KeyAssumptionsPriceControl_FO!AC$15 -> 0 | CF98: =+R98*KeyAssumptionsPriceControl_FO!AD$15 -> 0 | CG98: =+S98*KeyAssumptionsPriceControl_FO!AE$15 -> 0 | CH98: =+T98*KeyAssumptionsPriceControl_FO!AF$15 -> 0 | CI98: =+U98*KeyAssumptionsPriceControl_FO!AG$15 -> 0 | CJ98: =+V98*KeyAssumptionsPriceControl_FO!AH$15 -> 0 | CK98: =+W98*KeyAssumptionsPriceControl_FO!AI$15 -> 0 | CL98: =+X98*KeyAssumptionsPriceControl_FO!AJ$15 -> 0 | CM98: =+Y98*KeyAssumptionsPriceControl_FO!AK$15 -> 0 | CN98: =+Z98*KeyAssumptionsPriceControl_FO!AL$15 -> 0 | CP98: 0 | CQ98: 0 | CR98: 0 | CS98: 0 | CT98: 0 | CU98: 0 | CV98: 0 | CW98: 0 | CX98: 0 | CY98: 0
J99: Straight line | AX99: 0 | AY99: 0 | AZ99: 0 | BA99: 0 | BB99: 0 | BC99: 0 | BD99: 0 | BE99: 0 | BF99: 0 | BG99: 0 | BI99: 0 | BJ99: 0 | BK99: 0 | BL99: 0 | BM99: 0 | BN99: 0 | BO99: 0 | BP99: 0 | BQ99: 0 | BR99: 0 | BT99: =+IF($K99="Ongoing",AX99,IF(RIGHT($K99,2)=RIGHT(BT$39,2),SUM($AX99:AX99),0)+IF(RIGHT(BT$39,2)>RIGHT($K99,2),AX99,0)) -> 0 | BU99: =+IF($K99="Ongoing",AY99,IF(RIGHT($K99,2)=RIGHT(BU$39,2),SUM($AX99:AY99),0)+IF(RIGHT(BU$39,2)>RIGHT($K99,2),AY99,0)) -> 0 | BV99: =+IF($K99="Ongoing",AZ99,IF(RIGHT($K99,2)=RIGHT(BV$39,2),SUM($AX99:AZ99),0)+IF(RIGHT(BV$39,2)>RIGHT($K99,2),AZ99,0)) -> 0 | BW99: =+IF($K99="Ongoing",BA99,IF(RIGHT($K99,2)=RIGHT(BW$39,2),SUM($AX99:BA99),0)+IF(RIGHT(BW$39,2)>RIGHT($K99,2),BA99,0)) -> 0 | BX99: =+IF($K99="Ongoing",BB99,IF(RIGHT($K99,2)=RIGHT(BX$39,2),SUM($AX99:BB99),0)+IF(RIGHT(BX$39,2)>RIGHT($K99,2),BB99,0)) -> 0 | BY99: =+IF($K99="Ongoing",BC99,IF(RIGHT($K99,2)=RIGHT(BY$39,2),SUM($AX99:BC99),0)+IF(RIGHT(BY$39,2)>RIGHT($K99,2),BC99,0)) -> 0 | BZ99: =+IF($K99="Ongoing",BD99,IF(RIGHT($K99,2)=RIGHT(BZ$39,2),SUM($AX99:BD99),0)+IF(RIGHT(BZ$39,2)>RIGHT($K99,2),BD99,0)) -> 0 | CA99: =+IF($K99="Ongoing",BE99,IF(RIGHT($K99,2)=RIGHT(CA$39,2),SUM($AX99:BE99),0)+IF(RIGHT(CA$39,2)>RIGHT($K99,2),BE99,0)) -> 0 | CB99: =+IF($K99="Ongoing",BF99,IF(RIGHT($K99,2)=RIGHT(CB$39,2),SUM($AX99:BF99),0)+IF(RIGHT(CB$39,2)>RIGHT($K99,2),BF99,0)) -> 0 | CC99: =+IF($K99="Ongoing",BG99,IF(RIGHT($K99,2)=RIGHT(CC$39,2),SUM($AX99:BG99),0)+IF(RIGHT(CC$39,2)>RIGHT($K99,2),BG99,0)) -> 0 | CE99: =+Q99*KeyAssumptionsPriceControl_FO!AC$15 -> 0 | CF99: =+R99*KeyAssumptionsPriceControl_FO!AD$15 -> 0 | CG99: =+S99*KeyAssumptionsPriceControl_FO!AE$15 -> 0 | CH99: =+T99*KeyAssumptionsPriceControl_FO!AF$15 -> 0 | CI99: =+U99*KeyAssumptionsPriceControl_FO!AG$15 -> 0 | CJ99: =+V99*KeyAssumptionsPriceControl_FO!AH$15 -> 0 | CK99: =+W99*KeyAssumptionsPriceControl_FO!AI$15 -> 0 | CL99: =+X99*KeyAssumptionsPriceControl_FO!AJ$15 -> 0 | CM99: =+Y99*KeyAssumptionsPriceControl_FO!AK$15 -> 0 | CN99: =+Z99*KeyAssumptionsPriceControl_FO!AL$15 -> 0 | CP99: 0 | CQ99: 0 | CR99: 0 | CS99: 0 | CT99: 0 | CU99: 0 | CV99: 0 | CW99: 0 | CX99: 0 | CY99: 0
J100: Straight line | AX100: 0 | AY100: 0 | AZ100: 0 | BA100: 0 | BB100: 0 | BC100: 0 | BD100: 0 | BE100: 0 | BF100: 0 | BG100: 0 | BI100: 0 | BJ100: 0 | BK100: 0 | BL100: 0 | BM100: 0 | BN100: 0 | BO100: 0 | BP100: 0 | BQ100: 0 | BR100: 0 | BT100: =+IF($K100="Ongoing",AX100,IF(RIGHT($K100,2)=RIGHT(BT$39,2),SUM($AX100:AX100),0)+IF(RIGHT(BT$39,2)>RIGHT($K100,2),AX100,0)) -> 0 | BU100: =+IF($K100="Ongoing",AY100,IF(RIGHT($K100,2)=RIGHT(BU$39,2),SUM($AX100:AY100),0)+IF(RIGHT(BU$39,2)>RIGHT($K100,2),AY100,0)) -> 0 | BV100: =+IF($K100="Ongoing",AZ100,IF(RIGHT($K100,2)=RIGHT(BV$39,2),SUM($AX100:AZ100),0)+IF(RIGHT(BV$39,2)>RIGHT($K100,2),AZ100,0)) -> 0 | BW100: =+IF($K100="Ongoing",BA100,IF(RIGHT($K100,2)=RIGHT(BW$39,2),SUM($AX100:BA100),0)+IF(RIGHT(BW$39,2)>RIGHT($K100,2),BA100,0)) -> 0 | BX100: =+IF($K100="Ongoing",BB100,IF(RIGHT($K100,2)=RIGHT(BX$39,2),SUM($AX100:BB100),0)+IF(RIGHT(BX$39,2)>RIGHT($K100,2),BB100,0)) -> 0 | BY100: =+IF($K100="Ongoing",BC100,IF(RIGHT($K100,2)=RIGHT(BY$39,2),SUM($AX100:BC100),0)+IF(RIGHT(BY$39,2)>RIGHT($K100,2),BC100,0)) -> 0 | BZ100: =+IF($K100="Ongoing",BD100,IF(RIGHT($K100,2)=RIGHT(BZ$39,2),SUM($AX100:BD100),0)+IF(RIGHT(BZ$39,2)>RIGHT($K100,2),BD100,0)) -> 0 | CA100: =+IF($K100="Ongoing",BE100,IF(RIGHT($K100,2)=RIGHT(CA$39,2),SUM($AX100:BE100),0)+IF(RIGHT(CA$39,2)>RIGHT($K100,2),BE100,0)) -> 0 | CB100: =+IF($K100="Ongoing",BF100,IF(RIGHT($K100,2)=RIGHT(CB$39,2),SUM($AX100:BF100),0)+IF(RIGHT(CB$39,2)>RIGHT($K100,2),BF100,0)) -> 0 | CC100: =+IF($K100="Ongoing",BG100,IF(RIGHT($K100,2)=RIGHT(CC$39,2),SUM($AX100:BG100),0)+IF(RIGHT(CC$39,2)>RIGHT($K100,2),BG100,0)) -> 0 | CE100: =+Q100*KeyAssumptionsPriceControl_FO!AC$15 -> 0 | CF100: =+R100*KeyAssumptionsPriceControl_FO!AD$15 -> 0 | CG100: =+S100*KeyAssumptionsPriceControl_FO!AE$15 -> 0 | CH100: =+T100*KeyAssumptionsPriceControl_FO!AF$15 -> 0 | CI100: =+U100*KeyAssumptionsPriceControl_FO!AG$15 -> 0 | CJ100: =+V100*KeyAssumptionsPriceControl_FO!AH$15 -> 0 | CK100: =+W100*KeyAssumptionsPriceControl_FO!AI$15 -> 0 | CL100: =+X100*KeyAssumptionsPriceControl_FO!AJ$15 -> 0 | CM100: =+Y100*KeyAssumptionsPriceControl_FO!AK$15 -> 0 | CN100: =+Z100*KeyAssumptionsPriceControl_FO!AL$15 -> 0 | CP100: 0 | CQ100: 0 | CR100: 0 | CS100: 0 | CT100: 0 | CU100: 0 | CV100: 0 | CW100: 0 | CX100: 0 | CY100: 0
J101: Straight line | AX101: 0 | AY101: 0 | AZ101: 0 | BA101: 0 | BB101: 0 | BC101: 0 | BD101: 0 | BE101: 0 | BF101: 0 | BG101: 0 | BI101: 0 | BJ101: 0 | BK101: 0 | BL101: 0 | BM101: 0 | BN101: 0 | BO101: 0 | BP101: 0 | BQ101: 0 | BR101: 0 | BT101: =+IF($K101="Ongoing",AX101,IF(RIGHT($K101,2)=RIGHT(BT$39,2),SUM($AX101:AX101),0)+IF(RIGHT(BT$39,2)>RIGHT($K101,2),AX101,0)) -> 0 | BU101: =+IF($K101="Ongoing",AY101,IF(RIGHT($K101,2)=RIGHT(BU$39,2),SUM($AX101:AY101),0)+IF(RIGHT(BU$39,2)>RIGHT($K101,2),AY101,0)) -> 0 | BV101: =+IF($K101="Ongoing",AZ101,IF(RIGHT($K101,2)=RIGHT(BV$39,2),SUM($AX101:AZ101),0)+IF(RIGHT(BV$39,2)>RIGHT($K101,2),AZ101,0)) -> 0 | BW101: =+IF($K101="Ongoing",BA101,IF(RIGHT($K101,2)=RIGHT(BW$39,2),SUM($AX101:BA101),0)+IF(RIGHT(BW$39,2)>RIGHT($K101,2),BA101,0)) -> 0 | BX101: =+IF($K101="Ongoing",BB101,IF(RIGHT($K101,2)=RIGHT(BX$39,2),SUM($AX101:BB101),0)+IF(RIGHT(BX$39,2)>RIGHT($K101,2),BB101,0)) -> 0 | BY101: =+IF($K101="Ongoing",BC101,IF(RIGHT($K101,2)=RIGHT(BY$39,2),SUM($AX101:BC101),0)+IF(RIGHT(BY$39,2)>RIGHT($K101,2),BC101,0)) -> 0 | BZ101: =+IF($K101="Ongoing",BD101,IF(RIGHT($K101,2)=RIGHT(BZ$39,2),SUM($AX101:BD101),0)+IF(RIGHT(BZ$39,2)>RIGHT($K101,2),BD101,0)) -> 0 | CA101: =+IF($K101="Ongoing",BE101,IF(RIGHT($K101,2)=RIGHT(CA$39,2),SUM($AX101:BE101),0)+IF(RIGHT(CA$39,2)>RIGHT($K101,2),BE101,0)) -> 0 | CB101: =+IF($K101="Ongoing",BF101,IF(RIGHT($K101,2)=RIGHT(CB$39,2),SUM($AX101:BF101),0)+IF(RIGHT(CB$39,2)>RIGHT($K101,2),BF101,0)) -> 0 | CC101: =+IF($K101="Ongoing",BG101,IF(RIGHT($K101,2)=RIGHT(CC$39,2),SUM($AX101:BG101),0)+IF(RIGHT(CC$39,2)>RIGHT($K101,2),BG101,0)) -> 0 | CE101: =+Q101*KeyAssumptionsPriceControl_FO!AC$15 -> 0 | CF101: =+R101*KeyAssumptionsPriceControl_FO!AD$15 -> 0 | CG101: =+S101*KeyAssumptionsPriceControl_FO!AE$15 -> 0 | CH101: =+T101*KeyAssumptionsPriceControl_FO!AF$15 -> 0 | CI101: =+U101*KeyAssumptionsPriceControl_FO!AG$15 -> 0 | CJ101: =+V101*KeyAssumptionsPriceControl_FO!AH$15 -> 0 | CK101: =+W101*KeyAssumptionsPriceControl_FO!AI$15 -> 0 | CL101: =+X101*KeyAssumptionsPriceControl_FO!AJ$15 -> 0 | CM101: =+Y101*KeyAssumptionsPriceControl_FO!AK$15 -> 0 | CN101: =+Z101*KeyAssumptionsPriceControl_FO!AL$15 -> 0 | CP101: 0 | CQ101: 0 | CR101: 0 | CS101: 0 | CT101: 0 | CU101: 0 | CV101: 0 | CW101: 0 | CX101: 0 | CY101: 0
J102: Straight line | AX102: 0 | AY102: 0 | AZ102: 0 | BA102: 0 | BB102: 0 | BC102: 0 | BD102: 0 | BE102: 0 | BF102: 0 | BG102: 0 | BI102: 0 | BJ102: 0 | BK102: 0 | BL102: 0 | BM102: 0 | BN102: 0 | BO102: 0 | BP102: 0 | BQ102: 0 | BR102: 0 | BT102: =+IF($K102="Ongoing",AX102,IF(RIGHT($K102,2)=RIGHT(BT$39,2),SUM($AX102:AX102),0)+IF(RIGHT(BT$39,2)>RIGHT($K102,2),AX102,0)) -> 0 | BU102: =+IF($K102="Ongoing",AY102,IF(RIGHT($K102,2)=RIGHT(BU$39,2),SUM($AX102:AY102),0)+IF(RIGHT(BU$39,2)>RIGHT($K102,2),AY102,0)) -> 0 | BV102: =+IF($K102="Ongoing",AZ102,IF(RIGHT($K102,2)=RIGHT(BV$39,2),SUM($AX102:AZ102),0)+IF(RIGHT(BV$39,2)>RIGHT($K102,2),AZ102,0)) -> 0 | BW102: =+IF($K102="Ongoing",BA102,IF(RIGHT($K102,2)=RIGHT(BW$39,2),SUM($AX102:BA102),0)+IF(RIGHT(BW$39,2)>RIGHT($K102,2),BA102,0)) -> 0 | BX102: =+IF($K102="Ongoing",BB102,IF(RIGHT($K102,2)=RIGHT(BX$39,2),SUM($AX102:BB102),0)+IF(RIGHT(BX$39,2)>RIGHT($K102,2),BB102,0)) -> 0 | BY102: =+IF($K102="Ongoing",BC102,IF(RIGHT($K102,2)=RIGHT(BY$39,2),SUM($AX102:BC102),0)+IF(RIGHT(BY$39,2)>RIGHT($K102,2),BC102,0)) -> 0 | BZ102: =+IF($K102="Ongoing",BD102,IF(RIGHT($K102,2)=RIGHT(BZ$39,2),SUM($AX102:BD102),0)+IF(RIGHT(BZ$39,2)>RIGHT($K102,2),BD102,0)) -> 0 | CA102: =+IF($K102="Ongoing",BE102,IF(RIGHT($K102,2)=RIGHT(CA$39,2),SUM($AX102:BE102),0)+IF(RIGHT(CA$39,2)>RIGHT($K102,2),BE102,0)) -> 0 | CB102: =+IF($K102="Ongoing",BF102,IF(RIGHT($K102,2)=RIGHT(CB$39,2),SUM($AX102:BF102),0)+IF(RIGHT(CB$39,2)>RIGHT($K102,2),BF102,0)) -> 0 | CC102: =+IF($K102="Ongoing",BG102,IF(RIGHT($K102,2)=RIGHT(CC$39,2),SUM($AX102:BG102),0)+IF(RIGHT(CC$39,2)>RIGHT($K102,2),BG102,0)) -> 0 | CE102: =+Q102*KeyAssumptionsPriceControl_FO!AC$15 -> 0 | CF102: =+R102*KeyAssumptionsPriceControl_FO!AD$15 -> 0 | CG102: =+S102*KeyAssumptionsPriceControl_FO!AE$15 -> 0 | CH102: =+T102*KeyAssumptionsPriceControl_FO!AF$15 -> 0 | CI102: =+U102*KeyAssumptionsPriceControl_FO!AG$15 -> 0 | CJ102: =+V102*KeyAssumptionsPriceControl_FO!AH$15 -> 0 | CK102: =+W102*KeyAssumptionsPriceControl_FO!AI$15 -> 0 | CL102: =+X102*KeyAssumptionsPriceControl_FO!AJ$15 -> 0 | CM102: =+Y102*KeyAssumptionsPriceControl_FO!AK$15 -> 0 | CN102: =+Z102*KeyAssumptionsPriceControl_FO!AL$15 -> 0 | CP102: 0 | CQ102: 0 | CR102: 0 | CS102: 0 | CT102: 0 | CU102: 0 | CV102: 0 | CW102: 0 | CX102: 0 | CY102: 0
J103: Straight line | AX103: 0 | AY103: 0 | AZ103: 0 | BA103: 0 | BB103: 0 | BC103: 0 | BD103: 0 | BE103: 0 | BF103: 0 | BG103: 0 | BI103: 0 | BJ103: 0 | BK103: 0 | BL103: 0 | BM103: 0 | BN103: 0 | BO103: 0 | BP103: 0 | BQ103: 0 | BR103: 0 | BT103: =+IF($K103="Ongoing",AX103,IF(RIGHT($K103,2)=RIGHT(BT$39,2),SUM($AX103:AX103),0)+IF(RIGHT(BT$39,2)>RIGHT($K103,2),AX103,0)) -> 0 | BU103: =+IF($K103="Ongoing",AY103,IF(RIGHT($K103,2)=RIGHT(BU$39,2),SUM($AX103:AY103),0)+IF(RIGHT(BU$39,2)>RIGHT($K103,2),AY103,0)) -> 0 | BV103: =+IF($K103="Ongoing",AZ103,IF(RIGHT($K103,2)=RIGHT(BV$39,2),SUM($AX103:AZ103),0)+IF(RIGHT(BV$39,2)>RIGHT($K103,2),AZ103,0)) -> 0 | BW103: =+IF($K103="Ongoing",BA103,IF(RIGHT($K103,2)=RIGHT(BW$39,2),SUM($AX103:BA103),0)+IF(RIGHT(BW$39,2)>RIGHT($K103,2),BA103,0)) -> 0 | BX103: =+IF($K103="Ongoing",BB103,IF(RIGHT($K103,2)=RIGHT(BX$39,2),SUM($AX103:BB103),0)+IF(RIGHT(BX$39,2)>RIGHT($K103,2),BB103,0)) -> 0 | BY103: =+IF($K103="Ongoing",BC103,IF(RIGHT($K103,2)=RIGHT(BY$39,2),SUM($AX103:BC103),0)+IF(RIGHT(BY$39,2)>RIGHT($K103,2),BC103,0)) -> 0 | BZ103: =+IF($K103="Ongoing",BD103,IF(RIGHT($K103,2)=RIGHT(BZ$39,2),SUM($AX103:BD103),0)+IF(RIGHT(BZ$39,2)>RIGHT($K103,2),BD103,0)) -> 0 | CA103: =+IF($K103="Ongoing",BE103,IF(RIGHT($K103,2)=RIGHT(CA$39,2),SUM($AX103:BE103),0)+IF(RIGHT(CA$39,2)>RIGHT($K103,2),BE103,0)) -> 0 | CB103: =+IF($K103="Ongoing",BF103,IF(RIGHT($K103,2)=RIGHT(CB$39,2),SUM($AX103:BF103),0)+IF(RIGHT(CB$39,2)>RIGHT($K103,2),BF103,0)) -> 0 | CC103: =+IF($K103="Ongoing",BG103,IF(RIGHT($K103,2)=RIGHT(CC$39,2),SUM($AX103:BG103),0)+IF(RIGHT(CC$39,2)>RIGHT($K103,2),BG103,0)) -> 0 | CE103: =+Q103*KeyAssumptionsPriceControl_FO!AC$15 -> 0 | CF103: =+R103*KeyAssumptionsPriceControl_FO!AD$15 -> 0 | CG103: =+S103*KeyAssumptionsPriceControl_FO!AE$15 -> 0 | CH103: =+T103*KeyAssumptionsPriceControl_FO!AF$15 -> 0 | CI103: =+U103*KeyAssumptionsPriceControl_FO!AG$15 -> 0 | CJ103: =+V103*KeyAssumptionsPriceControl_FO!AH$15 -> 0 | CK103: =+W103*KeyAssumptionsPriceControl_FO!AI$15 -> 0 | CL103: =+X103*KeyAssumptionsPriceControl_FO!AJ$15 -> 0 | CM103: =+Y103*KeyAssumptionsPriceControl_FO!AK$15 -> 0 | CN103: =+Z103*KeyAssumptionsPriceControl_FO!AL$15 -> 0 | CP103: 0 | CQ103: 0 | CR103: 0 | CS103: 0 | CT103: 0 | CU103: 0 | CV103: 0 | CW103: 0 | CX103: 0 | CY103: 0
